Workbook

Sheet Menu
E26: Empresa: | G26: Empresa ABCDE

Sheet CadMP
B10: CADASTRO DE MATERIAIS NECESSÁRIOS Insira os materiais necessários para execução dos serviços.
B11: MATERIAIS | C11: UNIDADE DE MEDIDA | D11: VALOR UNITÁRIO
B12: Material 1 | C12: UN | D12: R$5.00
B13: Material 2 | C13: UN | D13: R$10.00
B14: Material 3 | C14: UN | D14: R$20.00
B15: Material 4 | C15: UN | D15: R$30.00
B16: Material 5 | C16: UN | D16: R$40.00

Sheet CadProd
B10: Empresa: | D10: =Menu!$G$26 -> Empresa ABCDE
B12: CADASTRO DE SERVIÇOS Cadastre os serviços com seus custos, impostos e os materiais necessários.
B14: Descrição do Serviço: | D14: Serviço 1
B16: A) Custo de Materiais: | D16: =SUM(K18:K32) -> R$350.00
B17: B) Custo de Mão de Obra: | G17: Materiais | H17: Quantidade | I17: Unidade de Medida | J17: Valor Unitário | K17: Valor Total
G18: Material 2 | H18: 20 | I18: =IFERROR(VLOOKUP(G18,CadMP!B:D,2,0),"") -> UN | J18: =IFERROR(VLOOKUP(G18,CadMP!B:D,3,0),"") -> R$10.00 | K18: =IFERROR(H18*J18,0) -> R$200.00
B19: C) Total de Custos Adicionais: | D19: =SUM(E20:E25) -> R$450.00 | G19: Material 4 | H19: 5 | I19: =IFERROR(VLOOKUP(G19,CadMP!B:D,2,0),"") -> UN | J19: =IFERROR(VLOOKUP(G19,CadMP!B:D,3,0),"") -> R$30.00 | K19: =IFERROR(H19*J19,0) -> R$150.00
C20: Impostos Recuperáveis: | I20: =IFERROR(VLOOKUP(G20,CadMP!B:D,2,0),"") ->  | J20: =IFERROR(VLOOKUP(G20,CadMP!B:D,3,0),"") ->  | K20: 0
C21: Impostos Não Recuperáveis: | I21: =IFERROR(VLOOKUP(G21,CadMP!B:D,2,0),"") ->  | J21: =IFERROR(VLOOKUP(G21,CadMP!B:D,3,0),"") ->  | K21: 0
C22: Fretes: | E22: R$150.00 | I22: =IFERROR(VLOOKUP(G22,CadMP!B:D,2,0),"") ->  | J22: =IFERROR(VLOOKUP(G22,CadMP!B:D,3,0),"") ->  | K22: 0
C23: Seguros: | E23: R$300.00 | I23: =IFERROR(VLOOKUP(G23,CadMP!B:D,2,0),"") ->  | J23: =IFERROR(VLOOKUP(G23,CadMP!B:D,3,0),"") ->  | K23: 0
C24: Substituição Tributária: | I24: =IFERROR(VLOOKUP(G24,CadMP!B:D,2,0),"") ->  | J24: =IFERROR(VLOOKUP(G24,CadMP!B:D,3,0),"") ->  | K24: 0
C25: Outros Custos: | I25: =IFERROR(VLOOKUP(G25,CadMP!B:D,2,0),"") ->  | J25: =IFERROR(VLOOKUP(G25,CadMP!B:D,3,0),"") ->  | K25: 0
I26: =IFERROR(VLOOKUP(G26,CadMP!B:D,2,0),"") ->  | J26: =IFERROR(VLOOKUP(G26,CadMP!B:D,3,0),"") ->  | K26: 0
B27: D) Custo Materiais + Custos Adicionais + Custo Mão de Obra (A+B+C): | E27: =D16+D17+D19 -> R$800.00 | I27: =IFERROR(VLOOKUP(G27,CadMP!B:D,2,0),"") ->  | J27: =IFERROR(VLOOKUP(G27,CadMP!B:D,3,0),"") ->  | K27: 0
I28: =IFERROR(VLOOKUP(G28,CadMP!B:D,2,0),"") ->  | J28: =IFERROR(VLOOKUP(G28,CadMP!B:D,3,0),"") ->  | K28: 0
I29: =IFERROR(VLOOKUP(G29,CadMP!B:D,2,0),"") ->  | J29: =IFERROR(VLOOKUP(G29,CadMP!B:D,3,0),"") ->  | K29: 0
B30: E) Índice de Composição do Preço (%): | E30: =SUM(E31:E37) -> 30.00 | I30: =IFERROR(VLOOKUP(G30,CadMP!B:D,2,0),"") ->  | J30: =IFERROR(VLOOKUP(G30,CadMP!B:D,3,0),"") ->  | K30: 0
C31: % Impostos Estaduais (ICMS): | I31: =IFERROR(VLOOKUP(G31,CadMP!B:D,2,0),"") ->  | J31: =IFERROR(VLOOKUP(G31,CadMP!B:D,3,0),"") ->  | K31: 0
C32: % Impostos Municipais (ISS): | I32: =IFERROR(VLOOKUP(G32,CadMP!B:D,2,0),"") ->  | J32: =IFERROR(VLOOKUP(G32,CadMP!B:D,3,0),"") ->  | K32: 0
C33: % Outros 1:
C34: % Outros 2:
C35: % Comissões:
C36: % Custo fixo: | E36: 10.00 | F36: (custo fixo médio mensal /vendas média mensal) x 100
C37: % Margem de Lucro: | E37: 20.00 | F37: (desejada e possível)
B39: F) Taxa de Marcação Multiplicador = (100)/(100-D): | E39: =(100)/(100-E30) -> 1.43
B42: G) Cálculo do Preço de Venda = (D x F): | E42: =E27*E39 -> R$1,142.86
B44: Observação:
B45: Os percentuais (%) de impostos são vinculados com o ramo de atividade e respectivo regime tributário (Empreendedor Individual, Simples Nacional, Lucro Presumido e Lucro Real).
B50: Código Registro: | D50: 1

Sheet Relatório
B10: Empresa: | C10: =Menu!G26 -> Empresa ABCDE
B12: Serviços | C12: Custo Materiais | D12: Total Custos Adicionais | E12: Índice de Composição do Preço (%) | F12: Preço de Venda
B13: Serviço 1 | C13: R$350.00 | D13: R$450.00 | E13: 30.00 | F13: R$1,142.86
B14: Serviço 2 | C14: R$390.00 | D14: R$450.00 | E14: 30.00 | F14: R$1,200.00
B15: (vazio) | C15: 0 | D15: 0 | E15: 0.00 | F15: 0

Sheet Cad
B11: Serviços | C11: Preço de Venda | D11: Projeções de vendas mensais | E11: Receita bruta mensal | F11: % de Participação | G11: Materiais | H11: Comissões (%) | I11: Impostos (%) | J11: Outros Índices (%) | K11: Custos Adicionais | L11: Total custo por serviço | N11: Custo Fixo | O11: Valor (R$) | R11: Comissões (%) | S11: Impostos (%) | T11: Margem de contribuição unitária | U11: IMC (%) | V11: Receita no ponto de equilíbrio | W11: Quantidade a ser vendida | X11: Outros Gastos | Y11: Matéria Prima
B12: =IF(BaseProdutos!B2="","",BaseProdutos!B2) -> Serviço 1 | C12: =IFERROR(VLOOKUP(B12,BaseProdutos!B:V,21,0),"") -> R$ 1,142.86 | D12: 10 | E12: =IFERROR(IF(B12="","",C12*D12),"") -> R$ 11,428.57 | F12: =IFERROR(E12/SUM($E$12:$E$511),"") -> 32% | G12: =IFERROR(VLOOKUP(B12,BaseProdutos!B:V,3,0),"") -> R$ 350.00 | H12: =IFERROR(VLOOKUP(B12,BaseProdutos!B:V,17,0)/100,"") -> 0% | I12: =IFERROR(SUM(VLOOKUP(B12,BaseProdutos!B:V,13,0),VLOOKUP(B12,BaseProdutos!B:V,14,0))/100,"") -> 0% | J12: =IFERROR(SUM(VLOOKUP(B12,BaseProdutos!B:V,15,0),VLOOKUP(B12,BaseProdutos!B:V,16,0))/100,"") -> 0% | K12: =IFERROR(VLOOKUP(B12,BaseProdutos!B:V,4,0),"") -> R$ 450.00 | L12: =IFERROR(G12+C12*(H12+I12+J12)+K12,"") -> R$ 800.00 | N12: Pró Labore e salários | O12: R$ 6,500.00 | R12: =IFERROR(H12*E12,"") -> R$ 0.00 | S12: =IFERROR(I12*E12,"") -> R$ 0.00 | T12: =IFERROR(C12-L12,"") -> R$ 342.86 | U12: =IFERROR(T12/C12,"") -> 30% | V12: =IFERROR(W12*C12,"") -> R$ 16,816.16 | W12: =IFERROR(F12*PE!$F$20,"") -> 15 | X12: =IFERROR(K12*D12,"") -> R$ 4,500.00 | Y12: =IFERROR(G12*D12,"") -> R$ 3,500.00
B13: =IF(BaseProdutos!B3="","",BaseProdutos!B3) -> Serviço 2 | C13: =IFERROR(VLOOKUP(B13,BaseProdutos!B:V,21,0),"") -> R$ 1,200.00 | D13: 20 | E13: =IFERROR(IF(B13="","",C13*D13),"") -> R$ 24,000.00 | F13: =IFERROR(E13/SUM($E$12:$E$511),"") -> 68% | G13: =IFERROR(VLOOKUP(B13,BaseProdutos!B:V,3,0),"") -> R$ 390.00 | H13: =IFERROR(VLOOKUP(B13,BaseProdutos!B:V,17,0),"") -> 0% | I13: =IFERROR(SUM(VLOOKUP(B13,BaseProdutos!B:V,13,0),VLOOKUP(B13,BaseProdutos!B:V,14,0)),"") -> 0% | J13: =IFERROR(SUM(VLOOKUP(B13,BaseProdutos!B:V,15,0),VLOOKUP(B13,BaseProdutos!B:V,16,0))/100,"") -> 0% | K13: =IFERROR(VLOOKUP(B13,BaseProdutos!B:V,4,0),"") -> R$ 450.00 | L13: =IFERROR(G13+C13*(H13+I13+J13)+K13,"") -> R$ 840.00 | N13: Taxa de propriedade (águal e luz) | O13: R$ 600.00 | R13: =IFERROR(H13*E13,"") -> R$ 0.00 | S13: =IFERROR(I13*E13,"") -> R$ 0.00 | T13: =IFERROR(C13-L13,"") -> R$ 360.00 | U13: =IFERROR(T13/C13,"") -> 30% | V13: =IFERROR(W13*C13,"") -> R$ 37,079.62 | W13: =IFERROR(F13*PE!$F$20,"") -> 31 | X13: =IFERROR(K13*D13,"") -> R$ 9,000.00 | Y13: =IFERROR(G13*D13,"") -> R$ 7,800.00
B14: =IF(BaseProdutos!B4="","",BaseProdutos!B4) ->  | C14: =IFERROR(VLOOKUP(B14,BaseProdutos!B:V,21,0),"") ->  | G14: =IFERROR(VLOOKUP(B14,BaseProdutos!B:V,3,0),"") ->  | H14: =IFERROR(VLOOKUP(B14,BaseProdutos!B:V,17,0),"") ->  | I14: =IFERROR(SUM(VLOOKUP(B14,BaseProdutos!B:V,13,0),VLOOKUP(B14,BaseProdutos!B:V,14,0)),"") ->  | J14: =IFERROR(SUM(VLOOKUP(B14,BaseProdutos!B:V,15,0),VLOOKUP(B14,BaseProdutos!B:V,16,0))/100,"") ->  | K14: =IFERROR(VLOOKUP(B14,BaseProdutos!B:V,4,0),"") ->  | N14: Telefone e internet | O14: R$ 700.00 | W14: =IFERROR(F14*PE!$F$20,"") -> 
B15: =IF(BaseProdutos!B5="","",BaseProdutos!B5) ->  | C15: =IFERROR(VLOOKUP(B15,BaseProdutos!B:V,21,0),"") ->  | G15: =IFERROR(VLOOKUP(B15,BaseProdutos!B:V,3,0),"") ->  | H15: =IFERROR(VLOOKUP(B15,BaseProdutos!B:V,17,0),"") ->  | I15: =IFERROR(SUM(VLOOKUP(B15,BaseProdutos!B:V,13,0),VLOOKUP(B15,BaseProdutos!B:V,14,0)),"") ->  | J15: =IFERROR(SUM(VLOOKUP(B15,BaseProdutos!B:V,15,0),VLOOKUP(B15,BaseProdutos!B:V,16,0))/100,"") ->  | K15: =IFERROR(VLOOKUP(B15,BaseProdutos!B:V,4,0),"") ->  | N15: Aluguel | O15: R$ 2,000.00 | W15: =IFERROR(F15*PE!$F$20,"") -> 
B16: =IF(BaseProdutos!B6="","",BaseProdutos!B6) ->  | C16: =IFERROR(VLOOKUP(B16,BaseProdutos!B:V,21,0),"") ->  | G16: =IFERROR(VLOOKUP(B16,BaseProdutos!B:V,3,0),"") ->  | H16: =IFERROR(VLOOKUP(B16,BaseProdutos!B:V,17,0),"") ->  | I16: =IFERROR(SUM(VLOOKUP(B16,BaseProdutos!B:V,13,0),VLOOKUP(B16,BaseProdutos!B:V,14,0)),"") ->  | J16: =IFERROR(SUM(VLOOKUP(B16,BaseProdutos!B:V,15,0),VLOOKUP(B16,BaseProdutos!B:V,16,0))/100,"") ->  | K16: =IFERROR(VLOOKUP(B16,BaseProdutos!B:V,4,0),"") ->  | N16: Marketing | O16: R$ 2,000.00 | W16: =IFERROR(F16*PE!$F$20,"") -> 
B17: =IF(BaseProdutos!B7="","",BaseProdutos!B7) ->  | C17: =IFERROR(VLOOKUP(B17,BaseProdutos!B:V,21,0),"") ->  | G17: =IFERROR(VLOOKUP(B17,BaseProdutos!B:V,3,0),"") ->  | H17: =IFERROR(VLOOKUP(B17,BaseProdutos!B:V,17,0),"") ->  | I17: =IFERROR(SUM(VLOOKUP(B17,BaseProdutos!B:V,13,0),VLOOKUP(B17,BaseProdutos!B:V,14,0)),"") ->  | J17: =IFERROR(SUM(VLOOKUP(B17,BaseProdutos!B:V,15,0),VLOOKUP(B17,BaseProdutos!B:V,16,0))/100,"") ->  | K17: =IFERROR(VLOOKUP(B17,BaseProdutos!B:V,4,0),"") ->  | N17: Empréstimos | O17: R$ 1,350.00 | W17: =IFERROR(F17*PE!$F$20,"") -> 
B18: =IF(BaseProdutos!B8="","",BaseProdutos!B8) ->  | C18: =IFERROR(VLOOKUP(B18,BaseProdutos!B:V,21,0),"") ->  | G18: =IFERROR(VLOOKUP(B18,BaseProdutos!B:V,3,0),"") ->  | H18: =IFERROR(VLOOKUP(B18,BaseProdutos!B:V,17,0),"") ->  | I18: =IFERROR(SUM(VLOOKUP(B18,BaseProdutos!B:V,13,0),VLOOKUP(B18,BaseProdutos!B:V,14,0)),"") ->  | J18: =IFERROR(SUM(VLOOKUP(B18,BaseProdutos!B:V,15,0),VLOOKUP(B18,BaseProdutos!B:V,16,0))/100,"") ->  | K18: =IFERROR(VLOOKUP(B18,BaseProdutos!B:V,4,0),"") ->  | N18: Legais e Jurídicos | O18: R$ 980.00 | W18: =IFERROR(F18*PE!$F$20,"") -> 
B19: =IF(BaseProdutos!B9="","",BaseProdutos!B9) ->  | C19: =IFERROR(VLOOKUP(B19,BaseProdutos!B:V,21,0),"") ->  | G19: =IFERROR(VLOOKUP(B19,BaseProdutos!B:V,3,0),"") ->  | H19: =IFERROR(VLOOKUP(B19,BaseProdutos!B:V,17,0),"") ->  | I19: =IFERROR(SUM(VLOOKUP(B19,BaseProdutos!B:V,13,0),VLOOKUP(B19,BaseProdutos!B:V,14,0)),"") ->  | J19: =IFERROR(SUM(VLOOKUP(B19,BaseProdutos!B:V,15,0),VLOOKUP(B19,BaseProdutos!B:V,16,0))/100,"") ->  | K19: =IFERROR(VLOOKUP(B19,BaseProdutos!B:V,4,0),"") ->  | N19: Outros Custos | O19: R$ 1,900.00 | W19: =IFERROR(F19*PE!$F$20,"") -> 
B20: =IF(BaseProdutos!B10="","",BaseProdutos!B10) ->  | C20: =IFERROR(VLOOKUP(B20,BaseProdutos!B:V,21,0),"") ->  | G20: =IFERROR(VLOOKUP(B20,BaseProdutos!B:V,3,0),"") ->  | H20: =IFERROR(VLOOKUP(B20,BaseProdutos!B:V,17,0),"") ->  | I20: =IFERROR(SUM(VLOOKUP(B20,BaseProdutos!B:V,13,0),VLOOKUP(B20,BaseProdutos!B:V,14,0)),"") ->  | J20: =IFERROR(SUM(VLOOKUP(B20,BaseProdutos!B:V,15,0),VLOOKUP(B20,BaseProdutos!B:V,16,0))/100,"") ->  | K20: =IFERROR(VLOOKUP(B20,BaseProdutos!B:V,4,0),"") ->  | N20: Outros Custos Fixos | W20: =IFERROR(F20*PE!$F$20,"") -> 
B21: =IF(BaseProdutos!B11="","",BaseProdutos!B11) ->  | C21: =IFERROR(VLOOKUP(B21,BaseProdutos!B:V,21,0),"") ->  | G21: =IFERROR(VLOOKUP(B21,BaseProdutos!B:V,3,0),"") ->  | H21: =IFERROR(VLOOKUP(B21,BaseProdutos!B:V,17,0),"") ->  | I21: =IFERROR(SUM(VLOOKUP(B21,BaseProdutos!B:V,13,0),VLOOKUP(B21,BaseProdutos!B:V,14,0)),"") ->  | J21: =IFERROR(SUM(VLOOKUP(B21,BaseProdutos!B:V,15,0),VLOOKUP(B21,BaseProdutos!B:V,16,0))/100,"") ->  | K21: =IFERROR(VLOOKUP(B21,BaseProdutos!B:V,4,0),"") ->  | W21: =IFERROR(F21*PE!$F$20,"") -> 
B22: =IF(BaseProdutos!B12="","",BaseProdutos!B12) ->  | C22: =IFERROR(VLOOKUP(B22,BaseProdutos!B:V,21,0),"") ->  | G22: =IFERROR(VLOOKUP(B22,BaseProdutos!B:V,3,0),"") ->  | H22: =IFERROR(VLOOKUP(B22,BaseProdutos!B:V,17,0),"") ->  | I22: =IFERROR(SUM(VLOOKUP(B22,BaseProdutos!B:V,13,0),VLOOKUP(B22,BaseProdutos!B:V,14,0)),"") ->  | J22: =IFERROR(SUM(VLOOKUP(B22,BaseProdutos!B:V,15,0),VLOOKUP(B22,BaseProdutos!B:V,16,0))/100,"") ->  | K22: =IFERROR(VLOOKUP(B22,BaseProdutos!B:V,4,0),"") ->  | W22: =IFERROR(F22*PE!$F$20,"") -> 
B23: =IF(BaseProdutos!B13="","",BaseProdutos!B13) ->  | C23: =IFERROR(VLOOKUP(B23,BaseProdutos!B:V,21,0),"") ->  | G23: =IFERROR(VLOOKUP(B23,BaseProdutos!B:V,3,0),"") ->  | H23: =IFERROR(VLOOKUP(B23,BaseProdutos!B:V,17,0),"") ->  | I23: =IFERROR(SUM(VLOOKUP(B23,BaseProdutos!B:V,13,0),VLOOKUP(B23,BaseProdutos!B:V,14,0)),"") ->  | J23: =IFERROR(SUM(VLOOKUP(B23,BaseProdutos!B:V,15,0),VLOOKUP(B23,BaseProdutos!B:V,16,0))/100,"") ->  | K23: =IFERROR(VLOOKUP(B23,BaseProdutos!B:V,4,0),"") ->  | W23: =IFERROR(F23*PE!$F$20,"") -> 
B24: =IF(BaseProdutos!B14="","",BaseProdutos!B14) ->  | C24: =IFERROR(VLOOKUP(B24,BaseProdutos!B:V,21,0),"") ->  | G24: =IFERROR(VLOOKUP(B24,BaseProdutos!B:V,3,0),"") ->  | H24: =IFERROR(VLOOKUP(B24,BaseProdutos!B:V,17,0),"") ->  | I24: =IFERROR(SUM(VLOOKUP(B24,BaseProdutos!B:V,13,0),VLOOKUP(B24,BaseProdutos!B:V,14,0)),"") ->  | J24: =IFERROR(SUM(VLOOKUP(B24,BaseProdutos!B:V,15,0),VLOOKUP(B24,BaseProdutos!B:V,16,0))/100,"") ->  | K24: =IFERROR(VLOOKUP(B24,BaseProdutos!B:V,4,0),"") ->  | W24: =IFERROR(F24*PE!$F$20,"") -> 
B25: =IF(BaseProdutos!B15="","",BaseProdutos!B15) ->  | C25: =IFERROR(VLOOKUP(B25,BaseProdutos!B:V,21,0),"") ->  | G25: =IFERROR(VLOOKUP(B25,BaseProdutos!B:V,3,0),"") ->  | H25: =IFERROR(VLOOKUP(B25,BaseProdutos!B:V,17,0),"") ->  | I25: =IFERROR(SUM(VLOOKUP(B25,BaseProdutos!B:V,13,0),VLOOKUP(B25,BaseProdutos!B:V,14,0)),"") ->  | J25: =IFERROR(SUM(VLOOKUP(B25,BaseProdutos!B:V,15,0),VLOOKUP(B25,BaseProdutos!B:V,16,0))/100,"") ->  | K25: =IFERROR(VLOOKUP(B25,BaseProdutos!B:V,4,0),"") ->  | W25: =IFERROR(F25*PE!$F$20,"") -> 
B26: =IF(BaseProdutos!B16="","",BaseProdutos!B16) ->  | C26: =IFERROR(VLOOKUP(B26,BaseProdutos!B:V,21,0),"") ->  | G26: =IFERROR(VLOOKUP(B26,BaseProdutos!B:V,3,0),"") ->  | H26: =IFERROR(VLOOKUP(B26,BaseProdutos!B:V,17,0),"") ->  | I26: =IFERROR(SUM(VLOOKUP(B26,BaseProdutos!B:V,13,0),VLOOKUP(B26,BaseProdutos!B:V,14,0)),"") ->  | J26: =IFERROR(SUM(VLOOKUP(B26,BaseProdutos!B:V,15,0),VLOOKUP(B26,BaseProdutos!B:V,16,0))/100,"") ->  | K26: =IFERROR(VLOOKUP(B26,BaseProdutos!B:V,4,0),"") ->  | W26: =IFERROR(F26*PE!$F$20,"") -> 
B27: =IF(BaseProdutos!B17="","",BaseProdutos!B17) ->  | C27: =IFERROR(VLOOKUP(B27,BaseProdutos!B:V,21,0),"") ->  | G27: =IFERROR(VLOOKUP(B27,BaseProdutos!B:V,3,0),"") ->  | H27: =IFERROR(VLOOKUP(B27,BaseProdutos!B:V,17,0),"") ->  | I27: =IFERROR(SUM(VLOOKUP(B27,BaseProdutos!B:V,13,0),VLOOKUP(B27,BaseProdutos!B:V,14,0)),"") ->  | J27: =IFERROR(SUM(VLOOKUP(B27,BaseProdutos!B:V,15,0),VLOOKUP(B27,BaseProdutos!B:V,16,0))/100,"") ->  | K27: =IFERROR(VLOOKUP(B27,BaseProdutos!B:V,4,0),"") ->  | W27: =IFERROR(F27*PE!$F$20,"") -> 
B28: =IF(BaseProdutos!B18="","",BaseProdutos!B18) ->  | C28: =IFERROR(VLOOKUP(B28,BaseProdutos!B:V,21,0),"") ->  | G28: =IFERROR(VLOOKUP(B28,BaseProdutos!B:V,3,0),"") ->  | H28: =IFERROR(VLOOKUP(B28,BaseProdutos!B:V,17,0),"") ->  | I28: =IFERROR(SUM(VLOOKUP(B28,BaseProdutos!B:V,13,0),VLOOKUP(B28,BaseProdutos!B:V,14,0)),"") ->  | J28: =IFERROR(SUM(VLOOKUP(B28,BaseProdutos!B:V,15,0),VLOOKUP(B28,BaseProdutos!B:V,16,0))/100,"") ->  | K28: =IFERROR(VLOOKUP(B28,BaseProdutos!B:V,4,0),"") ->  | W28: =IFERROR(F28*PE!$F$20,"") -> 
B29: =IF(BaseProdutos!B19="","",BaseProdutos!B19) ->  | C29: =IFERROR(VLOOKUP(B29,BaseProdutos!B:V,21,0),"") ->  | G29: =IFERROR(VLOOKUP(B29,BaseProdutos!B:V,3,0),"") ->  | H29: =IFERROR(VLOOKUP(B29,BaseProdutos!B:V,17,0),"") ->  | I29: =IFERROR(SUM(VLOOKUP(B29,BaseProdutos!B:V,13,0),VLOOKUP(B29,BaseProdutos!B:V,14,0)),"") ->  | J29: =IFERROR(SUM(VLOOKUP(B29,BaseProdutos!B:V,15,0),VLOOKUP(B29,BaseProdutos!B:V,16,0))/100,"") ->  | K29: =IFERROR(VLOOKUP(B29,BaseProdutos!B:V,4,0),"") ->  | W29: =IFERROR(F29*PE!$F$20,"") -> 
B30: =IF(BaseProdutos!B20="","",BaseProdutos!B20) ->  | C30: =IFERROR(VLOOKUP(B30,BaseProdutos!B:V,21,0),"") ->  | G30: =IFERROR(VLOOKUP(B30,BaseProdutos!B:V,3,0),"") ->  | H30: =IFERROR(VLOOKUP(B30,BaseProdutos!B:V,17,0),"") ->  | I30: =IFERROR(SUM(VLOOKUP(B30,BaseProdutos!B:V,13,0),VLOOKUP(B30,BaseProdutos!B:V,14,0)),"") ->  | J30: =IFERROR(SUM(VLOOKUP(B30,BaseProdutos!B:V,15,0),VLOOKUP(B30,BaseProdutos!B:V,16,0))/100,"") ->  | K30: =IFERROR(VLOOKUP(B30,BaseProdutos!B:V,4,0),"") ->  | W30: =IFERROR(F30*PE!$F$20,"") -> 
B31: =IF(BaseProdutos!B21="","",BaseProdutos!B21) ->  | C31: =IFERROR(VLOOKUP(B31,BaseProdutos!B:V,21,0),"") ->  | G31: =IFERROR(VLOOKUP(B31,BaseProdutos!B:V,3,0),"") ->  | H31: =IFERROR(VLOOKUP(B31,BaseProdutos!B:V,17,0),"") ->  | I31: =IFERROR(SUM(VLOOKUP(B31,BaseProdutos!B:V,13,0),VLOOKUP(B31,BaseProdutos!B:V,14,0)),"") ->  | J31: =IFERROR(SUM(VLOOKUP(B31,BaseProdutos!B:V,15,0),VLOOKUP(B31,BaseProdutos!B:V,16,0))/100,"") ->  | K31: =IFERROR(VLOOKUP(B31,BaseProdutos!B:V,4,0),"") ->  | W31: =IFERROR(F31*PE!$F$20,"") -> 
B32: =IF(BaseProdutos!B22="","",BaseProdutos!B22) ->  | C32: =IFERROR(VLOOKUP(B32,BaseProdutos!B:V,21,0),"") ->  | G32: =IFERROR(VLOOKUP(B32,BaseProdutos!B:V,3,0),"") ->  | H32: =IFERROR(VLOOKUP(B32,BaseProdutos!B:V,17,0),"") ->  | I32: =IFERROR(SUM(VLOOKUP(B32,BaseProdutos!B:V,13,0),VLOOKUP(B32,BaseProdutos!B:V,14,0)),"") ->  | J32: =IFERROR(SUM(VLOOKUP(B32,BaseProdutos!B:V,15,0),VLOOKUP(B32,BaseProdutos!B:V,16,0))/100,"") ->  | K32: =IFERROR(VLOOKUP(B32,BaseProdutos!B:V,4,0),"") ->  | W32: =IFERROR(F32*PE!$F$20,"") -> 
B33: =IF(BaseProdutos!B23="","",BaseProdutos!B23) ->  | C33: =IFERROR(VLOOKUP(B33,BaseProdutos!B:V,21,0),"") ->  | G33: =IFERROR(VLOOKUP(B33,BaseProdutos!B:V,3,0),"") ->  | H33: =IFERROR(VLOOKUP(B33,BaseProdutos!B:V,17,0),"") ->  | I33: =IFERROR(SUM(VLOOKUP(B33,BaseProdutos!B:V,13,0),VLOOKUP(B33,BaseProdutos!B:V,14,0)),"") ->  | J33: =IFERROR(SUM(VLOOKUP(B33,BaseProdutos!B:V,15,0),VLOOKUP(B33,BaseProdutos!B:V,16,0))/100,"") ->  | K33: =IFERROR(VLOOKUP(B33,BaseProdutos!B:V,4,0),"") ->  | W33: =IFERROR(F33*PE!$F$20,"") -> 
B34: =IF(BaseProdutos!B24="","",BaseProdutos!B24) ->  | C34: =IFERROR(VLOOKUP(B34,BaseProdutos!B:V,21,0),"") ->  | G34: =IFERROR(VLOOKUP(B34,BaseProdutos!B:V,3,0),"") ->  | H34: =IFERROR(VLOOKUP(B34,BaseProdutos!B:V,17,0),"") ->  | I34: =IFERROR(SUM(VLOOKUP(B34,BaseProdutos!B:V,13,0),VLOOKUP(B34,BaseProdutos!B:V,14,0)),"") ->  | J34: =IFERROR(SUM(VLOOKUP(B34,BaseProdutos!B:V,15,0),VLOOKUP(B34,BaseProdutos!B:V,16,0))/100,"") ->  | K34: =IFERROR(VLOOKUP(B34,BaseProdutos!B:V,4,0),"") ->  | W34: =IFERROR(F34*PE!$F$20,"") -> 
B35: =IF(BaseProdutos!B25="","",BaseProdutos!B25) ->  | C35: =IFERROR(VLOOKUP(B35,BaseProdutos!B:V,21,0),"") ->  | G35: =IFERROR(VLOOKUP(B35,BaseProdutos!B:V,3,0),"") ->  | H35: =IFERROR(VLOOKUP(B35,BaseProdutos!B:V,17,0),"") ->  | I35: =IFERROR(SUM(VLOOKUP(B35,BaseProdutos!B:V,13,0),VLOOKUP(B35,BaseProdutos!B:V,14,0)),"") ->  | J35: =IFERROR(SUM(VLOOKUP(B35,BaseProdutos!B:V,15,0),VLOOKUP(B35,BaseProdutos!B:V,16,0))/100,"") ->  | K35: =IFERROR(VLOOKUP(B35,BaseProdutos!B:V,4,0),"") ->  | W35: =IFERROR(F35*PE!$F$20,"") -> 
B36: =IF(BaseProdutos!B26="","",BaseProdutos!B26) ->  | C36: =IFERROR(VLOOKUP(B36,BaseProdutos!B:V,21,0),"") ->  | G36: =IFERROR(VLOOKUP(B36,BaseProdutos!B:V,3,0),"") ->  | H36: =IFERROR(VLOOKUP(B36,BaseProdutos!B:V,17,0),"") ->  | I36: =IFERROR(SUM(VLOOKUP(B36,BaseProdutos!B:V,13,0),VLOOKUP(B36,BaseProdutos!B:V,14,0)),"") ->  | J36: =IFERROR(SUM(VLOOKUP(B36,BaseProdutos!B:V,15,0),VLOOKUP(B36,BaseProdutos!B:V,16,0))/100,"") ->  | K36: =IFERROR(VLOOKUP(B36,BaseProdutos!B:V,4,0),"") ->  | W36: =IFERROR(F36*PE!$F$20,"") -> 
B37: =IF(BaseProdutos!B27="","",BaseProdutos!B27) ->  | C37: =IFERROR(VLOOKUP(B37,BaseProdutos!B:V,21,0),"") ->  | G37: =IFERROR(VLOOKUP(B37,BaseProdutos!B:V,3,0),"") ->  | H37: =IFERROR(VLOOKUP(B37,BaseProdutos!B:V,17,0),"") ->  | I37: =IFERROR(SUM(VLOOKUP(B37,BaseProdutos!B:V,13,0),VLOOKUP(B37,BaseProdutos!B:V,14,0)),"") ->  | J37: =IFERROR(SUM(VLOOKUP(B37,BaseProdutos!B:V,15,0),VLOOKUP(B37,BaseProdutos!B:V,16,0))/100,"") ->  | K37: =IFERROR(VLOOKUP(B37,BaseProdutos!B:V,4,0),"") ->  | W37: =IFERROR(F37*PE!$F$20,"") -> 
B38: =IF(BaseProdutos!B28="","",BaseProdutos!B28) ->  | C38: =IFERROR(VLOOKUP(B38,BaseProdutos!B:V,21,0),"") ->  | G38: =IFERROR(VLOOKUP(B38,BaseProdutos!B:V,3,0),"") ->  | H38: =IFERROR(VLOOKUP(B38,BaseProdutos!B:V,17,0),"") ->  | I38: =IFERROR(SUM(VLOOKUP(B38,BaseProdutos!B:V,13,0),VLOOKUP(B38,BaseProdutos!B:V,14,0)),"") ->  | J38: =IFERROR(SUM(VLOOKUP(B38,BaseProdutos!B:V,15,0),VLOOKUP(B38,BaseProdutos!B:V,16,0))/100,"") ->  | K38: =IFERROR(VLOOKUP(B38,BaseProdutos!B:V,4,0),"") ->  | W38: =IFERROR(F38*PE!$F$20,"") -> 
B39: =IF(BaseProdutos!B29="","",BaseProdutos!B29) ->  | C39: =IFERROR(VLOOKUP(B39,BaseProdutos!B:V,21,0),"") ->  | G39: =IFERROR(VLOOKUP(B39,BaseProdutos!B:V,3,0),"") ->  | H39: =IFERROR(VLOOKUP(B39,BaseProdutos!B:V,17,0),"") ->  | I39: =IFERROR(SUM(VLOOKUP(B39,BaseProdutos!B:V,13,0),VLOOKUP(B39,BaseProdutos!B:V,14,0)),"") ->  | J39: =IFERROR(SUM(VLOOKUP(B39,BaseProdutos!B:V,15,0),VLOOKUP(B39,BaseProdutos!B:V,16,0))/100,"") ->  | K39: =IFERROR(VLOOKUP(B39,BaseProdutos!B:V,4,0),"") ->  | W39: =IFERROR(F39*PE!$F$20,"") -> 
B40: =IF(BaseProdutos!B30="","",BaseProdutos!B30) ->  | C40: =IFERROR(VLOOKUP(B40,BaseProdutos!B:V,21,0),"") ->  | G40: =IFERROR(VLOOKUP(B40,BaseProdutos!B:V,3,0),"") ->  | H40: =IFERROR(VLOOKUP(B40,BaseProdutos!B:V,17,0),"") ->  | I40: =IFERROR(SUM(VLOOKUP(B40,BaseProdutos!B:V,13,0),VLOOKUP(B40,BaseProdutos!B:V,14,0)),"") ->  | J40: =IFERROR(SUM(VLOOKUP(B40,BaseProdutos!B:V,15,0),VLOOKUP(B40,BaseProdutos!B:V,16,0))/100,"") ->  | K40: =IFERROR(VLOOKUP(B40,BaseProdutos!B:V,4,0),"") ->  | W40: =IFERROR(F40*PE!$F$20,"") -> 
B41: =IF(BaseProdutos!B31="","",BaseProdutos!B31) ->  | C41: =IFERROR(VLOOKUP(B41,BaseProdutos!B:V,21,0),"") ->  | G41: =IFERROR(VLOOKUP(B41,BaseProdutos!B:V,3,0),"") ->  | H41: =IFERROR(VLOOKUP(B41,BaseProdutos!B:V,17,0),"") ->  | I41: =IFERROR(SUM(VLOOKUP(B41,BaseProdutos!B:V,13,0),VLOOKUP(B41,BaseProdutos!B:V,14,0)),"") ->  | J41: =IFERROR(SUM(VLOOKUP(B41,BaseProdutos!B:V,15,0),VLOOKUP(B41,BaseProdutos!B:V,16,0))/100,"") ->  | K41: =IFERROR(VLOOKUP(B41,BaseProdutos!B:V,4,0),"") ->  | W41: =IFERROR(F41*PE!$F$20,"") -> 
B42: =IF(BaseProdutos!B32="","",BaseProdutos!B32) ->  | C42: =IFERROR(VLOOKUP(B42,BaseProdutos!B:V,21,0),"") ->  | G42: =IFERROR(VLOOKUP(B42,BaseProdutos!B:V,3,0),"") ->  | H42: =IFERROR(VLOOKUP(B42,BaseProdutos!B:V,17,0),"") ->  | I42: =IFERROR(SUM(VLOOKUP(B42,BaseProdutos!B:V,13,0),VLOOKUP(B42,BaseProdutos!B:V,14,0)),"") ->  | J42: =IFERROR(SUM(VLOOKUP(B42,BaseProdutos!B:V,15,0),VLOOKUP(B42,BaseProdutos!B:V,16,0))/100,"") ->  | K42: =IFERROR(VLOOKUP(B42,BaseProdutos!B:V,4,0),"") ->  | W42: =IFERROR(F42*PE!$F$20,"") -> 
B43: =IF(BaseProdutos!B33="","",BaseProdutos!B33) ->  | C43: =IFERROR(VLOOKUP(B43,BaseProdutos!B:V,21,0),"") ->  | G43: =IFERROR(VLOOKUP(B43,BaseProdutos!B:V,3,0),"") ->  | H43: =IFERROR(VLOOKUP(B43,BaseProdutos!B:V,17,0),"") ->  | I43: =IFERROR(SUM(VLOOKUP(B43,BaseProdutos!B:V,13,0),VLOOKUP(B43,BaseProdutos!B:V,14,0)),"") ->  | J43: =IFERROR(SUM(VLOOKUP(B43,BaseProdutos!B:V,15,0),VLOOKUP(B43,BaseProdutos!B:V,16,0))/100,"") ->  | K43: =IFERROR(VLOOKUP(B43,BaseProdutos!B:V,4,0),"") ->  | W43: =IFERROR(F43*PE!$F$20,"") -> 
B44: =IF(BaseProdutos!B34="","",BaseProdutos!B34) ->  | C44: =IFERROR(VLOOKUP(B44,BaseProdutos!B:V,21,0),"") ->  | G44: =IFERROR(VLOOKUP(B44,BaseProdutos!B:V,3,0),"") ->  | H44: =IFERROR(VLOOKUP(B44,BaseProdutos!B:V,17,0),"") ->  | I44: =IFERROR(SUM(VLOOKUP(B44,BaseProdutos!B:V,13,0),VLOOKUP(B44,BaseProdutos!B:V,14,0)),"") ->  | J44: =IFERROR(SUM(VLOOKUP(B44,BaseProdutos!B:V,15,0),VLOOKUP(B44,BaseProdutos!B:V,16,0))/100,"") ->  | K44: =IFERROR(VLOOKUP(B44,BaseProdutos!B:V,4,0),"") ->  | W44: =IFERROR(F44*PE!$F$20,"") -> 
B45: =IF(BaseProdutos!B35="","",BaseProdutos!B35) ->  | C45: =IFERROR(VLOOKUP(B45,BaseProdutos!B:V,21,0),"") ->  | G45: =IFERROR(VLOOKUP(B45,BaseProdutos!B:V,3,0),"") ->  | H45: =IFERROR(VLOOKUP(B45,BaseProdutos!B:V,17,0),"") ->  | I45: =IFERROR(SUM(VLOOKUP(B45,BaseProdutos!B:V,13,0),VLOOKUP(B45,BaseProdutos!B:V,14,0)),"") ->  | J45: =IFERROR(SUM(VLOOKUP(B45,BaseProdutos!B:V,15,0),VLOOKUP(B45,BaseProdutos!B:V,16,0))/100,"") ->  | K45: =IFERROR(VLOOKUP(B45,BaseProdutos!B:V,4,0),"") ->  | W45: =IFERROR(F45*PE!$F$20,"") -> 
B46: =IF(BaseProdutos!B36="","",BaseProdutos!B36) ->  | C46: =IFERROR(VLOOKUP(B46,BaseProdutos!B:V,21,0),"") ->  | G46: =IFERROR(VLOOKUP(B46,BaseProdutos!B:V,3,0),"") ->  | H46: =IFERROR(VLOOKUP(B46,BaseProdutos!B:V,17,0),"") ->  | I46: =IFERROR(SUM(VLOOKUP(B46,BaseProdutos!B:V,13,0),VLOOKUP(B46,BaseProdutos!B:V,14,0)),"") ->  | J46: =IFERROR(SUM(VLOOKUP(B46,BaseProdutos!B:V,15,0),VLOOKUP(B46,BaseProdutos!B:V,16,0))/100,"") ->  | K46: =IFERROR(VLOOKUP(B46,BaseProdutos!B:V,4,0),"") ->  | W46: =IFERROR(F46*PE!$F$20,"") -> 
B47: =IF(BaseProdutos!B37="","",BaseProdutos!B37) ->  | C47: =IFERROR(VLOOKUP(B47,BaseProdutos!B:V,21,0),"") ->  | G47: =IFERROR(VLOOKUP(B47,BaseProdutos!B:V,3,0),"") ->  | H47: =IFERROR(VLOOKUP(B47,BaseProdutos!B:V,17,0),"") ->  | I47: =IFERROR(SUM(VLOOKUP(B47,BaseProdutos!B:V,13,0),VLOOKUP(B47,BaseProdutos!B:V,14,0)),"") ->  | J47: =IFERROR(SUM(VLOOKUP(B47,BaseProdutos!B:V,15,0),VLOOKUP(B47,BaseProdutos!B:V,16,0))/100,"") ->  | K47: =IFERROR(VLOOKUP(B47,BaseProdutos!B:V,4,0),"") ->  | W47: =IFERROR(F47*PE!$F$20,"") -> 
B48: =IF(BaseProdutos!B38="","",BaseProdutos!B38) ->  | C48: =IFERROR(VLOOKUP(B48,BaseProdutos!B:V,21,0),"") ->  | G48: =IFERROR(VLOOKUP(B48,BaseProdutos!B:V,3,0),"") ->  | H48: =IFERROR(VLOOKUP(B48,BaseProdutos!B:V,17,0),"") ->  | I48: =IFERROR(SUM(VLOOKUP(B48,BaseProdutos!B:V,13,0),VLOOKUP(B48,BaseProdutos!B:V,14,0)),"") ->  | J48: =IFERROR(SUM(VLOOKUP(B48,BaseProdutos!B:V,15,0),VLOOKUP(B48,BaseProdutos!B:V,16,0))/100,"") ->  | K48: =IFERROR(VLOOKUP(B48,BaseProdutos!B:V,4,0),"") ->  | W48: =IFERROR(F48*PE!$F$20,"") -> 
B49: =IF(BaseProdutos!B39="","",BaseProdutos!B39) ->  | C49: =IFERROR(VLOOKUP(B49,BaseProdutos!B:V,21,0),"") ->  | G49: =IFERROR(VLOOKUP(B49,BaseProdutos!B:V,3,0),"") ->  | H49: =IFERROR(VLOOKUP(B49,BaseProdutos!B:V,17,0),"") ->  | I49: =IFERROR(SUM(VLOOKUP(B49,BaseProdutos!B:V,13,0),VLOOKUP(B49,BaseProdutos!B:V,14,0)),"") ->  | J49: =IFERROR(SUM(VLOOKUP(B49,BaseProdutos!B:V,15,0),VLOOKUP(B49,BaseProdutos!B:V,16,0))/100,"") ->  | K49: =IFERROR(VLOOKUP(B49,BaseProdutos!B:V,4,0),"") ->  | W49: =IFERROR(F49*PE!$F$20,"") -> 
B50: =IF(BaseProdutos!B40="","",BaseProdutos!B40) ->  | C50: =IFERROR(VLOOKUP(B50,BaseProdutos!B:V,21,0),"") ->  | G50: =IFERROR(VLOOKUP(B50,BaseProdutos!B:V,3,0),"") ->  | H50: =IFERROR(VLOOKUP(B50,BaseProdutos!B:V,17,0),"") ->  | I50: =IFERROR(SUM(VLOOKUP(B50,BaseProdutos!B:V,13,0),VLOOKUP(B50,BaseProdutos!B:V,14,0)),"") ->  | J50: =IFERROR(SUM(VLOOKUP(B50,BaseProdutos!B:V,15,0),VLOOKUP(B50,BaseProdutos!B:V,16,0))/100,"") ->  | K50: =IFERROR(VLOOKUP(B50,BaseProdutos!B:V,4,0),"") ->  | W50: =IFERROR(F50*PE!$F$20,"") -> 
B51: =IF(BaseProdutos!B41="","",BaseProdutos!B41) ->  | C51: =IFERROR(VLOOKUP(B51,BaseProdutos!B:V,21,0),"") ->  | G51: =IFERROR(VLOOKUP(B51,BaseProdutos!B:V,3,0),"") ->  | H51: =IFERROR(VLOOKUP(B51,BaseProdutos!B:V,17,0),"") ->  | I51: =IFERROR(SUM(VLOOKUP(B51,BaseProdutos!B:V,13,0),VLOOKUP(B51,BaseProdutos!B:V,14,0)),"") ->  | J51: =IFERROR(SUM(VLOOKUP(B51,BaseProdutos!B:V,15,0),VLOOKUP(B51,BaseProdutos!B:V,16,0))/100,"") ->  | K51: =IFERROR(VLOOKUP(B51,BaseProdutos!B:V,4,0),"") ->  | W51: =IFERROR(F51*PE!$F$20,"") -> 
B52: =IF(BaseProdutos!B42="","",BaseProdutos!B42) ->  | C52: =IFERROR(VLOOKUP(B52,BaseProdutos!B:V,21,0),"") ->  | G52: =IFERROR(VLOOKUP(B52,BaseProdutos!B:V,3,0),"") ->  | H52: =IFERROR(VLOOKUP(B52,BaseProdutos!B:V,17,0),"") ->  | I52: =IFERROR(SUM(VLOOKUP(B52,BaseProdutos!B:V,13,0),VLOOKUP(B52,BaseProdutos!B:V,14,0)),"") ->  | J52: =IFERROR(SUM(VLOOKUP(B52,BaseProdutos!B:V,15,0),VLOOKUP(B52,BaseProdutos!B:V,16,0))/100,"") ->  | K52: =IFERROR(VLOOKUP(B52,BaseProdutos!B:V,4,0),"") ->  | W52: =IFERROR(F52*PE!$F$20,"") -> 
B53: =IF(BaseProdutos!B43="","",BaseProdutos!B43) ->  | C53: =IFERROR(VLOOKUP(B53,BaseProdutos!B:V,21,0),"") ->  | G53: =IFERROR(VLOOKUP(B53,BaseProdutos!B:V,3,0),"") ->  | H53: =IFERROR(VLOOKUP(B53,BaseProdutos!B:V,17,0),"") ->  | I53: =IFERROR(SUM(VLOOKUP(B53,BaseProdutos!B:V,13,0),VLOOKUP(B53,BaseProdutos!B:V,14,0)),"") ->  | J53: =IFERROR(SUM(VLOOKUP(B53,BaseProdutos!B:V,15,0),VLOOKUP(B53,BaseProdutos!B:V,16,0))/100,"") ->  | K53: =IFERROR(VLOOKUP(B53,BaseProdutos!B:V,4,0),"") ->  | W53: =IFERROR(F53*PE!$F$20,"") -> 
B54: =IF(BaseProdutos!B44="","",BaseProdutos!B44) ->  | C54: =IFERROR(VLOOKUP(B54,BaseProdutos!B:V,21,0),"") ->  | G54: =IFERROR(VLOOKUP(B54,BaseProdutos!B:V,3,0),"") ->  | H54: =IFERROR(VLOOKUP(B54,BaseProdutos!B:V,17,0),"") ->  | I54: =IFERROR(SUM(VLOOKUP(B54,BaseProdutos!B:V,13,0),VLOOKUP(B54,BaseProdutos!B:V,14,0)),"") ->  | J54: =IFERROR(SUM(VLOOKUP(B54,BaseProdutos!B:V,15,0),VLOOKUP(B54,BaseProdutos!B:V,16,0))/100,"") ->  | K54: =IFERROR(VLOOKUP(B54,BaseProdutos!B:V,4,0),"") ->  | W54: =IFERROR(F54*PE!$F$20,"") -> 
B55: =IF(BaseProdutos!B45="","",BaseProdutos!B45) ->  | C55: =IFERROR(VLOOKUP(B55,BaseProdutos!B:V,21,0),"") ->  | G55: =IFERROR(VLOOKUP(B55,BaseProdutos!B:V,3,0),"") ->  | H55: =IFERROR(VLOOKUP(B55,BaseProdutos!B:V,17,0),"") ->  | I55: =IFERROR(SUM(VLOOKUP(B55,BaseProdutos!B:V,13,0),VLOOKUP(B55,BaseProdutos!B:V,14,0)),"") ->  | J55: =IFERROR(SUM(VLOOKUP(B55,BaseProdutos!B:V,15,0),VLOOKUP(B55,BaseProdutos!B:V,16,0))/100,"") ->  | K55: =IFERROR(VLOOKUP(B55,BaseProdutos!B:V,4,0),"") ->  | W55: =IFERROR(F55*PE!$F$20,"") -> 
B56: =IF(BaseProdutos!B46="","",BaseProdutos!B46) ->  | C56: =IFERROR(VLOOKUP(B56,BaseProdutos!B:V,21,0),"") ->  | G56: =IFERROR(VLOOKUP(B56,BaseProdutos!B:V,3,0),"") ->  | H56: =IFERROR(VLOOKUP(B56,BaseProdutos!B:V,17,0),"") ->  | I56: =IFERROR(SUM(VLOOKUP(B56,BaseProdutos!B:V,13,0),VLOOKUP(B56,BaseProdutos!B:V,14,0)),"") ->  | J56: =IFERROR(SUM(VLOOKUP(B56,BaseProdutos!B:V,15,0),VLOOKUP(B56,BaseProdutos!B:V,16,0))/100,"") ->  | K56: =IFERROR(VLOOKUP(B56,BaseProdutos!B:V,4,0),"") ->  | W56: =IFERROR(F56*PE!$F$20,"") -> 
B57: =IF(BaseProdutos!B47="","",BaseProdutos!B47) ->  | C57: =IFERROR(VLOOKUP(B57,BaseProdutos!B:V,21,0),"") ->  | G57: =IFERROR(VLOOKUP(B57,BaseProdutos!B:V,3,0),"") ->  | H57: =IFERROR(VLOOKUP(B57,BaseProdutos!B:V,17,0),"") ->  | I57: =IFERROR(SUM(VLOOKUP(B57,BaseProdutos!B:V,13,0),VLOOKUP(B57,BaseProdutos!B:V,14,0)),"") ->  | J57: =IFERROR(SUM(VLOOKUP(B57,BaseProdutos!B:V,15,0),VLOOKUP(B57,BaseProdutos!B:V,16,0))/100,"") ->  | K57: =IFERROR(VLOOKUP(B57,BaseProdutos!B:V,4,0),"") ->  | W57: =IFERROR(F57*PE!$F$20,"") -> 
B58: =IF(BaseProdutos!B48="","",BaseProdutos!B48) ->  | C58: =IFERROR(VLOOKUP(B58,BaseProdutos!B:V,21,0),"") ->  | G58: =IFERROR(VLOOKUP(B58,BaseProdutos!B:V,3,0),"") ->  | H58: =IFERROR(VLOOKUP(B58,BaseProdutos!B:V,17,0),"") ->  | I58: =IFERROR(SUM(VLOOKUP(B58,BaseProdutos!B:V,13,0),VLOOKUP(B58,BaseProdutos!B:V,14,0)),"") ->  | J58: =IFERROR(SUM(VLOOKUP(B58,BaseProdutos!B:V,15,0),VLOOKUP(B58,BaseProdutos!B:V,16,0))/100,"") ->  | K58: =IFERROR(VLOOKUP(B58,BaseProdutos!B:V,4,0),"") ->  | W58: =IFERROR(F58*PE!$F$20,"") -> 
B59: =IF(BaseProdutos!B49="","",BaseProdutos!B49) ->  | C59: =IFERROR(VLOOKUP(B59,BaseProdutos!B:V,21,0),"") ->  | G59: =IFERROR(VLOOKUP(B59,BaseProdutos!B:V,3,0),"") ->  | H59: =IFERROR(VLOOKUP(B59,BaseProdutos!B:V,17,0),"") ->  | I59: =IFERROR(SUM(VLOOKUP(B59,BaseProdutos!B:V,13,0),VLOOKUP(B59,BaseProdutos!B:V,14,0)),"") ->  | J59: =IFERROR(SUM(VLOOKUP(B59,BaseProdutos!B:V,15,0),VLOOKUP(B59,BaseProdutos!B:V,16,0))/100,"") ->  | K59: =IFERROR(VLOOKUP(B59,BaseProdutos!B:V,4,0),"") ->  | W59: =IFERROR(F59*PE!$F$20,"") -> 
B60: =IF(BaseProdutos!B50="","",BaseProdutos!B50) ->  | C60: =IFERROR(VLOOKUP(B60,BaseProdutos!B:V,21,0),"") ->  | G60: =IFERROR(VLOOKUP(B60,BaseProdutos!B:V,3,0),"") ->  | H60: =IFERROR(VLOOKUP(B60,BaseProdutos!B:V,17,0),"") ->  | I60: =IFERROR(SUM(VLOOKUP(B60,BaseProdutos!B:V,13,0),VLOOKUP(B60,BaseProdutos!B:V,14,0)),"") ->  | J60: =IFERROR(SUM(VLOOKUP(B60,BaseProdutos!B:V,15,0),VLOOKUP(B60,BaseProdutos!B:V,16,0))/100,"") ->  | K60: =IFERROR(VLOOKUP(B60,BaseProdutos!B:V,4,0),"") ->  | W60: =IFERROR(F60*PE!$F$20,"") -> 
B61: =IF(BaseProdutos!B51="","",BaseProdutos!B51) ->  | C61: =IFERROR(VLOOKUP(B61,BaseProdutos!B:V,21,0),"") ->  | G61: =IFERROR(VLOOKUP(B61,BaseProdutos!B:V,3,0),"") ->  | H61: =IFERROR(VLOOKUP(B61,BaseProdutos!B:V,17,0),"") ->  | I61: =IFERROR(SUM(VLOOKUP(B61,BaseProdutos!B:V,13,0),VLOOKUP(B61,BaseProdutos!B:V,14,0)),"") ->  | J61: =IFERROR(SUM(VLOOKUP(B61,BaseProdutos!B:V,15,0),VLOOKUP(B61,BaseProdutos!B:V,16,0))/100,"") ->  | K61: =IFERROR(VLOOKUP(B61,BaseProdutos!B:V,4,0),"") ->  | W61: =IFERROR(F61*PE!$F$20,"") -> 
B62: =IF(BaseProdutos!B52="","",BaseProdutos!B52) ->  | C62: =IFERROR(VLOOKUP(B62,BaseProdutos!B:V,21,0),"") ->  | G62: =IFERROR(VLOOKUP(B62,BaseProdutos!B:V,3,0),"") ->  | H62: =IFERROR(VLOOKUP(B62,BaseProdutos!B:V,17,0),"") ->  | I62: =IFERROR(SUM(VLOOKUP(B62,BaseProdutos!B:V,13,0),VLOOKUP(B62,BaseProdutos!B:V,14,0)),"") ->  | J62: =IFERROR(SUM(VLOOKUP(B62,BaseProdutos!B:V,15,0),VLOOKUP(B62,BaseProdutos!B:V,16,0))/100,"") ->  | K62: =IFERROR(VLOOKUP(B62,BaseProdutos!B:V,4,0),"") ->  | W62: =IFERROR(F62*PE!$F$20,"") -> 
B63: =IF(BaseProdutos!B53="","",BaseProdutos!B53) ->  | C63: =IFERROR(VLOOKUP(B63,BaseProdutos!B:V,21,0),"") ->  | G63: =IFERROR(VLOOKUP(B63,BaseProdutos!B:V,3,0),"") ->  | H63: =IFERROR(VLOOKUP(B63,BaseProdutos!B:V,17,0),"") ->  | I63: =IFERROR(SUM(VLOOKUP(B63,BaseProdutos!B:V,13,0),VLOOKUP(B63,BaseProdutos!B:V,14,0)),"") ->  | J63: =IFERROR(SUM(VLOOKUP(B63,BaseProdutos!B:V,15,0),VLOOKUP(B63,BaseProdutos!B:V,16,0))/100,"") ->  | K63: =IFERROR(VLOOKUP(B63,BaseProdutos!B:V,4,0),"") ->  | W63: =IFERROR(F63*PE!$F$20,"") -> 
B64: =IF(BaseProdutos!B54="","",BaseProdutos!B54) ->  | C64: =IFERROR(VLOOKUP(B64,BaseProdutos!B:V,21,0),"") ->  | G64: =IFERROR(VLOOKUP(B64,BaseProdutos!B:V,3,0),"") ->  | H64: =IFERROR(VLOOKUP(B64,BaseProdutos!B:V,17,0),"") ->  | I64: =IFERROR(SUM(VLOOKUP(B64,BaseProdutos!B:V,13,0),VLOOKUP(B64,BaseProdutos!B:V,14,0)),"") ->  | J64: =IFERROR(SUM(VLOOKUP(B64,BaseProdutos!B:V,15,0),VLOOKUP(B64,BaseProdutos!B:V,16,0))/100,"") ->  | K64: =IFERROR(VLOOKUP(B64,BaseProdutos!B:V,4,0),"") ->  | W64: =IFERROR(F64*PE!$F$20,"") -> 
B65: =IF(BaseProdutos!B55="","",BaseProdutos!B55) ->  | C65: =IFERROR(VLOOKUP(B65,BaseProdutos!B:V,21,0),"") ->  | G65: =IFERROR(VLOOKUP(B65,BaseProdutos!B:V,3,0),"") ->  | H65: =IFERROR(VLOOKUP(B65,BaseProdutos!B:V,17,0),"") ->  | I65: =IFERROR(SUM(VLOOKUP(B65,BaseProdutos!B:V,13,0),VLOOKUP(B65,BaseProdutos!B:V,14,0)),"") ->  | J65: =IFERROR(SUM(VLOOKUP(B65,BaseProdutos!B:V,15,0),VLOOKUP(B65,BaseProdutos!B:V,16,0))/100,"") ->  | K65: =IFERROR(VLOOKUP(B65,BaseProdutos!B:V,4,0),"") ->  | W65: =IFERROR(F65*PE!$F$20,"") -> 
B66: =IF(BaseProdutos!B56="","",BaseProdutos!B56) ->  | C66: =IFERROR(VLOOKUP(B66,BaseProdutos!B:V,21,0),"") ->  | G66: =IFERROR(VLOOKUP(B66,BaseProdutos!B:V,3,0),"") ->  | H66: =IFERROR(VLOOKUP(B66,BaseProdutos!B:V,17,0),"") ->  | I66: =IFERROR(SUM(VLOOKUP(B66,BaseProdutos!B:V,13,0),VLOOKUP(B66,BaseProdutos!B:V,14,0)),"") ->  | J66: =IFERROR(SUM(VLOOKUP(B66,BaseProdutos!B:V,15,0),VLOOKUP(B66,BaseProdutos!B:V,16,0))/100,"") ->  | K66: =IFERROR(VLOOKUP(B66,BaseProdutos!B:V,4,0),"") ->  | W66: =IFERROR(F66*PE!$F$20,"") -> 
B67: =IF(BaseProdutos!B57="","",BaseProdutos!B57) ->  | C67: =IFERROR(VLOOKUP(B67,BaseProdutos!B:V,21,0),"") ->  | G67: =IFERROR(VLOOKUP(B67,BaseProdutos!B:V,3,0),"") ->  | H67: =IFERROR(VLOOKUP(B67,BaseProdutos!B:V,17,0),"") ->  | I67: =IFERROR(SUM(VLOOKUP(B67,BaseProdutos!B:V,13,0),VLOOKUP(B67,BaseProdutos!B:V,14,0)),"") ->  | J67: =IFERROR(SUM(VLOOKUP(B67,BaseProdutos!B:V,15,0),VLOOKUP(B67,BaseProdutos!B:V,16,0))/100,"") ->  | K67: =IFERROR(VLOOKUP(B67,BaseProdutos!B:V,4,0),"") ->  | W67: =IFERROR(F67*PE!$F$20,"") -> 
B68: =IF(BaseProdutos!B58="","",BaseProdutos!B58) ->  | C68: =IFERROR(VLOOKUP(B68,BaseProdutos!B:V,21,0),"") ->  | G68: =IFERROR(VLOOKUP(B68,BaseProdutos!B:V,3,0),"") ->  | H68: =IFERROR(VLOOKUP(B68,BaseProdutos!B:V,17,0),"") ->  | I68: =IFERROR(SUM(VLOOKUP(B68,BaseProdutos!B:V,13,0),VLOOKUP(B68,BaseProdutos!B:V,14,0)),"") ->  | J68: =IFERROR(SUM(VLOOKUP(B68,BaseProdutos!B:V,15,0),VLOOKUP(B68,BaseProdutos!B:V,16,0))/100,"") ->  | K68: =IFERROR(VLOOKUP(B68,BaseProdutos!B:V,4,0),"") ->  | W68: =IFERROR(F68*PE!$F$20,"") -> 
B69: =IF(BaseProdutos!B59="","",BaseProdutos!B59) ->  | C69: =IFERROR(VLOOKUP(B69,BaseProdutos!B:V,21,0),"") ->  | G69: =IFERROR(VLOOKUP(B69,BaseProdutos!B:V,3,0),"") ->  | H69: =IFERROR(VLOOKUP(B69,BaseProdutos!B:V,17,0),"") ->  | I69: =IFERROR(SUM(VLOOKUP(B69,BaseProdutos!B:V,13,0),VLOOKUP(B69,BaseProdutos!B:V,14,0)),"") ->  | J69: =IFERROR(SUM(VLOOKUP(B69,BaseProdutos!B:V,15,0),VLOOKUP(B69,BaseProdutos!B:V,16,0))/100,"") ->  | K69: =IFERROR(VLOOKUP(B69,BaseProdutos!B:V,4,0),"") ->  | W69: =IFERROR(F69*PE!$F$20,"") -> 
B70: =IF(BaseProdutos!B60="","",BaseProdutos!B60) ->  | C70: =IFERROR(VLOOKUP(B70,BaseProdutos!B:V,21,0),"") ->  | G70: =IFERROR(VLOOKUP(B70,BaseProdutos!B:V,3,0),"") ->  | H70: =IFERROR(VLOOKUP(B70,BaseProdutos!B:V,17,0),"") ->  | I70: =IFERROR(SUM(VLOOKUP(B70,BaseProdutos!B:V,13,0),VLOOKUP(B70,BaseProdutos!B:V,14,0)),"") ->  | J70: =IFERROR(SUM(VLOOKUP(B70,BaseProdutos!B:V,15,0),VLOOKUP(B70,BaseProdutos!B:V,16,0))/100,"") ->  | K70: =IFERROR(VLOOKUP(B70,BaseProdutos!B:V,4,0),"") ->  | W70: =IFERROR(F70*PE!$F$20,"") -> 
B71: =IF(BaseProdutos!B61="","",BaseProdutos!B61) ->  | C71: =IFERROR(VLOOKUP(B71,BaseProdutos!B:V,21,0),"") ->  | G71: =IFERROR(VLOOKUP(B71,BaseProdutos!B:V,3,0),"") ->  | H71: =IFERROR(VLOOKUP(B71,BaseProdutos!B:V,17,0),"") ->  | I71: =IFERROR(SUM(VLOOKUP(B71,BaseProdutos!B:V,13,0),VLOOKUP(B71,BaseProdutos!B:V,14,0)),"") ->  | J71: =IFERROR(SUM(VLOOKUP(B71,BaseProdutos!B:V,15,0),VLOOKUP(B71,BaseProdutos!B:V,16,0))/100,"") ->  | K71: =IFERROR(VLOOKUP(B71,BaseProdutos!B:V,4,0),"") ->  | W71: =IFERROR(F71*PE!$F$20,"") -> 
B72: =IF(BaseProdutos!B62="","",BaseProdutos!B62) ->  | C72: =IFERROR(VLOOKUP(B72,BaseProdutos!B:V,21,0),"") ->  | G72: =IFERROR(VLOOKUP(B72,BaseProdutos!B:V,3,0),"") ->  | H72: =IFERROR(VLOOKUP(B72,BaseProdutos!B:V,17,0),"") ->  | I72: =IFERROR(SUM(VLOOKUP(B72,BaseProdutos!B:V,13,0),VLOOKUP(B72,BaseProdutos!B:V,14,0)),"") ->  | J72: =IFERROR(SUM(VLOOKUP(B72,BaseProdutos!B:V,15,0),VLOOKUP(B72,BaseProdutos!B:V,16,0))/100,"") ->  | K72: =IFERROR(VLOOKUP(B72,BaseProdutos!B:V,4,0),"") ->  | W72: =IFERROR(F72*PE!$F$20,"") -> 
B73: =IF(BaseProdutos!B63="","",BaseProdutos!B63) ->  | C73: =IFERROR(VLOOKUP(B73,BaseProdutos!B:V,21,0),"") ->  | G73: =IFERROR(VLOOKUP(B73,BaseProdutos!B:V,3,0),"") ->  | H73: =IFERROR(VLOOKUP(B73,BaseProdutos!B:V,17,0),"") ->  | I73: =IFERROR(SUM(VLOOKUP(B73,BaseProdutos!B:V,13,0),VLOOKUP(B73,BaseProdutos!B:V,14,0)),"") ->  | J73: =IFERROR(SUM(VLOOKUP(B73,BaseProdutos!B:V,15,0),VLOOKUP(B73,BaseProdutos!B:V,16,0))/100,"") ->  | K73: =IFERROR(VLOOKUP(B73,BaseProdutos!B:V,4,0),"") ->  | W73: =IFERROR(F73*PE!$F$20,"") -> 
B74: =IF(BaseProdutos!B64="","",BaseProdutos!B64) ->  | C74: =IFERROR(VLOOKUP(B74,BaseProdutos!B:V,21,0),"") ->  | G74: =IFERROR(VLOOKUP(B74,BaseProdutos!B:V,3,0),"") ->  | H74: =IFERROR(VLOOKUP(B74,BaseProdutos!B:V,17,0),"") ->  | I74: =IFERROR(SUM(VLOOKUP(B74,BaseProdutos!B:V,13,0),VLOOKUP(B74,BaseProdutos!B:V,14,0)),"") ->  | J74: =IFERROR(SUM(VLOOKUP(B74,BaseProdutos!B:V,15,0),VLOOKUP(B74,BaseProdutos!B:V,16,0))/100,"") ->  | K74: =IFERROR(VLOOKUP(B74,BaseProdutos!B:V,4,0),"") ->  | W74: =IFERROR(F74*PE!$F$20,"") -> 
B75: =IF(BaseProdutos!B65="","",BaseProdutos!B65) ->  | C75: =IFERROR(VLOOKUP(B75,BaseProdutos!B:V,21,0),"") ->  | G75: =IFERROR(VLOOKUP(B75,BaseProdutos!B:V,3,0),"") ->  | H75: =IFERROR(VLOOKUP(B75,BaseProdutos!B:V,17,0),"") ->  | I75: =IFERROR(SUM(VLOOKUP(B75,BaseProdutos!B:V,13,0),VLOOKUP(B75,BaseProdutos!B:V,14,0)),"") ->  | J75: =IFERROR(SUM(VLOOKUP(B75,BaseProdutos!B:V,15,0),VLOOKUP(B75,BaseProdutos!B:V,16,0))/100,"") ->  | K75: =IFERROR(VLOOKUP(B75,BaseProdutos!B:V,4,0),"") ->  | W75: =IFERROR(F75*PE!$F$20,"") -> 
B76: =IF(BaseProdutos!B66="","",BaseProdutos!B66) ->  | C76: =IFERROR(VLOOKUP(B76,BaseProdutos!B:V,21,0),"") ->  | G76: =IFERROR(VLOOKUP(B76,BaseProdutos!B:V,3,0),"") ->  | H76: =IFERROR(VLOOKUP(B76,BaseProdutos!B:V,17,0),"") ->  | I76: =IFERROR(SUM(VLOOKUP(B76,BaseProdutos!B:V,13,0),VLOOKUP(B76,BaseProdutos!B:V,14,0)),"") ->  | J76: =IFERROR(SUM(VLOOKUP(B76,BaseProdutos!B:V,15,0),VLOOKUP(B76,BaseProdutos!B:V,16,0))/100,"") ->  | K76: =IFERROR(VLOOKUP(B76,BaseProdutos!B:V,4,0),"") ->  | W76: =IFERROR(F76*PE!$F$20,"") -> 
B77: =IF(BaseProdutos!B67="","",BaseProdutos!B67) ->  | C77: =IFERROR(VLOOKUP(B77,BaseProdutos!B:V,21,0),"") ->  | E77: =IFERROR(IF(B77="","",C77*D77),"") ->  | F77: =IFERROR(E77/SUM($E$12:$E$511),"") ->  | G77: =IFERROR(VLOOKUP(B77,BaseProdutos!B:V,3,0),"") ->  | H77: =IFERROR(VLOOKUP(B77,BaseProdutos!B:V,17,0),"") ->  | I77: =IFERROR(SUM(VLOOKUP(B77,BaseProdutos!B:V,13,0),VLOOKUP(B77,BaseProdutos!B:V,14,0)),"") ->  | J77: =IFERROR(SUM(VLOOKUP(B77,BaseProdutos!B:V,15,0),VLOOKUP(B77,BaseProdutos!B:V,16,0))/100,"") ->  | K77: =IFERROR(VLOOKUP(B77,BaseProdutos!B:V,4,0),"") ->  | L77: =IFERROR(G77+C77*(H77+I77+J77)+K77,"") ->  | R77: =IFERROR(H77*E77,"") ->  | S77: =IFERROR(I77*E77,"") ->  | T77: =IFERROR(C77-L77,"") ->  | U77: =IFERROR(T77/C77,"") ->  | V77: =IFERROR(W77*C77,"") ->  | W77: =IFERROR(F77*PE!$F$20,"") ->  | X77: =IFERROR(K77*D77,"") ->  | Y77: =IFERROR(G77*D77,"") -> 
B78: =IF(BaseProdutos!B68="","",BaseProdutos!B68) ->  | C78: =IFERROR(VLOOKUP(B78,BaseProdutos!B:V,21,0),"") ->  | G78: =IFERROR(VLOOKUP(B78,BaseProdutos!B:V,3,0),"") ->  | H78: =IFERROR(VLOOKUP(B78,BaseProdutos!B:V,17,0),"") ->  | I78: =IFERROR(SUM(VLOOKUP(B78,BaseProdutos!B:V,13,0),VLOOKUP(B78,BaseProdutos!B:V,14,0)),"") ->  | J78: =IFERROR(SUM(VLOOKUP(B78,BaseProdutos!B:V,15,0),VLOOKUP(B78,BaseProdutos!B:V,16,0))/100,"") ->  | K78: =IFERROR(VLOOKUP(B78,BaseProdutos!B:V,4,0),"") ->  | W78: =IFERROR(F78*PE!$F$20,"") -> 
B79: =IF(BaseProdutos!B69="","",BaseProdutos!B69) ->  | C79: =IFERROR(VLOOKUP(B79,BaseProdutos!B:V,21,0),"") ->  | G79: =IFERROR(VLOOKUP(B79,BaseProdutos!B:V,3,0),"") ->  | H79: =IFERROR(VLOOKUP(B79,BaseProdutos!B:V,17,0),"") ->  | I79: =IFERROR(SUM(VLOOKUP(B79,BaseProdutos!B:V,13,0),VLOOKUP(B79,BaseProdutos!B:V,14,0)),"") ->  | J79: =IFERROR(SUM(VLOOKUP(B79,BaseProdutos!B:V,15,0),VLOOKUP(B79,BaseProdutos!B:V,16,0))/100,"") ->  | K79: =IFERROR(VLOOKUP(B79,BaseProdutos!B:V,4,0),"") ->  | W79: =IFERROR(F79*PE!$F$20,"") -> 
B80: =IF(BaseProdutos!B70="","",BaseProdutos!B70) ->  | C80: =IFERROR(VLOOKUP(B80,BaseProdutos!B:V,21,0),"") ->  | G80: =IFERROR(VLOOKUP(B80,BaseProdutos!B:V,3,0),"") ->  | H80: =IFERROR(VLOOKUP(B80,BaseProdutos!B:V,17,0),"") ->  | I80: =IFERROR(SUM(VLOOKUP(B80,BaseProdutos!B:V,13,0),VLOOKUP(B80,BaseProdutos!B:V,14,0)),"") ->  | J80: =IFERROR(SUM(VLOOKUP(B80,BaseProdutos!B:V,15,0),VLOOKUP(B80,BaseProdutos!B:V,16,0))/100,"") ->  | K80: =IFERROR(VLOOKUP(B80,BaseProdutos!B:V,4,0),"") ->  | W80: =IFERROR(F80*PE!$F$20,"") -> 
B81: =IF(BaseProdutos!B71="","",BaseProdutos!B71) ->  | C81: =IFERROR(VLOOKUP(B81,BaseProdutos!B:V,21,0),"") ->  | G81: =IFERROR(VLOOKUP(B81,BaseProdutos!B:V,3,0),"") ->  | H81: =IFERROR(VLOOKUP(B81,BaseProdutos!B:V,17,0),"") ->  | I81: =IFERROR(SUM(VLOOKUP(B81,BaseProdutos!B:V,13,0),VLOOKUP(B81,BaseProdutos!B:V,14,0)),"") ->  | J81: =IFERROR(SUM(VLOOKUP(B81,BaseProdutos!B:V,15,0),VLOOKUP(B81,BaseProdutos!B:V,16,0))/100,"") ->  | K81: =IFERROR(VLOOKUP(B81,BaseProdutos!B:V,4,0),"") ->  | W81: =IFERROR(F81*PE!$F$20,"") -> 
B82: =IF(BaseProdutos!B72="","",BaseProdutos!B72) ->  | C82: =IFERROR(VLOOKUP(B82,BaseProdutos!B:V,21,0),"") ->  | G82: =IFERROR(VLOOKUP(B82,BaseProdutos!B:V,3,0),"") ->  | H82: =IFERROR(VLOOKUP(B82,BaseProdutos!B:V,17,0),"") ->  | I82: =IFERROR(SUM(VLOOKUP(B82,BaseProdutos!B:V,13,0),VLOOKUP(B82,BaseProdutos!B:V,14,0)),"") ->  | J82: =IFERROR(SUM(VLOOKUP(B82,BaseProdutos!B:V,15,0),VLOOKUP(B82,BaseProdutos!B:V,16,0))/100,"") ->  | K82: =IFERROR(VLOOKUP(B82,BaseProdutos!B:V,4,0),"") ->  | W82: =IFERROR(F82*PE!$F$20,"") -> 
B83: =IF(BaseProdutos!B73="","",BaseProdutos!B73) ->  | C83: =IFERROR(VLOOKUP(B83,BaseProdutos!B:V,21,0),"") ->  | G83: =IFERROR(VLOOKUP(B83,BaseProdutos!B:V,3,0),"") ->  | H83: =IFERROR(VLOOKUP(B83,BaseProdutos!B:V,17,0),"") ->  | I83: =IFERROR(SUM(VLOOKUP(B83,BaseProdutos!B:V,13,0),VLOOKUP(B83,BaseProdutos!B:V,14,0)),"") ->  | J83: =IFERROR(SUM(VLOOKUP(B83,BaseProdutos!B:V,15,0),VLOOKUP(B83,BaseProdutos!B:V,16,0))/100,"") ->  | K83: =IFERROR(VLOOKUP(B83,BaseProdutos!B:V,4,0),"") ->  | W83: =IFERROR(F83*PE!$F$20,"") -> 
B84: =IF(BaseProdutos!B74="","",BaseProdutos!B74) ->  | C84: =IFERROR(VLOOKUP(B84,BaseProdutos!B:V,21,0),"") ->  | G84: =IFERROR(VLOOKUP(B84,BaseProdutos!B:V,3,0),"") ->  | H84: =IFERROR(VLOOKUP(B84,BaseProdutos!B:V,17,0),"") ->  | I84: =IFERROR(SUM(VLOOKUP(B84,BaseProdutos!B:V,13,0),VLOOKUP(B84,BaseProdutos!B:V,14,0)),"") ->  | J84: =IFERROR(SUM(VLOOKUP(B84,BaseProdutos!B:V,15,0),VLOOKUP(B84,BaseProdutos!B:V,16,0))/100,"") ->  | K84: =IFERROR(VLOOKUP(B84,BaseProdutos!B:V,4,0),"") ->  | W84: =IFERROR(F84*PE!$F$20,"") -> 
B85: =IF(BaseProdutos!B75="","",BaseProdutos!B75) ->  | C85: =IFERROR(VLOOKUP(B85,BaseProdutos!B:V,21,0),"") ->  | G85: =IFERROR(VLOOKUP(B85,BaseProdutos!B:V,3,0),"") ->  | H85: =IFERROR(VLOOKUP(B85,BaseProdutos!B:V,17,0),"") ->  | I85: =IFERROR(SUM(VLOOKUP(B85,BaseProdutos!B:V,13,0),VLOOKUP(B85,BaseProdutos!B:V,14,0)),"") ->  | J85: =IFERROR(SUM(VLOOKUP(B85,BaseProdutos!B:V,15,0),VLOOKUP(B85,BaseProdutos!B:V,16,0))/100,"") ->  | K85: =IFERROR(VLOOKUP(B85,BaseProdutos!B:V,4,0),"") ->  | W85: =IFERROR(F85*PE!$F$20,"") -> 
B86: =IF(BaseProdutos!B76="","",BaseProdutos!B76) ->  | C86: =IFERROR(VLOOKUP(B86,BaseProdutos!B:V,21,0),"") ->  | G86: =IFERROR(VLOOKUP(B86,BaseProdutos!B:V,3,0),"") ->  | H86: =IFERROR(VLOOKUP(B86,BaseProdutos!B:V,17,0),"") ->  | I86: =IFERROR(SUM(VLOOKUP(B86,BaseProdutos!B:V,13,0),VLOOKUP(B86,BaseProdutos!B:V,14,0)),"") ->  | J86: =IFERROR(SUM(VLOOKUP(B86,BaseProdutos!B:V,15,0),VLOOKUP(B86,BaseProdutos!B:V,16,0))/100,"") ->  | K86: =IFERROR(VLOOKUP(B86,BaseProdutos!B:V,4,0),"") ->  | W86: =IFERROR(F86*PE!$F$20,"") -> 
B87: =IF(BaseProdutos!B77="","",BaseProdutos!B77) ->  | C87: =IFERROR(VLOOKUP(B87,BaseProdutos!B:V,21,0),"") ->  | G87: =IFERROR(VLOOKUP(B87,BaseProdutos!B:V,3,0),"") ->  | H87: =IFERROR(VLOOKUP(B87,BaseProdutos!B:V,17,0),"") ->  | I87: =IFERROR(SUM(VLOOKUP(B87,BaseProdutos!B:V,13,0),VLOOKUP(B87,BaseProdutos!B:V,14,0)),"") ->  | J87: =IFERROR(SUM(VLOOKUP(B87,BaseProdutos!B:V,15,0),VLOOKUP(B87,BaseProdutos!B:V,16,0))/100,"") ->  | K87: =IFERROR(VLOOKUP(B87,BaseProdutos!B:V,4,0),"") ->  | W87: =IFERROR(F87*PE!$F$20,"") -> 
B88: =IF(BaseProdutos!B78="","",BaseProdutos!B78) ->  | C88: =IFERROR(VLOOKUP(B88,BaseProdutos!B:V,21,0),"") ->  | G88: =IFERROR(VLOOKUP(B88,BaseProdutos!B:V,3,0),"") ->  | H88: =IFERROR(VLOOKUP(B88,BaseProdutos!B:V,17,0),"") ->  | I88: =IFERROR(SUM(VLOOKUP(B88,BaseProdutos!B:V,13,0),VLOOKUP(B88,BaseProdutos!B:V,14,0)),"") ->  | J88: =IFERROR(SUM(VLOOKUP(B88,BaseProdutos!B:V,15,0),VLOOKUP(B88,BaseProdutos!B:V,16,0))/100,"") ->  | K88: =IFERROR(VLOOKUP(B88,BaseProdutos!B:V,4,0),"") ->  | W88: =IFERROR(F88*PE!$F$20,"") -> 
B89: =IF(BaseProdutos!B79="","",BaseProdutos!B79) ->  | C89: =IFERROR(VLOOKUP(B89,BaseProdutos!B:V,21,0),"") ->  | G89: =IFERROR(VLOOKUP(B89,BaseProdutos!B:V,3,0),"") ->  | H89: =IFERROR(VLOOKUP(B89,BaseProdutos!B:V,17,0),"") ->  | I89: =IFERROR(SUM(VLOOKUP(B89,BaseProdutos!B:V,13,0),VLOOKUP(B89,BaseProdutos!B:V,14,0)),"") ->  | J89: =IFERROR(SUM(VLOOKUP(B89,BaseProdutos!B:V,15,0),VLOOKUP(B89,BaseProdutos!B:V,16,0))/100,"") ->  | K89: =IFERROR(VLOOKUP(B89,BaseProdutos!B:V,4,0),"") ->  | W89: =IFERROR(F89*PE!$F$20,"") -> 
B90: =IF(BaseProdutos!B80="","",BaseProdutos!B80) ->  | C90: =IFERROR(VLOOKUP(B90,BaseProdutos!B:V,21,0),"") ->  | G90: =IFERROR(VLOOKUP(B90,BaseProdutos!B:V,3,0),"") ->  | H90: =IFERROR(VLOOKUP(B90,BaseProdutos!B:V,17,0),"") ->  | I90: =IFERROR(SUM(VLOOKUP(B90,BaseProdutos!B:V,13,0),VLOOKUP(B90,BaseProdutos!B:V,14,0)),"") ->  | J90: =IFERROR(SUM(VLOOKUP(B90,BaseProdutos!B:V,15,0),VLOOKUP(B90,BaseProdutos!B:V,16,0))/100,"") ->  | K90: =IFERROR(VLOOKUP(B90,BaseProdutos!B:V,4,0),"") ->  | W90: =IFERROR(F90*PE!$F$20,"") -> 
B91: =IF(BaseProdutos!B81="","",BaseProdutos!B81) ->  | C91: =IFERROR(VLOOKUP(B91,BaseProdutos!B:V,21,0),"") ->  | G91: =IFERROR(VLOOKUP(B91,BaseProdutos!B:V,3,0),"") ->  | H91: =IFERROR(VLOOKUP(B91,BaseProdutos!B:V,17,0),"") ->  | I91: =IFERROR(SUM(VLOOKUP(B91,BaseProdutos!B:V,13,0),VLOOKUP(B91,BaseProdutos!B:V,14,0)),"") ->  | J91: =IFERROR(SUM(VLOOKUP(B91,BaseProdutos!B:V,15,0),VLOOKUP(B91,BaseProdutos!B:V,16,0))/100,"") ->  | K91: =IFERROR(VLOOKUP(B91,BaseProdutos!B:V,4,0),"") ->  | W91: =IFERROR(F91*PE!$F$20,"") -> 
B92: =IF(BaseProdutos!B82="","",BaseProdutos!B82) ->  | C92: =IFERROR(VLOOKUP(B92,BaseProdutos!B:V,21,0),"") ->  | G92: =IFERROR(VLOOKUP(B92,BaseProdutos!B:V,3,0),"") ->  | H92: =IFERROR(VLOOKUP(B92,BaseProdutos!B:V,17,0),"") ->  | I92: =IFERROR(SUM(VLOOKUP(B92,BaseProdutos!B:V,13,0),VLOOKUP(B92,BaseProdutos!B:V,14,0)),"") ->  | J92: =IFERROR(SUM(VLOOKUP(B92,BaseProdutos!B:V,15,0),VLOOKUP(B92,BaseProdutos!B:V,16,0))/100,"") ->  | K92: =IFERROR(VLOOKUP(B92,BaseProdutos!B:V,4,0),"") ->  | W92: =IFERROR(F92*PE!$F$20,"") -> 
B93: =IF(BaseProdutos!B83="","",BaseProdutos!B83) ->  | C93: =IFERROR(VLOOKUP(B93,BaseProdutos!B:V,21,0),"") ->  | G93: =IFERROR(VLOOKUP(B93,BaseProdutos!B:V,3,0),"") ->  | H93: =IFERROR(VLOOKUP(B93,BaseProdutos!B:V,17,0),"") ->  | I93: =IFERROR(SUM(VLOOKUP(B93,BaseProdutos!B:V,13,0),VLOOKUP(B93,BaseProdutos!B:V,14,0)),"") ->  | J93: =IFERROR(SUM(VLOOKUP(B93,BaseProdutos!B:V,15,0),VLOOKUP(B93,BaseProdutos!B:V,16,0))/100,"") ->  | K93: =IFERROR(VLOOKUP(B93,BaseProdutos!B:V,4,0),"") ->  | W93: =IFERROR(F93*PE!$F$20,"") -> 
B94: =IF(BaseProdutos!B84="","",BaseProdutos!B84) ->  | C94: =IFERROR(VLOOKUP(B94,BaseProdutos!B:V,21,0),"") ->  | G94: =IFERROR(VLOOKUP(B94,BaseProdutos!B:V,3,0),"") ->  | H94: =IFERROR(VLOOKUP(B94,BaseProdutos!B:V,17,0),"") ->  | I94: =IFERROR(SUM(VLOOKUP(B94,BaseProdutos!B:V,13,0),VLOOKUP(B94,BaseProdutos!B:V,14,0)),"") ->  | J94: =IFERROR(SUM(VLOOKUP(B94,BaseProdutos!B:V,15,0),VLOOKUP(B94,BaseProdutos!B:V,16,0))/100,"") ->  | K94: =IFERROR(VLOOKUP(B94,BaseProdutos!B:V,4,0),"") ->  | W94: =IFERROR(F94*PE!$F$20,"") -> 
B95: =IF(BaseProdutos!B85="","",BaseProdutos!B85) ->  | C95: =IFERROR(VLOOKUP(B95,BaseProdutos!B:V,21,0),"") ->  | G95: =IFERROR(VLOOKUP(B95,BaseProdutos!B:V,3,0),"") ->  | H95: =IFERROR(VLOOKUP(B95,BaseProdutos!B:V,17,0),"") ->  | I95: =IFERROR(SUM(VLOOKUP(B95,BaseProdutos!B:V,13,0),VLOOKUP(B95,BaseProdutos!B:V,14,0)),"") ->  | J95: =IFERROR(SUM(VLOOKUP(B95,BaseProdutos!B:V,15,0),VLOOKUP(B95,BaseProdutos!B:V,16,0))/100,"") ->  | K95: =IFERROR(VLOOKUP(B95,BaseProdutos!B:V,4,0),"") ->  | W95: =IFERROR(F95*PE!$F$20,"") -> 
B96: =IF(BaseProdutos!B86="","",BaseProdutos!B86) ->  | C96: =IFERROR(VLOOKUP(B96,BaseProdutos!B:V,21,0),"") ->  | G96: =IFERROR(VLOOKUP(B96,BaseProdutos!B:V,3,0),"") ->  | H96: =IFERROR(VLOOKUP(B96,BaseProdutos!B:V,17,0),"") ->  | I96: =IFERROR(SUM(VLOOKUP(B96,BaseProdutos!B:V,13,0),VLOOKUP(B96,BaseProdutos!B:V,14,0)),"") ->  | J96: =IFERROR(SUM(VLOOKUP(B96,BaseProdutos!B:V,15,0),VLOOKUP(B96,BaseProdutos!B:V,16,0))/100,"") ->  | K96: =IFERROR(VLOOKUP(B96,BaseProdutos!B:V,4,0),"") ->  | W96: =IFERROR(F96*PE!$F$20,"") -> 
B97: =IF(BaseProdutos!B87="","",BaseProdutos!B87) ->  | C97: =IFERROR(VLOOKUP(B97,BaseProdutos!B:V,21,0),"") ->  | G97: =IFERROR(VLOOKUP(B97,BaseProdutos!B:V,3,0),"") ->  | H97: =IFERROR(VLOOKUP(B97,BaseProdutos!B:V,17,0),"") ->  | I97: =IFERROR(SUM(VLOOKUP(B97,BaseProdutos!B:V,13,0),VLOOKUP(B97,BaseProdutos!B:V,14,0)),"") ->  | J97: =IFERROR(SUM(VLOOKUP(B97,BaseProdutos!B:V,15,0),VLOOKUP(B97,BaseProdutos!B:V,16,0))/100,"") ->  | K97: =IFERROR(VLOOKUP(B97,BaseProdutos!B:V,4,0),"") ->  | W97: =IFERROR(F97*PE!$F$20,"") -> 
B98: =IF(BaseProdutos!B88="","",BaseProdutos!B88) ->  | C98: =IFERROR(VLOOKUP(B98,BaseProdutos!B:V,21,0),"") ->  | G98: =IFERROR(VLOOKUP(B98,BaseProdutos!B:V,3,0),"") ->  | H98: =IFERROR(VLOOKUP(B98,BaseProdutos!B:V,17,0),"") ->  | I98: =IFERROR(SUM(VLOOKUP(B98,BaseProdutos!B:V,13,0),VLOOKUP(B98,BaseProdutos!B:V,14,0)),"") ->  | J98: =IFERROR(SUM(VLOOKUP(B98,BaseProdutos!B:V,15,0),VLOOKUP(B98,BaseProdutos!B:V,16,0))/100,"") ->  | K98: =IFERROR(VLOOKUP(B98,BaseProdutos!B:V,4,0),"") ->  | W98: =IFERROR(F98*PE!$F$20,"") -> 
B99: =IF(BaseProdutos!B89="","",BaseProdutos!B89) ->  | C99: =IFERROR(VLOOKUP(B99,BaseProdutos!B:V,21,0),"") ->  | G99: =IFERROR(VLOOKUP(B99,BaseProdutos!B:V,3,0),"") ->  | H99: =IFERROR(VLOOKUP(B99,BaseProdutos!B:V,17,0),"") ->  | I99: =IFERROR(SUM(VLOOKUP(B99,BaseProdutos!B:V,13,0),VLOOKUP(B99,BaseProdutos!B:V,14,0)),"") ->  | J99: =IFERROR(SUM(VLOOKUP(B99,BaseProdutos!B:V,15,0),VLOOKUP(B99,BaseProdutos!B:V,16,0))/100,"") ->  | K99: =IFERROR(VLOOKUP(B99,BaseProdutos!B:V,4,0),"") ->  | W99: =IFERROR(F99*PE!$F$20,"") -> 
B100: =IF(BaseProdutos!B90="","",BaseProdutos!B90) ->  | C100: =IFERROR(VLOOKUP(B100,BaseProdutos!B:V,21,0),"") ->  | G100: =IFERROR(VLOOKUP(B100,BaseProdutos!B:V,3,0),"") ->  | H100: =IFERROR(VLOOKUP(B100,BaseProdutos!B:V,17,0),"") ->  | I100: =IFERROR(SUM(VLOOKUP(B100,BaseProdutos!B:V,13,0),VLOOKUP(B100,BaseProdutos!B:V,14,0)),"") ->  | J100: =IFERROR(SUM(VLOOKUP(B100,BaseProdutos!B:V,15,0),VLOOKUP(B100,BaseProdutos!B:V,16,0))/100,"") ->  | K100: =IFERROR(VLOOKUP(B100,BaseProdutos!B:V,4,0),"") ->  | W100: =IFERROR(F100*PE!$F$20,"") -> 
B101: =IF(BaseProdutos!B91="","",BaseProdutos!B91) ->  | C101: =IFERROR(VLOOKUP(B101,BaseProdutos!B:V,21,0),"") ->  | G101: =IFERROR(VLOOKUP(B101,BaseProdutos!B:V,3,0),"") ->  | H101: =IFERROR(VLOOKUP(B101,BaseProdutos!B:V,17,0),"") ->  | I101: =IFERROR(SUM(VLOOKUP(B101,BaseProdutos!B:V,13,0),VLOOKUP(B101,BaseProdutos!B:V,14,0)),"") ->  | J101: =IFERROR(SUM(VLOOKUP(B101,BaseProdutos!B:V,15,0),VLOOKUP(B101,BaseProdutos!B:V,16,0))/100,"") ->  | K101: =IFERROR(VLOOKUP(B101,BaseProdutos!B:V,4,0),"") ->  | W101: =IFERROR(F101*PE!$F$20,"") -> 
B102: =IF(BaseProdutos!B92="","",BaseProdutos!B92) ->  | C102: =IFERROR(VLOOKUP(B102,BaseProdutos!B:V,21,0),"") ->  | G102: =IFERROR(VLOOKUP(B102,BaseProdutos!B:V,3,0),"") ->  | H102: =IFERROR(VLOOKUP(B102,BaseProdutos!B:V,17,0),"") ->  | I102: =IFERROR(SUM(VLOOKUP(B102,BaseProdutos!B:V,13,0),VLOOKUP(B102,BaseProdutos!B:V,14,0)),"") ->  | J102: =IFERROR(SUM(VLOOKUP(B102,BaseProdutos!B:V,15,0),VLOOKUP(B102,BaseProdutos!B:V,16,0))/100,"") ->  | K102: =IFERROR(VLOOKUP(B102,BaseProdutos!B:V,4,0),"") ->  | W102: =IFERROR(F102*PE!$F$20,"") -> 
B103: =IF(BaseProdutos!B93="","",BaseProdutos!B93) ->  | C103: =IFERROR(VLOOKUP(B103,BaseProdutos!B:V,21,0),"") ->  | G103: =IFERROR(VLOOKUP(B103,BaseProdutos!B:V,3,0),"") ->  | H103: =IFERROR(VLOOKUP(B103,BaseProdutos!B:V,17,0),"") ->  | I103: =IFERROR(SUM(VLOOKUP(B103,BaseProdutos!B:V,13,0),VLOOKUP(B103,BaseProdutos!B:V,14,0)),"") ->  | J103: =IFERROR(SUM(VLOOKUP(B103,BaseProdutos!B:V,15,0),VLOOKUP(B103,BaseProdutos!B:V,16,0))/100,"") ->  | K103: =IFERROR(VLOOKUP(B103,BaseProdutos!B:V,4,0),"") ->  | W103: =IFERROR(F103*PE!$F$20,"") -> 
B104: =IF(BaseProdutos!B94="","",BaseProdutos!B94) ->  | C104: =IFERROR(VLOOKUP(B104,BaseProdutos!B:V,21,0),"") ->  | G104: =IFERROR(VLOOKUP(B104,BaseProdutos!B:V,3,0),"") ->  | H104: =IFERROR(VLOOKUP(B104,BaseProdutos!B:V,17,0),"") ->  | I104: =IFERROR(SUM(VLOOKUP(B104,BaseProdutos!B:V,13,0),VLOOKUP(B104,BaseProdutos!B:V,14,0)),"") ->  | J104: =IFERROR(SUM(VLOOKUP(B104,BaseProdutos!B:V,15,0),VLOOKUP(B104,BaseProdutos!B:V,16,0))/100,"") ->  | K104: =IFERROR(VLOOKUP(B104,BaseProdutos!B:V,4,0),"") ->  | W104: =IFERROR(F104*PE!$F$20,"") -> 
B105: =IF(BaseProdutos!B95="","",BaseProdutos!B95) ->  | C105: =IFERROR(VLOOKUP(B105,BaseProdutos!B:V,21,0),"") ->  | G105: =IFERROR(VLOOKUP(B105,BaseProdutos!B:V,3,0),"") ->  | H105: =IFERROR(VLOOKUP(B105,BaseProdutos!B:V,17,0),"") ->  | I105: =IFERROR(SUM(VLOOKUP(B105,BaseProdutos!B:V,13,0),VLOOKUP(B105,BaseProdutos!B:V,14,0)),"") ->  | J105: =IFERROR(SUM(VLOOKUP(B105,BaseProdutos!B:V,15,0),VLOOKUP(B105,BaseProdutos!B:V,16,0))/100,"") ->  | K105: =IFERROR(VLOOKUP(B105,BaseProdutos!B:V,4,0),"") ->  | W105: =IFERROR(F105*PE!$F$20,"") -> 
B106: =IF(BaseProdutos!B96="","",BaseProdutos!B96) ->  | C106: =IFERROR(VLOOKUP(B106,BaseProdutos!B:V,21,0),"") ->  | G106: =IFERROR(VLOOKUP(B106,BaseProdutos!B:V,3,0),"") ->  | H106: =IFERROR(VLOOKUP(B106,BaseProdutos!B:V,17,0),"") ->  | I106: =IFERROR(SUM(VLOOKUP(B106,BaseProdutos!B:V,13,0),VLOOKUP(B106,BaseProdutos!B:V,14,0)),"") ->  | J106: =IFERROR(SUM(VLOOKUP(B106,BaseProdutos!B:V,15,0),VLOOKUP(B106,BaseProdutos!B:V,16,0))/100,"") ->  | K106: =IFERROR(VLOOKUP(B106,BaseProdutos!B:V,4,0),"") ->  | W106: =IFERROR(F106*PE!$F$20,"") -> 
B107: =IF(BaseProdutos!B97="","",BaseProdutos!B97) ->  | C107: =IFERROR(VLOOKUP(B107,BaseProdutos!B:V,21,0),"") ->  | G107: =IFERROR(VLOOKUP(B107,BaseProdutos!B:V,3,0),"") ->  | H107: =IFERROR(VLOOKUP(B107,BaseProdutos!B:V,17,0),"") ->  | I107: =IFERROR(SUM(VLOOKUP(B107,BaseProdutos!B:V,13,0),VLOOKUP(B107,BaseProdutos!B:V,14,0)),"") ->  | J107: =IFERROR(SUM(VLOOKUP(B107,BaseProdutos!B:V,15,0),VLOOKUP(B107,BaseProdutos!B:V,16,0))/100,"") ->  | K107: =IFERROR(VLOOKUP(B107,BaseProdutos!B:V,4,0),"") ->  | W107: =IFERROR(F107*PE!$F$20,"") -> 
B108: =IF(BaseProdutos!B98="","",BaseProdutos!B98) ->  | C108: =IFERROR(VLOOKUP(B108,BaseProdutos!B:V,21,0),"") ->  | G108: =IFERROR(VLOOKUP(B108,BaseProdutos!B:V,3,0),"") ->  | H108: =IFERROR(VLOOKUP(B108,BaseProdutos!B:V,17,0),"") ->  | I108: =IFERROR(SUM(VLOOKUP(B108,BaseProdutos!B:V,13,0),VLOOKUP(B108,BaseProdutos!B:V,14,0)),"") ->  | J108: =IFERROR(SUM(VLOOKUP(B108,BaseProdutos!B:V,15,0),VLOOKUP(B108,BaseProdutos!B:V,16,0))/100,"") ->  | K108: =IFERROR(VLOOKUP(B108,BaseProdutos!B:V,4,0),"") ->  | W108: =IFERROR(F108*PE!$F$20,"") -> 
B109: =IF(BaseProdutos!B99="","",BaseProdutos!B99) ->  | C109: =IFERROR(VLOOKUP(B109,BaseProdutos!B:V,21,0),"") ->  | G109: =IFERROR(VLOOKUP(B109,BaseProdutos!B:V,3,0),"") ->  | H109: =IFERROR(VLOOKUP(B109,BaseProdutos!B:V,17,0),"") ->  | I109: =IFERROR(SUM(VLOOKUP(B109,BaseProdutos!B:V,13,0),VLOOKUP(B109,BaseProdutos!B:V,14,0)),"") ->  | J109: =IFERROR(SUM(VLOOKUP(B109,BaseProdutos!B:V,15,0),VLOOKUP(B109,BaseProdutos!B:V,16,0))/100,"") ->  | K109: =IFERROR(VLOOKUP(B109,BaseProdutos!B:V,4,0),"") ->  | W109: =IFERROR(F109*PE!$F$20,"") -> 
B110: =IF(BaseProdutos!B100="","",BaseProdutos!B100) ->  | C110: =IFERROR(VLOOKUP(B110,BaseProdutos!B:V,21,0),"") ->  | G110: =IFERROR(VLOOKUP(B110,BaseProdutos!B:V,3,0),"") ->  | H110: =IFERROR(VLOOKUP(B110,BaseProdutos!B:V,17,0),"") ->  | I110: =IFERROR(SUM(VLOOKUP(B110,BaseProdutos!B:V,13,0),VLOOKUP(B110,BaseProdutos!B:V,14,0)),"") ->  | J110: =IFERROR(SUM(VLOOKUP(B110,BaseProdutos!B:V,15,0),VLOOKUP(B110,BaseProdutos!B:V,16,0))/100,"") ->  | K110: =IFERROR(VLOOKUP(B110,BaseProdutos!B:V,4,0),"") ->  | W110: =IFERROR(F110*PE!$F$20,"") -> 
B111: =IF(BaseProdutos!B101="","",BaseProdutos!B101) ->  | C111: =IFERROR(VLOOKUP(B111,BaseProdutos!B:V,21,0),"") ->  | G111: =IFERROR(VLOOKUP(B111,BaseProdutos!B:V,3,0),"") ->  | H111: =IFERROR(VLOOKUP(B111,BaseProdutos!B:V,17,0),"") ->  | I111: =IFERROR(SUM(VLOOKUP(B111,BaseProdutos!B:V,13,0),VLOOKUP(B111,BaseProdutos!B:V,14,0)),"") ->  | J111: =IFERROR(SUM(VLOOKUP(B111,BaseProdutos!B:V,15,0),VLOOKUP(B111,BaseProdutos!B:V,16,0))/100,"") ->  | K111: =IFERROR(VLOOKUP(B111,BaseProdutos!B:V,4,0),"") ->  | W111: =IFERROR(F111*PE!$F$20,"") -> 
B112: =IF(BaseProdutos!B102="","",BaseProdutos!B102) ->  | C112: =IFERROR(VLOOKUP(B112,BaseProdutos!B:V,21,0),"") ->  | G112: =IFERROR(VLOOKUP(B112,BaseProdutos!B:V,3,0),"") ->  | H112: =IFERROR(VLOOKUP(B112,BaseProdutos!B:V,17,0),"") ->  | I112: =IFERROR(SUM(VLOOKUP(B112,BaseProdutos!B:V,13,0),VLOOKUP(B112,BaseProdutos!B:V,14,0)),"") ->  | J112: =IFERROR(SUM(VLOOKUP(B112,BaseProdutos!B:V,15,0),VLOOKUP(B112,BaseProdutos!B:V,16,0))/100,"") ->  | K112: =IFERROR(VLOOKUP(B112,BaseProdutos!B:V,4,0),"") ->  | W112: =IFERROR(F112*PE!$F$20,"") -> 
B113: =IF(BaseProdutos!B103="","",BaseProdutos!B103) ->  | C113: =IFERROR(VLOOKUP(B113,BaseProdutos!B:V,21,0),"") ->  | G113: =IFERROR(VLOOKUP(B113,BaseProdutos!B:V,3,0),"") ->  | H113: =IFERROR(VLOOKUP(B113,BaseProdutos!B:V,17,0),"") ->  | I113: =IFERROR(SUM(VLOOKUP(B113,BaseProdutos!B:V,13,0),VLOOKUP(B113,BaseProdutos!B:V,14,0)),"") ->  | J113: =IFERROR(SUM(VLOOKUP(B113,BaseProdutos!B:V,15,0),VLOOKUP(B113,BaseProdutos!B:V,16,0))/100,"") ->  | K113: =IFERROR(VLOOKUP(B113,BaseProdutos!B:V,4,0),"") ->  | W113: =IFERROR(F113*PE!$F$20,"") -> 
B114: =IF(BaseProdutos!B104="","",BaseProdutos!B104) ->  | C114: =IFERROR(VLOOKUP(B114,BaseProdutos!B:V,21,0),"") ->  | G114: =IFERROR(VLOOKUP(B114,BaseProdutos!B:V,3,0),"") ->  | H114: =IFERROR(VLOOKUP(B114,BaseProdutos!B:V,17,0),"") ->  | I114: =IFERROR(SUM(VLOOKUP(B114,BaseProdutos!B:V,13,0),VLOOKUP(B114,BaseProdutos!B:V,14,0)),"") ->  | J114: =IFERROR(SUM(VLOOKUP(B114,BaseProdutos!B:V,15,0),VLOOKUP(B114,BaseProdutos!B:V,16,0))/100,"") ->  | K114: =IFERROR(VLOOKUP(B114,BaseProdutos!B:V,4,0),"") ->  | W114: =IFERROR(F114*PE!$F$20,"") -> 
B115: =IF(BaseProdutos!B105="","",BaseProdutos!B105) ->  | C115: =IFERROR(VLOOKUP(B115,BaseProdutos!B:V,21,0),"") ->  | G115: =IFERROR(VLOOKUP(B115,BaseProdutos!B:V,3,0),"") ->  | H115: =IFERROR(VLOOKUP(B115,BaseProdutos!B:V,17,0),"") ->  | I115: =IFERROR(SUM(VLOOKUP(B115,BaseProdutos!B:V,13,0),VLOOKUP(B115,BaseProdutos!B:V,14,0)),"") ->  | J115: =IFERROR(SUM(VLOOKUP(B115,BaseProdutos!B:V,15,0),VLOOKUP(B115,BaseProdutos!B:V,16,0))/100,"") ->  | K115: =IFERROR(VLOOKUP(B115,BaseProdutos!B:V,4,0),"") ->  | W115: =IFERROR(F115*PE!$F$20,"") -> 
B116: =IF(BaseProdutos!B106="","",BaseProdutos!B106) ->  | C116: =IFERROR(VLOOKUP(B116,BaseProdutos!B:V,21,0),"") ->  | G116: =IFERROR(VLOOKUP(B116,BaseProdutos!B:V,3,0),"") ->  | H116: =IFERROR(VLOOKUP(B116,BaseProdutos!B:V,17,0),"") ->  | I116: =IFERROR(SUM(VLOOKUP(B116,BaseProdutos!B:V,13,0),VLOOKUP(B116,BaseProdutos!B:V,14,0)),"") ->  | J116: =IFERROR(SUM(VLOOKUP(B116,BaseProdutos!B:V,15,0),VLOOKUP(B116,BaseProdutos!B:V,16,0))/100,"") ->  | K116: =IFERROR(VLOOKUP(B116,BaseProdutos!B:V,4,0),"") ->  | W116: =IFERROR(F116*PE!$F$20,"") -> 
B117: =IF(BaseProdutos!B107="","",BaseProdutos!B107) ->  | C117: =IFERROR(VLOOKUP(B117,BaseProdutos!B:V,21,0),"") ->  | G117: =IFERROR(VLOOKUP(B117,BaseProdutos!B:V,3,0),"") ->  | H117: =IFERROR(VLOOKUP(B117,BaseProdutos!B:V,17,0),"") ->  | I117: =IFERROR(SUM(VLOOKUP(B117,BaseProdutos!B:V,13,0),VLOOKUP(B117,BaseProdutos!B:V,14,0)),"") ->  | J117: =IFERROR(SUM(VLOOKUP(B117,BaseProdutos!B:V,15,0),VLOOKUP(B117,BaseProdutos!B:V,16,0))/100,"") ->  | K117: =IFERROR(VLOOKUP(B117,BaseProdutos!B:V,4,0),"") ->  | W117: =IFERROR(F117*PE!$F$20,"") -> 
B118: =IF(BaseProdutos!B108="","",BaseProdutos!B108) ->  | C118: =IFERROR(VLOOKUP(B118,BaseProdutos!B:V,21,0),"") ->  | G118: =IFERROR(VLOOKUP(B118,BaseProdutos!B:V,3,0),"") ->  | H118: =IFERROR(VLOOKUP(B118,BaseProdutos!B:V,17,0),"") ->  | I118: =IFERROR(SUM(VLOOKUP(B118,BaseProdutos!B:V,13,0),VLOOKUP(B118,BaseProdutos!B:V,14,0)),"") ->  | J118: =IFERROR(SUM(VLOOKUP(B118,BaseProdutos!B:V,15,0),VLOOKUP(B118,BaseProdutos!B:V,16,0))/100,"") ->  | K118: =IFERROR(VLOOKUP(B118,BaseProdutos!B:V,4,0),"") ->  | W118: =IFERROR(F118*PE!$F$20,"") -> 
B119: =IF(BaseProdutos!B109="","",BaseProdutos!B109) ->  | C119: =IFERROR(VLOOKUP(B119,BaseProdutos!B:V,21,0),"") ->  | G119: =IFERROR(VLOOKUP(B119,BaseProdutos!B:V,3,0),"") ->  | H119: =IFERROR(VLOOKUP(B119,BaseProdutos!B:V,17,0),"") ->  | I119: =IFERROR(SUM(VLOOKUP(B119,BaseProdutos!B:V,13,0),VLOOKUP(B119,BaseProdutos!B:V,14,0)),"") ->  | J119: =IFERROR(SUM(VLOOKUP(B119,BaseProdutos!B:V,15,0),VLOOKUP(B119,BaseProdutos!B:V,16,0))/100,"") ->  | K119: =IFERROR(VLOOKUP(B119,BaseProdutos!B:V,4,0),"") ->  | W119: =IFERROR(F119*PE!$F$20,"") -> 
B120: =IF(BaseProdutos!B110="","",BaseProdutos!B110) ->  | C120: =IFERROR(VLOOKUP(B120,BaseProdutos!B:V,21,0),"") ->  | G120: =IFERROR(VLOOKUP(B120,BaseProdutos!B:V,3,0),"") ->  | H120: =IFERROR(VLOOKUP(B120,BaseProdutos!B:V,17,0),"") ->  | I120: =IFERROR(SUM(VLOOKUP(B120,BaseProdutos!B:V,13,0),VLOOKUP(B120,BaseProdutos!B:V,14,0)),"") ->  | J120: =IFERROR(SUM(VLOOKUP(B120,BaseProdutos!B:V,15,0),VLOOKUP(B120,BaseProdutos!B:V,16,0))/100,"") ->  | K120: =IFERROR(VLOOKUP(B120,BaseProdutos!B:V,4,0),"") ->  | W120: =IFERROR(F120*PE!$F$20,"") -> 
B121: =IF(BaseProdutos!B111="","",BaseProdutos!B111) ->  | C121: =IFERROR(VLOOKUP(B121,BaseProdutos!B:V,21,0),"") ->  | G121: =IFERROR(VLOOKUP(B121,BaseProdutos!B:V,3,0),"") ->  | H121: =IFERROR(VLOOKUP(B121,BaseProdutos!B:V,17,0),"") ->  | I121: =IFERROR(SUM(VLOOKUP(B121,BaseProdutos!B:V,13,0),VLOOKUP(B121,BaseProdutos!B:V,14,0)),"") ->  | J121: =IFERROR(SUM(VLOOKUP(B121,BaseProdutos!B:V,15,0),VLOOKUP(B121,BaseProdutos!B:V,16,0))/100,"") ->  | K121: =IFERROR(VLOOKUP(B121,BaseProdutos!B:V,4,0),"") ->  | W121: =IFERROR(F121*PE!$F$20,"") -> 
B122: =IF(BaseProdutos!B112="","",BaseProdutos!B112) ->  | C122: =IFERROR(VLOOKUP(B122,BaseProdutos!B:V,21,0),"") ->  | G122: =IFERROR(VLOOKUP(B122,BaseProdutos!B:V,3,0),"") ->  | H122: =IFERROR(VLOOKUP(B122,BaseProdutos!B:V,17,0),"") ->  | I122: =IFERROR(SUM(VLOOKUP(B122,BaseProdutos!B:V,13,0),VLOOKUP(B122,BaseProdutos!B:V,14,0)),"") ->  | J122: =IFERROR(SUM(VLOOKUP(B122,BaseProdutos!B:V,15,0),VLOOKUP(B122,BaseProdutos!B:V,16,0))/100,"") ->  | K122: =IFERROR(VLOOKUP(B122,BaseProdutos!B:V,4,0),"") ->  | W122: =IFERROR(F122*PE!$F$20,"") -> 
B123: =IF(BaseProdutos!B113="","",BaseProdutos!B113) ->  | C123: =IFERROR(VLOOKUP(B123,BaseProdutos!B:V,21,0),"") ->  | G123: =IFERROR(VLOOKUP(B123,BaseProdutos!B:V,3,0),"") ->  | H123: =IFERROR(VLOOKUP(B123,BaseProdutos!B:V,17,0),"") ->  | I123: =IFERROR(SUM(VLOOKUP(B123,BaseProdutos!B:V,13,0),VLOOKUP(B123,BaseProdutos!B:V,14,0)),"") ->  | J123: =IFERROR(SUM(VLOOKUP(B123,BaseProdutos!B:V,15,0),VLOOKUP(B123,BaseProdutos!B:V,16,0))/100,"") ->  | K123: =IFERROR(VLOOKUP(B123,BaseProdutos!B:V,4,0),"") ->  | W123: =IFERROR(F123*PE!$F$20,"") -> 
B124: =IF(BaseProdutos!B114="","",BaseProdutos!B114) ->  | C124: =IFERROR(VLOOKUP(B124,BaseProdutos!B:V,21,0),"") ->  | G124: =IFERROR(VLOOKUP(B124,BaseProdutos!B:V,3,0),"") ->  | H124: =IFERROR(VLOOKUP(B124,BaseProdutos!B:V,17,0),"") ->  | I124: =IFERROR(SUM(VLOOKUP(B124,BaseProdutos!B:V,13,0),VLOOKUP(B124,BaseProdutos!B:V,14,0)),"") ->  | J124: =IFERROR(SUM(VLOOKUP(B124,BaseProdutos!B:V,15,0),VLOOKUP(B124,BaseProdutos!B:V,16,0))/100,"") ->  | K124: =IFERROR(VLOOKUP(B124,BaseProdutos!B:V,4,0),"") ->  | W124: =IFERROR(F124*PE!$F$20,"") -> 
B125: =IF(BaseProdutos!B115="","",BaseProdutos!B115) ->  | C125: =IFERROR(VLOOKUP(B125,BaseProdutos!B:V,21,0),"") ->  | G125: =IFERROR(VLOOKUP(B125,BaseProdutos!B:V,3,0),"") ->  | H125: =IFERROR(VLOOKUP(B125,BaseProdutos!B:V,17,0),"") ->  | I125: =IFERROR(SUM(VLOOKUP(B125,BaseProdutos!B:V,13,0),VLOOKUP(B125,BaseProdutos!B:V,14,0)),"") ->  | J125: =IFERROR(SUM(VLOOKUP(B125,BaseProdutos!B:V,15,0),VLOOKUP(B125,BaseProdutos!B:V,16,0))/100,"") ->  | K125: =IFERROR(VLOOKUP(B125,BaseProdutos!B:V,4,0),"") ->  | W125: =IFERROR(F125*PE!$F$20,"") -> 
B126: =IF(BaseProdutos!B116="","",BaseProdutos!B116) ->  | C126: =IFERROR(VLOOKUP(B126,BaseProdutos!B:V,21,0),"") ->  | G126: =IFERROR(VLOOKUP(B126,BaseProdutos!B:V,3,0),"") ->  | H126: =IFERROR(VLOOKUP(B126,BaseProdutos!B:V,17,0),"") ->  | I126: =IFERROR(SUM(VLOOKUP(B126,BaseProdutos!B:V,13,0),VLOOKUP(B126,BaseProdutos!B:V,14,0)),"") ->  | J126: =IFERROR(SUM(VLOOKUP(B126,BaseProdutos!B:V,15,0),VLOOKUP(B126,BaseProdutos!B:V,16,0))/100,"") ->  | K126: =IFERROR(VLOOKUP(B126,BaseProdutos!B:V,4,0),"") ->  | W126: =IFERROR(F126*PE!$F$20,"") -> 
B127: =IF(BaseProdutos!B117="","",BaseProdutos!B117) ->  | C127: =IFERROR(VLOOKUP(B127,BaseProdutos!B:V,21,0),"") ->  | G127: =IFERROR(VLOOKUP(B127,BaseProdutos!B:V,3,0),"") ->  | H127: =IFERROR(VLOOKUP(B127,BaseProdutos!B:V,17,0),"") ->  | I127: =IFERROR(SUM(VLOOKUP(B127,BaseProdutos!B:V,13,0),VLOOKUP(B127,BaseProdutos!B:V,14,0)),"") ->  | J127: =IFERROR(SUM(VLOOKUP(B127,BaseProdutos!B:V,15,0),VLOOKUP(B127,BaseProdutos!B:V,16,0))/100,"") ->  | K127: =IFERROR(VLOOKUP(B127,BaseProdutos!B:V,4,0),"") ->  | W127: =IFERROR(F127*PE!$F$20,"") -> 
B128: =IF(BaseProdutos!B118="","",BaseProdutos!B118) ->  | C128: =IFERROR(VLOOKUP(B128,BaseProdutos!B:V,21,0),"") ->  | G128: =IFERROR(VLOOKUP(B128,BaseProdutos!B:V,3,0),"") ->  | H128: =IFERROR(VLOOKUP(B128,BaseProdutos!B:V,17,0),"") ->  | I128: =IFERROR(SUM(VLOOKUP(B128,BaseProdutos!B:V,13,0),VLOOKUP(B128,BaseProdutos!B:V,14,0)),"") ->  | J128: =IFERROR(SUM(VLOOKUP(B128,BaseProdutos!B:V,15,0),VLOOKUP(B128,BaseProdutos!B:V,16,0))/100,"") ->  | K128: =IFERROR(VLOOKUP(B128,BaseProdutos!B:V,4,0),"") ->  | W128: =IFERROR(F128*PE!$F$20,"") -> 
B129: =IF(BaseProdutos!B119="","",BaseProdutos!B119) ->  | C129: =IFERROR(VLOOKUP(B129,BaseProdutos!B:V,21,0),"") ->  | G129: =IFERROR(VLOOKUP(B129,BaseProdutos!B:V,3,0),"") ->  | H129: =IFERROR(VLOOKUP(B129,BaseProdutos!B:V,17,0),"") ->  | I129: =IFERROR(SUM(VLOOKUP(B129,BaseProdutos!B:V,13,0),VLOOKUP(B129,BaseProdutos!B:V,14,0)),"") ->  | J129: =IFERROR(SUM(VLOOKUP(B129,BaseProdutos!B:V,15,0),VLOOKUP(B129,BaseProdutos!B:V,16,0))/100,"") ->  | K129: =IFERROR(VLOOKUP(B129,BaseProdutos!B:V,4,0),"") ->  | W129: =IFERROR(F129*PE!$F$20,"") -> 
B130: =IF(BaseProdutos!B120="","",BaseProdutos!B120) ->  | C130: =IFERROR(VLOOKUP(B130,BaseProdutos!B:V,21,0),"") ->  | G130: =IFERROR(VLOOKUP(B130,BaseProdutos!B:V,3,0),"") ->  | H130: =IFERROR(VLOOKUP(B130,BaseProdutos!B:V,17,0),"") ->  | I130: =IFERROR(SUM(VLOOKUP(B130,BaseProdutos!B:V,13,0),VLOOKUP(B130,BaseProdutos!B:V,14,0)),"") ->  | J130: =IFERROR(SUM(VLOOKUP(B130,BaseProdutos!B:V,15,0),VLOOKUP(B130,BaseProdutos!B:V,16,0))/100,"") ->  | K130: =IFERROR(VLOOKUP(B130,BaseProdutos!B:V,4,0),"") ->  | W130: =IFERROR(F130*PE!$F$20,"") -> 
B131: =IF(BaseProdutos!B121="","",BaseProdutos!B121) ->  | C131: =IFERROR(VLOOKUP(B131,BaseProdutos!B:V,21,0),"") ->  | G131: =IFERROR(VLOOKUP(B131,BaseProdutos!B:V,3,0),"") ->  | H131: =IFERROR(VLOOKUP(B131,BaseProdutos!B:V,17,0),"") ->  | I131: =IFERROR(SUM(VLOOKUP(B131,BaseProdutos!B:V,13,0),VLOOKUP(B131,BaseProdutos!B:V,14,0)),"") ->  | J131: =IFERROR(SUM(VLOOKUP(B131,BaseProdutos!B:V,15,0),VLOOKUP(B131,BaseProdutos!B:V,16,0))/100,"") ->  | K131: =IFERROR(VLOOKUP(B131,BaseProdutos!B:V,4,0),"") ->  | W131: =IFERROR(F131*PE!$F$20,"") -> 
B132: =IF(BaseProdutos!B122="","",BaseProdutos!B122) ->  | C132: =IFERROR(VLOOKUP(B132,BaseProdutos!B:V,21,0),"") ->  | G132: =IFERROR(VLOOKUP(B132,BaseProdutos!B:V,3,0),"") ->  | H132: =IFERROR(VLOOKUP(B132,BaseProdutos!B:V,17,0),"") ->  | I132: =IFERROR(SUM(VLOOKUP(B132,BaseProdutos!B:V,13,0),VLOOKUP(B132,BaseProdutos!B:V,14,0)),"") ->  | J132: =IFERROR(SUM(VLOOKUP(B132,BaseProdutos!B:V,15,0),VLOOKUP(B132,BaseProdutos!B:V,16,0))/100,"") ->  | K132: =IFERROR(VLOOKUP(B132,BaseProdutos!B:V,4,0),"") ->  | W132: =IFERROR(F132*PE!$F$20,"") -> 
B133: =IF(BaseProdutos!B123="","",BaseProdutos!B123) ->  | C133: =IFERROR(VLOOKUP(B133,BaseProdutos!B:V,21,0),"") ->  | G133: =IFERROR(VLOOKUP(B133,BaseProdutos!B:V,3,0),"") ->  | H133: =IFERROR(VLOOKUP(B133,BaseProdutos!B:V,17,0),"") ->  | I133: =IFERROR(SUM(VLOOKUP(B133,BaseProdutos!B:V,13,0),VLOOKUP(B133,BaseProdutos!B:V,14,0)),"") ->  | J133: =IFERROR(SUM(VLOOKUP(B133,BaseProdutos!B:V,15,0),VLOOKUP(B133,BaseProdutos!B:V,16,0))/100,"") ->  | K133: =IFERROR(VLOOKUP(B133,BaseProdutos!B:V,4,0),"") ->  | W133: =IFERROR(F133*PE!$F$20,"") -> 
B134: =IF(BaseProdutos!B124="","",BaseProdutos!B124) ->  | C134: =IFERROR(VLOOKUP(B134,BaseProdutos!B:V,21,0),"") ->  | G134: =IFERROR(VLOOKUP(B134,BaseProdutos!B:V,3,0),"") ->  | H134: =IFERROR(VLOOKUP(B134,BaseProdutos!B:V,17,0),"") ->  | I134: =IFERROR(SUM(VLOOKUP(B134,BaseProdutos!B:V,13,0),VLOOKUP(B134,BaseProdutos!B:V,14,0)),"") ->  | J134: =IFERROR(SUM(VLOOKUP(B134,BaseProdutos!B:V,15,0),VLOOKUP(B134,BaseProdutos!B:V,16,0))/100,"") ->  | K134: =IFERROR(VLOOKUP(B134,BaseProdutos!B:V,4,0),"") ->  | W134: =IFERROR(F134*PE!$F$20,"") -> 
B135: =IF(BaseProdutos!B125="","",BaseProdutos!B125) ->  | C135: =IFERROR(VLOOKUP(B135,BaseProdutos!B:V,21,0),"") ->  | G135: =IFERROR(VLOOKUP(B135,BaseProdutos!B:V,3,0),"") ->  | H135: =IFERROR(VLOOKUP(B135,BaseProdutos!B:V,17,0),"") ->  | I135: =IFERROR(SUM(VLOOKUP(B135,BaseProdutos!B:V,13,0),VLOOKUP(B135,BaseProdutos!B:V,14,0)),"") ->  | J135: =IFERROR(SUM(VLOOKUP(B135,BaseProdutos!B:V,15,0),VLOOKUP(B135,BaseProdutos!B:V,16,0))/100,"") ->  | K135: =IFERROR(VLOOKUP(B135,BaseProdutos!B:V,4,0),"") ->  | W135: =IFERROR(F135*PE!$F$20,"") -> 
B136: =IF(BaseProdutos!B126="","",BaseProdutos!B126) ->  | C136: =IFERROR(VLOOKUP(B136,BaseProdutos!B:V,21,0),"") ->  | G136: =IFERROR(VLOOKUP(B136,BaseProdutos!B:V,3,0),"") ->  | H136: =IFERROR(VLOOKUP(B136,BaseProdutos!B:V,17,0),"") ->  | I136: =IFERROR(SUM(VLOOKUP(B136,BaseProdutos!B:V,13,0),VLOOKUP(B136,BaseProdutos!B:V,14,0)),"") ->  | J136: =IFERROR(SUM(VLOOKUP(B136,BaseProdutos!B:V,15,0),VLOOKUP(B136,BaseProdutos!B:V,16,0))/100,"") ->  | K136: =IFERROR(VLOOKUP(B136,BaseProdutos!B:V,4,0),"") ->  | W136: =IFERROR(F136*PE!$F$20,"") -> 
B137: =IF(BaseProdutos!B127="","",BaseProdutos!B127) ->  | C137: =IFERROR(VLOOKUP(B137,BaseProdutos!B:V,21,0),"") ->  | G137: =IFERROR(VLOOKUP(B137,BaseProdutos!B:V,3,0),"") ->  | H137: =IFERROR(VLOOKUP(B137,BaseProdutos!B:V,17,0),"") ->  | I137: =IFERROR(SUM(VLOOKUP(B137,BaseProdutos!B:V,13,0),VLOOKUP(B137,BaseProdutos!B:V,14,0)),"") ->  | J137: =IFERROR(SUM(VLOOKUP(B137,BaseProdutos!B:V,15,0),VLOOKUP(B137,BaseProdutos!B:V,16,0))/100,"") ->  | K137: =IFERROR(VLOOKUP(B137,BaseProdutos!B:V,4,0),"") ->  | W137: =IFERROR(F137*PE!$F$20,"") -> 
B138: =IF(BaseProdutos!B128="","",BaseProdutos!B128) ->  | C138: =IFERROR(VLOOKUP(B138,BaseProdutos!B:V,21,0),"") ->  | G138: =IFERROR(VLOOKUP(B138,BaseProdutos!B:V,3,0),"") ->  | H138: =IFERROR(VLOOKUP(B138,BaseProdutos!B:V,17,0),"") ->  | I138: =IFERROR(SUM(VLOOKUP(B138,BaseProdutos!B:V,13,0),VLOOKUP(B138,BaseProdutos!B:V,14,0)),"") ->  | J138: =IFERROR(SUM(VLOOKUP(B138,BaseProdutos!B:V,15,0),VLOOKUP(B138,BaseProdutos!B:V,16,0))/100,"") ->  | K138: =IFERROR(VLOOKUP(B138,BaseProdutos!B:V,4,0),"") ->  | W138: =IFERROR(F138*PE!$F$20,"") -> 
B139: =IF(BaseProdutos!B129="","",BaseProdutos!B129) ->  | C139: =IFERROR(VLOOKUP(B139,BaseProdutos!B:V,21,0),"") ->  | G139: =IFERROR(VLOOKUP(B139,BaseProdutos!B:V,3,0),"") ->  | H139: =IFERROR(VLOOKUP(B139,BaseProdutos!B:V,17,0),"") ->  | I139: =IFERROR(SUM(VLOOKUP(B139,BaseProdutos!B:V,13,0),VLOOKUP(B139,BaseProdutos!B:V,14,0)),"") ->  | J139: =IFERROR(SUM(VLOOKUP(B139,BaseProdutos!B:V,15,0),VLOOKUP(B139,BaseProdutos!B:V,16,0))/100,"") ->  | K139: =IFERROR(VLOOKUP(B139,BaseProdutos!B:V,4,0),"") ->  | W139: =IFERROR(F139*PE!$F$20,"") -> 
B140: =IF(BaseProdutos!B130="","",BaseProdutos!B130) ->  | C140: =IFERROR(VLOOKUP(B140,BaseProdutos!B:V,21,0),"") ->  | G140: =IFERROR(VLOOKUP(B140,BaseProdutos!B:V,3,0),"") ->  | H140: =IFERROR(VLOOKUP(B140,BaseProdutos!B:V,17,0),"") ->  | I140: =IFERROR(SUM(VLOOKUP(B140,BaseProdutos!B:V,13,0),VLOOKUP(B140,BaseProdutos!B:V,14,0)),"") ->  | J140: =IFERROR(SUM(VLOOKUP(B140,BaseProdutos!B:V,15,0),VLOOKUP(B140,BaseProdutos!B:V,16,0))/100,"") ->  | K140: =IFERROR(VLOOKUP(B140,BaseProdutos!B:V,4,0),"") ->  | W140: =IFERROR(F140*PE!$F$20,"") -> 
B141: =IF(BaseProdutos!B131="","",BaseProdutos!B131) ->  | C141: =IFERROR(VLOOKUP(B141,BaseProdutos!B:V,21,0),"") ->  | E141: =IFERROR(IF(B141="","",C141*D141),"") ->  | F141: =IFERROR(E141/SUM($E$12:$E$511),"") ->  | G141: =IFERROR(VLOOKUP(B141,BaseProdutos!B:V,3,0),"") ->  | H141: =IFERROR(VLOOKUP(B141,BaseProdutos!B:V,17,0),"") ->  | I141: =IFERROR(SUM(VLOOKUP(B141,BaseProdutos!B:V,13,0),VLOOKUP(B141,BaseProdutos!B:V,14,0)),"") ->  | J141: =IFERROR(SUM(VLOOKUP(B141,BaseProdutos!B:V,15,0),VLOOKUP(B141,BaseProdutos!B:V,16,0))/100,"") ->  | K141: =IFERROR(VLOOKUP(B141,BaseProdutos!B:V,4,0),"") ->  | L141: =IFERROR(G141+C141*(H141+I141+J141)+K141,"") ->  | R141: =IFERROR(H141*E141,"") ->  | S141: =IFERROR(I141*E141,"") ->  | T141: =IFERROR(C141-L141,"") ->  | U141: =IFERROR(T141/C141,"") ->  | V141: =IFERROR(W141*C141,"") ->  | W141: =IFERROR(F141*PE!$F$20,"") ->  | X141: =IFERROR(K141*D141,"") ->  | Y141: =IFERROR(G141*D141,"") -> 
B142: =IF(BaseProdutos!B132="","",BaseProdutos!B132) ->  | C142: =IFERROR(VLOOKUP(B142,BaseProdutos!B:V,21,0),"") ->  | G142: =IFERROR(VLOOKUP(B142,BaseProdutos!B:V,3,0),"") ->  | H142: =IFERROR(VLOOKUP(B142,BaseProdutos!B:V,17,0),"") ->  | I142: =IFERROR(SUM(VLOOKUP(B142,BaseProdutos!B:V,13,0),VLOOKUP(B142,BaseProdutos!B:V,14,0)),"") ->  | J142: =IFERROR(SUM(VLOOKUP(B142,BaseProdutos!B:V,15,0),VLOOKUP(B142,BaseProdutos!B:V,16,0))/100,"") ->  | K142: =IFERROR(VLOOKUP(B142,BaseProdutos!B:V,4,0),"") ->  | W142: =IFERROR(F142*PE!$F$20,"") -> 
B143: =IF(BaseProdutos!B133="","",BaseProdutos!B133) ->  | C143: =IFERROR(VLOOKUP(B143,BaseProdutos!B:V,21,0),"") ->  | G143: =IFERROR(VLOOKUP(B143,BaseProdutos!B:V,3,0),"") ->  | H143: =IFERROR(VLOOKUP(B143,BaseProdutos!B:V,17,0),"") ->  | I143: =IFERROR(SUM(VLOOKUP(B143,BaseProdutos!B:V,13,0),VLOOKUP(B143,BaseProdutos!B:V,14,0)),"") ->  | J143: =IFERROR(SUM(VLOOKUP(B143,BaseProdutos!B:V,15,0),VLOOKUP(B143,BaseProdutos!B:V,16,0))/100,"") ->  | K143: =IFERROR(VLOOKUP(B143,BaseProdutos!B:V,4,0),"") ->  | W143: =IFERROR(F143*PE!$F$20,"") -> 
B144: =IF(BaseProdutos!B134="","",BaseProdutos!B134) ->  | C144: =IFERROR(VLOOKUP(B144,BaseProdutos!B:V,21,0),"") ->  | G144: =IFERROR(VLOOKUP(B144,BaseProdutos!B:V,3,0),"") ->  | H144: =IFERROR(VLOOKUP(B144,BaseProdutos!B:V,17,0),"") ->  | I144: =IFERROR(SUM(VLOOKUP(B144,BaseProdutos!B:V,13,0),VLOOKUP(B144,BaseProdutos!B:V,14,0)),"") ->  | J144: =IFERROR(SUM(VLOOKUP(B144,BaseProdutos!B:V,15,0),VLOOKUP(B144,BaseProdutos!B:V,16,0))/100,"") ->  | K144: =IFERROR(VLOOKUP(B144,BaseProdutos!B:V,4,0),"") ->  | W144: =IFERROR(F144*PE!$F$20,"") -> 
B145: =IF(BaseProdutos!B135="","",BaseProdutos!B135) ->  | C145: =IFERROR(VLOOKUP(B145,BaseProdutos!B:V,21,0),"") ->  | G145: =IFERROR(VLOOKUP(B145,BaseProdutos!B:V,3,0),"") ->  | H145: =IFERROR(VLOOKUP(B145,BaseProdutos!B:V,17,0),"") ->  | I145: =IFERROR(SUM(VLOOKUP(B145,BaseProdutos!B:V,13,0),VLOOKUP(B145,BaseProdutos!B:V,14,0)),"") ->  | J145: =IFERROR(SUM(VLOOKUP(B145,BaseProdutos!B:V,15,0),VLOOKUP(B145,BaseProdutos!B:V,16,0))/100,"") ->  | K145: =IFERROR(VLOOKUP(B145,BaseProdutos!B:V,4,0),"") ->  | W145: =IFERROR(F145*PE!$F$20,"") -> 
B146: =IF(BaseProdutos!B136="","",BaseProdutos!B136) ->  | C146: =IFERROR(VLOOKUP(B146,BaseProdutos!B:V,21,0),"") ->  | G146: =IFERROR(VLOOKUP(B146,BaseProdutos!B:V,3,0),"") ->  | H146: =IFERROR(VLOOKUP(B146,BaseProdutos!B:V,17,0),"") ->  | I146: =IFERROR(SUM(VLOOKUP(B146,BaseProdutos!B:V,13,0),VLOOKUP(B146,BaseProdutos!B:V,14,0)),"") ->  | J146: =IFERROR(SUM(VLOOKUP(B146,BaseProdutos!B:V,15,0),VLOOKUP(B146,BaseProdutos!B:V,16,0))/100,"") ->  | K146: =IFERROR(VLOOKUP(B146,BaseProdutos!B:V,4,0),"") ->  | W146: =IFERROR(F146*PE!$F$20,"") -> 
B147: =IF(BaseProdutos!B137="","",BaseProdutos!B137) ->  | C147: =IFERROR(VLOOKUP(B147,BaseProdutos!B:V,21,0),"") ->  | G147: =IFERROR(VLOOKUP(B147,BaseProdutos!B:V,3,0),"") ->  | H147: =IFERROR(VLOOKUP(B147,BaseProdutos!B:V,17,0),"") ->  | I147: =IFERROR(SUM(VLOOKUP(B147,BaseProdutos!B:V,13,0),VLOOKUP(B147,BaseProdutos!B:V,14,0)),"") ->  | J147: =IFERROR(SUM(VLOOKUP(B147,BaseProdutos!B:V,15,0),VLOOKUP(B147,BaseProdutos!B:V,16,0))/100,"") ->  | K147: =IFERROR(VLOOKUP(B147,BaseProdutos!B:V,4,0),"") ->  | W147: =IFERROR(F147*PE!$F$20,"") -> 
B148: =IF(BaseProdutos!B138="","",BaseProdutos!B138) ->  | C148: =IFERROR(VLOOKUP(B148,BaseProdutos!B:V,21,0),"") ->  | G148: =IFERROR(VLOOKUP(B148,BaseProdutos!B:V,3,0),"") ->  | H148: =IFERROR(VLOOKUP(B148,BaseProdutos!B:V,17,0),"") ->  | I148: =IFERROR(SUM(VLOOKUP(B148,BaseProdutos!B:V,13,0),VLOOKUP(B148,BaseProdutos!B:V,14,0)),"") ->  | J148: =IFERROR(SUM(VLOOKUP(B148,BaseProdutos!B:V,15,0),VLOOKUP(B148,BaseProdutos!B:V,16,0))/100,"") ->  | K148: =IFERROR(VLOOKUP(B148,BaseProdutos!B:V,4,0),"") ->  | W148: =IFERROR(F148*PE!$F$20,"") -> 
B149: =IF(BaseProdutos!B139="","",BaseProdutos!B139) ->  | C149: =IFERROR(VLOOKUP(B149,BaseProdutos!B:V,21,0),"") ->  | G149: =IFERROR(VLOOKUP(B149,BaseProdutos!B:V,3,0),"") ->  | H149: =IFERROR(VLOOKUP(B149,BaseProdutos!B:V,17,0),"") ->  | I149: =IFERROR(SUM(VLOOKUP(B149,BaseProdutos!B:V,13,0),VLOOKUP(B149,BaseProdutos!B:V,14,0)),"") ->  | J149: =IFERROR(SUM(VLOOKUP(B149,BaseProdutos!B:V,15,0),VLOOKUP(B149,BaseProdutos!B:V,16,0))/100,"") ->  | K149: =IFERROR(VLOOKUP(B149,BaseProdutos!B:V,4,0),"") ->  | W149: =IFERROR(F149*PE!$F$20,"") -> 
B150: =IF(BaseProdutos!B140="","",BaseProdutos!B140) ->  | C150: =IFERROR(VLOOKUP(B150,BaseProdutos!B:V,21,0),"") ->  | G150: =IFERROR(VLOOKUP(B150,BaseProdutos!B:V,3,0),"") ->  | H150: =IFERROR(VLOOKUP(B150,BaseProdutos!B:V,17,0),"") ->  | I150: =IFERROR(SUM(VLOOKUP(B150,BaseProdutos!B:V,13,0),VLOOKUP(B150,BaseProdutos!B:V,14,0)),"") ->  | J150: =IFERROR(SUM(VLOOKUP(B150,BaseProdutos!B:V,15,0),VLOOKUP(B150,BaseProdutos!B:V,16,0))/100,"") ->  | K150: =IFERROR(VLOOKUP(B150,BaseProdutos!B:V,4,0),"") ->  | W150: =IFERROR(F150*PE!$F$20,"") -> 
B151: =IF(BaseProdutos!B141="","",BaseProdutos!B141) ->  | C151: =IFERROR(VLOOKUP(B151,BaseProdutos!B:V,21,0),"") ->  | G151: =IFERROR(VLOOKUP(B151,BaseProdutos!B:V,3,0),"") ->  | H151: =IFERROR(VLOOKUP(B151,BaseProdutos!B:V,17,0),"") ->  | I151: =IFERROR(SUM(VLOOKUP(B151,BaseProdutos!B:V,13,0),VLOOKUP(B151,BaseProdutos!B:V,14,0)),"") ->  | J151: =IFERROR(SUM(VLOOKUP(B151,BaseProdutos!B:V,15,0),VLOOKUP(B151,BaseProdutos!B:V,16,0))/100,"") ->  | K151: =IFERROR(VLOOKUP(B151,BaseProdutos!B:V,4,0),"") ->  | W151: =IFERROR(F151*PE!$F$20,"") -> 
B152: =IF(BaseProdutos!B142="","",BaseProdutos!B142) ->  | C152: =IFERROR(VLOOKUP(B152,BaseProdutos!B:V,21,0),"") ->  | G152: =IFERROR(VLOOKUP(B152,BaseProdutos!B:V,3,0),"") ->  | H152: =IFERROR(VLOOKUP(B152,BaseProdutos!B:V,17,0),"") ->  | I152: =IFERROR(SUM(VLOOKUP(B152,BaseProdutos!B:V,13,0),VLOOKUP(B152,BaseProdutos!B:V,14,0)),"") ->  | J152: =IFERROR(SUM(VLOOKUP(B152,BaseProdutos!B:V,15,0),VLOOKUP(B152,BaseProdutos!B:V,16,0))/100,"") ->  | K152: =IFERROR(VLOOKUP(B152,BaseProdutos!B:V,4,0),"") ->  | W152: =IFERROR(F152*PE!$F$20,"") -> 
B153: =IF(BaseProdutos!B143="","",BaseProdutos!B143) ->  | C153: =IFERROR(VLOOKUP(B153,BaseProdutos!B:V,21,0),"") ->  | G153: =IFERROR(VLOOKUP(B153,BaseProdutos!B:V,3,0),"") ->  | H153: =IFERROR(VLOOKUP(B153,BaseProdutos!B:V,17,0),"") ->  | I153: =IFERROR(SUM(VLOOKUP(B153,BaseProdutos!B:V,13,0),VLOOKUP(B153,BaseProdutos!B:V,14,0)),"") ->  | J153: =IFERROR(SUM(VLOOKUP(B153,BaseProdutos!B:V,15,0),VLOOKUP(B153,BaseProdutos!B:V,16,0))/100,"") ->  | K153: =IFERROR(VLOOKUP(B153,BaseProdutos!B:V,4,0),"") ->  | W153: =IFERROR(F153*PE!$F$20,"") -> 
B154: =IF(BaseProdutos!B144="","",BaseProdutos!B144) ->  | C154: =IFERROR(VLOOKUP(B154,BaseProdutos!B:V,21,0),"") ->  | G154: =IFERROR(VLOOKUP(B154,BaseProdutos!B:V,3,0),"") ->  | H154: =IFERROR(VLOOKUP(B154,BaseProdutos!B:V,17,0),"") ->  | I154: =IFERROR(SUM(VLOOKUP(B154,BaseProdutos!B:V,13,0),VLOOKUP(B154,BaseProdutos!B:V,14,0)),"") ->  | J154: =IFERROR(SUM(VLOOKUP(B154,BaseProdutos!B:V,15,0),VLOOKUP(B154,BaseProdutos!B:V,16,0))/100,"") ->  | K154: =IFERROR(VLOOKUP(B154,BaseProdutos!B:V,4,0),"") ->  | W154: =IFERROR(F154*PE!$F$20,"") -> 
B155: =IF(BaseProdutos!B145="","",BaseProdutos!B145) ->  | C155: =IFERROR(VLOOKUP(B155,BaseProdutos!B:V,21,0),"") ->  | G155: =IFERROR(VLOOKUP(B155,BaseProdutos!B:V,3,0),"") ->  | H155: =IFERROR(VLOOKUP(B155,BaseProdutos!B:V,17,0),"") ->  | I155: =IFERROR(SUM(VLOOKUP(B155,BaseProdutos!B:V,13,0),VLOOKUP(B155,BaseProdutos!B:V,14,0)),"") ->  | J155: =IFERROR(SUM(VLOOKUP(B155,BaseProdutos!B:V,15,0),VLOOKUP(B155,BaseProdutos!B:V,16,0))/100,"") ->  | K155: =IFERROR(VLOOKUP(B155,BaseProdutos!B:V,4,0),"") ->  | W155: =IFERROR(F155*PE!$F$20,"") -> 
B156: =IF(BaseProdutos!B146="","",BaseProdutos!B146) ->  | C156: =IFERROR(VLOOKUP(B156,BaseProdutos!B:V,21,0),"") ->  | G156: =IFERROR(VLOOKUP(B156,BaseProdutos!B:V,3,0),"") ->  | H156: =IFERROR(VLOOKUP(B156,BaseProdutos!B:V,17,0),"") ->  | I156: =IFERROR(SUM(VLOOKUP(B156,BaseProdutos!B:V,13,0),VLOOKUP(B156,BaseProdutos!B:V,14,0)),"") ->  | J156: =IFERROR(SUM(VLOOKUP(B156,BaseProdutos!B:V,15,0),VLOOKUP(B156,BaseProdutos!B:V,16,0))/100,"") ->  | K156: =IFERROR(VLOOKUP(B156,BaseProdutos!B:V,4,0),"") ->  | W156: =IFERROR(F156*PE!$F$20,"") -> 
B157: =IF(BaseProdutos!B147="","",BaseProdutos!B147) ->  | C157: =IFERROR(VLOOKUP(B157,BaseProdutos!B:V,21,0),"") ->  | G157: =IFERROR(VLOOKUP(B157,BaseProdutos!B:V,3,0),"") ->  | H157: =IFERROR(VLOOKUP(B157,BaseProdutos!B:V,17,0),"") ->  | I157: =IFERROR(SUM(VLOOKUP(B157,BaseProdutos!B:V,13,0),VLOOKUP(B157,BaseProdutos!B:V,14,0)),"") ->  | J157: =IFERROR(SUM(VLOOKUP(B157,BaseProdutos!B:V,15,0),VLOOKUP(B157,BaseProdutos!B:V,16,0))/100,"") ->  | K157: =IFERROR(VLOOKUP(B157,BaseProdutos!B:V,4,0),"") ->  | W157: =IFERROR(F157*PE!$F$20,"") -> 
B158: =IF(BaseProdutos!B148="","",BaseProdutos!B148) ->  | C158: =IFERROR(VLOOKUP(B158,BaseProdutos!B:V,21,0),"") ->  | G158: =IFERROR(VLOOKUP(B158,BaseProdutos!B:V,3,0),"") ->  | H158: =IFERROR(VLOOKUP(B158,BaseProdutos!B:V,17,0),"") ->  | I158: =IFERROR(SUM(VLOOKUP(B158,BaseProdutos!B:V,13,0),VLOOKUP(B158,BaseProdutos!B:V,14,0)),"") ->  | J158: =IFERROR(SUM(VLOOKUP(B158,BaseProdutos!B:V,15,0),VLOOKUP(B158,BaseProdutos!B:V,16,0))/100,"") ->  | K158: =IFERROR(VLOOKUP(B158,BaseProdutos!B:V,4,0),"") ->  | W158: =IFERROR(F158*PE!$F$20,"") -> 
B159: =IF(BaseProdutos!B149="","",BaseProdutos!B149) ->  | C159: =IFERROR(VLOOKUP(B159,BaseProdutos!B:V,21,0),"") ->  | G159: =IFERROR(VLOOKUP(B159,BaseProdutos!B:V,3,0),"") ->  | H159: =IFERROR(VLOOKUP(B159,BaseProdutos!B:V,17,0),"") ->  | I159: =IFERROR(SUM(VLOOKUP(B159,BaseProdutos!B:V,13,0),VLOOKUP(B159,BaseProdutos!B:V,14,0)),"") ->  | J159: =IFERROR(SUM(VLOOKUP(B159,BaseProdutos!B:V,15,0),VLOOKUP(B159,BaseProdutos!B:V,16,0))/100,"") ->  | K159: =IFERROR(VLOOKUP(B159,BaseProdutos!B:V,4,0),"") ->  | W159: =IFERROR(F159*PE!$F$20,"") -> 
B160: =IF(BaseProdutos!B150="","",BaseProdutos!B150) ->  | C160: =IFERROR(VLOOKUP(B160,BaseProdutos!B:V,21,0),"") ->  | G160: =IFERROR(VLOOKUP(B160,BaseProdutos!B:V,3,0),"") ->  | H160: =IFERROR(VLOOKUP(B160,BaseProdutos!B:V,17,0),"") ->  | I160: =IFERROR(SUM(VLOOKUP(B160,BaseProdutos!B:V,13,0),VLOOKUP(B160,BaseProdutos!B:V,14,0)),"") ->  | J160: =IFERROR(SUM(VLOOKUP(B160,BaseProdutos!B:V,15,0),VLOOKUP(B160,BaseProdutos!B:V,16,0))/100,"") ->  | K160: =IFERROR(VLOOKUP(B160,BaseProdutos!B:V,4,0),"") ->  | W160: =IFERROR(F160*PE!$F$20,"") -> 
B161: =IF(BaseProdutos!B151="","",BaseProdutos!B151) ->  | C161: =IFERROR(VLOOKUP(B161,BaseProdutos!B:V,21,0),"") ->  | G161: =IFERROR(VLOOKUP(B161,BaseProdutos!B:V,3,0),"") ->  | H161: =IFERROR(VLOOKUP(B161,BaseProdutos!B:V,17,0),"") ->  | I161: =IFERROR(SUM(VLOOKUP(B161,BaseProdutos!B:V,13,0),VLOOKUP(B161,BaseProdutos!B:V,14,0)),"") ->  | J161: =IFERROR(SUM(VLOOKUP(B161,BaseProdutos!B:V,15,0),VLOOKUP(B161,BaseProdutos!B:V,16,0))/100,"") ->  | K161: =IFERROR(VLOOKUP(B161,BaseProdutos!B:V,4,0),"") ->  | W161: =IFERROR(F161*PE!$F$20,"") -> 
B162: =IF(BaseProdutos!B152="","",BaseProdutos!B152) ->  | C162: =IFERROR(VLOOKUP(B162,BaseProdutos!B:V,21,0),"") ->  | G162: =IFERROR(VLOOKUP(B162,BaseProdutos!B:V,3,0),"") ->  | H162: =IFERROR(VLOOKUP(B162,BaseProdutos!B:V,17,0),"") ->  | I162: =IFERROR(SUM(VLOOKUP(B162,BaseProdutos!B:V,13,0),VLOOKUP(B162,BaseProdutos!B:V,14,0)),"") ->  | J162: =IFERROR(SUM(VLOOKUP(B162,BaseProdutos!B:V,15,0),VLOOKUP(B162,BaseProdutos!B:V,16,0))/100,"") ->  | K162: =IFERROR(VLOOKUP(B162,BaseProdutos!B:V,4,0),"") ->  | W162: =IFERROR(F162*PE!$F$20,"") -> 
B163: =IF(BaseProdutos!B153="","",BaseProdutos!B153) ->  | C163: =IFERROR(VLOOKUP(B163,BaseProdutos!B:V,21,0),"") ->  | G163: =IFERROR(VLOOKUP(B163,BaseProdutos!B:V,3,0),"") ->  | H163: =IFERROR(VLOOKUP(B163,BaseProdutos!B:V,17,0),"") ->  | I163: =IFERROR(SUM(VLOOKUP(B163,BaseProdutos!B:V,13,0),VLOOKUP(B163,BaseProdutos!B:V,14,0)),"") ->  | J163: =IFERROR(SUM(VLOOKUP(B163,BaseProdutos!B:V,15,0),VLOOKUP(B163,BaseProdutos!B:V,16,0))/100,"") ->  | K163: =IFERROR(VLOOKUP(B163,BaseProdutos!B:V,4,0),"") ->  | W163: =IFERROR(F163*PE!$F$20,"") -> 
B164: =IF(BaseProdutos!B154="","",BaseProdutos!B154) ->  | C164: =IFERROR(VLOOKUP(B164,BaseProdutos!B:V,21,0),"") ->  | G164: =IFERROR(VLOOKUP(B164,BaseProdutos!B:V,3,0),"") ->  | H164: =IFERROR(VLOOKUP(B164,BaseProdutos!B:V,17,0),"") ->  | I164: =IFERROR(SUM(VLOOKUP(B164,BaseProdutos!B:V,13,0),VLOOKUP(B164,BaseProdutos!B:V,14,0)),"") ->  | J164: =IFERROR(SUM(VLOOKUP(B164,BaseProdutos!B:V,15,0),VLOOKUP(B164,BaseProdutos!B:V,16,0))/100,"") ->  | K164: =IFERROR(VLOOKUP(B164,BaseProdutos!B:V,4,0),"") ->  | W164: =IFERROR(F164*PE!$F$20,"") -> 
B165: =IF(BaseProdutos!B155="","",BaseProdutos!B155) ->  | C165: =IFERROR(VLOOKUP(B165,BaseProdutos!B:V,21,0),"") ->  | G165: =IFERROR(VLOOKUP(B165,BaseProdutos!B:V,3,0),"") ->  | H165: =IFERROR(VLOOKUP(B165,BaseProdutos!B:V,17,0),"") ->  | I165: =IFERROR(SUM(VLOOKUP(B165,BaseProdutos!B:V,13,0),VLOOKUP(B165,BaseProdutos!B:V,14,0)),"") ->  | J165: =IFERROR(SUM(VLOOKUP(B165,BaseProdutos!B:V,15,0),VLOOKUP(B165,BaseProdutos!B:V,16,0))/100,"") ->  | K165: =IFERROR(VLOOKUP(B165,BaseProdutos!B:V,4,0),"") ->  | W165: =IFERROR(F165*PE!$F$20,"") -> 
B166: =IF(BaseProdutos!B156="","",BaseProdutos!B156) ->  | C166: =IFERROR(VLOOKUP(B166,BaseProdutos!B:V,21,0),"") ->  | G166: =IFERROR(VLOOKUP(B166,BaseProdutos!B:V,3,0),"") ->  | H166: =IFERROR(VLOOKUP(B166,BaseProdutos!B:V,17,0),"") ->  | I166: =IFERROR(SUM(VLOOKUP(B166,BaseProdutos!B:V,13,0),VLOOKUP(B166,BaseProdutos!B:V,14,0)),"") ->  | J166: =IFERROR(SUM(VLOOKUP(B166,BaseProdutos!B:V,15,0),VLOOKUP(B166,BaseProdutos!B:V,16,0))/100,"") ->  | K166: =IFERROR(VLOOKUP(B166,BaseProdutos!B:V,4,0),"") ->  | W166: =IFERROR(F166*PE!$F$20,"") -> 
B167: =IF(BaseProdutos!B157="","",BaseProdutos!B157) ->  | C167: =IFERROR(VLOOKUP(B167,BaseProdutos!B:V,21,0),"") ->  | G167: =IFERROR(VLOOKUP(B167,BaseProdutos!B:V,3,0),"") ->  | H167: =IFERROR(VLOOKUP(B167,BaseProdutos!B:V,17,0),"") ->  | I167: =IFERROR(SUM(VLOOKUP(B167,BaseProdutos!B:V,13,0),VLOOKUP(B167,BaseProdutos!B:V,14,0)),"") ->  | J167: =IFERROR(SUM(VLOOKUP(B167,BaseProdutos!B:V,15,0),VLOOKUP(B167,BaseProdutos!B:V,16,0))/100,"") ->  | K167: =IFERROR(VLOOKUP(B167,BaseProdutos!B:V,4,0),"") ->  | W167: =IFERROR(F167*PE!$F$20,"") -> 
B168: =IF(BaseProdutos!B158="","",BaseProdutos!B158) ->  | C168: =IFERROR(VLOOKUP(B168,BaseProdutos!B:V,21,0),"") ->  | G168: =IFERROR(VLOOKUP(B168,BaseProdutos!B:V,3,0),"") ->  | H168: =IFERROR(VLOOKUP(B168,BaseProdutos!B:V,17,0),"") ->  | I168: =IFERROR(SUM(VLOOKUP(B168,BaseProdutos!B:V,13,0),VLOOKUP(B168,BaseProdutos!B:V,14,0)),"") ->  | J168: =IFERROR(SUM(VLOOKUP(B168,BaseProdutos!B:V,15,0),VLOOKUP(B168,BaseProdutos!B:V,16,0))/100,"") ->  | K168: =IFERROR(VLOOKUP(B168,BaseProdutos!B:V,4,0),"") ->  | W168: =IFERROR(F168*PE!$F$20,"") -> 
B169: =IF(BaseProdutos!B159="","",BaseProdutos!B159) ->  | C169: =IFERROR(VLOOKUP(B169,BaseProdutos!B:V,21,0),"") ->  | G169: =IFERROR(VLOOKUP(B169,BaseProdutos!B:V,3,0),"") ->  | H169: =IFERROR(VLOOKUP(B169,BaseProdutos!B:V,17,0),"") ->  | I169: =IFERROR(SUM(VLOOKUP(B169,BaseProdutos!B:V,13,0),VLOOKUP(B169,BaseProdutos!B:V,14,0)),"") ->  | J169: =IFERROR(SUM(VLOOKUP(B169,BaseProdutos!B:V,15,0),VLOOKUP(B169,BaseProdutos!B:V,16,0))/100,"") ->  | K169: =IFERROR(VLOOKUP(B169,BaseProdutos!B:V,4,0),"") ->  | W169: =IFERROR(F169*PE!$F$20,"") -> 
B170: =IF(BaseProdutos!B160="","",BaseProdutos!B160) ->  | C170: =IFERROR(VLOOKUP(B170,BaseProdutos!B:V,21,0),"") ->  | G170: =IFERROR(VLOOKUP(B170,BaseProdutos!B:V,3,0),"") ->  | H170: =IFERROR(VLOOKUP(B170,BaseProdutos!B:V,17,0),"") ->  | I170: =IFERROR(SUM(VLOOKUP(B170,BaseProdutos!B:V,13,0),VLOOKUP(B170,BaseProdutos!B:V,14,0)),"") ->  | J170: =IFERROR(SUM(VLOOKUP(B170,BaseProdutos!B:V,15,0),VLOOKUP(B170,BaseProdutos!B:V,16,0))/100,"") ->  | K170: =IFERROR(VLOOKUP(B170,BaseProdutos!B:V,4,0),"") ->  | W170: =IFERROR(F170*PE!$F$20,"") -> 
B171: =IF(BaseProdutos!B161="","",BaseProdutos!B161) ->  | C171: =IFERROR(VLOOKUP(B171,BaseProdutos!B:V,21,0),"") ->  | G171: =IFERROR(VLOOKUP(B171,BaseProdutos!B:V,3,0),"") ->  | H171: =IFERROR(VLOOKUP(B171,BaseProdutos!B:V,17,0),"") ->  | I171: =IFERROR(SUM(VLOOKUP(B171,BaseProdutos!B:V,13,0),VLOOKUP(B171,BaseProdutos!B:V,14,0)),"") ->  | J171: =IFERROR(SUM(VLOOKUP(B171,BaseProdutos!B:V,15,0),VLOOKUP(B171,BaseProdutos!B:V,16,0))/100,"") ->  | K171: =IFERROR(VLOOKUP(B171,BaseProdutos!B:V,4,0),"") ->  | W171: =IFERROR(F171*PE!$F$20,"") -> 
B172: =IF(BaseProdutos!B162="","",BaseProdutos!B162) ->  | C172: =IFERROR(VLOOKUP(B172,BaseProdutos!B:V,21,0),"") ->  | G172: =IFERROR(VLOOKUP(B172,BaseProdutos!B:V,3,0),"") ->  | H172: =IFERROR(VLOOKUP(B172,BaseProdutos!B:V,17,0),"") ->  | I172: =IFERROR(SUM(VLOOKUP(B172,BaseProdutos!B:V,13,0),VLOOKUP(B172,BaseProdutos!B:V,14,0)),"") ->  | J172: =IFERROR(SUM(VLOOKUP(B172,BaseProdutos!B:V,15,0),VLOOKUP(B172,BaseProdutos!B:V,16,0))/100,"") ->  | K172: =IFERROR(VLOOKUP(B172,BaseProdutos!B:V,4,0),"") ->  | W172: =IFERROR(F172*PE!$F$20,"") -> 
B173: =IF(BaseProdutos!B163="","",BaseProdutos!B163) ->  | C173: =IFERROR(VLOOKUP(B173,BaseProdutos!B:V,21,0),"") ->  | G173: =IFERROR(VLOOKUP(B173,BaseProdutos!B:V,3,0),"") ->  | H173: =IFERROR(VLOOKUP(B173,BaseProdutos!B:V,17,0),"") ->  | I173: =IFERROR(SUM(VLOOKUP(B173,BaseProdutos!B:V,13,0),VLOOKUP(B173,BaseProdutos!B:V,14,0)),"") ->  | J173: =IFERROR(SUM(VLOOKUP(B173,BaseProdutos!B:V,15,0),VLOOKUP(B173,BaseProdutos!B:V,16,0))/100,"") ->  | K173: =IFERROR(VLOOKUP(B173,BaseProdutos!B:V,4,0),"") ->  | W173: =IFERROR(F173*PE!$F$20,"") -> 
B174: =IF(BaseProdutos!B164="","",BaseProdutos!B164) ->  | C174: =IFERROR(VLOOKUP(B174,BaseProdutos!B:V,21,0),"") ->  | G174: =IFERROR(VLOOKUP(B174,BaseProdutos!B:V,3,0),"") ->  | H174: =IFERROR(VLOOKUP(B174,BaseProdutos!B:V,17,0),"") ->  | I174: =IFERROR(SUM(VLOOKUP(B174,BaseProdutos!B:V,13,0),VLOOKUP(B174,BaseProdutos!B:V,14,0)),"") ->  | J174: =IFERROR(SUM(VLOOKUP(B174,BaseProdutos!B:V,15,0),VLOOKUP(B174,BaseProdutos!B:V,16,0))/100,"") ->  | K174: =IFERROR(VLOOKUP(B174,BaseProdutos!B:V,4,0),"") ->  | W174: =IFERROR(F174*PE!$F$20,"") -> 
B175: =IF(BaseProdutos!B165="","",BaseProdutos!B165) ->  | C175: =IFERROR(VLOOKUP(B175,BaseProdutos!B:V,21,0),"") ->  | G175: =IFERROR(VLOOKUP(B175,BaseProdutos!B:V,3,0),"") ->  | H175: =IFERROR(VLOOKUP(B175,BaseProdutos!B:V,17,0),"") ->  | I175: =IFERROR(SUM(VLOOKUP(B175,BaseProdutos!B:V,13,0),VLOOKUP(B175,BaseProdutos!B:V,14,0)),"") ->  | J175: =IFERROR(SUM(VLOOKUP(B175,BaseProdutos!B:V,15,0),VLOOKUP(B175,BaseProdutos!B:V,16,0))/100,"") ->  | K175: =IFERROR(VLOOKUP(B175,BaseProdutos!B:V,4,0),"") ->  | W175: =IFERROR(F175*PE!$F$20,"") -> 
B176: =IF(BaseProdutos!B166="","",BaseProdutos!B166) ->  | C176: =IFERROR(VLOOKUP(B176,BaseProdutos!B:V,21,0),"") ->  | G176: =IFERROR(VLOOKUP(B176,BaseProdutos!B:V,3,0),"") ->  | H176: =IFERROR(VLOOKUP(B176,BaseProdutos!B:V,17,0),"") ->  | I176: =IFERROR(SUM(VLOOKUP(B176,BaseProdutos!B:V,13,0),VLOOKUP(B176,BaseProdutos!B:V,14,0)),"") ->  | J176: =IFERROR(SUM(VLOOKUP(B176,BaseProdutos!B:V,15,0),VLOOKUP(B176,BaseProdutos!B:V,16,0))/100,"") ->  | K176: =IFERROR(VLOOKUP(B176,BaseProdutos!B:V,4,0),"") ->  | W176: =IFERROR(F176*PE!$F$20,"") -> 
B177: =IF(BaseProdutos!B167="","",BaseProdutos!B167) ->  | C177: =IFERROR(VLOOKUP(B177,BaseProdutos!B:V,21,0),"") ->  | G177: =IFERROR(VLOOKUP(B177,BaseProdutos!B:V,3,0),"") ->  | H177: =IFERROR(VLOOKUP(B177,BaseProdutos!B:V,17,0),"") ->  | I177: =IFERROR(SUM(VLOOKUP(B177,BaseProdutos!B:V,13,0),VLOOKUP(B177,BaseProdutos!B:V,14,0)),"") ->  | J177: =IFERROR(SUM(VLOOKUP(B177,BaseProdutos!B:V,15,0),VLOOKUP(B177,BaseProdutos!B:V,16,0))/100,"") ->  | K177: =IFERROR(VLOOKUP(B177,BaseProdutos!B:V,4,0),"") ->  | W177: =IFERROR(F177*PE!$F$20,"") -> 
B178: =IF(BaseProdutos!B168="","",BaseProdutos!B168) ->  | C178: =IFERROR(VLOOKUP(B178,BaseProdutos!B:V,21,0),"") ->  | G178: =IFERROR(VLOOKUP(B178,BaseProdutos!B:V,3,0),"") ->  | H178: =IFERROR(VLOOKUP(B178,BaseProdutos!B:V,17,0),"") ->  | I178: =IFERROR(SUM(VLOOKUP(B178,BaseProdutos!B:V,13,0),VLOOKUP(B178,BaseProdutos!B:V,14,0)),"") ->  | J178: =IFERROR(SUM(VLOOKUP(B178,BaseProdutos!B:V,15,0),VLOOKUP(B178,BaseProdutos!B:V,16,0))/100,"") ->  | K178: =IFERROR(VLOOKUP(B178,BaseProdutos!B:V,4,0),"") ->  | W178: =IFERROR(F178*PE!$F$20,"") -> 
B179: =IF(BaseProdutos!B169="","",BaseProdutos!B169) ->  | C179: =IFERROR(VLOOKUP(B179,BaseProdutos!B:V,21,0),"") ->  | G179: =IFERROR(VLOOKUP(B179,BaseProdutos!B:V,3,0),"") ->  | H179: =IFERROR(VLOOKUP(B179,BaseProdutos!B:V,17,0),"") ->  | I179: =IFERROR(SUM(VLOOKUP(B179,BaseProdutos!B:V,13,0),VLOOKUP(B179,BaseProdutos!B:V,14,0)),"") ->  | J179: =IFERROR(SUM(VLOOKUP(B179,BaseProdutos!B:V,15,0),VLOOKUP(B179,BaseProdutos!B:V,16,0))/100,"") ->  | K179: =IFERROR(VLOOKUP(B179,BaseProdutos!B:V,4,0),"") ->  | W179: =IFERROR(F179*PE!$F$20,"") -> 
B180: =IF(BaseProdutos!B170="","",BaseProdutos!B170) ->  | C180: =IFERROR(VLOOKUP(B180,BaseProdutos!B:V,21,0),"") ->  | G180: =IFERROR(VLOOKUP(B180,BaseProdutos!B:V,3,0),"") ->  | H180: =IFERROR(VLOOKUP(B180,BaseProdutos!B:V,17,0),"") ->  | I180: =IFERROR(SUM(VLOOKUP(B180,BaseProdutos!B:V,13,0),VLOOKUP(B180,BaseProdutos!B:V,14,0)),"") ->  | J180: =IFERROR(SUM(VLOOKUP(B180,BaseProdutos!B:V,15,0),VLOOKUP(B180,BaseProdutos!B:V,16,0))/100,"") ->  | K180: =IFERROR(VLOOKUP(B180,BaseProdutos!B:V,4,0),"") ->  | W180: =IFERROR(F180*PE!$F$20,"") -> 
B181: =IF(BaseProdutos!B171="","",BaseProdutos!B171) ->  | C181: =IFERROR(VLOOKUP(B181,BaseProdutos!B:V,21,0),"") ->  | G181: =IFERROR(VLOOKUP(B181,BaseProdutos!B:V,3,0),"") ->  | H181: =IFERROR(VLOOKUP(B181,BaseProdutos!B:V,17,0),"") ->  | I181: =IFERROR(SUM(VLOOKUP(B181,BaseProdutos!B:V,13,0),VLOOKUP(B181,BaseProdutos!B:V,14,0)),"") ->  | J181: =IFERROR(SUM(VLOOKUP(B181,BaseProdutos!B:V,15,0),VLOOKUP(B181,BaseProdutos!B:V,16,0))/100,"") ->  | K181: =IFERROR(VLOOKUP(B181,BaseProdutos!B:V,4,0),"") ->  | W181: =IFERROR(F181*PE!$F$20,"") -> 
B182: =IF(BaseProdutos!B172="","",BaseProdutos!B172) ->  | C182: =IFERROR(VLOOKUP(B182,BaseProdutos!B:V,21,0),"") ->  | G182: =IFERROR(VLOOKUP(B182,BaseProdutos!B:V,3,0),"") ->  | H182: =IFERROR(VLOOKUP(B182,BaseProdutos!B:V,17,0),"") ->  | I182: =IFERROR(SUM(VLOOKUP(B182,BaseProdutos!B:V,13,0),VLOOKUP(B182,BaseProdutos!B:V,14,0)),"") ->  | J182: =IFERROR(SUM(VLOOKUP(B182,BaseProdutos!B:V,15,0),VLOOKUP(B182,BaseProdutos!B:V,16,0))/100,"") ->  | K182: =IFERROR(VLOOKUP(B182,BaseProdutos!B:V,4,0),"") ->  | W182: =IFERROR(F182*PE!$F$20,"") -> 
B183: =IF(BaseProdutos!B173="","",BaseProdutos!B173) ->  | C183: =IFERROR(VLOOKUP(B183,BaseProdutos!B:V,21,0),"") ->  | G183: =IFERROR(VLOOKUP(B183,BaseProdutos!B:V,3,0),"") ->  | H183: =IFERROR(VLOOKUP(B183,BaseProdutos!B:V,17,0),"") ->  | I183: =IFERROR(SUM(VLOOKUP(B183,BaseProdutos!B:V,13,0),VLOOKUP(B183,BaseProdutos!B:V,14,0)),"") ->  | J183: =IFERROR(SUM(VLOOKUP(B183,BaseProdutos!B:V,15,0),VLOOKUP(B183,BaseProdutos!B:V,16,0))/100,"") ->  | K183: =IFERROR(VLOOKUP(B183,BaseProdutos!B:V,4,0),"") ->  | W183: =IFERROR(F183*PE!$F$20,"") -> 
B184: =IF(BaseProdutos!B174="","",BaseProdutos!B174) ->  | C184: =IFERROR(VLOOKUP(B184,BaseProdutos!B:V,21,0),"") ->  | G184: =IFERROR(VLOOKUP(B184,BaseProdutos!B:V,3,0),"") ->  | H184: =IFERROR(VLOOKUP(B184,BaseProdutos!B:V,17,0),"") ->  | I184: =IFERROR(SUM(VLOOKUP(B184,BaseProdutos!B:V,13,0),VLOOKUP(B184,BaseProdutos!B:V,14,0)),"") ->  | J184: =IFERROR(SUM(VLOOKUP(B184,BaseProdutos!B:V,15,0),VLOOKUP(B184,BaseProdutos!B:V,16,0))/100,"") ->  | K184: =IFERROR(VLOOKUP(B184,BaseProdutos!B:V,4,0),"") ->  | W184: =IFERROR(F184*PE!$F$20,"") -> 
B185: =IF(BaseProdutos!B175="","",BaseProdutos!B175) ->  | C185: =IFERROR(VLOOKUP(B185,BaseProdutos!B:V,21,0),"") ->  | G185: =IFERROR(VLOOKUP(B185,BaseProdutos!B:V,3,0),"") ->  | H185: =IFERROR(VLOOKUP(B185,BaseProdutos!B:V,17,0),"") ->  | I185: =IFERROR(SUM(VLOOKUP(B185,BaseProdutos!B:V,13,0),VLOOKUP(B185,BaseProdutos!B:V,14,0)),"") ->  | J185: =IFERROR(SUM(VLOOKUP(B185,BaseProdutos!B:V,15,0),VLOOKUP(B185,BaseProdutos!B:V,16,0))/100,"") ->  | K185: =IFERROR(VLOOKUP(B185,BaseProdutos!B:V,4,0),"") ->  | W185: =IFERROR(F185*PE!$F$20,"") -> 
B186: =IF(BaseProdutos!B176="","",BaseProdutos!B176) ->  | C186: =IFERROR(VLOOKUP(B186,BaseProdutos!B:V,21,0),"") ->  | G186: =IFERROR(VLOOKUP(B186,BaseProdutos!B:V,3,0),"") ->  | H186: =IFERROR(VLOOKUP(B186,BaseProdutos!B:V,17,0),"") ->  | I186: =IFERROR(SUM(VLOOKUP(B186,BaseProdutos!B:V,13,0),VLOOKUP(B186,BaseProdutos!B:V,14,0)),"") ->  | J186: =IFERROR(SUM(VLOOKUP(B186,BaseProdutos!B:V,15,0),VLOOKUP(B186,BaseProdutos!B:V,16,0))/100,"") ->  | K186: =IFERROR(VLOOKUP(B186,BaseProdutos!B:V,4,0),"") ->  | W186: =IFERROR(F186*PE!$F$20,"") -> 
B187: =IF(BaseProdutos!B177="","",BaseProdutos!B177) ->  | C187: =IFERROR(VLOOKUP(B187,BaseProdutos!B:V,21,0),"") ->  | G187: =IFERROR(VLOOKUP(B187,BaseProdutos!B:V,3,0),"") ->  | H187: =IFERROR(VLOOKUP(B187,BaseProdutos!B:V,17,0),"") ->  | I187: =IFERROR(SUM(VLOOKUP(B187,BaseProdutos!B:V,13,0),VLOOKUP(B187,BaseProdutos!B:V,14,0)),"") ->  | J187: =IFERROR(SUM(VLOOKUP(B187,BaseProdutos!B:V,15,0),VLOOKUP(B187,BaseProdutos!B:V,16,0))/100,"") ->  | K187: =IFERROR(VLOOKUP(B187,BaseProdutos!B:V,4,0),"") ->  | W187: =IFERROR(F187*PE!$F$20,"") -> 
B188: =IF(BaseProdutos!B178="","",BaseProdutos!B178) ->  | C188: =IFERROR(VLOOKUP(B188,BaseProdutos!B:V,21,0),"") ->  | G188: =IFERROR(VLOOKUP(B188,BaseProdutos!B:V,3,0),"") ->  | H188: =IFERROR(VLOOKUP(B188,BaseProdutos!B:V,17,0),"") ->  | I188: =IFERROR(SUM(VLOOKUP(B188,BaseProdutos!B:V,13,0),VLOOKUP(B188,BaseProdutos!B:V,14,0)),"") ->  | J188: =IFERROR(SUM(VLOOKUP(B188,BaseProdutos!B:V,15,0),VLOOKUP(B188,BaseProdutos!B:V,16,0))/100,"") ->  | K188: =IFERROR(VLOOKUP(B188,BaseProdutos!B:V,4,0),"") ->  | W188: =IFERROR(F188*PE!$F$20,"") -> 
B189: =IF(BaseProdutos!B179="","",BaseProdutos!B179) ->  | C189: =IFERROR(VLOOKUP(B189,BaseProdutos!B:V,21,0),"") ->  | G189: =IFERROR(VLOOKUP(B189,BaseProdutos!B:V,3,0),"") ->  | H189: =IFERROR(VLOOKUP(B189,BaseProdutos!B:V,17,0),"") ->  | I189: =IFERROR(SUM(VLOOKUP(B189,BaseProdutos!B:V,13,0),VLOOKUP(B189,BaseProdutos!B:V,14,0)),"") ->  | J189: =IFERROR(SUM(VLOOKUP(B189,BaseProdutos!B:V,15,0),VLOOKUP(B189,BaseProdutos!B:V,16,0))/100,"") ->  | K189: =IFERROR(VLOOKUP(B189,BaseProdutos!B:V,4,0),"") ->  | W189: =IFERROR(F189*PE!$F$20,"") -> 
B190: =IF(BaseProdutos!B180="","",BaseProdutos!B180) ->  | C190: =IFERROR(VLOOKUP(B190,BaseProdutos!B:V,21,0),"") ->  | G190: =IFERROR(VLOOKUP(B190,BaseProdutos!B:V,3,0),"") ->  | H190: =IFERROR(VLOOKUP(B190,BaseProdutos!B:V,17,0),"") ->  | I190: =IFERROR(SUM(VLOOKUP(B190,BaseProdutos!B:V,13,0),VLOOKUP(B190,BaseProdutos!B:V,14,0)),"") ->  | J190: =IFERROR(SUM(VLOOKUP(B190,BaseProdutos!B:V,15,0),VLOOKUP(B190,BaseProdutos!B:V,16,0))/100,"") ->  | K190: =IFERROR(VLOOKUP(B190,BaseProdutos!B:V,4,0),"") ->  | W190: =IFERROR(F190*PE!$F$20,"") -> 
B191: =IF(BaseProdutos!B181="","",BaseProdutos!B181) ->  | C191: =IFERROR(VLOOKUP(B191,BaseProdutos!B:V,21,0),"") ->  | G191: =IFERROR(VLOOKUP(B191,BaseProdutos!B:V,3,0),"") ->  | H191: =IFERROR(VLOOKUP(B191,BaseProdutos!B:V,17,0),"") ->  | I191: =IFERROR(SUM(VLOOKUP(B191,BaseProdutos!B:V,13,0),VLOOKUP(B191,BaseProdutos!B:V,14,0)),"") ->  | J191: =IFERROR(SUM(VLOOKUP(B191,BaseProdutos!B:V,15,0),VLOOKUP(B191,BaseProdutos!B:V,16,0))/100,"") ->  | K191: =IFERROR(VLOOKUP(B191,BaseProdutos!B:V,4,0),"") ->  | W191: =IFERROR(F191*PE!$F$20,"") -> 
B192: =IF(BaseProdutos!B182="","",BaseProdutos!B182) ->  | C192: =IFERROR(VLOOKUP(B192,BaseProdutos!B:V,21,0),"") ->  | G192: =IFERROR(VLOOKUP(B192,BaseProdutos!B:V,3,0),"") ->  | H192: =IFERROR(VLOOKUP(B192,BaseProdutos!B:V,17,0),"") ->  | I192: =IFERROR(SUM(VLOOKUP(B192,BaseProdutos!B:V,13,0),VLOOKUP(B192,BaseProdutos!B:V,14,0)),"") ->  | J192: =IFERROR(SUM(VLOOKUP(B192,BaseProdutos!B:V,15,0),VLOOKUP(B192,BaseProdutos!B:V,16,0))/100,"") ->  | K192: =IFERROR(VLOOKUP(B192,BaseProdutos!B:V,4,0),"") ->  | W192: =IFERROR(F192*PE!$F$20,"") -> 
B193: =IF(BaseProdutos!B183="","",BaseProdutos!B183) ->  | C193: =IFERROR(VLOOKUP(B193,BaseProdutos!B:V,21,0),"") ->  | G193: =IFERROR(VLOOKUP(B193,BaseProdutos!B:V,3,0),"") ->  | H193: =IFERROR(VLOOKUP(B193,BaseProdutos!B:V,17,0),"") ->  | I193: =IFERROR(SUM(VLOOKUP(B193,BaseProdutos!B:V,13,0),VLOOKUP(B193,BaseProdutos!B:V,14,0)),"") ->  | J193: =IFERROR(SUM(VLOOKUP(B193,BaseProdutos!B:V,15,0),VLOOKUP(B193,BaseProdutos!B:V,16,0))/100,"") ->  | K193: =IFERROR(VLOOKUP(B193,BaseProdutos!B:V,4,0),"") ->  | W193: =IFERROR(F193*PE!$F$20,"") -> 
B194: =IF(BaseProdutos!B184="","",BaseProdutos!B184) ->  | C194: =IFERROR(VLOOKUP(B194,BaseProdutos!B:V,21,0),"") ->  | G194: =IFERROR(VLOOKUP(B194,BaseProdutos!B:V,3,0),"") ->  | H194: =IFERROR(VLOOKUP(B194,BaseProdutos!B:V,17,0),"") ->  | I194: =IFERROR(SUM(VLOOKUP(B194,BaseProdutos!B:V,13,0),VLOOKUP(B194,BaseProdutos!B:V,14,0)),"") ->  | J194: =IFERROR(SUM(VLOOKUP(B194,BaseProdutos!B:V,15,0),VLOOKUP(B194,BaseProdutos!B:V,16,0))/100,"") ->  | K194: =IFERROR(VLOOKUP(B194,BaseProdutos!B:V,4,0),"") ->  | W194: =IFERROR(F194*PE!$F$20,"") -> 
B195: =IF(BaseProdutos!B185="","",BaseProdutos!B185) ->  | C195: =IFERROR(VLOOKUP(B195,BaseProdutos!B:V,21,0),"") ->  | G195: =IFERROR(VLOOKUP(B195,BaseProdutos!B:V,3,0),"") ->  | H195: =IFERROR(VLOOKUP(B195,BaseProdutos!B:V,17,0),"") ->  | I195: =IFERROR(SUM(VLOOKUP(B195,BaseProdutos!B:V,13,0),VLOOKUP(B195,BaseProdutos!B:V,14,0)),"") ->  | J195: =IFERROR(SUM(VLOOKUP(B195,BaseProdutos!B:V,15,0),VLOOKUP(B195,BaseProdutos!B:V,16,0))/100,"") ->  | K195: =IFERROR(VLOOKUP(B195,BaseProdutos!B:V,4,0),"") ->  | W195: =IFERROR(F195*PE!$F$20,"") -> 
B196: =IF(BaseProdutos!B186="","",BaseProdutos!B186) ->  | C196: =IFERROR(VLOOKUP(B196,BaseProdutos!B:V,21,0),"") ->  | G196: =IFERROR(VLOOKUP(B196,BaseProdutos!B:V,3,0),"") ->  | H196: =IFERROR(VLOOKUP(B196,BaseProdutos!B:V,17,0),"") ->  | I196: =IFERROR(SUM(VLOOKUP(B196,BaseProdutos!B:V,13,0),VLOOKUP(B196,BaseProdutos!B:V,14,0)),"") ->  | J196: =IFERROR(SUM(VLOOKUP(B196,BaseProdutos!B:V,15,0),VLOOKUP(B196,BaseProdutos!B:V,16,0))/100,"") ->  | K196: =IFERROR(VLOOKUP(B196,BaseProdutos!B:V,4,0),"") ->  | W196: =IFERROR(F196*PE!$F$20,"") -> 
B197: =IF(BaseProdutos!B187="","",BaseProdutos!B187) ->  | C197: =IFERROR(VLOOKUP(B197,BaseProdutos!B:V,21,0),"") ->  | G197: =IFERROR(VLOOKUP(B197,BaseProdutos!B:V,3,0),"") ->  | H197: =IFERROR(VLOOKUP(B197,BaseProdutos!B:V,17,0),"") ->  | I197: =IFERROR(SUM(VLOOKUP(B197,BaseProdutos!B:V,13,0),VLOOKUP(B197,BaseProdutos!B:V,14,0)),"") ->  | J197: =IFERROR(SUM(VLOOKUP(B197,BaseProdutos!B:V,15,0),VLOOKUP(B197,BaseProdutos!B:V,16,0))/100,"") ->  | K197: =IFERROR(VLOOKUP(B197,BaseProdutos!B:V,4,0),"") ->  | W197: =IFERROR(F197*PE!$F$20,"") -> 
B198: =IF(BaseProdutos!B188="","",BaseProdutos!B188) ->  | C198: =IFERROR(VLOOKUP(B198,BaseProdutos!B:V,21,0),"") ->  | G198: =IFERROR(VLOOKUP(B198,BaseProdutos!B:V,3,0),"") ->  | H198: =IFERROR(VLOOKUP(B198,BaseProdutos!B:V,17,0),"") ->  | I198: =IFERROR(SUM(VLOOKUP(B198,BaseProdutos!B:V,13,0),VLOOKUP(B198,BaseProdutos!B:V,14,0)),"") ->  | J198: =IFERROR(SUM(VLOOKUP(B198,BaseProdutos!B:V,15,0),VLOOKUP(B198,BaseProdutos!B:V,16,0))/100,"") ->  | K198: =IFERROR(VLOOKUP(B198,BaseProdutos!B:V,4,0),"") ->  | W198: =IFERROR(F198*PE!$F$20,"") -> 
B199: =IF(BaseProdutos!B189="","",BaseProdutos!B189) ->  | C199: =IFERROR(VLOOKUP(B199,BaseProdutos!B:V,21,0),"") ->  | G199: =IFERROR(VLOOKUP(B199,BaseProdutos!B:V,3,0),"") ->  | H199: =IFERROR(VLOOKUP(B199,BaseProdutos!B:V,17,0),"") ->  | I199: =IFERROR(SUM(VLOOKUP(B199,BaseProdutos!B:V,13,0),VLOOKUP(B199,BaseProdutos!B:V,14,0)),"") ->  | J199: =IFERROR(SUM(VLOOKUP(B199,BaseProdutos!B:V,15,0),VLOOKUP(B199,BaseProdutos!B:V,16,0))/100,"") ->  | K199: =IFERROR(VLOOKUP(B199,BaseProdutos!B:V,4,0),"") ->  | W199: =IFERROR(F199*PE!$F$20,"") -> 
B200: =IF(BaseProdutos!B190="","",BaseProdutos!B190) ->  | C200: =IFERROR(VLOOKUP(B200,BaseProdutos!B:V,21,0),"") ->  | G200: =IFERROR(VLOOKUP(B200,BaseProdutos!B:V,3,0),"") ->  | H200: =IFERROR(VLOOKUP(B200,BaseProdutos!B:V,17,0),"") ->  | I200: =IFERROR(SUM(VLOOKUP(B200,BaseProdutos!B:V,13,0),VLOOKUP(B200,BaseProdutos!B:V,14,0)),"") ->  | J200: =IFERROR(SUM(VLOOKUP(B200,BaseProdutos!B:V,15,0),VLOOKUP(B200,BaseProdutos!B:V,16,0))/100,"") ->  | K200: =IFERROR(VLOOKUP(B200,BaseProdutos!B:V,4,0),"") ->  | W200: =IFERROR(F200*PE!$F$20,"") -> 
B201: =IF(BaseProdutos!B191="","",BaseProdutos!B191) ->  | C201: =IFERROR(VLOOKUP(B201,BaseProdutos!B:V,21,0),"") ->  | G201: =IFERROR(VLOOKUP(B201,BaseProdutos!B:V,3,0),"") ->  | H201: =IFERROR(VLOOKUP(B201,BaseProdutos!B:V,17,0),"") ->  | I201: =IFERROR(SUM(VLOOKUP(B201,BaseProdutos!B:V,13,0),VLOOKUP(B201,BaseProdutos!B:V,14,0)),"") ->  | J201: =IFERROR(SUM(VLOOKUP(B201,BaseProdutos!B:V,15,0),VLOOKUP(B201,BaseProdutos!B:V,16,0))/100,"") ->  | K201: =IFERROR(VLOOKUP(B201,BaseProdutos!B:V,4,0),"") ->  | W201: =IFERROR(F201*PE!$F$20,"") -> 
B202: =IF(BaseProdutos!B192="","",BaseProdutos!B192) ->  | C202: =IFERROR(VLOOKUP(B202,BaseProdutos!B:V,21,0),"") ->  | G202: =IFERROR(VLOOKUP(B202,BaseProdutos!B:V,3,0),"") ->  | H202: =IFERROR(VLOOKUP(B202,BaseProdutos!B:V,17,0),"") ->  | I202: =IFERROR(SUM(VLOOKUP(B202,BaseProdutos!B:V,13,0),VLOOKUP(B202,BaseProdutos!B:V,14,0)),"") ->  | J202: =IFERROR(SUM(VLOOKUP(B202,BaseProdutos!B:V,15,0),VLOOKUP(B202,BaseProdutos!B:V,16,0))/100,"") ->  | K202: =IFERROR(VLOOKUP(B202,BaseProdutos!B:V,4,0),"") ->  | W202: =IFERROR(F202*PE!$F$20,"") -> 
B203: =IF(BaseProdutos!B193="","",BaseProdutos!B193) ->  | C203: =IFERROR(VLOOKUP(B203,BaseProdutos!B:V,21,0),"") ->  | G203: =IFERROR(VLOOKUP(B203,BaseProdutos!B:V,3,0),"") ->  | H203: =IFERROR(VLOOKUP(B203,BaseProdutos!B:V,17,0),"") ->  | I203: =IFERROR(SUM(VLOOKUP(B203,BaseProdutos!B:V,13,0),VLOOKUP(B203,BaseProdutos!B:V,14,0)),"") ->  | J203: =IFERROR(SUM(VLOOKUP(B203,BaseProdutos!B:V,15,0),VLOOKUP(B203,BaseProdutos!B:V,16,0))/100,"") ->  | K203: =IFERROR(VLOOKUP(B203,BaseProdutos!B:V,4,0),"") ->  | W203: =IFERROR(F203*PE!$F$20,"") -> 
B204: =IF(BaseProdutos!B194="","",BaseProdutos!B194) ->  | C204: =IFERROR(VLOOKUP(B204,BaseProdutos!B:V,21,0),"") ->  | G204: =IFERROR(VLOOKUP(B204,BaseProdutos!B:V,3,0),"") ->  | H204: =IFERROR(VLOOKUP(B204,BaseProdutos!B:V,17,0),"") ->  | I204: =IFERROR(SUM(VLOOKUP(B204,BaseProdutos!B:V,13,0),VLOOKUP(B204,BaseProdutos!B:V,14,0)),"") ->  | J204: =IFERROR(SUM(VLOOKUP(B204,BaseProdutos!B:V,15,0),VLOOKUP(B204,BaseProdutos!B:V,16,0))/100,"") ->  | K204: =IFERROR(VLOOKUP(B204,BaseProdutos!B:V,4,0),"") ->  | W204: =IFERROR(F204*PE!$F$20,"") -> 
B205: =IF(BaseProdutos!B195="","",BaseProdutos!B195) ->  | C205: =IFERROR(VLOOKUP(B205,BaseProdutos!B:V,21,0),"") ->  | E205: =IFERROR(IF(B205="","",C205*D205),"") ->  | F205: =IFERROR(E205/SUM($E$12:$E$511),"") ->  | G205: =IFERROR(VLOOKUP(B205,BaseProdutos!B:V,3,0),"") ->  | H205: =IFERROR(VLOOKUP(B205,BaseProdutos!B:V,17,0),"") ->  | I205: =IFERROR(SUM(VLOOKUP(B205,BaseProdutos!B:V,13,0),VLOOKUP(B205,BaseProdutos!B:V,14,0)),"") ->  | J205: =IFERROR(SUM(VLOOKUP(B205,BaseProdutos!B:V,15,0),VLOOKUP(B205,BaseProdutos!B:V,16,0))/100,"") ->  | K205: =IFERROR(VLOOKUP(B205,BaseProdutos!B:V,4,0),"") ->  | L205: =IFERROR(G205+C205*(H205+I205+J205)+K205,"") ->  | R205: =IFERROR(H205*E205,"") ->  | S205: =IFERROR(I205*E205,"") ->  | T205: =IFERROR(C205-L205,"") ->  | U205: =IFERROR(T205/C205,"") ->  | V205: =IFERROR(W205*C205,"") ->  | W205: =IFERROR(F205*PE!$F$20,"") ->  | X205: =IFERROR(K205*D205,"") ->  | Y205: =IFERROR(G205*D205,"") -> 
B206: =IF(BaseProdutos!B196="","",BaseProdutos!B196) ->  | C206: =IFERROR(VLOOKUP(B206,BaseProdutos!B:V,21,0),"") ->  | G206: =IFERROR(VLOOKUP(B206,BaseProdutos!B:V,3,0),"") ->  | H206: =IFERROR(VLOOKUP(B206,BaseProdutos!B:V,17,0),"") ->  | I206: =IFERROR(SUM(VLOOKUP(B206,BaseProdutos!B:V,13,0),VLOOKUP(B206,BaseProdutos!B:V,14,0)),"") ->  | J206: =IFERROR(SUM(VLOOKUP(B206,BaseProdutos!B:V,15,0),VLOOKUP(B206,BaseProdutos!B:V,16,0))/100,"") ->  | K206: =IFERROR(VLOOKUP(B206,BaseProdutos!B:V,4,0),"") ->  | W206: =IFERROR(F206*PE!$F$20,"") -> 
B207: =IF(BaseProdutos!B197="","",BaseProdutos!B197) ->  | C207: =IFERROR(VLOOKUP(B207,BaseProdutos!B:V,21,0),"") ->  | G207: =IFERROR(VLOOKUP(B207,BaseProdutos!B:V,3,0),"") ->  | H207: =IFERROR(VLOOKUP(B207,BaseProdutos!B:V,17,0),"") ->  | I207: =IFERROR(SUM(VLOOKUP(B207,BaseProdutos!B:V,13,0),VLOOKUP(B207,BaseProdutos!B:V,14,0)),"") ->  | J207: =IFERROR(SUM(VLOOKUP(B207,BaseProdutos!B:V,15,0),VLOOKUP(B207,BaseProdutos!B:V,16,0))/100,"") ->  | K207: =IFERROR(VLOOKUP(B207,BaseProdutos!B:V,4,0),"") ->  | W207: =IFERROR(F207*PE!$F$20,"") -> 
B208: =IF(BaseProdutos!B198="","",BaseProdutos!B198) ->  | C208: =IFERROR(VLOOKUP(B208,BaseProdutos!B:V,21,0),"") ->  | G208: =IFERROR(VLOOKUP(B208,BaseProdutos!B:V,3,0),"") ->  | H208: =IFERROR(VLOOKUP(B208,BaseProdutos!B:V,17,0),"") ->  | I208: =IFERROR(SUM(VLOOKUP(B208,BaseProdutos!B:V,13,0),VLOOKUP(B208,BaseProdutos!B:V,14,0)),"") ->  | J208: =IFERROR(SUM(VLOOKUP(B208,BaseProdutos!B:V,15,0),VLOOKUP(B208,BaseProdutos!B:V,16,0))/100,"") ->  | K208: =IFERROR(VLOOKUP(B208,BaseProdutos!B:V,4,0),"") ->  | W208: =IFERROR(F208*PE!$F$20,"") -> 
B209: =IF(BaseProdutos!B199="","",BaseProdutos!B199) ->  | C209: =IFERROR(VLOOKUP(B209,BaseProdutos!B:V,21,0),"") ->  | G209: =IFERROR(VLOOKUP(B209,BaseProdutos!B:V,3,0),"") ->  | H209: =IFERROR(VLOOKUP(B209,BaseProdutos!B:V,17,0),"") ->  | I209: =IFERROR(SUM(VLOOKUP(B209,BaseProdutos!B:V,13,0),VLOOKUP(B209,BaseProdutos!B:V,14,0)),"") ->  | J209: =IFERROR(SUM(VLOOKUP(B209,BaseProdutos!B:V,15,0),VLOOKUP(B209,BaseProdutos!B:V,16,0))/100,"") ->  | K209: =IFERROR(VLOOKUP(B209,BaseProdutos!B:V,4,0),"") ->  | W209: =IFERROR(F209*PE!$F$20,"") -> 
B210: =IF(BaseProdutos!B200="","",BaseProdutos!B200) ->  | C210: =IFERROR(VLOOKUP(B210,BaseProdutos!B:V,21,0),"") ->  | G210: =IFERROR(VLOOKUP(B210,BaseProdutos!B:V,3,0),"") ->  | H210: =IFERROR(VLOOKUP(B210,BaseProdutos!B:V,17,0),"") ->  | I210: =IFERROR(SUM(VLOOKUP(B210,BaseProdutos!B:V,13,0),VLOOKUP(B210,BaseProdutos!B:V,14,0)),"") ->  | J210: =IFERROR(SUM(VLOOKUP(B210,BaseProdutos!B:V,15,0),VLOOKUP(B210,BaseProdutos!B:V,16,0))/100,"") ->  | K210: =IFERROR(VLOOKUP(B210,BaseProdutos!B:V,4,0),"") ->  | W210: =IFERROR(F210*PE!$F$20,"") -> 
... 301 more rows

Sheet PE
B11: Descrição | C11: Valor (R$) | E11: Descrição | F11: Valor (R$) | H11: Selecione o seu serviço: | I11: Serviço 2
B12: Preço médio dos seus serviços | C12: =IFERROR(AVERAGEIF(Cad!C12:C511,">0"),"") -> R$ 1,171.43 | E12: Qual o valor total dos seus custos fixos? | F12: =SUM(Cad!O12:O51) -> R$ 16,030.00 | H12: ="Receita do(a) "&I11&" no Ponto de Equilíbrio" -> Receita do(a) Serviço 2 no Ponto de Equilíbrio | I12: =IFERROR(VLOOKUP(I11,Cad!$B$12:$Y$511,21,0),"") -> R$ 37,079.62
H14: Unidades | I14: =IFERROR(VLOOKUP(I11,Cad!$B$12:$Y$511,22,0),"") -> 31
B15: Margem de contribuição média dos seus serviços | C15: =IFERROR(AVERAGEIF(Cad!T12:T511,">0"),"") -> R$ 351.43
E16: Qual deve ser o faturamento para não ter prejuízo? | F16: =IFERROR(F12/(C15/C12),"") -> R$ 53,433.33 | H16: Total de despesas diretas | I16: =IFERROR(VLOOKUP(I11,Cad!$B$12:$Y$511,11,0)*I14,"") -> R$ 25,955.74
B18: Custos diretos totais | C18: =SUM(Cad!L12:L511) -> R$ 1,640.00 | H18: MC unitária | I18: =IFERROR(VLOOKUP(I11,Cad!$B$12:$Y$511,19,0),"") -> R$ 360.00
E20: Quantos serviços você precisa vender para não ter prejuízo? | F20: =IFERROR(F16/C12,"") -> 46 | H20: MC ponderada | I20: =IFERROR(VLOOKUP(I11,Cad!$B$12:$Y$511,5,0)*I18,"") -> R$ 243.87
B21: Custos diretos médio por serviço | C21: =IFERROR(AVERAGEIF(Cad!L12:L511,">0"),"") -> R$ 820.00

Sheet AC
B10: Empresa | C10: Diferencial | D10: Serviço | E10: Preço Concorrente | F10: Seu Preço | G10: Diferença | H10: Orientação
B11: Empresa XYZ | C11: Preço | D11: Serviço 1 | E11: R$ 1,500.00 | F11: =IFERROR(IF(D11="","",VLOOKUP(D11,Cad!$B$12:$C$511,2,0)),"") -> R$ 1,142.86 | G11: =IF(F11="","",F11-E11) -> -R$ 357.14 | H11: =IFERROR(IF(G11<0,"Seu preço está "&-I11*100&" % mais barato. Vale aumentar?",IF(G11>0,"Seu preço está "&I11*100&"% mais caro. Diminuir preço?","Seu preço está igual ao de mercado. Manter o preço?")),"") -> Seu preço está 24 % mais barato. Vale aumentar? | I11: =IFERROR(ROUND(F11/E11-1,2),"") -> -0.24
B12: Empresa XYZ | C12: Qualidade | D12: Serviço 2 | E12: R$ 1,200.00 | F12: =IFERROR(IF(D12="","",VLOOKUP(D12,Cad!$B$12:$C$511,2,0)),"") -> R$ 1,200.00 | G12: =IF(F12="","",F12-E12) -> R$ 0.00 | H12: =IFERROR(IF(G12<0,"Seu preço está "&-I12*100&" % mais barato. Vale aumentar?",IF(G12>0,"Seu preço está "&I12*100&"% mais caro. Diminuir preço?","Seu preço está igual ao de mercado. Manter o preço?")),"") -> Seu preço está igual ao de mercado. Manter o preço? | I12: =IFERROR(ROUND(F12/E12-1,2),"") -> 0
B13: Empresa JW | C13: Localização Geográfica | D13: Serviço 1 | E13: R$ 1,000.00 | F13: =IFERROR(IF(D13="","",VLOOKUP(D13,Cad!$B$12:$C$511,2,0)),"") -> R$ 1,142.86 | G13: R$ 142.86 | H13: Seu preço está 14% mais caro. Diminuir preço? | I13: 0.14
B14: Empresa JW | C14: Preço | D14: Serviço 2 | E14: R$ 1,100.00 | F14: =IFERROR(IF(D14="","",VLOOKUP(D14,Cad!$B$12:$C$511,2,0)),"") -> R$ 1,200.00 | G14: R$ 100.00 | H14: Seu preço está 9% mais caro. Diminuir preço? | I14: 0.09
B15: Empresa YB | C15: Localização Geográfica | D15: Serviço 1 | E15: R$ 1,650.00 | F15: =IFERROR(IF(D15="","",VLOOKUP(D15,Cad!$B$12:$C$511,2,0)),"") -> R$ 1,142.86 | G15: -R$ 507.14 | H15: Seu preço está 31 % mais barato. Vale aumentar? | I15: -0.31
F16: =IFERROR(IF(D16="","",VLOOKUP(D16,Cad!$B$12:$C$511,2,0)),"") -> 
F17: =IFERROR(IF(D17="","",VLOOKUP(D17,Cad!$B$12:$C$511,2,0)),"") ->  | I17: =IFERROR(ROUND(F17/E17-1,2),"") -> 
F18: =IFERROR(IF(D18="","",VLOOKUP(D18,Cad!$B$12:$C$511,2,0)),"") ->  | I18: =IFERROR(ROUND(F18/E18-1,2),"") -> 
F19: =IFERROR(IF(D19="","",VLOOKUP(D19,Cad!$B$12:$C$511,2,0)),"") -> 
F20: =IFERROR(IF(D20="","",VLOOKUP(D20,Cad!$B$12:$C$511,2,0)),"") -> 
F21: =IFERROR(IF(D21="","",VLOOKUP(D21,Cad!$B$12:$C$511,2,0)),"") -> 
F22: =IFERROR(IF(D22="","",VLOOKUP(D22,Cad!$B$12:$C$511,2,0)),"") -> 
F23: =IFERROR(IF(D23="","",VLOOKUP(D23,Cad!$B$12:$C$511,2,0)),"") -> 
F24: =IFERROR(IF(D24="","",VLOOKUP(D24,Cad!$B$12:$C$511,2,0)),"") -> 
F25: =IFERROR(IF(D25="","",VLOOKUP(D25,Cad!$B$12:$C$511,2,0)),"") -> 
F26: =IFERROR(IF(D26="","",VLOOKUP(D26,Cad!$B$12:$C$511,2,0)),"") -> 
F27: =IFERROR(IF(D27="","",VLOOKUP(D27,Cad!$B$12:$C$511,2,0)),"") -> 
F28: =IFERROR(IF(D28="","",VLOOKUP(D28,Cad!$B$12:$C$511,2,0)),"") -> 
F29: =IFERROR(IF(D29="","",VLOOKUP(D29,Cad!$B$12:$C$511,2,0)),"") -> 
F30: =IFERROR(IF(D30="","",VLOOKUP(D30,Cad!$B$12:$C$511,2,0)),"") -> 
F31: =IFERROR(IF(D31="","",VLOOKUP(D31,Cad!$B$12:$C$511,2,0)),"") -> 
F32: =IFERROR(IF(D32="","",VLOOKUP(D32,Cad!$B$12:$C$511,2,0)),"") -> 
F33: =IFERROR(IF(D33="","",VLOOKUP(D33,Cad!$B$12:$C$511,2,0)),"") -> 
F34: =IFERROR(IF(D34="","",VLOOKUP(D34,Cad!$B$12:$C$511,2,0)),"") -> 
F35: =IFERROR(IF(D35="","",VLOOKUP(D35,Cad!$B$12:$C$511,2,0)),"") -> 
F36: =IFERROR(IF(D36="","",VLOOKUP(D36,Cad!$B$12:$C$511,2,0)),"") -> 
F37: =IFERROR(IF(D37="","",VLOOKUP(D37,Cad!$B$12:$C$511,2,0)),"") -> 
F38: =IFERROR(IF(D38="","",VLOOKUP(D38,Cad!$B$12:$C$511,2,0)),"") -> 
F39: =IFERROR(IF(D39="","",VLOOKUP(D39,Cad!$B$12:$C$511,2,0)),"") -> 
F40: =IFERROR(IF(D40="","",VLOOKUP(D40,Cad!$B$12:$C$511,2,0)),"") -> 
F41: =IFERROR(IF(D41="","",VLOOKUP(D41,Cad!$B$12:$C$511,2,0)),"") -> 
F42: =IFERROR(IF(D42="","",VLOOKUP(D42,Cad!$B$12:$C$511,2,0)),"") -> 
F43: =IFERROR(IF(D43="","",VLOOKUP(D43,Cad!$B$12:$C$511,2,0)),"") -> 
F44: =IFERROR(IF(D44="","",VLOOKUP(D44,Cad!$B$12:$C$511,2,0)),"") -> 
F45: =IFERROR(IF(D45="","",VLOOKUP(D45,Cad!$B$12:$C$511,2,0)),"") -> 
F46: =IFERROR(IF(D46="","",VLOOKUP(D46,Cad!$B$12:$C$511,2,0)),"") -> 
F47: =IFERROR(IF(D47="","",VLOOKUP(D47,Cad!$B$12:$C$511,2,0)),"") -> 
F48: =IFERROR(IF(D48="","",VLOOKUP(D48,Cad!$B$12:$C$511,2,0)),"") -> 
F49: =IFERROR(IF(D49="","",VLOOKUP(D49,Cad!$B$12:$C$511,2,0)),"") -> 
F50: =IFERROR(IF(D50="","",VLOOKUP(D50,Cad!$B$12:$C$511,2,0)),"") -> 
F51: =IFERROR(IF(D51="","",VLOOKUP(D51,Cad!$B$12:$C$511,2,0)),"") -> 
F52: =IFERROR(IF(D52="","",VLOOKUP(D52,Cad!$B$12:$C$511,2,0)),"") ->  | H52: Seu preço está 0% mais caro. Diminuir preço?
F53: =IFERROR(IF(D53="","",VLOOKUP(D53,Cad!$B$12:$C$511,2,0)),"") ->  | H53: Seu preço está 0% mais caro. Diminuir preço?
F54: =IFERROR(IF(D54="","",VLOOKUP(D54,Cad!$B$12:$C$511,2,0)),"") ->  | H54: Seu preço está 0% mais caro. Diminuir preço?
F55: =IFERROR(IF(D55="","",VLOOKUP(D55,Cad!$B$12:$C$511,2,0)),"") ->  | H55: Seu preço está 0% mais caro. Diminuir preço?
F56: =IFERROR(IF(D56="","",VLOOKUP(D56,Cad!$B$12:$C$511,2,0)),"") ->  | H56: Seu preço está 0% mais caro. Diminuir preço?
F57: =IFERROR(IF(D57="","",VLOOKUP(D57,Cad!$B$12:$C$511,2,0)),"") ->  | H57: Seu preço está 0% mais caro. Diminuir preço?
F58: =IFERROR(IF(D58="","",VLOOKUP(D58,Cad!$B$12:$C$511,2,0)),"") ->  | H58: Seu preço está 0% mais caro. Diminuir preço?
F59: =IFERROR(IF(D59="","",VLOOKUP(D59,Cad!$B$12:$C$511,2,0)),"") ->  | H59: Seu preço está 0% mais caro. Diminuir preço?
F60: =IFERROR(IF(D60="","",VLOOKUP(D60,Cad!$B$12:$C$511,2,0)),"") ->  | H60: Seu preço está 0% mais caro. Diminuir preço?

Sheet RC
B10: Resumo dos Custos Diretos | G10: Top 5 Custos Fixos
B11: Materiais | D11: =IFERROR(SUM(Cad!G12:G511),"") -> R$ 740.00 | G11: =IFERROR(IF(I11=I10,INDEX(OFFSET(Cad!$N$12:$N$51,MATCH(I10,Cad!$O$12:$O$51,0),0),MATCH(I11,OFFSET(Cad!$O$12:$O$51,MATCH(I11,Cad!$O$12:$O$51,0),0),0),1),INDEX(Cad!$N$12:$N$51,MATCH(I11,Cad!$O$12:$O$51,0),1)),"" ) -> Pró Labore e salários | I11: =IFERROR(LARGE(Cad!O12:O51,1),"") -> R$ 6,500.00
B12: Impostos | D12: =IFERROR(SUM(Cad!I12:I511),"") -> R$ 0.00 | G12: =IFERROR(IF(I12=I11,INDEX(OFFSET(Cad!$N$12:$N$51,MATCH(I11,Cad!$O$12:$O$51,0),0),MATCH(I12,OFFSET(Cad!$O$12:$O$51,MATCH(I12,Cad!$O$12:$O$51,0),0),0),1),INDEX(Cad!$N$12:$N$51,MATCH(I12,Cad!$O$12:$O$51,0),1)),"" ) -> Aluguel | I12: =IFERROR(LARGE(Cad!O12:O51,2),"") -> R$ 2,000.00
B13: Comissões | D13: =IFERROR(SUM(Cad!H12:H511),"") -> R$ 0.00 | G13: =IFERROR(IF(I13=I12,INDEX(OFFSET(Cad!$N$12:$N$51,MATCH(I12,Cad!$O$12:$O$51,0),0),MATCH(I13,OFFSET(Cad!$O$12:$O$51,MATCH(I13,Cad!$O$12:$O$51,0),0),0),1),INDEX(Cad!$N$12:$N$51,MATCH(I13,Cad!$O$12:$O$51,0),1)),"" ) -> Marketing | I13: =IFERROR(LARGE(Cad!O12:O51,3),"") -> R$ 2,000.00
B14: Outros gastos | D14: =IFERROR(SUM(Cad!K12:K511),"") -> R$ 900.00 | G14: =IFERROR(IF(I14=I13,INDEX(OFFSET(Cad!$N$12:$N$51,MATCH(I13,Cad!$O$12:$O$51,0),0),MATCH(I14,OFFSET(Cad!$O$12:$O$51,MATCH(I14,Cad!$O$12:$O$51,0),0),0),1),INDEX(Cad!$N$12:$N$51,MATCH(I14,Cad!$O$12:$O$51,0),1)),"" ) -> Outros Custos | I14: =IFERROR(LARGE(Cad!O12:O51,4),"") -> R$ 1,900.00
B15: Total dos gastos | D15: =SUM(D11:E14) -> R$ 1,640.00 | G15: =IFERROR(IF(I15=I14,INDEX(OFFSET(Cad!$N$12:$N$51,MATCH(I14,Cad!$O$12:$O$51,0),0),MATCH(I15,OFFSET(Cad!$O$12:$O$51,MATCH(I15,Cad!$O$12:$O$51,0),0),0),1),INDEX(Cad!$N$12:$N$51,MATCH(I15,Cad!$O$12:$O$51,0),1)),"" ) -> Empréstimos | I15: =IFERROR(LARGE(Cad!O12:O51,5),"") -> R$ 1,350.00
G16: Total dos custos fixos | I16: =SUM(Cad!O12:O51) -> R$ 16,030.00
B18: Análise da concorrência (máximo de 5 serviços comparados)
B19: Serviços | C19: Preço médio de mercado | D19: Preço praticado por você | E19: Diferença | F19: Comentário
B20: =IFERROR(IF(D20="","",IF(D20=D19,INDEX(OFFSET(AC!$D$11:$D$50,MATCH(D20,AC!$F$11:$F$50,0),0),MATCH(D20,OFFSET(AC!$F$11:$F$50,MATCH(D20,AC!$F$11:$F$50,0),0),0),1),INDEX(AC!$D$11:$D$50,MATCH(D20,AC!$F$11:$F$50,0),1))),"") -> Serviço 2 | C20: =IFERROR(VLOOKUP(B20,AC!$D$11:$E$50,2,0),"") -> R$ 1,200.00 | D20: =IFERROR(LARGE(AC!$F$11:$F$50,1),"") -> R$ 1,200.00 | E20: =IF(ISERROR( IF(B20="","",D20-C20)),"",IF(B20="","",D20-C20)) -> R$ 0.00 | F20: =IF(ISERROR( IF(E20<0,"Seu preço está "&-I20*100&" % mais barato. Vale aumentar?",IF(E20>0,"Seu preço está "&I20*100&"% mais caro. Diminuir preço?","Seu preço está igual ao de mercado. Manter o preço?"))),"",IF(E20<0,"Seu preço está "&-I20*100&" % mais barato. Vale aumentar?",IF(E20>0,"Seu preço está "&I20*100&"% mais caro. Diminuir preço?","Seu preço está igual ao de mercado. Manter o preço?"))) -> Seu preço está igual ao de mercado. Manter o preço? | I20: =IFERROR(ROUND(D20/C20-1,2),"") -> 0
B21: =IFERROR(IF(D21="","",IF(D21=D20,INDEX(OFFSET(AC!$D$11:$D$50,MATCH(D21,AC!$F$11:$F$50,0),0),MATCH(D21,OFFSET(AC!$F$11:$F$50,MATCH(D21,AC!$F$11:$F$50,0),0),0),1),INDEX(AC!$D$11:$D$50,MATCH(D21,AC!$F$11:$F$50,0),1))),"") -> Serviço 2 | C21: =IFERROR(VLOOKUP(B21,AC!$D$11:$E$50,2,0),"") -> R$ 1,200.00 | D21: =IFERROR(LARGE(AC!$F$11:$F$50,2),"") -> R$ 1,200.00 | E21: =IF(ISERROR( IF(B21="","",D21-C21)),"",IF(B21="","",D21-C21)) -> R$ 0.00 | F21: =IF(ISERROR( IF(E21<0,"Seu preço está "&-I21*100&" % mais barato. Vale aumentar?",IF(E21>0,"Seu preço está "&I21*100&"% mais caro. Diminuir preço?","Seu preço está igual ao de mercado. Manter o preço?"))),"",IF(E21<0,"Seu preço está "&-I21*100&" % mais barato. Vale aumentar?",IF(E21>0,"Seu preço está "&I21*100&"% mais caro. Diminuir preço?","Seu preço está igual ao de mercado. Manter o preço?"))) -> Seu preço está igual ao de mercado. Manter o preço? | I21: =IFERROR(ROUND(D21/C21-1,2),"") -> 0
B22: =IFERROR(IF(D22="","",IF(D22=D21,INDEX(OFFSET(AC!$D$11:$D$50,MATCH(D22,AC!$F$11:$F$50,0),0),MATCH(D22,OFFSET(AC!$F$11:$F$50,MATCH(D22,AC!$F$11:$F$50,0),0),0),1),INDEX(AC!$D$11:$D$50,MATCH(D22,AC!$F$11:$F$50,0),1))),"") -> Serviço 1 | C22: =IFERROR(VLOOKUP(B22,AC!$D$11:$E$50,2,0),"") -> R$ 1,500.00 | D22: =IFERROR(LARGE(AC!$F$11:$F$50,3),"") -> R$ 1,142.86 | E22: =IF(ISERROR( IF(B22="","",D22-C22)),"",IF(B22="","",D22-C22)) -> -R$ 357.14 | F22: Seu preço está 24 % mais barato. Vale aumentar? | I22: -0.24
B23: =IFERROR(IF(D23="","",IF(D23=D22,INDEX(OFFSET(AC!$D$11:$D$50,MATCH(D23,AC!$F$11:$F$50,0),0),MATCH(D23,OFFSET(AC!$F$11:$F$50,MATCH(D23,AC!$F$11:$F$50,0),0),0),1),INDEX(AC!$D$11:$D$50,MATCH(D23,AC!$F$11:$F$50,0),1))),"") -> Serviço 1 | C23: =IFERROR(VLOOKUP(B23,AC!$D$11:$E$50,2,0),"") -> R$ 1,500.00 | D23: =IFERROR(LARGE(AC!$F$11:$F$50,4),"") -> R$ 1,142.86 | E23: =IF(ISERROR( IF(B23="","",D23-C23)),"",IF(B23="","",D23-C23)) -> -R$ 357.14 | F23: Seu preço está 24 % mais barato. Vale aumentar? | I23: -0.24
B24: =IFERROR(IF(D24="","",IF(D24=D23,INDEX(OFFSET(AC!$D$11:$D$50,MATCH(D24,AC!$F$11:$F$50,0),0),MATCH(D24,OFFSET(AC!$F$11:$F$50,MATCH(D24,AC!$F$11:$F$50,0),0),0),1),INDEX(AC!$D$11:$D$50,MATCH(D24,AC!$F$11:$F$50,0),1))),"") -> Serviço 1 | C24: =IFERROR(VLOOKUP(B24,AC!$D$11:$E$50,2,0),"") -> R$ 1,500.00 | D24: =IFERROR(LARGE(AC!$F$11:$F$50,5),"") -> R$ 1,142.86 | E24: =IF(ISERROR( IF(B24="","",D24-C24)),"",IF(B24="","",D24-C24)) -> -R$ 357.14 | F24: Seu preço está 24 % mais barato. Vale aumentar? | I24: -0.24
B26: Top 10 Mix de Serviços - Receita Gerada
B27: Produtos | D27: Quantidade a ser vendida | E27: Receita gerada
B28: =IFERROR(IF(E28="","",IF(E28=E27,INDEX(OFFSET(Cad!$B$12:$B$511,MATCH(E28,Cad!$V$12:$V$511,0),0),MATCH(E28,OFFSET(Cad!$V$12:$V$511,MATCH(E28,Cad!$V$12:$V$511,0),0),0),1),INDEX(Cad!$B$12:$B$511,MATCH(E28,Cad!$V$12:$V$511,0),1))),"") -> Serviço 2 | D28: =IFERROR(IF(E28="","",IF(E28=E27,INDEX(OFFSET(Cad!$W$12:$W$511,MATCH(E28,Cad!$V$12:$V$511,0),0),MATCH(E28,OFFSET(Cad!$V$12:$V$511,MATCH(E28,Cad!$V$12:$V$511,0),0),0),1),INDEX(Cad!$W$12:$W$511,MATCH(E28,Cad!$V$12:$V$511,0),1))),"") -> 31 | E28: =IFERROR(IF(LARGE(Cad!$V$12:$V$511,F28)=0,"",LARGE(Cad!$V$12:$V$511,F28)),"") -> R$ 37,079.62 | F28: 1
B29: =IFERROR(IF(E29="","",IF(E29=E28,INDEX(OFFSET(Cad!$B$12:$B$511,MATCH(E29,Cad!$V$12:$V$511,0),0),MATCH(E29,OFFSET(Cad!$V$12:$V$511,MATCH(E29,Cad!$V$12:$V$511,0),0),0),1),INDEX(Cad!$B$12:$B$511,MATCH(E29,Cad!$V$12:$V$511,0),1))),"") -> Serviço 1 | D29: =IFERROR(IF(E29="","",IF(E29=E28,INDEX(OFFSET(Cad!$W$12:$W$511,MATCH(E29,Cad!$V$12:$V$511,0),0),MATCH(E29,OFFSET(Cad!$V$12:$V$511,MATCH(E29,Cad!$V$12:$V$511,0),0),0),1),INDEX(Cad!$W$12:$W$511,MATCH(E29,Cad!$V$12:$V$511,0),1))),"") -> 15 | E29: =IFERROR(IF(LARGE(Cad!$V$12:$V$511,F29)=0,"",LARGE(Cad!$V$12:$V$511,F29)),"") -> R$ 16,816.16 | F29: 2
B30: =IFERROR(IF(E30="","",IF(E30=E29,INDEX(OFFSET(Cad!$B$12:$B$511,MATCH(E30,Cad!$V$12:$V$511,0),0),MATCH(E30,OFFSET(Cad!$V$12:$V$511,MATCH(E30,Cad!$V$12:$V$511,0),0),0),1),INDEX(Cad!$B$12:$B$511,MATCH(E30,Cad!$V$12:$V$511,0),1))),"") ->  | D30: =IFERROR(IF(E30="","",IF(E30=E29,INDEX(OFFSET(Cad!$W$12:$W$511,MATCH(E30,Cad!$V$12:$V$511,0),0),MATCH(E30,OFFSET(Cad!$V$12:$V$511,MATCH(E30,Cad!$V$12:$V$511,0),0),0),1),INDEX(Cad!$W$12:$W$511,MATCH(E30,Cad!$V$12:$V$511,0),1))),"") ->  | E30: =IFERROR(IF(LARGE(Cad!$V$12:$V$511,F30)=0,"",LARGE(Cad!$V$12:$V$511,F30)),"") ->  | F30: 3
B31: =IFERROR(IF(E31="","",IF(E31=E30,INDEX(OFFSET(Cad!$B$12:$B$511,MATCH(E31,Cad!$V$12:$V$511,0),0),MATCH(E31,OFFSET(Cad!$V$12:$V$511,MATCH(E31,Cad!$V$12:$V$511,0),0),0),1),INDEX(Cad!$B$12:$B$511,MATCH(E31,Cad!$V$12:$V$511,0),1))),"") ->  | D31: =IFERROR(IF(E31="","",IF(E31=E30,INDEX(OFFSET(Cad!$W$12:$W$511,MATCH(E31,Cad!$V$12:$V$511,0),0),MATCH(E31,OFFSET(Cad!$V$12:$V$511,MATCH(E31,Cad!$V$12:$V$511,0),0),0),1),INDEX(Cad!$W$12:$W$511,MATCH(E31,Cad!$V$12:$V$511,0),1))),"") ->  | E31: =IFERROR(IF(LARGE(Cad!$V$12:$V$511,F31)=0,"",LARGE(Cad!$V$12:$V$511,F31)),"") ->  | F31: 4
B32: =IFERROR(IF(E32="","",IF(E32=E31,INDEX(OFFSET(Cad!$B$12:$B$511,MATCH(E32,Cad!$V$12:$V$511,0),0),MATCH(E32,OFFSET(Cad!$V$12:$V$511,MATCH(E32,Cad!$V$12:$V$511,0),0),0),1),INDEX(Cad!$B$12:$B$511,MATCH(E32,Cad!$V$12:$V$511,0),1))),"") ->  | D32: =IFERROR(IF(E32="","",IF(E32=E31,INDEX(OFFSET(Cad!$W$12:$W$511,MATCH(E32,Cad!$V$12:$V$511,0),0),MATCH(E32,OFFSET(Cad!$V$12:$V$511,MATCH(E32,Cad!$V$12:$V$511,0),0),0),1),INDEX(Cad!$W$12:$W$511,MATCH(E32,Cad!$V$12:$V$511,0),1))),"") ->  | E32: =IFERROR(IF(LARGE(Cad!$V$12:$V$511,F32)=0,"",LARGE(Cad!$V$12:$V$511,F32)),"") ->  | F32: 5
B33: =IFERROR(IF(E33="","",IF(E33=E32,INDEX(OFFSET(Cad!$B$12:$B$511,MATCH(E33,Cad!$V$12:$V$511,0),0),MATCH(E33,OFFSET(Cad!$V$12:$V$511,MATCH(E33,Cad!$V$12:$V$511,0),0),0),1),INDEX(Cad!$B$12:$B$511,MATCH(E33,Cad!$V$12:$V$511,0),1))),"") ->  | D33: =IFERROR(IF(E33="","",IF(E33=E32,INDEX(OFFSET(Cad!$W$12:$W$511,MATCH(E33,Cad!$V$12:$V$511,0),0),MATCH(E33,OFFSET(Cad!$V$12:$V$511,MATCH(E33,Cad!$V$12:$V$511,0),0),0),1),INDEX(Cad!$W$12:$W$511,MATCH(E33,Cad!$V$12:$V$511,0),1))),"") ->  | E33: =IFERROR(IF(LARGE(Cad!$V$12:$V$511,F33)=0,"",LARGE(Cad!$V$12:$V$511,F33)),"") ->  | F33: 6
B34: =IFERROR(IF(E34="","",IF(E34=E33,INDEX(OFFSET(Cad!$B$12:$B$511,MATCH(E34,Cad!$V$12:$V$511,0),0),MATCH(E34,OFFSET(Cad!$V$12:$V$511,MATCH(E34,Cad!$V$12:$V$511,0),0),0),1),INDEX(Cad!$B$12:$B$511,MATCH(E34,Cad!$V$12:$V$511,0),1))),"") ->  | D34: =IFERROR(IF(E34="","",IF(E34=E33,INDEX(OFFSET(Cad!$W$12:$W$511,MATCH(E34,Cad!$V$12:$V$511,0),0),MATCH(E34,OFFSET(Cad!$V$12:$V$511,MATCH(E34,Cad!$V$12:$V$511,0),0),0),1),INDEX(Cad!$W$12:$W$511,MATCH(E34,Cad!$V$12:$V$511,0),1))),"") ->  | E34: =IFERROR(IF(LARGE(Cad!$V$12:$V$511,F34)=0,"",LARGE(Cad!$V$12:$V$511,F34)),"") ->  | F34: 7
B35: =IFERROR(IF(E35="","",IF(E35=E34,INDEX(OFFSET(Cad!$B$12:$B$511,MATCH(E35,Cad!$V$12:$V$511,0),0),MATCH(E35,OFFSET(Cad!$V$12:$V$511,MATCH(E35,Cad!$V$12:$V$511,0),0),0),1),INDEX(Cad!$B$12:$B$511,MATCH(E35,Cad!$V$12:$V$511,0),1))),"") ->  | D35: =IFERROR(IF(E35="","",IF(E35=E34,INDEX(OFFSET(Cad!$W$12:$W$511,MATCH(E35,Cad!$V$12:$V$511,0),0),MATCH(E35,OFFSET(Cad!$V$12:$V$511,MATCH(E35,Cad!$V$12:$V$511,0),0),0),1),INDEX(Cad!$W$12:$W$511,MATCH(E35,Cad!$V$12:$V$511,0),1))),"") ->  | E35: =IFERROR(IF(LARGE(Cad!$V$12:$V$511,F35)=0,"",LARGE(Cad!$V$12:$V$511,F35)),"") ->  | F35: 8
B36: =IFERROR(IF(E36="","",IF(E36=E35,INDEX(OFFSET(Cad!$B$12:$B$511,MATCH(E36,Cad!$V$12:$V$511,0),0),MATCH(E36,OFFSET(Cad!$V$12:$V$511,MATCH(E36,Cad!$V$12:$V$511,0),0),0),1),INDEX(Cad!$B$12:$B$511,MATCH(E36,Cad!$V$12:$V$511,0),1))),"") ->  | D36: =IFERROR(IF(E36="","",IF(E36=E35,INDEX(OFFSET(Cad!$W$12:$W$511,MATCH(E36,Cad!$V$12:$V$511,0),0),MATCH(E36,OFFSET(Cad!$V$12:$V$511,MATCH(E36,Cad!$V$12:$V$511,0),0),0),1),INDEX(Cad!$W$12:$W$511,MATCH(E36,Cad!$V$12:$V$511,0),1))),"") ->  | E36: =IFERROR(IF(LARGE(Cad!$V$12:$V$511,F36)=0,"",LARGE(Cad!$V$12:$V$511,F36)),"") ->  | F36: 9
B37: =IFERROR(IF(E37="","",IF(E37=E36,INDEX(OFFSET(Cad!$B$12:$B$511,MATCH(E37,Cad!$V$12:$V$511,0),0),MATCH(E37,OFFSET(Cad!$V$12:$V$511,MATCH(E37,Cad!$V$12:$V$511,0),0),0),1),INDEX(Cad!$B$12:$B$511,MATCH(E37,Cad!$V$12:$V$511,0),1))),"") ->  | D37: =IFERROR(IF(E37="","",IF(E37=E36,INDEX(OFFSET(Cad!$W$12:$W$511,MATCH(E37,Cad!$V$12:$V$511,0),0),MATCH(E37,OFFSET(Cad!$V$12:$V$511,MATCH(E37,Cad!$V$12:$V$511,0),0),0),1),INDEX(Cad!$W$12:$W$511,MATCH(E37,Cad!$V$12:$V$511,0),1))),"") ->  | E37: =IFERROR(IF(LARGE(Cad!$V$12:$V$511,F37)=0,"",LARGE(Cad!$V$12:$V$511,F37)),"") ->  | F37: 10

Sheet GR
B10: Empresa: | C10: =Menu!G26 -> Empresa ABCDE
B11: Top 10 Mix de Serviços - Receita Gerada necessária para "Ponto de Equilíbrio"
G14: ="O serviço que mais gerou receita para atingir o ponto de equilíbrio foi: "&" "&'RC'!B28 -> O serviço que mais gerou receita para atingir o ponto de equilíbrio foi: Serviço 2
B25: Top 10 Mix de Serviços - Quantidade
G28: ="O serviço que tem mais participação no ponto de equilíbrio é "&GR_Dados!A3&"."&" "&" A quantidade vendida de "&GR_Dados!A3&" é de "&GR_Dados!E3&" unidades." -> O serviço que tem mais participação no ponto de equilíbrio é Serviço 2. A quantidade vendida de Serviço 2 é de 31 unidades.
B40: Top 10 Margem de Contribuição
G43: ="O serviço que tem o maior índice de margem de contribuição é "&GR_Dados!A16&"."&" "&" O IMC de "&GR_Dados!A16&" é de "&GR_Dados!C16*100&" %." -> O serviço que tem o maior índice de margem de contribuição é Serviço 1. O IMC de Serviço 1 é de 30 %.
B56: Top 10 Custos Fixos | N56: Custos Fixos: | O56: Lucro: | P56: custos maior que lucro | Q56: custo menor que lucro
N57: =PE!F12 -> 16030 | O57: =SUM(Cad!E12:E511)-'RC'!D15-'RC'!I16 -> 17758.57143 | P57: A soma dos seus custos diretos e custos fixos fazem com que eles sejam maiores que seu lucro. Significa que o lucro obtido não paga seus custos com o volume de vendas que foi estipulado. Dica: Faça uma revisão na operação do seu negócio com o intuito de reduzir todos os seus custos para se tornar mais competitivo sem deixar de obter lucro. | Q57: Parabéns! Seu lucro é maior que os seus custos fixos. Mantenha esse processo para não deixar que seus custos ultrapassem o seu lucro.
G58: =IF(N57>O57,P57,Q57) -> Parabéns! Seu lucro é maior que os seus custos fixos. Mantenha esse processo para não deixar que seus custos ultrapassem o seu lucro.
B72: Custos Diretos
G75: ="Os custos diretos são aqueles que variam de acordo com o volume de vendas. Sua média de custos diretos é de R$ "&GR_Dados!C48&" e o seu custo mais elevado está "&GR_Dados!D48*100&"% acima da média."&" "&"Dica: É muito comum esquecer de alguns itens dessa parte de custos diretos. Por isso, faça uma avaliação mais criteriosa para entender quais são os itens que ainda podem estar sendo esquecidos." -> Os custos diretos são aqueles que variam de acordo com o volume de vendas. Sua média de custos diretos é de R$ 820 e o seu custo mais elevado está 10% acima da média. Dica: É muito comum esquecer de alguns itens dessa parte de custos diretos. Por isso, faça uma avaliação mais criteriosa para entender quais são os itens que ainda podem estar sendo esquecidos.
B88: Análise dos Concorrentes
G91: ="Você tem "&GR_Dados!C52&" concorrentes analisados e seu preço médio está inferior à média de mercado. Isso pode ser um bom sinal, mas não é algo para se animar muito."&" "&"Dica:"&" "&"Existem muitas formas de se diferenciar em um negócio. Fatores como qualidade, posicionamento, localização geográfica (e outros fatores) são tão importantes quanto o preço. Faça uma avaliação para saber se o preço é a única diferenciação que você precisa." -> Você tem 5 concorrentes analisados e seu preço médio está inferior à média de mercado. Isso pode ser um bom sinal, mas não é algo para se animar muito. Dica: Existem muitas formas de se diferenciar em um negócio. Fatores como qualidade, posicionamento, localização geográfica (e outros fatores) são tão importantes quanto o preço. Faça uma avaliação para saber se o preço é a única diferenciação que você precisa.

Sheet GR_Dados
A1: Top 10 Mix de Serviços - quantidade
A2: Produtos | C2: Quantidade a ser vendida
A3: =IFERROR(IF(C3="","",IF(C3=C2,INDEX(OFFSET(Cad!$B$12:$B$511,MATCH(C3,Cad!$W$12:$W$511,0),0),MATCH(C3,OFFSET(Cad!$W$12:$W$511,MATCH(C3,Cad!$W$12:$W$511,0),0),0),1),INDEX(Cad!$B$12:$B$511,MATCH(C3,Cad!$W$12:$W$511,0),1))),"") -> Serviço 2 | C3: =IFERROR(IF(LARGE(Cad!$W$12:$W$511,D3)=0,"",LARGE(Cad!$W$12:$W$511,D3)),"") -> 31 | D3: 1 | E3: =IF(C3="","",ROUND(C3,0)) -> 31
A4: =IFERROR(IF(C4="","",IF(C4=C3,INDEX(OFFSET(Cad!$B$12:$B$511,MATCH(C4,Cad!$W$12:$W$511,0),0),MATCH(C4,OFFSET(Cad!$W$12:$W$511,MATCH(C4,Cad!$W$12:$W$511,0),0),0),1),INDEX(Cad!$B$12:$B$511,MATCH(C4,Cad!$W$12:$W$511,0),1))),"") -> Serviço 1 | C4: =IFERROR(IF(LARGE(Cad!$W$12:$W$511,D4)=0,"",LARGE(Cad!$W$12:$W$511,D4)),"") -> 15 | D4: 2 | E4: =IF(C4="","",ROUND(C4,0)) -> 15
A5: =IFERROR(IF(C5="","",IF(C5=C4,INDEX(OFFSET(Cad!$B$12:$B$511,MATCH(C5,Cad!$W$12:$W$511,0),0),MATCH(C5,OFFSET(Cad!$W$12:$W$511,MATCH(C5,Cad!$W$12:$W$511,0),0),0),1),INDEX(Cad!$B$12:$B$511,MATCH(C5,Cad!$W$12:$W$511,0),1))),"") ->  | C5: =IFERROR(IF(LARGE(Cad!$W$12:$W$511,D5)=0,"",LARGE(Cad!$W$12:$W$511,D5)),"") ->  | D5: 3
A6: =IFERROR(IF(C6="","",IF(C6=C5,INDEX(OFFSET(Cad!$B$12:$B$511,MATCH(C6,Cad!$W$12:$W$511,0),0),MATCH(C6,OFFSET(Cad!$W$12:$W$511,MATCH(C6,Cad!$W$12:$W$511,0),0),0),1),INDEX(Cad!$B$12:$B$511,MATCH(C6,Cad!$W$12:$W$511,0),1))),"") ->  | C6: =IFERROR(IF(LARGE(Cad!$W$12:$W$511,D6)=0,"",LARGE(Cad!$W$12:$W$511,D6)),"") ->  | D6: 4
A7: =IFERROR(IF(C7="","",IF(C7=C6,INDEX(OFFSET(Cad!$B$12:$B$511,MATCH(C7,Cad!$W$12:$W$511,0),0),MATCH(C7,OFFSET(Cad!$W$12:$W$511,MATCH(C7,Cad!$W$12:$W$511,0),0),0),1),INDEX(Cad!$B$12:$B$511,MATCH(C7,Cad!$W$12:$W$511,0),1))),"") ->  | C7: =IFERROR(IF(LARGE(Cad!$W$12:$W$511,D7)=0,"",LARGE(Cad!$W$12:$W$511,D7)),"") ->  | D7: 5
A8: =IFERROR(IF(C8="","",IF(C8=C7,INDEX(OFFSET(Cad!$B$12:$B$511,MATCH(C8,Cad!$W$12:$W$511,0),0),MATCH(C8,OFFSET(Cad!$W$12:$W$511,MATCH(C8,Cad!$W$12:$W$511,0),0),0),1),INDEX(Cad!$B$12:$B$511,MATCH(C8,Cad!$W$12:$W$511,0),1))),"") ->  | C8: =IFERROR(IF(LARGE(Cad!$W$12:$W$511,D8)=0,"",LARGE(Cad!$W$12:$W$511,D8)),"") ->  | D8: 6
A9: =IFERROR(IF(C9="","",IF(C9=C8,INDEX(OFFSET(Cad!$B$12:$B$511,MATCH(C9,Cad!$W$12:$W$511,0),0),MATCH(C9,OFFSET(Cad!$W$12:$W$511,MATCH(C9,Cad!$W$12:$W$511,0),0),0),1),INDEX(Cad!$B$12:$B$511,MATCH(C9,Cad!$W$12:$W$511,0),1))),"") ->  | C9: =IFERROR(IF(LARGE(Cad!$W$12:$W$511,D9)=0,"",LARGE(Cad!$W$12:$W$511,D9)),"") ->  | D9: 7
A10: =IFERROR(IF(C10="","",IF(C10=C9,INDEX(OFFSET(Cad!$B$12:$B$511,MATCH(C10,Cad!$W$12:$W$511,0),0),MATCH(C10,OFFSET(Cad!$W$12:$W$511,MATCH(C10,Cad!$W$12:$W$511,0),0),0),1),INDEX(Cad!$B$12:$B$511,MATCH(C10,Cad!$W$12:$W$511,0),1))),"") ->  | C10: =IFERROR(IF(LARGE(Cad!$W$12:$W$511,D10)=0,"",LARGE(Cad!$W$12:$W$511,D10)),"") ->  | D10: 8
A11: =IFERROR(IF(C11="","",IF(C11=C10,INDEX(OFFSET(Cad!$B$12:$B$511,MATCH(C11,Cad!$W$12:$W$511,0),0),MATCH(C11,OFFSET(Cad!$W$12:$W$511,MATCH(C11,Cad!$W$12:$W$511,0),0),0),1),INDEX(Cad!$B$12:$B$511,MATCH(C11,Cad!$W$12:$W$511,0),1))),"") ->  | C11: =IFERROR(IF(LARGE(Cad!$W$12:$W$511,D11)=0,"",LARGE(Cad!$W$12:$W$511,D11)),"") ->  | D11: 9
A12: =IFERROR(IF(C12="","",IF(C12=C11,INDEX(OFFSET(Cad!$B$12:$B$511,MATCH(C12,Cad!$W$12:$W$511,0),0),MATCH(C12,OFFSET(Cad!$W$12:$W$511,MATCH(C12,Cad!$W$12:$W$511,0),0),0),1),INDEX(Cad!$B$12:$B$511,MATCH(C12,Cad!$W$12:$W$511,0),1))),"") ->  | C12: =IFERROR(IF(LARGE(Cad!$W$12:$W$511,D12)=0,"",LARGE(Cad!$W$12:$W$511,D12)),"") ->  | D12: 10
A15: Serviços | C15: Margem de Contribuição
A16: =IFERROR(IF(C16="","",IF(C16=C15,INDEX(OFFSET(Cad!$B$12:$B$511,MATCH(C16,Cad!$U$12:$U$511,0),0),MATCH(C16,OFFSET(Cad!$U$12:$U$511,MATCH(C16,Cad!$U$12:$U$511,0),0),0),1),INDEX(Cad!$B$12:$B$511,MATCH(C16,Cad!$U$12:$U$511,0),1))),"") -> Serviço 1 | C16: =IFERROR(IF(LARGE(Cad!$U$12:$U$511,D16)=0,"",LARGE(Cad!$U$12:$U$511,D16)),"") -> 30% | D16: 1
A17: =IFERROR(IF(C17="","",IF(C17=C16,INDEX(OFFSET(Cad!$B$12:$B$511,MATCH(C17,Cad!$U$12:$U$511,0),0),MATCH(C17,OFFSET(Cad!$U$12:$U$511,MATCH(C17,Cad!$U$12:$U$511,0),0),0),1),INDEX(Cad!$B$12:$B$511,MATCH(C17,Cad!$U$12:$U$511,0),1))),"") ->  | C17: =IFERROR(IF(LARGE(Cad!$U$12:$U$511,D17)=0,"",LARGE(Cad!$U$12:$U$511,D17)),"") -> 30% | D17: 2
A18: =IFERROR(IF(C18="","",IF(C18=C17,INDEX(OFFSET(Cad!$B$12:$B$511,MATCH(C18,Cad!$U$12:$U$511,0),0),MATCH(C18,OFFSET(Cad!$U$12:$U$511,MATCH(C18,Cad!$U$12:$U$511,0),0),0),1),INDEX(Cad!$B$12:$B$511,MATCH(C18,Cad!$U$12:$U$511,0),1))),"") ->  | C18: =IFERROR(IF(LARGE(Cad!$U$12:$U$511,D18)=0,"",LARGE(Cad!$U$12:$U$511,D18)),"") ->  | D18: 3
A19: =IFERROR(IF(C19="","",IF(C19=C18,INDEX(OFFSET(Cad!$B$12:$B$511,MATCH(C19,Cad!$U$12:$U$511,0),0),MATCH(C19,OFFSET(Cad!$U$12:$U$511,MATCH(C19,Cad!$U$12:$U$511,0),0),0),1),INDEX(Cad!$B$12:$B$511,MATCH(C19,Cad!$U$12:$U$511,0),1))),"") ->  | C19: =IFERROR(IF(LARGE(Cad!$U$12:$U$511,D19)=0,"",LARGE(Cad!$U$12:$U$511,D19)),"") ->  | D19: 4
A20: =IFERROR(IF(C20="","",IF(C20=C19,INDEX(OFFSET(Cad!$B$12:$B$511,MATCH(C20,Cad!$U$12:$U$511,0),0),MATCH(C20,OFFSET(Cad!$U$12:$U$511,MATCH(C20,Cad!$U$12:$U$511,0),0),0),1),INDEX(Cad!$B$12:$B$511,MATCH(C20,Cad!$U$12:$U$511,0),1))),"") ->  | C20: =IFERROR(IF(LARGE(Cad!$U$12:$U$511,D20)=0,"",LARGE(Cad!$U$12:$U$511,D20)),"") ->  | D20: 5
A21: =IFERROR(IF(C21="","",IF(C21=C20,INDEX(OFFSET(Cad!$B$12:$B$511,MATCH(C21,Cad!$U$12:$U$511,0),0),MATCH(C21,OFFSET(Cad!$U$12:$U$511,MATCH(C21,Cad!$U$12:$U$511,0),0),0),1),INDEX(Cad!$B$12:$B$511,MATCH(C21,Cad!$U$12:$U$511,0),1))),"") ->  | C21: =IFERROR(IF(LARGE(Cad!$U$12:$U$511,D21)=0,"",LARGE(Cad!$U$12:$U$511,D21)),"") ->  | D21: 6
A22: =IFERROR(IF(C22="","",IF(C22=C21,INDEX(OFFSET(Cad!$B$12:$B$511,MATCH(C22,Cad!$U$12:$U$511,0),0),MATCH(C22,OFFSET(Cad!$U$12:$U$511,MATCH(C22,Cad!$U$12:$U$511,0),0),0),1),INDEX(Cad!$B$12:$B$511,MATCH(C22,Cad!$U$12:$U$511,0),1))),"") ->  | C22: =IFERROR(IF(LARGE(Cad!$U$12:$U$511,D22)=0,"",LARGE(Cad!$U$12:$U$511,D22)),"") ->  | D22: 7
A23: =IFERROR(IF(C23="","",IF(C23=C22,INDEX(OFFSET(Cad!$B$12:$B$511,MATCH(C23,Cad!$U$12:$U$511,0),0),MATCH(C23,OFFSET(Cad!$U$12:$U$511,MATCH(C23,Cad!$U$12:$U$511,0),0),0),1),INDEX(Cad!$B$12:$B$511,MATCH(C23,Cad!$U$12:$U$511,0),1))),"") ->  | C23: =IFERROR(IF(LARGE(Cad!$U$12:$U$511,D23)=0,"",LARGE(Cad!$U$12:$U$511,D23)),"") ->  | D23: 8
A24: =IFERROR(IF(C24="","",IF(C24=C23,INDEX(OFFSET(Cad!$B$12:$B$511,MATCH(C24,Cad!$U$12:$U$511,0),0),MATCH(C24,OFFSET(Cad!$U$12:$U$511,MATCH(C24,Cad!$U$12:$U$511,0),0),0),1),INDEX(Cad!$B$12:$B$511,MATCH(C24,Cad!$U$12:$U$511,0),1))),"") ->  | C24: =IFERROR(IF(LARGE(Cad!$U$12:$U$511,D24)=0,"",LARGE(Cad!$U$12:$U$511,D24)),"") ->  | D24: 9
A25: =IFERROR(IF(C25="","",IF(C25=C24,INDEX(OFFSET(Cad!$B$12:$B$511,MATCH(C25,Cad!$U$12:$U$511,0),0),MATCH(C25,OFFSET(Cad!$U$12:$U$511,MATCH(C25,Cad!$U$12:$U$511,0),0),0),1),INDEX(Cad!$B$12:$B$511,MATCH(C25,Cad!$U$12:$U$511,0),1))),"") ->  | C25: =IFERROR(IF(LARGE(Cad!$U$12:$U$511,D25)=0,"",LARGE(Cad!$U$12:$U$511,D25)),"") ->  | D25: 10
A29: Custos fixos | C29: Valor
A30: =IFERROR(IF(C30="","",IF(C30=C29,INDEX(OFFSET(Cad!$N$12:$N$51,MATCH(C30,Cad!$O$12:$O$51,0),0),MATCH(C30,OFFSET(Cad!$O$12:$O$51,MATCH(C30,Cad!$O$12:$O$51,0),0),0),1),INDEX(Cad!$N$12:$N$51,MATCH(C30,Cad!$O$12:$O$51,0),1))),"") -> Pró Labore e salários | C30: =IFERROR(IF(LARGE(Cad!$O$12:$O$51,D30)=0,"",LARGE(Cad!$O$12:$O$51,D30)),"") -> R$ 6,500 | D30: 1
A31: =IFERROR(IF(C31="","",IF(C31=C30,INDEX(OFFSET(Cad!$N$12:$N$51,MATCH(C31,Cad!$O$12:$O$51,0),0),MATCH(C31,OFFSET(Cad!$O$12:$O$51,MATCH(C31,Cad!$O$12:$O$51,0),0),0),1),INDEX(Cad!$N$12:$N$51,MATCH(C31,Cad!$O$12:$O$51,0),1))),"") -> Aluguel | C31: =IFERROR(IF(LARGE(Cad!$O$12:$O$51,D31)=0,"",LARGE(Cad!$O$12:$O$51,D31)),"") -> R$ 2,000 | D31: 2
A32: =IFERROR(IF(C32="","",IF(C32=C31,INDEX(OFFSET(Cad!$N$12:$N$51,MATCH(C32,Cad!$O$12:$O$51,0),0),MATCH(C32,OFFSET(Cad!$O$12:$O$51,MATCH(C32,Cad!$O$12:$O$51,0),0),0),1),INDEX(Cad!$N$12:$N$51,MATCH(C32,Cad!$O$12:$O$51,0),1))),"") -> Marketing | C32: =IFERROR(IF(LARGE(Cad!$O$12:$O$51,D32)=0,"",LARGE(Cad!$O$12:$O$51,D32)),"") -> R$ 2,000 | D32: 3
A33: =IFERROR(IF(C33="","",IF(C33=C32,INDEX(OFFSET(Cad!$N$12:$N$51,MATCH(C33,Cad!$O$12:$O$51,0),0),MATCH(C33,OFFSET(Cad!$O$12:$O$51,MATCH(C33,Cad!$O$12:$O$51,0),0),0),1),INDEX(Cad!$N$12:$N$51,MATCH(C33,Cad!$O$12:$O$51,0),1))),"") -> Outros Custos | C33: =IFERROR(IF(LARGE(Cad!$O$12:$O$51,D33)=0,"",LARGE(Cad!$O$12:$O$51,D33)),"") -> R$ 1,900 | D33: 4
A34: =IFERROR(IF(C34="","",IF(C34=C33,INDEX(OFFSET(Cad!$N$12:$N$51,MATCH(C34,Cad!$O$12:$O$51,0),0),MATCH(C34,OFFSET(Cad!$O$12:$O$51,MATCH(C34,Cad!$O$12:$O$51,0),0),0),1),INDEX(Cad!$N$12:$N$51,MATCH(C34,Cad!$O$12:$O$51,0),1))),"") -> Empréstimos | C34: =IFERROR(IF(LARGE(Cad!$O$12:$O$51,D34)=0,"",LARGE(Cad!$O$12:$O$51,D34)),"") -> R$ 1,350 | D34: 5
A35: =IFERROR(IF(C35="","",IF(C35=C34,INDEX(OFFSET(Cad!$N$12:$N$51,MATCH(C35,Cad!$O$12:$O$51,0),0),MATCH(C35,OFFSET(Cad!$O$12:$O$51,MATCH(C35,Cad!$O$12:$O$51,0),0),0),1),INDEX(Cad!$N$12:$N$51,MATCH(C35,Cad!$O$12:$O$51,0),1))),"") -> Legais e Jurídicos | C35: =IFERROR(IF(LARGE(Cad!$O$12:$O$51,D35)=0,"",LARGE(Cad!$O$12:$O$51,D35)),"") -> R$ 980 | D35: 6
A36: =IFERROR(IF(C36="","",IF(C36=C35,INDEX(OFFSET(Cad!$N$12:$N$51,MATCH(C36,Cad!$O$12:$O$51,0),0),MATCH(C36,OFFSET(Cad!$O$12:$O$51,MATCH(C36,Cad!$O$12:$O$51,0),0),0),1),INDEX(Cad!$N$12:$N$51,MATCH(C36,Cad!$O$12:$O$51,0),1))),"") -> Telefone e internet | C36: =IFERROR(IF(LARGE(Cad!$O$12:$O$51,D36)=0,"",LARGE(Cad!$O$12:$O$51,D36)),"") -> R$ 700 | D36: 7
A37: =IFERROR(IF(C37="","",IF(C37=C36,INDEX(OFFSET(Cad!$N$12:$N$51,MATCH(C37,Cad!$O$12:$O$51,0),0),MATCH(C37,OFFSET(Cad!$O$12:$O$51,MATCH(C37,Cad!$O$12:$O$51,0),0),0),1),INDEX(Cad!$N$12:$N$51,MATCH(C37,Cad!$O$12:$O$51,0),1))),"") -> Taxa de propriedade (águal e luz) | C37: =IFERROR(IF(LARGE(Cad!$O$12:$O$51,D37)=0,"",LARGE(Cad!$O$12:$O$51,D37)),"") -> R$ 600 | D37: 8
A38: =IFERROR(IF(C38="","",IF(C38=C37,INDEX(OFFSET(Cad!$N$12:$N$51,MATCH(C38,Cad!$O$12:$O$51,0),0),MATCH(C38,OFFSET(Cad!$O$12:$O$51,MATCH(C38,Cad!$O$12:$O$51,0),0),0),1),INDEX(Cad!$N$12:$N$51,MATCH(C38,Cad!$O$12:$O$51,0),1))),"") ->  | C38: =IFERROR(IF(LARGE(Cad!$O$12:$O$51,D38)=0,"",LARGE(Cad!$O$12:$O$51,D38)),"") ->  | D38: 9
A39: =IFERROR(IF(C39="","",IF(C39=C38,INDEX(OFFSET(Cad!$N$12:$N$51,MATCH(C39,Cad!$O$12:$O$51,0),0),MATCH(C39,OFFSET(Cad!$O$12:$O$51,MATCH(C39,Cad!$O$12:$O$51,0),0),0),1),INDEX(Cad!$N$12:$N$51,MATCH(C39,Cad!$O$12:$O$51,0),1))),"") ->  | C39: =IFERROR(IF(LARGE(Cad!$O$12:$O$51,D39)=0,"",LARGE(Cad!$O$12:$O$51,D39)),"") ->  | D39: 10
A43: Custos diretos | C43: Valor
A44: =IFERROR(IF(C44="","",IF(C44=C43,INDEX(OFFSET('RC'!$B$11:$B$14,MATCH(C44,'RC'!$D$11:$D$14,0),0),MATCH(C44,OFFSET('RC'!$D$11:$D$14,MATCH(C44,'RC'!$D$11:$D$14,0),0),0),1),INDEX('RC'!$B$11:$B$14,MATCH(C44,'RC'!$D$11:$D$14,0),1))),"") -> Outros gastos | C44: =IFERROR(IF(LARGE('RC'!$D$11:$E$14,D30)=0,"",LARGE('RC'!$D$11:$D$14,D30)),"") -> R$ 900 | D44: 1
A45: =IFERROR(IF(C45="","",IF(C45=C44,INDEX(OFFSET('RC'!$B$11:$B$14,MATCH(C45,'RC'!$D$11:$D$14,0),0),MATCH(C45,OFFSET('RC'!$D$11:$D$14,MATCH(C45,'RC'!$D$11:$D$14,0),0),0),1),INDEX('RC'!$B$11:$B$14,MATCH(C45,'RC'!$D$11:$D$14,0),1))),"") -> Materiais | C45: =IFERROR(IF(LARGE('RC'!$D$11:$E$14,D31)=0,"",LARGE('RC'!$D$11:$D$14,D31)),"") -> R$ 740 | D45: 2
A46: =IFERROR(IF(C46="","",IF(C46=C45,INDEX(OFFSET('RC'!$B$11:$B$14,MATCH(C46,'RC'!$D$11:$D$14,0),0),MATCH(C46,OFFSET('RC'!$D$11:$D$14,MATCH(C46,'RC'!$D$11:$D$14,0),0),0),1),INDEX('RC'!$B$11:$B$14,MATCH(C46,'RC'!$D$11:$D$14,0),1))),"") ->  | C46: =IFERROR(IF(LARGE('RC'!$D$11:$E$14,D32)=0,"",LARGE('RC'!$D$11:$D$14,D32)),"") ->  | D46: 3
A47: =IFERROR(IF(C47="","",IF(C47=C46,INDEX(OFFSET('RC'!$B$11:$B$14,MATCH(C47,'RC'!$D$11:$D$14,0),0),MATCH(C47,OFFSET('RC'!$D$11:$D$14,MATCH(C47,'RC'!$D$11:$D$14,0),0),0),1),INDEX('RC'!$B$11:$B$14,MATCH(C47,'RC'!$D$11:$D$14,0),1))),"") ->  | C47: =IFERROR(IF(LARGE('RC'!$D$11:$E$14,D33)=0,"",LARGE('RC'!$D$11:$D$14,D33)),"") ->  | D47: 4
C48: =AVERAGE(C44:C47) -> R$ 820 | D48: =ROUND(C44/C48-1,2) -> 10%
A52: Qtd de concorrentes | C52: =COUNTA(AC!$B$11:$B$60) -> 5

Sheet Instruções

Sheet BaseProdutos
A1: Cod. Reg. | B1: Serviço | C1: Mao de Obra | D1: A) Custo Materiais | E1: B) Total Custos Adicionais | F1: Impostos Recuperáveis | G1: Impostos Não Recuperáveis | H1: Fretes | I1: Seguros | J1: Substituição Tributária | K1: Outros Custos | L1: C) = A+B | M1: D) Índice de Composição do Preço (%) | N1: % Impostos Estaduais (ICMS) | O1: % Impostos Municipais (ISS) | P1: % Outros 1 | Q1: % Outros 2 | R1: % Comissões | S1: % Custo fixo | T1: % Margem de Lucro | U1: E) Taxa de Marcação Multiplicador | V1: F) Cálculo do Preço de Venda | W1: MP1 | X1: MP2 | Y1: MP3 | Z1: MP4 | AA1: MP5 | AB1: MP6 | AC1: MP7 | AD1: MP8 | AE1: MP9 | AF1: MP10 | AG1: MP11 | AH1: MP12 | AI1: MP13 | AJ1: MP14 | AK1: MP15 | AL1: Qtde1 | AM1: Qtde2 | AN1: Qtde3 | AO1: Qtde4 | AP1: Qtde5 | AQ1: Qtde6 | AR1: Qtde7 | AS1: Qtde8 | AT1: Qtde9 | AU1: Qtde10 | AV1: Qtde11 | AW1: Qtde12 | AX1: Qtde13 | AY1: Qtde14 | AZ1: Qtde15 | BA1: UnidMed1 | BB1: UnidMed2 | BC1: UnidMed3 | BD1: UnidMed4 | BE1: UnidMed5 | BF1: UnidMed6 | BG1: UnidMed7 | BH1: UnidMed8 | BI1: UnidMed9 | BJ1: UnidMed10 | BK1: UnidMed11 | BL1: UnidMed12 | BM1: UnidMed13 | BN1: UnidMed14 | BO1: UnidMed15 | BP1: ValorUnit1 | BQ1: ValorUnit2 | BR1: ValorUnit3 | BS1: ValorUnit4 | BT1: ValorUnit5 | BU1: ValorUnit6 | BV1: ValorUnit7 | BW1: ValorUnit8 | BX1: ValorUnit9 | BY1: ValorUnit10 | BZ1: ValorUnit11 | CA1: ValorUnit12 | CB1: ValorUnit13 | CC1: ValorUnit14 | CD1: ValorUnit15 | CE1: ValorTotal1 | CF1: ValorTotal2 | CG1: ValorTotal3 | CH1: ValorTotal4 | CI1: ValorTotal5 | CJ1: ValorTotal6 | CK1: ValorTotal7 | CL1: ValorTotal8 | CM1: ValorTotal9 | CN1: ValorTotal10 | CO1: ValorTotal11 | CP1: ValorTotal12 | CQ1: ValorTotal13 | CR1: ValorTotal14 | CS1: ValorTotal15
A2: 1 | B2: Serviço 1 | D2: =SUM(CE2:CS2) -> R$350.00 | E2: =SUM(F2:K2) -> R$450.00 | H2: R$150.00 | I2: R$300.00 | L2: =SUM(D2:E2) -> R$800.00 | M2: =SUM(N2:T2) -> 30 | S2: 10 | T2: 20 | U2: =(100)/(100-M2) -> 1.43 | V2: =L2*U2 -> R$1,142.86 | W2: Material 2 | X2: Material 4 | AL2: 20 | AM2: 5 | BA2: =IFERROR(VLOOKUP(W2,CadMP!$B:$D,2,0),"") -> UN | BB2: =IFERROR(VLOOKUP(X2,CadMP!$B:$D,2,0),"") -> UN | BC2: =IFERROR(VLOOKUP(Y2,CadMP!$B:$D,2,0),"") ->  | BD2: =IFERROR(VLOOKUP(Z2,CadMP!$B:$D,2,0),"") ->  | BE2: =IFERROR(VLOOKUP(AA2,CadMP!$B:$D,2,0),"") ->  | BF2: =IFERROR(VLOOKUP(AB2,CadMP!$B:$D,2,0),"") ->  | BG2: =IFERROR(VLOOKUP(AC2,CadMP!$B:$D,2,0),"") ->  | BH2: =IFERROR(VLOOKUP(AD2,CadMP!$B:$D,2,0),"") ->  | BI2: =IFERROR(VLOOKUP(AE2,CadMP!$B:$D,2,0),"") ->  | BJ2: =IFERROR(VLOOKUP(AF2,CadMP!$B:$D,2,0),"") ->  | BK2: =IFERROR(VLOOKUP(AG2,CadMP!$B:$D,2,0),"") ->  | BL2: =IFERROR(VLOOKUP(AH2,CadMP!$B:$D,2,0),"") ->  | BM2: =IFERROR(VLOOKUP(AI2,CadMP!$B:$D,2,0),"") ->  | BN2: =IFERROR(VLOOKUP(AJ2,CadMP!$B:$D,2,0),"") ->  | BO2: =IFERROR(VLOOKUP(AK2,CadMP!$B:$D,2,0),"") ->  | BP2: =IFERROR(VLOOKUP(W2,CadMP!$B:$D,3,0),"") -> R$10.00 | BQ2: =IFERROR(VLOOKUP(X2,CadMP!$B:$D,3,0),"") -> R$30.00 | BR2: =IFERROR(VLOOKUP(Y2,CadMP!$B:$D,3,0),"") ->  | BS2: =IFERROR(VLOOKUP(Z2,CadMP!$B:$D,3,0),"") ->  | BT2: =IFERROR(VLOOKUP(AA2,CadMP!$B:$D,3,0),"") ->  | BU2: =IFERROR(VLOOKUP(AB2,CadMP!$B:$D,3,0),"") ->  | BV2: =IFERROR(VLOOKUP(AC2,CadMP!$B:$D,3,0),"") ->  | BW2: =IFERROR(VLOOKUP(AD2,CadMP!$B:$D,3,0),"") ->  | BX2: =IFERROR(VLOOKUP(AE2,CadMP!$B:$D,3,0),"") ->  | BY2: =IFERROR(VLOOKUP(AF2,CadMP!$B:$D,3,0),"") ->  | BZ2: =IFERROR(VLOOKUP(AG2,CadMP!$B:$D,3,0),"") ->  | CA2: =IFERROR(VLOOKUP(AH2,CadMP!$B:$D,3,0),"") ->  | CB2: =IFERROR(VLOOKUP(AI2,CadMP!$B:$D,3,0),"") ->  | CC2: =IFERROR(VLOOKUP(AJ2,CadMP!$B:$D,3,0),"") ->  | CD2: =IFERROR(VLOOKUP(AK2,CadMP!$B:$D,3,0),"") ->  | CE2: =IFERROR(AL2*BP2,0) -> R$200.00 | CF2: =IFERROR(AM2*BQ2,0) -> R$150.00 | CG2: =IFERROR(AN2*BR2,0) -> 0 | CH2: =IFERROR(AO2*BS2,0) -> 0 | CI2: =IFERROR(AP2*BT2,0) -> 0 | CJ2: =IFERROR(AQ2*BU2,0) -> 0 | CK2: =IFERROR(AR2*BV2,0) -> 0 | CL2: =IFERROR(AS2*BW2,0) -> 0 | CM2: =IFERROR(AT2*BX2,0) -> 0 | CN2: =IFERROR(AU2*BY2,0) -> 0 | CO2: =IFERROR(AV2*BZ2,0) -> 0 | CP2: =IFERROR(AW2*CA2,0) -> 0 | CQ2: =IFERROR(AX2*CB2,0) -> 0 | CR2: =IFERROR(AY2*CC2,0) -> 0 | CS2: =IFERROR(AZ2*CD2,0) -> 0
A3: 2 | B3: Serviço 2 | D3: =SUM(CE3:CS3) -> R$390.00 | E3: =SUM(F3:K3) -> R$450.00 | H3: R$150.00 | I3: R$300.00 | L3: =SUM(D3:E3) -> R$840.00 | M3: =SUM(N3:T3) -> 30 | S3: 10 | T3: 20 | U3: =(100)/(100-M3) -> 1.43 | V3: =L3*U3 -> R$1,200.00 | W3: Material 2 | X3: Material 4 | Y3: Material 3 | AL3: 20 | AM3: 5 | AN3: 2 | BA3: =IFERROR(VLOOKUP(W3,CadMP!$B:$D,2,0),"") -> UN | BB3: =IFERROR(VLOOKUP(X3,CadMP!$B:$D,2,0),"") -> UN | BC3: =IFERROR(VLOOKUP(Y3,CadMP!$B:$D,2,0),"") -> UN | BD3: =IFERROR(VLOOKUP(Z3,CadMP!$B:$D,2,0),"") ->  | BE3: =IFERROR(VLOOKUP(AA3,CadMP!$B:$D,2,0),"") ->  | BF3: =IFERROR(VLOOKUP(AB3,CadMP!$B:$D,2,0),"") ->  | BG3: =IFERROR(VLOOKUP(AC3,CadMP!$B:$D,2,0),"") ->  | BH3: =IFERROR(VLOOKUP(AD3,CadMP!$B:$D,2,0),"") ->  | BI3: =IFERROR(VLOOKUP(AE3,CadMP!$B:$D,2,0),"") ->  | BJ3: =IFERROR(VLOOKUP(AF3,CadMP!$B:$D,2,0),"") ->  | BK3: =IFERROR(VLOOKUP(AG3,CadMP!$B:$D,2,0),"") ->  | BL3: =IFERROR(VLOOKUP(AH3,CadMP!$B:$D,2,0),"") ->  | BM3: =IFERROR(VLOOKUP(AI3,CadMP!$B:$D,2,0),"") ->  | BN3: =IFERROR(VLOOKUP(AJ3,CadMP!$B:$D,2,0),"") ->  | BO3: =IFERROR(VLOOKUP(AK3,CadMP!$B:$D,2,0),"") ->  | BP3: =IFERROR(VLOOKUP(W3,CadMP!$B:$D,3,0),"") -> R$10.00 | BQ3: =IFERROR(VLOOKUP(X3,CadMP!$B:$D,3,0),"") -> R$30.00 | BR3: =IFERROR(VLOOKUP(Y3,CadMP!$B:$D,3,0),"") -> R$20.00 | BS3: =IFERROR(VLOOKUP(Z3,CadMP!$B:$D,3,0),"") ->  | BT3: =IFERROR(VLOOKUP(AA3,CadMP!$B:$D,3,0),"") ->  | BU3: =IFERROR(VLOOKUP(AB3,CadMP!$B:$D,3,0),"") ->  | BV3: =IFERROR(VLOOKUP(AC3,CadMP!$B:$D,3,0),"") ->  | BW3: =IFERROR(VLOOKUP(AD3,CadMP!$B:$D,3,0),"") ->  | BX3: =IFERROR(VLOOKUP(AE3,CadMP!$B:$D,3,0),"") ->  | BY3: =IFERROR(VLOOKUP(AF3,CadMP!$B:$D,3,0),"") ->  | BZ3: =IFERROR(VLOOKUP(AG3,CadMP!$B:$D,3,0),"") ->  | CA3: =IFERROR(VLOOKUP(AH3,CadMP!$B:$D,3,0),"") ->  | CB3: =IFERROR(VLOOKUP(AI3,CadMP!$B:$D,3,0),"") ->  | CC3: =IFERROR(VLOOKUP(AJ3,CadMP!$B:$D,3,0),"") ->  | CD3: =IFERROR(VLOOKUP(AK3,CadMP!$B:$D,3,0),"") ->  | CE3: =IFERROR(AL3*BP3,0) -> R$200.00 | CF3: =IFERROR(AM3*BQ3,0) -> R$150.00 | CG3: =IFERROR(AN3*BR3,0) -> R$40.00 | CH3: =IFERROR(AO3*BS3,0) -> 0 | CI3: =IFERROR(AP3*BT3,0) -> 0 | CJ3: =IFERROR(AQ3*BU3,0) -> 0 | CK3: =IFERROR(AR3*BV3,0) -> 0 | CL3: =IFERROR(AS3*BW3,0) -> 0 | CM3: =IFERROR(AT3*BX3,0) -> 0 | CN3: =IFERROR(AU3*BY3,0) -> 0 | CO3: =IFERROR(AV3*BZ3,0) -> 0 | CP3: =IFERROR(AW3*CA3,0) -> 0 | CQ3: =IFERROR(AX3*CB3,0) -> 0 | CR3: =IFERROR(AY3*CC3,0) -> 0 | CS3: =IFERROR(AZ3*CD3,0) -> 0
A4: 3 | D4: 0 | E4: 0 | L4: 0 | M4: 0 | U4: 1.00 | V4: 0 | BA4: =IFERROR(VLOOKUP(W4,CadMP!$B:$D,2,0),"") ->  | BB4: =IFERROR(VLOOKUP(X4,CadMP!$B:$D,2,0),"") ->  | BC4: =IFERROR(VLOOKUP(Y4,CadMP!$B:$D,2,0),"") ->  | BD4: =IFERROR(VLOOKUP(Z4,CadMP!$B:$D,2,0),"") ->  | BE4: =IFERROR(VLOOKUP(AA4,CadMP!$B:$D,2,0),"") ->  | BF4: =IFERROR(VLOOKUP(AB4,CadMP!$B:$D,2,0),"") ->  | BG4: =IFERROR(VLOOKUP(AC4,CadMP!$B:$D,2,0),"") ->  | BH4: =IFERROR(VLOOKUP(AD4,CadMP!$B:$D,2,0),"") ->  | BI4: =IFERROR(VLOOKUP(AE4,CadMP!$B:$D,2,0),"") ->  | BJ4: =IFERROR(VLOOKUP(AF4,CadMP!$B:$D,2,0),"") ->  | BK4: =IFERROR(VLOOKUP(AG4,CadMP!$B:$D,2,0),"") ->  | BL4: =IFERROR(VLOOKUP(AH4,CadMP!$B:$D,2,0),"") ->  | BM4: =IFERROR(VLOOKUP(AI4,CadMP!$B:$D,2,0),"") ->  | BN4: =IFERROR(VLOOKUP(AJ4,CadMP!$B:$D,2,0),"") ->  | BO4: =IFERROR(VLOOKUP(AK4,CadMP!$B:$D,2,0),"") ->  | BP4: =IFERROR(VLOOKUP(W4,CadMP!$B:$D,3,0),"") ->  | BQ4: =IFERROR(VLOOKUP(X4,CadMP!$B:$D,3,0),"") ->  | BR4: =IFERROR(VLOOKUP(Y4,CadMP!$B:$D,3,0),"") ->  | BS4: =IFERROR(VLOOKUP(Z4,CadMP!$B:$D,3,0),"") ->  | BT4: =IFERROR(VLOOKUP(AA4,CadMP!$B:$D,3,0),"") ->  | BU4: =IFERROR(VLOOKUP(AB4,CadMP!$B:$D,3,0),"") ->  | BV4: =IFERROR(VLOOKUP(AC4,CadMP!$B:$D,3,0),"") ->  | BW4: =IFERROR(VLOOKUP(AD4,CadMP!$B:$D,3,0),"") ->  | BX4: =IFERROR(VLOOKUP(AE4,CadMP!$B:$D,3,0),"") ->  | BY4: =IFERROR(VLOOKUP(AF4,CadMP!$B:$D,3,0),"") ->  | BZ4: =IFERROR(VLOOKUP(AG4,CadMP!$B:$D,3,0),"") ->  | CA4: =IFERROR(VLOOKUP(AH4,CadMP!$B:$D,3,0),"") ->  | CB4: =IFERROR(VLOOKUP(AI4,CadMP!$B:$D,3,0),"") ->  | CC4: =IFERROR(VLOOKUP(AJ4,CadMP!$B:$D,3,0),"") ->  | CD4: =IFERROR(VLOOKUP(AK4,CadMP!$B:$D,3,0),"") ->  | CE4: 0 | CF4: 0 | CG4: 0 | CH4: 0 | CI4: 0 | CJ4: 0 | CK4: 0 | CL4: 0 | CM4: 0 | CN4: 0 | CO4: 0 | CP4: 0 | CQ4: 0 | CR4: 0 | CS4: 0
A5: 4 | D5: 0 | E5: 0 | L5: 0 | M5: 0 | U5: 1.00 | V5: 0 | BA5: =IFERROR(VLOOKUP(W5,CadMP!$B:$D,2,0),"") ->  | BB5: =IFERROR(VLOOKUP(X5,CadMP!$B:$D,2,0),"") ->  | BC5: =IFERROR(VLOOKUP(Y5,CadMP!$B:$D,2,0),"") ->  | BD5: =IFERROR(VLOOKUP(Z5,CadMP!$B:$D,2,0),"") ->  | BE5: =IFERROR(VLOOKUP(AA5,CadMP!$B:$D,2,0),"") ->  | BF5: =IFERROR(VLOOKUP(AB5,CadMP!$B:$D,2,0),"") ->  | BG5: =IFERROR(VLOOKUP(AC5,CadMP!$B:$D,2,0),"") ->  | BH5: =IFERROR(VLOOKUP(AD5,CadMP!$B:$D,2,0),"") ->  | BI5: =IFERROR(VLOOKUP(AE5,CadMP!$B:$D,2,0),"") ->  | BJ5: =IFERROR(VLOOKUP(AF5,CadMP!$B:$D,2,0),"") ->  | BK5: =IFERROR(VLOOKUP(AG5,CadMP!$B:$D,2,0),"") ->  | BL5: =IFERROR(VLOOKUP(AH5,CadMP!$B:$D,2,0),"") ->  | BM5: =IFERROR(VLOOKUP(AI5,CadMP!$B:$D,2,0),"") ->  | BN5: =IFERROR(VLOOKUP(AJ5,CadMP!$B:$D,2,0),"") ->  | BO5: =IFERROR(VLOOKUP(AK5,CadMP!$B:$D,2,0),"") ->  | BP5: =IFERROR(VLOOKUP(W5,CadMP!$B:$D,3,0),"") ->  | BQ5: =IFERROR(VLOOKUP(X5,CadMP!$B:$D,3,0),"") ->  | BR5: =IFERROR(VLOOKUP(Y5,CadMP!$B:$D,3,0),"") ->  | BS5: =IFERROR(VLOOKUP(Z5,CadMP!$B:$D,3,0),"") ->  | BT5: =IFERROR(VLOOKUP(AA5,CadMP!$B:$D,3,0),"") ->  | BU5: =IFERROR(VLOOKUP(AB5,CadMP!$B:$D,3,0),"") ->  | BV5: =IFERROR(VLOOKUP(AC5,CadMP!$B:$D,3,0),"") ->  | BW5: =IFERROR(VLOOKUP(AD5,CadMP!$B:$D,3,0),"") ->  | BX5: =IFERROR(VLOOKUP(AE5,CadMP!$B:$D,3,0),"") ->  | BY5: =IFERROR(VLOOKUP(AF5,CadMP!$B:$D,3,0),"") ->  | BZ5: =IFERROR(VLOOKUP(AG5,CadMP!$B:$D,3,0),"") ->  | CA5: =IFERROR(VLOOKUP(AH5,CadMP!$B:$D,3,0),"") ->  | CB5: =IFERROR(VLOOKUP(AI5,CadMP!$B:$D,3,0),"") ->  | CC5: =IFERROR(VLOOKUP(AJ5,CadMP!$B:$D,3,0),"") ->  | CD5: =IFERROR(VLOOKUP(AK5,CadMP!$B:$D,3,0),"") ->  | CE5: 0 | CF5: 0 | CG5: 0 | CH5: 0 | CI5: 0 | CJ5: 0 | CK5: 0 | CL5: 0 | CM5: 0 | CN5: 0 | CO5: 0 | CP5: 0 | CQ5: 0 | CR5: 0 | CS5: 0
A6: 5 | D6: 0 | E6: 0 | L6: 0 | M6: 0 | U6: 1.00 | V6: 0 | BA6: =IFERROR(VLOOKUP(W6,CadMP!$B:$D,2,0),"") ->  | BB6: =IFERROR(VLOOKUP(X6,CadMP!$B:$D,2,0),"") ->  | BC6: =IFERROR(VLOOKUP(Y6,CadMP!$B:$D,2,0),"") ->  | BD6: =IFERROR(VLOOKUP(Z6,CadMP!$B:$D,2,0),"") ->  | BE6: =IFERROR(VLOOKUP(AA6,CadMP!$B:$D,2,0),"") ->  | BF6: =IFERROR(VLOOKUP(AB6,CadMP!$B:$D,2,0),"") ->  | BG6: =IFERROR(VLOOKUP(AC6,CadMP!$B:$D,2,0),"") ->  | BH6: =IFERROR(VLOOKUP(AD6,CadMP!$B:$D,2,0),"") ->  | BI6: =IFERROR(VLOOKUP(AE6,CadMP!$B:$D,2,0),"") ->  | BJ6: =IFERROR(VLOOKUP(AF6,CadMP!$B:$D,2,0),"") ->  | BK6: =IFERROR(VLOOKUP(AG6,CadMP!$B:$D,2,0),"") ->  | BL6: =IFERROR(VLOOKUP(AH6,CadMP!$B:$D,2,0),"") ->  | BM6: =IFERROR(VLOOKUP(AI6,CadMP!$B:$D,2,0),"") ->  | BN6: =IFERROR(VLOOKUP(AJ6,CadMP!$B:$D,2,0),"") ->  | BO6: =IFERROR(VLOOKUP(AK6,CadMP!$B:$D,2,0),"") ->  | BP6: =IFERROR(VLOOKUP(W6,CadMP!$B:$D,3,0),"") ->  | BQ6: =IFERROR(VLOOKUP(X6,CadMP!$B:$D,3,0),"") ->  | BR6: =IFERROR(VLOOKUP(Y6,CadMP!$B:$D,3,0),"") ->  | BS6: =IFERROR(VLOOKUP(Z6,CadMP!$B:$D,3,0),"") ->  | BT6: =IFERROR(VLOOKUP(AA6,CadMP!$B:$D,3,0),"") ->  | BU6: =IFERROR(VLOOKUP(AB6,CadMP!$B:$D,3,0),"") ->  | BV6: =IFERROR(VLOOKUP(AC6,CadMP!$B:$D,3,0),"") ->  | BW6: =IFERROR(VLOOKUP(AD6,CadMP!$B:$D,3,0),"") ->  | BX6: =IFERROR(VLOOKUP(AE6,CadMP!$B:$D,3,0),"") ->  | BY6: =IFERROR(VLOOKUP(AF6,CadMP!$B:$D,3,0),"") ->  | BZ6: =IFERROR(VLOOKUP(AG6,CadMP!$B:$D,3,0),"") ->  | CA6: =IFERROR(VLOOKUP(AH6,CadMP!$B:$D,3,0),"") ->  | CB6: =IFERROR(VLOOKUP(AI6,CadMP!$B:$D,3,0),"") ->  | CC6: =IFERROR(VLOOKUP(AJ6,CadMP!$B:$D,3,0),"") ->  | CD6: =IFERROR(VLOOKUP(AK6,CadMP!$B:$D,3,0),"") ->  | CE6: 0 | CF6: 0 | CG6: 0 | CH6: 0 | CI6: 0 | CJ6: 0 | CK6: 0 | CL6: 0 | CM6: 0 | CN6: 0 | CO6: 0 | CP6: 0 | CQ6: 0 | CR6: 0 | CS6: 0
A7: 6 | D7: 0 | E7: 0 | L7: 0 | M7: 0 | U7: 1.00 | V7: 0 | BA7: =IFERROR(VLOOKUP(W7,CadMP!$B:$D,2,0),"") ->  | BB7: =IFERROR(VLOOKUP(X7,CadMP!$B:$D,2,0),"") ->  | BC7: =IFERROR(VLOOKUP(Y7,CadMP!$B:$D,2,0),"") ->  | BD7: =IFERROR(VLOOKUP(Z7,CadMP!$B:$D,2,0),"") ->  | BE7: =IFERROR(VLOOKUP(AA7,CadMP!$B:$D,2,0),"") ->  | BF7: =IFERROR(VLOOKUP(AB7,CadMP!$B:$D,2,0),"") ->  | BG7: =IFERROR(VLOOKUP(AC7,CadMP!$B:$D,2,0),"") ->  | BH7: =IFERROR(VLOOKUP(AD7,CadMP!$B:$D,2,0),"") ->  | BI7: =IFERROR(VLOOKUP(AE7,CadMP!$B:$D,2,0),"") ->  | BJ7: =IFERROR(VLOOKUP(AF7,CadMP!$B:$D,2,0),"") ->  | BK7: =IFERROR(VLOOKUP(AG7,CadMP!$B:$D,2,0),"") ->  | BL7: =IFERROR(VLOOKUP(AH7,CadMP!$B:$D,2,0),"") ->  | BM7: =IFERROR(VLOOKUP(AI7,CadMP!$B:$D,2,0),"") ->  | BN7: =IFERROR(VLOOKUP(AJ7,CadMP!$B:$D,2,0),"") ->  | BO7: =IFERROR(VLOOKUP(AK7,CadMP!$B:$D,2,0),"") ->  | BP7: =IFERROR(VLOOKUP(W7,CadMP!$B:$D,3,0),"") ->  | BQ7: =IFERROR(VLOOKUP(X7,CadMP!$B:$D,3,0),"") ->  | BR7: =IFERROR(VLOOKUP(Y7,CadMP!$B:$D,3,0),"") ->  | BS7: =IFERROR(VLOOKUP(Z7,CadMP!$B:$D,3,0),"") ->  | BT7: =IFERROR(VLOOKUP(AA7,CadMP!$B:$D,3,0),"") ->  | BU7: =IFERROR(VLOOKUP(AB7,CadMP!$B:$D,3,0),"") ->  | BV7: =IFERROR(VLOOKUP(AC7,CadMP!$B:$D,3,0),"") ->  | BW7: =IFERROR(VLOOKUP(AD7,CadMP!$B:$D,3,0),"") ->  | BX7: =IFERROR(VLOOKUP(AE7,CadMP!$B:$D,3,0),"") ->  | BY7: =IFERROR(VLOOKUP(AF7,CadMP!$B:$D,3,0),"") ->  | BZ7: =IFERROR(VLOOKUP(AG7,CadMP!$B:$D,3,0),"") ->  | CA7: =IFERROR(VLOOKUP(AH7,CadMP!$B:$D,3,0),"") ->  | CB7: =IFERROR(VLOOKUP(AI7,CadMP!$B:$D,3,0),"") ->  | CC7: =IFERROR(VLOOKUP(AJ7,CadMP!$B:$D,3,0),"") ->  | CD7: =IFERROR(VLOOKUP(AK7,CadMP!$B:$D,3,0),"") ->  | CE7: 0 | CF7: 0 | CG7: 0 | CH7: 0 | CI7: 0 | CJ7: 0 | CK7: 0 | CL7: 0 | CM7: 0 | CN7: 0 | CO7: 0 | CP7: 0 | CQ7: 0 | CR7: 0 | CS7: 0
A8: 7 | D8: 0 | E8: 0 | L8: 0 | M8: 0 | U8: 1.00 | V8: 0 | BA8: =IFERROR(VLOOKUP(W8,CadMP!$B:$D,2,0),"") ->  | BB8: =IFERROR(VLOOKUP(X8,CadMP!$B:$D,2,0),"") ->  | BC8: =IFERROR(VLOOKUP(Y8,CadMP!$B:$D,2,0),"") ->  | BD8: =IFERROR(VLOOKUP(Z8,CadMP!$B:$D,2,0),"") ->  | BE8: =IFERROR(VLOOKUP(AA8,CadMP!$B:$D,2,0),"") ->  | BF8: =IFERROR(VLOOKUP(AB8,CadMP!$B:$D,2,0),"") ->  | BG8: =IFERROR(VLOOKUP(AC8,CadMP!$B:$D,2,0),"") ->  | BH8: =IFERROR(VLOOKUP(AD8,CadMP!$B:$D,2,0),"") ->  | BI8: =IFERROR(VLOOKUP(AE8,CadMP!$B:$D,2,0),"") ->  | BJ8: =IFERROR(VLOOKUP(AF8,CadMP!$B:$D,2,0),"") ->  | BK8: =IFERROR(VLOOKUP(AG8,CadMP!$B:$D,2,0),"") ->  | BL8: =IFERROR(VLOOKUP(AH8,CadMP!$B:$D,2,0),"") ->  | BM8: =IFERROR(VLOOKUP(AI8,CadMP!$B:$D,2,0),"") ->  | BN8: =IFERROR(VLOOKUP(AJ8,CadMP!$B:$D,2,0),"") ->  | BO8: =IFERROR(VLOOKUP(AK8,CadMP!$B:$D,2,0),"") ->  | BP8: =IFERROR(VLOOKUP(W8,CadMP!$B:$D,3,0),"") ->  | BQ8: =IFERROR(VLOOKUP(X8,CadMP!$B:$D,3,0),"") ->  | BR8: =IFERROR(VLOOKUP(Y8,CadMP!$B:$D,3,0),"") ->  | BS8: =IFERROR(VLOOKUP(Z8,CadMP!$B:$D,3,0),"") ->  | BT8: =IFERROR(VLOOKUP(AA8,CadMP!$B:$D,3,0),"") ->  | BU8: =IFERROR(VLOOKUP(AB8,CadMP!$B:$D,3,0),"") ->  | BV8: =IFERROR(VLOOKUP(AC8,CadMP!$B:$D,3,0),"") ->  | BW8: =IFERROR(VLOOKUP(AD8,CadMP!$B:$D,3,0),"") ->  | BX8: =IFERROR(VLOOKUP(AE8,CadMP!$B:$D,3,0),"") ->  | BY8: =IFERROR(VLOOKUP(AF8,CadMP!$B:$D,3,0),"") ->  | BZ8: =IFERROR(VLOOKUP(AG8,CadMP!$B:$D,3,0),"") ->  | CA8: =IFERROR(VLOOKUP(AH8,CadMP!$B:$D,3,0),"") ->  | CB8: =IFERROR(VLOOKUP(AI8,CadMP!$B:$D,3,0),"") ->  | CC8: =IFERROR(VLOOKUP(AJ8,CadMP!$B:$D,3,0),"") ->  | CD8: =IFERROR(VLOOKUP(AK8,CadMP!$B:$D,3,0),"") ->  | CE8: 0 | CF8: 0 | CG8: 0 | CH8: 0 | CI8: 0 | CJ8: 0 | CK8: 0 | CL8: 0 | CM8: 0 | CN8: 0 | CO8: 0 | CP8: 0 | CQ8: 0 | CR8: 0 | CS8: 0
A9: 8 | D9: 0 | E9: 0 | L9: 0 | M9: 0 | U9: 1.00 | V9: 0 | BA9: =IFERROR(VLOOKUP(W9,CadMP!$B:$D,2,0),"") ->  | BB9: =IFERROR(VLOOKUP(X9,CadMP!$B:$D,2,0),"") ->  | BC9: =IFERROR(VLOOKUP(Y9,CadMP!$B:$D,2,0),"") ->  | BD9: =IFERROR(VLOOKUP(Z9,CadMP!$B:$D,2,0),"") ->  | BE9: =IFERROR(VLOOKUP(AA9,CadMP!$B:$D,2,0),"") ->  | BF9: =IFERROR(VLOOKUP(AB9,CadMP!$B:$D,2,0),"") ->  | BG9: =IFERROR(VLOOKUP(AC9,CadMP!$B:$D,2,0),"") ->  | BH9: =IFERROR(VLOOKUP(AD9,CadMP!$B:$D,2,0),"") ->  | BI9: =IFERROR(VLOOKUP(AE9,CadMP!$B:$D,2,0),"") ->  | BJ9: =IFERROR(VLOOKUP(AF9,CadMP!$B:$D,2,0),"") ->  | BK9: =IFERROR(VLOOKUP(AG9,CadMP!$B:$D,2,0),"") ->  | BL9: =IFERROR(VLOOKUP(AH9,CadMP!$B:$D,2,0),"") ->  | BM9: =IFERROR(VLOOKUP(AI9,CadMP!$B:$D,2,0),"") ->  | BN9: =IFERROR(VLOOKUP(AJ9,CadMP!$B:$D,2,0),"") ->  | BO9: =IFERROR(VLOOKUP(AK9,CadMP!$B:$D,2,0),"") ->  | BP9: =IFERROR(VLOOKUP(W9,CadMP!$B:$D,3,0),"") ->  | BQ9: =IFERROR(VLOOKUP(X9,CadMP!$B:$D,3,0),"") ->  | BR9: =IFERROR(VLOOKUP(Y9,CadMP!$B:$D,3,0),"") ->  | BS9: =IFERROR(VLOOKUP(Z9,CadMP!$B:$D,3,0),"") ->  | BT9: =IFERROR(VLOOKUP(AA9,CadMP!$B:$D,3,0),"") ->  | BU9: =IFERROR(VLOOKUP(AB9,CadMP!$B:$D,3,0),"") ->  | BV9: =IFERROR(VLOOKUP(AC9,CadMP!$B:$D,3,0),"") ->  | BW9: =IFERROR(VLOOKUP(AD9,CadMP!$B:$D,3,0),"") ->  | BX9: =IFERROR(VLOOKUP(AE9,CadMP!$B:$D,3,0),"") ->  | BY9: =IFERROR(VLOOKUP(AF9,CadMP!$B:$D,3,0),"") ->  | BZ9: =IFERROR(VLOOKUP(AG9,CadMP!$B:$D,3,0),"") ->  | CA9: =IFERROR(VLOOKUP(AH9,CadMP!$B:$D,3,0),"") ->  | CB9: =IFERROR(VLOOKUP(AI9,CadMP!$B:$D,3,0),"") ->  | CC9: =IFERROR(VLOOKUP(AJ9,CadMP!$B:$D,3,0),"") ->  | CD9: =IFERROR(VLOOKUP(AK9,CadMP!$B:$D,3,0),"") ->  | CE9: 0 | CF9: 0 | CG9: 0 | CH9: 0 | CI9: 0 | CJ9: 0 | CK9: 0 | CL9: 0 | CM9: 0 | CN9: 0 | CO9: 0 | CP9: 0 | CQ9: 0 | CR9: 0 | CS9: 0
A10: 9 | D10: 0 | E10: 0 | L10: 0 | M10: 0 | U10: 1.00 | V10: 0 | BA10: =IFERROR(VLOOKUP(W10,CadMP!$B:$D,2,0),"") ->  | BB10: =IFERROR(VLOOKUP(X10,CadMP!$B:$D,2,0),"") ->  | BC10: =IFERROR(VLOOKUP(Y10,CadMP!$B:$D,2,0),"") ->  | BD10: =IFERROR(VLOOKUP(Z10,CadMP!$B:$D,2,0),"") ->  | BE10: =IFERROR(VLOOKUP(AA10,CadMP!$B:$D,2,0),"") ->  | BF10: =IFERROR(VLOOKUP(AB10,CadMP!$B:$D,2,0),"") ->  | BG10: =IFERROR(VLOOKUP(AC10,CadMP!$B:$D,2,0),"") ->  | BH10: =IFERROR(VLOOKUP(AD10,CadMP!$B:$D,2,0),"") ->  | BI10: =IFERROR(VLOOKUP(AE10,CadMP!$B:$D,2,0),"") ->  | BJ10: =IFERROR(VLOOKUP(AF10,CadMP!$B:$D,2,0),"") ->  | BK10: =IFERROR(VLOOKUP(AG10,CadMP!$B:$D,2,0),"") ->  | BL10: =IFERROR(VLOOKUP(AH10,CadMP!$B:$D,2,0),"") ->  | BM10: =IFERROR(VLOOKUP(AI10,CadMP!$B:$D,2,0),"") ->  | BN10: =IFERROR(VLOOKUP(AJ10,CadMP!$B:$D,2,0),"") ->  | BO10: =IFERROR(VLOOKUP(AK10,CadMP!$B:$D,2,0),"") ->  | BP10: =IFERROR(VLOOKUP(W10,CadMP!$B:$D,3,0),"") ->  | BQ10: =IFERROR(VLOOKUP(X10,CadMP!$B:$D,3,0),"") ->  | BR10: =IFERROR(VLOOKUP(Y10,CadMP!$B:$D,3,0),"") ->  | BS10: =IFERROR(VLOOKUP(Z10,CadMP!$B:$D,3,0),"") ->  | BT10: =IFERROR(VLOOKUP(AA10,CadMP!$B:$D,3,0),"") ->  | BU10: =IFERROR(VLOOKUP(AB10,CadMP!$B:$D,3,0),"") ->  | BV10: =IFERROR(VLOOKUP(AC10,CadMP!$B:$D,3,0),"") ->  | BW10: =IFERROR(VLOOKUP(AD10,CadMP!$B:$D,3,0),"") ->  | BX10: =IFERROR(VLOOKUP(AE10,CadMP!$B:$D,3,0),"") ->  | BY10: =IFERROR(VLOOKUP(AF10,CadMP!$B:$D,3,0),"") ->  | BZ10: =IFERROR(VLOOKUP(AG10,CadMP!$B:$D,3,0),"") ->  | CA10: =IFERROR(VLOOKUP(AH10,CadMP!$B:$D,3,0),"") ->  | CB10: =IFERROR(VLOOKUP(AI10,CadMP!$B:$D,3,0),"") ->  | CC10: =IFERROR(VLOOKUP(AJ10,CadMP!$B:$D,3,0),"") ->  | CD10: =IFERROR(VLOOKUP(AK10,CadMP!$B:$D,3,0),"") ->  | CE10: 0 | CF10: 0 | CG10: 0 | CH10: 0 | CI10: 0 | CJ10: 0 | CK10: 0 | CL10: 0 | CM10: 0 | CN10: 0 | CO10: 0 | CP10: 0 | CQ10: 0 | CR10: 0 | CS10: 0
A11: 10 | D11: 0 | E11: 0 | L11: 0 | M11: 0 | U11: 1.00 | V11: 0 | BA11: =IFERROR(VLOOKUP(W11,CadMP!$B:$D,2,0),"") ->  | BB11: =IFERROR(VLOOKUP(X11,CadMP!$B:$D,2,0),"") ->  | BC11: =IFERROR(VLOOKUP(Y11,CadMP!$B:$D,2,0),"") ->  | BD11: =IFERROR(VLOOKUP(Z11,CadMP!$B:$D,2,0),"") ->  | BE11: =IFERROR(VLOOKUP(AA11,CadMP!$B:$D,2,0),"") ->  | BF11: =IFERROR(VLOOKUP(AB11,CadMP!$B:$D,2,0),"") ->  | BG11: =IFERROR(VLOOKUP(AC11,CadMP!$B:$D,2,0),"") ->  | BH11: =IFERROR(VLOOKUP(AD11,CadMP!$B:$D,2,0),"") ->  | BI11: =IFERROR(VLOOKUP(AE11,CadMP!$B:$D,2,0),"") ->  | BJ11: =IFERROR(VLOOKUP(AF11,CadMP!$B:$D,2,0),"") ->  | BK11: =IFERROR(VLOOKUP(AG11,CadMP!$B:$D,2,0),"") ->  | BL11: =IFERROR(VLOOKUP(AH11,CadMP!$B:$D,2,0),"") ->  | BM11: =IFERROR(VLOOKUP(AI11,CadMP!$B:$D,2,0),"") ->  | BN11: =IFERROR(VLOOKUP(AJ11,CadMP!$B:$D,2,0),"") ->  | BO11: =IFERROR(VLOOKUP(AK11,CadMP!$B:$D,2,0),"") ->  | BP11: =IFERROR(VLOOKUP(W11,CadMP!$B:$D,3,0),"") ->  | BQ11: =IFERROR(VLOOKUP(X11,CadMP!$B:$D,3,0),"") ->  | BR11: =IFERROR(VLOOKUP(Y11,CadMP!$B:$D,3,0),"") ->  | BS11: =IFERROR(VLOOKUP(Z11,CadMP!$B:$D,3,0),"") ->  | BT11: =IFERROR(VLOOKUP(AA11,CadMP!$B:$D,3,0),"") ->  | BU11: =IFERROR(VLOOKUP(AB11,CadMP!$B:$D,3,0),"") ->  | BV11: =IFERROR(VLOOKUP(AC11,CadMP!$B:$D,3,0),"") ->  | BW11: =IFERROR(VLOOKUP(AD11,CadMP!$B:$D,3,0),"") ->  | BX11: =IFERROR(VLOOKUP(AE11,CadMP!$B:$D,3,0),"") ->  | BY11: =IFERROR(VLOOKUP(AF11,CadMP!$B:$D,3,0),"") ->  | BZ11: =IFERROR(VLOOKUP(AG11,CadMP!$B:$D,3,0),"") ->  | CA11: =IFERROR(VLOOKUP(AH11,CadMP!$B:$D,3,0),"") ->  | CB11: =IFERROR(VLOOKUP(AI11,CadMP!$B:$D,3,0),"") ->  | CC11: =IFERROR(VLOOKUP(AJ11,CadMP!$B:$D,3,0),"") ->  | CD11: =IFERROR(VLOOKUP(AK11,CadMP!$B:$D,3,0),"") ->  | CE11: 0 | CF11: 0 | CG11: 0 | CH11: 0 | CI11: 0 | CJ11: 0 | CK11: 0 | CL11: 0 | CM11: 0 | CN11: 0 | CO11: 0 | CP11: 0 | CQ11: 0 | CR11: 0 | CS11: 0
A12: 11 | D12: 0 | E12: 0 | L12: 0 | M12: 0 | U12: 1.00 | V12: 0 | BA12: =IFERROR(VLOOKUP(W12,CadMP!$B:$D,2,0),"") ->  | BB12: =IFERROR(VLOOKUP(X12,CadMP!$B:$D,2,0),"") ->  | BC12: =IFERROR(VLOOKUP(Y12,CadMP!$B:$D,2,0),"") ->  | BD12: =IFERROR(VLOOKUP(Z12,CadMP!$B:$D,2,0),"") ->  | BE12: =IFERROR(VLOOKUP(AA12,CadMP!$B:$D,2,0),"") ->  | BF12: =IFERROR(VLOOKUP(AB12,CadMP!$B:$D,2,0),"") ->  | BG12: =IFERROR(VLOOKUP(AC12,CadMP!$B:$D,2,0),"") ->  | BH12: =IFERROR(VLOOKUP(AD12,CadMP!$B:$D,2,0),"") ->  | BI12: =IFERROR(VLOOKUP(AE12,CadMP!$B:$D,2,0),"") ->  | BJ12: =IFERROR(VLOOKUP(AF12,CadMP!$B:$D,2,0),"") ->  | BK12: =IFERROR(VLOOKUP(AG12,CadMP!$B:$D,2,0),"") ->  | BL12: =IFERROR(VLOOKUP(AH12,CadMP!$B:$D,2,0),"") ->  | BM12: =IFERROR(VLOOKUP(AI12,CadMP!$B:$D,2,0),"") ->  | BN12: =IFERROR(VLOOKUP(AJ12,CadMP!$B:$D,2,0),"") ->  | BO12: =IFERROR(VLOOKUP(AK12,CadMP!$B:$D,2,0),"") ->  | BP12: =IFERROR(VLOOKUP(W12,CadMP!$B:$D,3,0),"") ->  | BQ12: =IFERROR(VLOOKUP(X12,CadMP!$B:$D,3,0),"") ->  | BR12: =IFERROR(VLOOKUP(Y12,CadMP!$B:$D,3,0),"") ->  | BS12: =IFERROR(VLOOKUP(Z12,CadMP!$B:$D,3,0),"") ->  | BT12: =IFERROR(VLOOKUP(AA12,CadMP!$B:$D,3,0),"") ->  | BU12: =IFERROR(VLOOKUP(AB12,CadMP!$B:$D,3,0),"") ->  | BV12: =IFERROR(VLOOKUP(AC12,CadMP!$B:$D,3,0),"") ->  | BW12: =IFERROR(VLOOKUP(AD12,CadMP!$B:$D,3,0),"") ->  | BX12: =IFERROR(VLOOKUP(AE12,CadMP!$B:$D,3,0),"") ->  | BY12: =IFERROR(VLOOKUP(AF12,CadMP!$B:$D,3,0),"") ->  | BZ12: =IFERROR(VLOOKUP(AG12,CadMP!$B:$D,3,0),"") ->  | CA12: =IFERROR(VLOOKUP(AH12,CadMP!$B:$D,3,0),"") ->  | CB12: =IFERROR(VLOOKUP(AI12,CadMP!$B:$D,3,0),"") ->  | CC12: =IFERROR(VLOOKUP(AJ12,CadMP!$B:$D,3,0),"") ->  | CD12: =IFERROR(VLOOKUP(AK12,CadMP!$B:$D,3,0),"") ->  | CE12: 0 | CF12: 0 | CG12: 0 | CH12: 0 | CI12: 0 | CJ12: 0 | CK12: 0 | CL12: 0 | CM12: 0 | CN12: 0 | CO12: 0 | CP12: 0 | CQ12: 0 | CR12: 0 | CS12: 0
A13: 12 | D13: 0 | E13: 0 | L13: 0 | M13: 0 | U13: 1.00 | V13: 0 | BA13: =IFERROR(VLOOKUP(W13,CadMP!$B:$D,2,0),"") ->  | BB13: =IFERROR(VLOOKUP(X13,CadMP!$B:$D,2,0),"") ->  | BC13: =IFERROR(VLOOKUP(Y13,CadMP!$B:$D,2,0),"") ->  | BD13: =IFERROR(VLOOKUP(Z13,CadMP!$B:$D,2,0),"") ->  | BE13: =IFERROR(VLOOKUP(AA13,CadMP!$B:$D,2,0),"") ->  | BF13: =IFERROR(VLOOKUP(AB13,CadMP!$B:$D,2,0),"") ->  | BG13: =IFERROR(VLOOKUP(AC13,CadMP!$B:$D,2,0),"") ->  | BH13: =IFERROR(VLOOKUP(AD13,CadMP!$B:$D,2,0),"") ->  | BI13: =IFERROR(VLOOKUP(AE13,CadMP!$B:$D,2,0),"") ->  | BJ13: =IFERROR(VLOOKUP(AF13,CadMP!$B:$D,2,0),"") ->  | BK13: =IFERROR(VLOOKUP(AG13,CadMP!$B:$D,2,0),"") ->  | BL13: =IFERROR(VLOOKUP(AH13,CadMP!$B:$D,2,0),"") ->  | BM13: =IFERROR(VLOOKUP(AI13,CadMP!$B:$D,2,0),"") ->  | BN13: =IFERROR(VLOOKUP(AJ13,CadMP!$B:$D,2,0),"") ->  | BO13: =IFERROR(VLOOKUP(AK13,CadMP!$B:$D,2,0),"") ->  | BP13: =IFERROR(VLOOKUP(W13,CadMP!$B:$D,3,0),"") ->  | BQ13: =IFERROR(VLOOKUP(X13,CadMP!$B:$D,3,0),"") ->  | BR13: =IFERROR(VLOOKUP(Y13,CadMP!$B:$D,3,0),"") ->  | BS13: =IFERROR(VLOOKUP(Z13,CadMP!$B:$D,3,0),"") ->  | BT13: =IFERROR(VLOOKUP(AA13,CadMP!$B:$D,3,0),"") ->  | BU13: =IFERROR(VLOOKUP(AB13,CadMP!$B:$D,3,0),"") ->  | BV13: =IFERROR(VLOOKUP(AC13,CadMP!$B:$D,3,0),"") ->  | BW13: =IFERROR(VLOOKUP(AD13,CadMP!$B:$D,3,0),"") ->  | BX13: =IFERROR(VLOOKUP(AE13,CadMP!$B:$D,3,0),"") ->  | BY13: =IFERROR(VLOOKUP(AF13,CadMP!$B:$D,3,0),"") ->  | BZ13: =IFERROR(VLOOKUP(AG13,CadMP!$B:$D,3,0),"") ->  | CA13: =IFERROR(VLOOKUP(AH13,CadMP!$B:$D,3,0),"") ->  | CB13: =IFERROR(VLOOKUP(AI13,CadMP!$B:$D,3,0),"") ->  | CC13: =IFERROR(VLOOKUP(AJ13,CadMP!$B:$D,3,0),"") ->  | CD13: =IFERROR(VLOOKUP(AK13,CadMP!$B:$D,3,0),"") ->  | CE13: 0 | CF13: 0 | CG13: 0 | CH13: 0 | CI13: 0 | CJ13: 0 | CK13: 0 | CL13: 0 | CM13: 0 | CN13: 0 | CO13: 0 | CP13: 0 | CQ13: 0 | CR13: 0 | CS13: 0
A14: 13 | D14: 0 | E14: 0 | L14: 0 | M14: 0 | U14: 1.00 | V14: 0 | BA14: =IFERROR(VLOOKUP(W14,CadMP!$B:$D,2,0),"") ->  | BB14: =IFERROR(VLOOKUP(X14,CadMP!$B:$D,2,0),"") ->  | BC14: =IFERROR(VLOOKUP(Y14,CadMP!$B:$D,2,0),"") ->  | BD14: =IFERROR(VLOOKUP(Z14,CadMP!$B:$D,2,0),"") ->  | BE14: =IFERROR(VLOOKUP(AA14,CadMP!$B:$D,2,0),"") ->  | BF14: =IFERROR(VLOOKUP(AB14,CadMP!$B:$D,2,0),"") ->  | BG14: =IFERROR(VLOOKUP(AC14,CadMP!$B:$D,2,0),"") ->  | BH14: =IFERROR(VLOOKUP(AD14,CadMP!$B:$D,2,0),"") ->  | BI14: =IFERROR(VLOOKUP(AE14,CadMP!$B:$D,2,0),"") ->  | BJ14: =IFERROR(VLOOKUP(AF14,CadMP!$B:$D,2,0),"") ->  | BK14: =IFERROR(VLOOKUP(AG14,CadMP!$B:$D,2,0),"") ->  | BL14: =IFERROR(VLOOKUP(AH14,CadMP!$B:$D,2,0),"") ->  | BM14: =IFERROR(VLOOKUP(AI14,CadMP!$B:$D,2,0),"") ->  | BN14: =IFERROR(VLOOKUP(AJ14,CadMP!$B:$D,2,0),"") ->  | BO14: =IFERROR(VLOOKUP(AK14,CadMP!$B:$D,2,0),"") ->  | BP14: =IFERROR(VLOOKUP(W14,CadMP!$B:$D,3,0),"") ->  | BQ14: =IFERROR(VLOOKUP(X14,CadMP!$B:$D,3,0),"") ->  | BR14: =IFERROR(VLOOKUP(Y14,CadMP!$B:$D,3,0),"") ->  | BS14: =IFERROR(VLOOKUP(Z14,CadMP!$B:$D,3,0),"") ->  | BT14: =IFERROR(VLOOKUP(AA14,CadMP!$B:$D,3,0),"") ->  | BU14: =IFERROR(VLOOKUP(AB14,CadMP!$B:$D,3,0),"") ->  | BV14: =IFERROR(VLOOKUP(AC14,CadMP!$B:$D,3,0),"") ->  | BW14: =IFERROR(VLOOKUP(AD14,CadMP!$B:$D,3,0),"") ->  | BX14: =IFERROR(VLOOKUP(AE14,CadMP!$B:$D,3,0),"") ->  | BY14: =IFERROR(VLOOKUP(AF14,CadMP!$B:$D,3,0),"") ->  | BZ14: =IFERROR(VLOOKUP(AG14,CadMP!$B:$D,3,0),"") ->  | CA14: =IFERROR(VLOOKUP(AH14,CadMP!$B:$D,3,0),"") ->  | CB14: =IFERROR(VLOOKUP(AI14,CadMP!$B:$D,3,0),"") ->  | CC14: =IFERROR(VLOOKUP(AJ14,CadMP!$B:$D,3,0),"") ->  | CD14: =IFERROR(VLOOKUP(AK14,CadMP!$B:$D,3,0),"") ->  | CE14: 0 | CF14: 0 | CG14: 0 | CH14: 0 | CI14: 0 | CJ14: 0 | CK14: 0 | CL14: 0 | CM14: 0 | CN14: 0 | CO14: 0 | CP14: 0 | CQ14: 0 | CR14: 0 | CS14: 0
A15: 14 | D15: 0 | E15: 0 | L15: 0 | M15: 0 | U15: 1.00 | V15: 0 | BA15: =IFERROR(VLOOKUP(W15,CadMP!$B:$D,2,0),"") ->  | BB15: =IFERROR(VLOOKUP(X15,CadMP!$B:$D,2,0),"") ->  | BC15: =IFERROR(VLOOKUP(Y15,CadMP!$B:$D,2,0),"") ->  | BD15: =IFERROR(VLOOKUP(Z15,CadMP!$B:$D,2,0),"") ->  | BE15: =IFERROR(VLOOKUP(AA15,CadMP!$B:$D,2,0),"") ->  | BF15: =IFERROR(VLOOKUP(AB15,CadMP!$B:$D,2,0),"") ->  | BG15: =IFERROR(VLOOKUP(AC15,CadMP!$B:$D,2,0),"") ->  | BH15: =IFERROR(VLOOKUP(AD15,CadMP!$B:$D,2,0),"") ->  | BI15: =IFERROR(VLOOKUP(AE15,CadMP!$B:$D,2,0),"") ->  | BJ15: =IFERROR(VLOOKUP(AF15,CadMP!$B:$D,2,0),"") ->  | BK15: =IFERROR(VLOOKUP(AG15,CadMP!$B:$D,2,0),"") ->  | BL15: =IFERROR(VLOOKUP(AH15,CadMP!$B:$D,2,0),"") ->  | BM15: =IFERROR(VLOOKUP(AI15,CadMP!$B:$D,2,0),"") ->  | BN15: =IFERROR(VLOOKUP(AJ15,CadMP!$B:$D,2,0),"") ->  | BO15: =IFERROR(VLOOKUP(AK15,CadMP!$B:$D,2,0),"") ->  | BP15: =IFERROR(VLOOKUP(W15,CadMP!$B:$D,3,0),"") ->  | BQ15: =IFERROR(VLOOKUP(X15,CadMP!$B:$D,3,0),"") ->  | BR15: =IFERROR(VLOOKUP(Y15,CadMP!$B:$D,3,0),"") ->  | BS15: =IFERROR(VLOOKUP(Z15,CadMP!$B:$D,3,0),"") ->  | BT15: =IFERROR(VLOOKUP(AA15,CadMP!$B:$D,3,0),"") ->  | BU15: =IFERROR(VLOOKUP(AB15,CadMP!$B:$D,3,0),"") ->  | BV15: =IFERROR(VLOOKUP(AC15,CadMP!$B:$D,3,0),"") ->  | BW15: =IFERROR(VLOOKUP(AD15,CadMP!$B:$D,3,0),"") ->  | BX15: =IFERROR(VLOOKUP(AE15,CadMP!$B:$D,3,0),"") ->  | BY15: =IFERROR(VLOOKUP(AF15,CadMP!$B:$D,3,0),"") ->  | BZ15: =IFERROR(VLOOKUP(AG15,CadMP!$B:$D,3,0),"") ->  | CA15: =IFERROR(VLOOKUP(AH15,CadMP!$B:$D,3,0),"") ->  | CB15: =IFERROR(VLOOKUP(AI15,CadMP!$B:$D,3,0),"") ->  | CC15: =IFERROR(VLOOKUP(AJ15,CadMP!$B:$D,3,0),"") ->  | CD15: =IFERROR(VLOOKUP(AK15,CadMP!$B:$D,3,0),"") ->  | CE15: 0 | CF15: 0 | CG15: 0 | CH15: 0 | CI15: 0 | CJ15: 0 | CK15: 0 | CL15: 0 | CM15: 0 | CN15: 0 | CO15: 0 | CP15: 0 | CQ15: 0 | CR15: 0 | CS15: 0
A16: 15 | D16: 0 | E16: 0 | L16: 0 | M16: 0 | U16: 1.00 | V16: 0 | BA16: =IFERROR(VLOOKUP(W16,CadMP!$B:$D,2,0),"") ->  | BB16: =IFERROR(VLOOKUP(X16,CadMP!$B:$D,2,0),"") ->  | BC16: =IFERROR(VLOOKUP(Y16,CadMP!$B:$D,2,0),"") ->  | BD16: =IFERROR(VLOOKUP(Z16,CadMP!$B:$D,2,0),"") ->  | BE16: =IFERROR(VLOOKUP(AA16,CadMP!$B:$D,2,0),"") ->  | BF16: =IFERROR(VLOOKUP(AB16,CadMP!$B:$D,2,0),"") ->  | BG16: =IFERROR(VLOOKUP(AC16,CadMP!$B:$D,2,0),"") ->  | BH16: =IFERROR(VLOOKUP(AD16,CadMP!$B:$D,2,0),"") ->  | BI16: =IFERROR(VLOOKUP(AE16,CadMP!$B:$D,2,0),"") ->  | BJ16: =IFERROR(VLOOKUP(AF16,CadMP!$B:$D,2,0),"") ->  | BK16: =IFERROR(VLOOKUP(AG16,CadMP!$B:$D,2,0),"") ->  | BL16: =IFERROR(VLOOKUP(AH16,CadMP!$B:$D,2,0),"") ->  | BM16: =IFERROR(VLOOKUP(AI16,CadMP!$B:$D,2,0),"") ->  | BN16: =IFERROR(VLOOKUP(AJ16,CadMP!$B:$D,2,0),"") ->  | BO16: =IFERROR(VLOOKUP(AK16,CadMP!$B:$D,2,0),"") ->  | BP16: =IFERROR(VLOOKUP(W16,CadMP!$B:$D,3,0),"") ->  | BQ16: =IFERROR(VLOOKUP(X16,CadMP!$B:$D,3,0),"") ->  | BR16: =IFERROR(VLOOKUP(Y16,CadMP!$B:$D,3,0),"") ->  | BS16: =IFERROR(VLOOKUP(Z16,CadMP!$B:$D,3,0),"") ->  | BT16: =IFERROR(VLOOKUP(AA16,CadMP!$B:$D,3,0),"") ->  | BU16: =IFERROR(VLOOKUP(AB16,CadMP!$B:$D,3,0),"") ->  | BV16: =IFERROR(VLOOKUP(AC16,CadMP!$B:$D,3,0),"") ->  | BW16: =IFERROR(VLOOKUP(AD16,CadMP!$B:$D,3,0),"") ->  | BX16: =IFERROR(VLOOKUP(AE16,CadMP!$B:$D,3,0),"") ->  | BY16: =IFERROR(VLOOKUP(AF16,CadMP!$B:$D,3,0),"") ->  | BZ16: =IFERROR(VLOOKUP(AG16,CadMP!$B:$D,3,0),"") ->  | CA16: =IFERROR(VLOOKUP(AH16,CadMP!$B:$D,3,0),"") ->  | CB16: =IFERROR(VLOOKUP(AI16,CadMP!$B:$D,3,0),"") ->  | CC16: =IFERROR(VLOOKUP(AJ16,CadMP!$B:$D,3,0),"") ->  | CD16: =IFERROR(VLOOKUP(AK16,CadMP!$B:$D,3,0),"") ->  | CE16: 0 | CF16: 0 | CG16: 0 | CH16: 0 | CI16: 0 | CJ16: 0 | CK16: 0 | CL16: 0 | CM16: 0 | CN16: 0 | CO16: 0 | CP16: 0 | CQ16: 0 | CR16: 0 | CS16: 0
A17: 16 | D17: 0 | E17: 0 | L17: 0 | M17: 0 | U17: 1.00 | V17: 0 | BA17: =IFERROR(VLOOKUP(W17,CadMP!$B:$D,2,0),"") ->  | BB17: =IFERROR(VLOOKUP(X17,CadMP!$B:$D,2,0),"") ->  | BC17: =IFERROR(VLOOKUP(Y17,CadMP!$B:$D,2,0),"") ->  | BD17: =IFERROR(VLOOKUP(Z17,CadMP!$B:$D,2,0),"") ->  | BE17: =IFERROR(VLOOKUP(AA17,CadMP!$B:$D,2,0),"") ->  | BF17: =IFERROR(VLOOKUP(AB17,CadMP!$B:$D,2,0),"") ->  | BG17: =IFERROR(VLOOKUP(AC17,CadMP!$B:$D,2,0),"") ->  | BH17: =IFERROR(VLOOKUP(AD17,CadMP!$B:$D,2,0),"") ->  | BI17: =IFERROR(VLOOKUP(AE17,CadMP!$B:$D,2,0),"") ->  | BJ17: =IFERROR(VLOOKUP(AF17,CadMP!$B:$D,2,0),"") ->  | BK17: =IFERROR(VLOOKUP(AG17,CadMP!$B:$D,2,0),"") ->  | BL17: =IFERROR(VLOOKUP(AH17,CadMP!$B:$D,2,0),"") ->  | BM17: =IFERROR(VLOOKUP(AI17,CadMP!$B:$D,2,0),"") ->  | BN17: =IFERROR(VLOOKUP(AJ17,CadMP!$B:$D,2,0),"") ->  | BO17: =IFERROR(VLOOKUP(AK17,CadMP!$B:$D,2,0),"") ->  | BP17: =IFERROR(VLOOKUP(W17,CadMP!$B:$D,3,0),"") ->  | BQ17: =IFERROR(VLOOKUP(X17,CadMP!$B:$D,3,0),"") ->  | BR17: =IFERROR(VLOOKUP(Y17,CadMP!$B:$D,3,0),"") ->  | BS17: =IFERROR(VLOOKUP(Z17,CadMP!$B:$D,3,0),"") ->  | BT17: =IFERROR(VLOOKUP(AA17,CadMP!$B:$D,3,0),"") ->  | BU17: =IFERROR(VLOOKUP(AB17,CadMP!$B:$D,3,0),"") ->  | BV17: =IFERROR(VLOOKUP(AC17,CadMP!$B:$D,3,0),"") ->  | BW17: =IFERROR(VLOOKUP(AD17,CadMP!$B:$D,3,0),"") ->  | BX17: =IFERROR(VLOOKUP(AE17,CadMP!$B:$D,3,0),"") ->  | BY17: =IFERROR(VLOOKUP(AF17,CadMP!$B:$D,3,0),"") ->  | BZ17: =IFERROR(VLOOKUP(AG17,CadMP!$B:$D,3,0),"") ->  | CA17: =IFERROR(VLOOKUP(AH17,CadMP!$B:$D,3,0),"") ->  | CB17: =IFERROR(VLOOKUP(AI17,CadMP!$B:$D,3,0),"") ->  | CC17: =IFERROR(VLOOKUP(AJ17,CadMP!$B:$D,3,0),"") ->  | CD17: =IFERROR(VLOOKUP(AK17,CadMP!$B:$D,3,0),"") ->  | CE17: 0 | CF17: 0 | CG17: 0 | CH17: 0 | CI17: 0 | CJ17: 0 | CK17: 0 | CL17: 0 | CM17: 0 | CN17: 0 | CO17: 0 | CP17: 0 | CQ17: 0 | CR17: 0 | CS17: 0
A18: 17 | D18: 0 | E18: 0 | L18: 0 | M18: 0 | U18: 1.00 | V18: 0 | BA18: =IFERROR(VLOOKUP(W18,CadMP!$B:$D,2,0),"") ->  | BB18: =IFERROR(VLOOKUP(X18,CadMP!$B:$D,2,0),"") ->  | BC18: =IFERROR(VLOOKUP(Y18,CadMP!$B:$D,2,0),"") ->  | BD18: =IFERROR(VLOOKUP(Z18,CadMP!$B:$D,2,0),"") ->  | BE18: =IFERROR(VLOOKUP(AA18,CadMP!$B:$D,2,0),"") ->  | BF18: =IFERROR(VLOOKUP(AB18,CadMP!$B:$D,2,0),"") ->  | BG18: =IFERROR(VLOOKUP(AC18,CadMP!$B:$D,2,0),"") ->  | BH18: =IFERROR(VLOOKUP(AD18,CadMP!$B:$D,2,0),"") ->  | BI18: =IFERROR(VLOOKUP(AE18,CadMP!$B:$D,2,0),"") ->  | BJ18: =IFERROR(VLOOKUP(AF18,CadMP!$B:$D,2,0),"") ->  | BK18: =IFERROR(VLOOKUP(AG18,CadMP!$B:$D,2,0),"") ->  | BL18: =IFERROR(VLOOKUP(AH18,CadMP!$B:$D,2,0),"") ->  | BM18: =IFERROR(VLOOKUP(AI18,CadMP!$B:$D,2,0),"") ->  | BN18: =IFERROR(VLOOKUP(AJ18,CadMP!$B:$D,2,0),"") ->  | BO18: =IFERROR(VLOOKUP(AK18,CadMP!$B:$D,2,0),"") ->  | BP18: =IFERROR(VLOOKUP(W18,CadMP!$B:$D,3,0),"") ->  | BQ18: =IFERROR(VLOOKUP(X18,CadMP!$B:$D,3,0),"") ->  | BR18: =IFERROR(VLOOKUP(Y18,CadMP!$B:$D,3,0),"") ->  | BS18: =IFERROR(VLOOKUP(Z18,CadMP!$B:$D,3,0),"") ->  | BT18: =IFERROR(VLOOKUP(AA18,CadMP!$B:$D,3,0),"") ->  | BU18: =IFERROR(VLOOKUP(AB18,CadMP!$B:$D,3,0),"") ->  | BV18: =IFERROR(VLOOKUP(AC18,CadMP!$B:$D,3,0),"") ->  | BW18: =IFERROR(VLOOKUP(AD18,CadMP!$B:$D,3,0),"") ->  | BX18: =IFERROR(VLOOKUP(AE18,CadMP!$B:$D,3,0),"") ->  | BY18: =IFERROR(VLOOKUP(AF18,CadMP!$B:$D,3,0),"") ->  | BZ18: =IFERROR(VLOOKUP(AG18,CadMP!$B:$D,3,0),"") ->  | CA18: =IFERROR(VLOOKUP(AH18,CadMP!$B:$D,3,0),"") ->  | CB18: =IFERROR(VLOOKUP(AI18,CadMP!$B:$D,3,0),"") ->  | CC18: =IFERROR(VLOOKUP(AJ18,CadMP!$B:$D,3,0),"") ->  | CD18: =IFERROR(VLOOKUP(AK18,CadMP!$B:$D,3,0),"") ->  | CE18: 0 | CF18: 0 | CG18: 0 | CH18: 0 | CI18: 0 | CJ18: 0 | CK18: 0 | CL18: 0 | CM18: 0 | CN18: 0 | CO18: 0 | CP18: 0 | CQ18: 0 | CR18: 0 | CS18: 0
A19: 18 | D19: 0 | E19: 0 | L19: 0 | M19: 0 | U19: 1.00 | V19: 0 | BA19: =IFERROR(VLOOKUP(W19,CadMP!$B:$D,2,0),"") ->  | BB19: =IFERROR(VLOOKUP(X19,CadMP!$B:$D,2,0),"") ->  | BC19: =IFERROR(VLOOKUP(Y19,CadMP!$B:$D,2,0),"") ->  | BD19: =IFERROR(VLOOKUP(Z19,CadMP!$B:$D,2,0),"") ->  | BE19: =IFERROR(VLOOKUP(AA19,CadMP!$B:$D,2,0),"") ->  | BF19: =IFERROR(VLOOKUP(AB19,CadMP!$B:$D,2,0),"") ->  | BG19: =IFERROR(VLOOKUP(AC19,CadMP!$B:$D,2,0),"") ->  | BH19: =IFERROR(VLOOKUP(AD19,CadMP!$B:$D,2,0),"") ->  | BI19: =IFERROR(VLOOKUP(AE19,CadMP!$B:$D,2,0),"") ->  | BJ19: =IFERROR(VLOOKUP(AF19,CadMP!$B:$D,2,0),"") ->  | BK19: =IFERROR(VLOOKUP(AG19,CadMP!$B:$D,2,0),"") ->  | BL19: =IFERROR(VLOOKUP(AH19,CadMP!$B:$D,2,0),"") ->  | BM19: =IFERROR(VLOOKUP(AI19,CadMP!$B:$D,2,0),"") ->  | BN19: =IFERROR(VLOOKUP(AJ19,CadMP!$B:$D,2,0),"") ->  | BO19: =IFERROR(VLOOKUP(AK19,CadMP!$B:$D,2,0),"") ->  | BP19: =IFERROR(VLOOKUP(W19,CadMP!$B:$D,3,0),"") ->  | BQ19: =IFERROR(VLOOKUP(X19,CadMP!$B:$D,3,0),"") ->  | BR19: =IFERROR(VLOOKUP(Y19,CadMP!$B:$D,3,0),"") ->  | BS19: =IFERROR(VLOOKUP(Z19,CadMP!$B:$D,3,0),"") ->  | BT19: =IFERROR(VLOOKUP(AA19,CadMP!$B:$D,3,0),"") ->  | BU19: =IFERROR(VLOOKUP(AB19,CadMP!$B:$D,3,0),"") ->  | BV19: =IFERROR(VLOOKUP(AC19,CadMP!$B:$D,3,0),"") ->  | BW19: =IFERROR(VLOOKUP(AD19,CadMP!$B:$D,3,0),"") ->  | BX19: =IFERROR(VLOOKUP(AE19,CadMP!$B:$D,3,0),"") ->  | BY19: =IFERROR(VLOOKUP(AF19,CadMP!$B:$D,3,0),"") ->  | BZ19: =IFERROR(VLOOKUP(AG19,CadMP!$B:$D,3,0),"") ->  | CA19: =IFERROR(VLOOKUP(AH19,CadMP!$B:$D,3,0),"") ->  | CB19: =IFERROR(VLOOKUP(AI19,CadMP!$B:$D,3,0),"") ->  | CC19: =IFERROR(VLOOKUP(AJ19,CadMP!$B:$D,3,0),"") ->  | CD19: =IFERROR(VLOOKUP(AK19,CadMP!$B:$D,3,0),"") ->  | CE19: 0 | CF19: 0 | CG19: 0 | CH19: 0 | CI19: 0 | CJ19: 0 | CK19: 0 | CL19: 0 | CM19: 0 | CN19: 0 | CO19: 0 | CP19: 0 | CQ19: 0 | CR19: 0 | CS19: 0
A20: 19 | D20: 0 | E20: 0 | L20: 0 | M20: 0 | U20: 1.00 | V20: 0 | BA20: =IFERROR(VLOOKUP(W20,CadMP!$B:$D,2,0),"") ->  | BB20: =IFERROR(VLOOKUP(X20,CadMP!$B:$D,2,0),"") ->  | BC20: =IFERROR(VLOOKUP(Y20,CadMP!$B:$D,2,0),"") ->  | BD20: =IFERROR(VLOOKUP(Z20,CadMP!$B:$D,2,0),"") ->  | BE20: =IFERROR(VLOOKUP(AA20,CadMP!$B:$D,2,0),"") ->  | BF20: =IFERROR(VLOOKUP(AB20,CadMP!$B:$D,2,0),"") ->  | BG20: =IFERROR(VLOOKUP(AC20,CadMP!$B:$D,2,0),"") ->  | BH20: =IFERROR(VLOOKUP(AD20,CadMP!$B:$D,2,0),"") ->  | BI20: =IFERROR(VLOOKUP(AE20,CadMP!$B:$D,2,0),"") ->  | BJ20: =IFERROR(VLOOKUP(AF20,CadMP!$B:$D,2,0),"") ->  | BK20: =IFERROR(VLOOKUP(AG20,CadMP!$B:$D,2,0),"") ->  | BL20: =IFERROR(VLOOKUP(AH20,CadMP!$B:$D,2,0),"") ->  | BM20: =IFERROR(VLOOKUP(AI20,CadMP!$B:$D,2,0),"") ->  | BN20: =IFERROR(VLOOKUP(AJ20,CadMP!$B:$D,2,0),"") ->  | BO20: =IFERROR(VLOOKUP(AK20,CadMP!$B:$D,2,0),"") ->  | BP20: =IFERROR(VLOOKUP(W20,CadMP!$B:$D,3,0),"") ->  | BQ20: =IFERROR(VLOOKUP(X20,CadMP!$B:$D,3,0),"") ->  | BR20: =IFERROR(VLOOKUP(Y20,CadMP!$B:$D,3,0),"") ->  | BS20: =IFERROR(VLOOKUP(Z20,CadMP!$B:$D,3,0),"") ->  | BT20: =IFERROR(VLOOKUP(AA20,CadMP!$B:$D,3,0),"") ->  | BU20: =IFERROR(VLOOKUP(AB20,CadMP!$B:$D,3,0),"") ->  | BV20: =IFERROR(VLOOKUP(AC20,CadMP!$B:$D,3,0),"") ->  | BW20: =IFERROR(VLOOKUP(AD20,CadMP!$B:$D,3,0),"") ->  | BX20: =IFERROR(VLOOKUP(AE20,CadMP!$B:$D,3,0),"") ->  | BY20: =IFERROR(VLOOKUP(AF20,CadMP!$B:$D,3,0),"") ->  | BZ20: =IFERROR(VLOOKUP(AG20,CadMP!$B:$D,3,0),"") ->  | CA20: =IFERROR(VLOOKUP(AH20,CadMP!$B:$D,3,0),"") ->  | CB20: =IFERROR(VLOOKUP(AI20,CadMP!$B:$D,3,0),"") ->  | CC20: =IFERROR(VLOOKUP(AJ20,CadMP!$B:$D,3,0),"") ->  | CD20: =IFERROR(VLOOKUP(AK20,CadMP!$B:$D,3,0),"") ->  | CE20: 0 | CF20: 0 | CG20: 0 | CH20: 0 | CI20: 0 | CJ20: 0 | CK20: 0 | CL20: 0 | CM20: 0 | CN20: 0 | CO20: 0 | CP20: 0 | CQ20: 0 | CR20: 0 | CS20: 0
A21: 20 | D21: 0 | E21: 0 | L21: 0 | M21: 0 | U21: 1.00 | V21: 0 | BA21: =IFERROR(VLOOKUP(W21,CadMP!$B:$D,2,0),"") ->  | BB21: =IFERROR(VLOOKUP(X21,CadMP!$B:$D,2,0),"") ->  | BC21: =IFERROR(VLOOKUP(Y21,CadMP!$B:$D,2,0),"") ->  | BD21: =IFERROR(VLOOKUP(Z21,CadMP!$B:$D,2,0),"") ->  | BE21: =IFERROR(VLOOKUP(AA21,CadMP!$B:$D,2,0),"") ->  | BF21: =IFERROR(VLOOKUP(AB21,CadMP!$B:$D,2,0),"") ->  | BG21: =IFERROR(VLOOKUP(AC21,CadMP!$B:$D,2,0),"") ->  | BH21: =IFERROR(VLOOKUP(AD21,CadMP!$B:$D,2,0),"") ->  | BI21: =IFERROR(VLOOKUP(AE21,CadMP!$B:$D,2,0),"") ->  | BJ21: =IFERROR(VLOOKUP(AF21,CadMP!$B:$D,2,0),"") ->  | BK21: =IFERROR(VLOOKUP(AG21,CadMP!$B:$D,2,0),"") ->  | BL21: =IFERROR(VLOOKUP(AH21,CadMP!$B:$D,2,0),"") ->  | BM21: =IFERROR(VLOOKUP(AI21,CadMP!$B:$D,2,0),"") ->  | BN21: =IFERROR(VLOOKUP(AJ21,CadMP!$B:$D,2,0),"") ->  | BO21: =IFERROR(VLOOKUP(AK21,CadMP!$B:$D,2,0),"") ->  | BP21: =IFERROR(VLOOKUP(W21,CadMP!$B:$D,3,0),"") ->  | BQ21: =IFERROR(VLOOKUP(X21,CadMP!$B:$D,3,0),"") ->  | BR21: =IFERROR(VLOOKUP(Y21,CadMP!$B:$D,3,0),"") ->  | BS21: =IFERROR(VLOOKUP(Z21,CadMP!$B:$D,3,0),"") ->  | BT21: =IFERROR(VLOOKUP(AA21,CadMP!$B:$D,3,0),"") ->  | BU21: =IFERROR(VLOOKUP(AB21,CadMP!$B:$D,3,0),"") ->  | BV21: =IFERROR(VLOOKUP(AC21,CadMP!$B:$D,3,0),"") ->  | BW21: =IFERROR(VLOOKUP(AD21,CadMP!$B:$D,3,0),"") ->  | BX21: =IFERROR(VLOOKUP(AE21,CadMP!$B:$D,3,0),"") ->  | BY21: =IFERROR(VLOOKUP(AF21,CadMP!$B:$D,3,0),"") ->  | BZ21: =IFERROR(VLOOKUP(AG21,CadMP!$B:$D,3,0),"") ->  | CA21: =IFERROR(VLOOKUP(AH21,CadMP!$B:$D,3,0),"") ->  | CB21: =IFERROR(VLOOKUP(AI21,CadMP!$B:$D,3,0),"") ->  | CC21: =IFERROR(VLOOKUP(AJ21,CadMP!$B:$D,3,0),"") ->  | CD21: =IFERROR(VLOOKUP(AK21,CadMP!$B:$D,3,0),"") ->  | CE21: 0 | CF21: 0 | CG21: 0 | CH21: 0 | CI21: 0 | CJ21: 0 | CK21: 0 | CL21: 0 | CM21: 0 | CN21: 0 | CO21: 0 | CP21: 0 | CQ21: 0 | CR21: 0 | CS21: 0
A22: 21 | D22: 0 | E22: 0 | L22: 0 | M22: 0 | U22: 1.00 | V22: 0 | BA22: =IFERROR(VLOOKUP(W22,CadMP!$B:$D,2,0),"") ->  | BB22: =IFERROR(VLOOKUP(X22,CadMP!$B:$D,2,0),"") ->  | BC22: =IFERROR(VLOOKUP(Y22,CadMP!$B:$D,2,0),"") ->  | BD22: =IFERROR(VLOOKUP(Z22,CadMP!$B:$D,2,0),"") ->  | BE22: =IFERROR(VLOOKUP(AA22,CadMP!$B:$D,2,0),"") ->  | BF22: =IFERROR(VLOOKUP(AB22,CadMP!$B:$D,2,0),"") ->  | BG22: =IFERROR(VLOOKUP(AC22,CadMP!$B:$D,2,0),"") ->  | BH22: =IFERROR(VLOOKUP(AD22,CadMP!$B:$D,2,0),"") ->  | BI22: =IFERROR(VLOOKUP(AE22,CadMP!$B:$D,2,0),"") ->  | BJ22: =IFERROR(VLOOKUP(AF22,CadMP!$B:$D,2,0),"") ->  | BK22: =IFERROR(VLOOKUP(AG22,CadMP!$B:$D,2,0),"") ->  | BL22: =IFERROR(VLOOKUP(AH22,CadMP!$B:$D,2,0),"") ->  | BM22: =IFERROR(VLOOKUP(AI22,CadMP!$B:$D,2,0),"") ->  | BN22: =IFERROR(VLOOKUP(AJ22,CadMP!$B:$D,2,0),"") ->  | BO22: =IFERROR(VLOOKUP(AK22,CadMP!$B:$D,2,0),"") ->  | BP22: =IFERROR(VLOOKUP(W22,CadMP!$B:$D,3,0),"") ->  | BQ22: =IFERROR(VLOOKUP(X22,CadMP!$B:$D,3,0),"") ->  | BR22: =IFERROR(VLOOKUP(Y22,CadMP!$B:$D,3,0),"") ->  | BS22: =IFERROR(VLOOKUP(Z22,CadMP!$B:$D,3,0),"") ->  | BT22: =IFERROR(VLOOKUP(AA22,CadMP!$B:$D,3,0),"") ->  | BU22: =IFERROR(VLOOKUP(AB22,CadMP!$B:$D,3,0),"") ->  | BV22: =IFERROR(VLOOKUP(AC22,CadMP!$B:$D,3,0),"") ->  | BW22: =IFERROR(VLOOKUP(AD22,CadMP!$B:$D,3,0),"") ->  | BX22: =IFERROR(VLOOKUP(AE22,CadMP!$B:$D,3,0),"") ->  | BY22: =IFERROR(VLOOKUP(AF22,CadMP!$B:$D,3,0),"") ->  | BZ22: =IFERROR(VLOOKUP(AG22,CadMP!$B:$D,3,0),"") ->  | CA22: =IFERROR(VLOOKUP(AH22,CadMP!$B:$D,3,0),"") ->  | CB22: =IFERROR(VLOOKUP(AI22,CadMP!$B:$D,3,0),"") ->  | CC22: =IFERROR(VLOOKUP(AJ22,CadMP!$B:$D,3,0),"") ->  | CD22: =IFERROR(VLOOKUP(AK22,CadMP!$B:$D,3,0),"") ->  | CE22: 0 | CF22: 0 | CG22: 0 | CH22: 0 | CI22: 0 | CJ22: 0 | CK22: 0 | CL22: 0 | CM22: 0 | CN22: 0 | CO22: 0 | CP22: 0 | CQ22: 0 | CR22: 0 | CS22: 0
A23: 22 | D23: 0 | E23: 0 | L23: 0 | M23: 0 | U23: 1.00 | V23: 0 | BA23: =IFERROR(VLOOKUP(W23,CadMP!$B:$D,2,0),"") ->  | BB23: =IFERROR(VLOOKUP(X23,CadMP!$B:$D,2,0),"") ->  | BC23: =IFERROR(VLOOKUP(Y23,CadMP!$B:$D,2,0),"") ->  | BD23: =IFERROR(VLOOKUP(Z23,CadMP!$B:$D,2,0),"") ->  | BE23: =IFERROR(VLOOKUP(AA23,CadMP!$B:$D,2,0),"") ->  | BF23: =IFERROR(VLOOKUP(AB23,CadMP!$B:$D,2,0),"") ->  | BG23: =IFERROR(VLOOKUP(AC23,CadMP!$B:$D,2,0),"") ->  | BH23: =IFERROR(VLOOKUP(AD23,CadMP!$B:$D,2,0),"") ->  | BI23: =IFERROR(VLOOKUP(AE23,CadMP!$B:$D,2,0),"") ->  | BJ23: =IFERROR(VLOOKUP(AF23,CadMP!$B:$D,2,0),"") ->  | BK23: =IFERROR(VLOOKUP(AG23,CadMP!$B:$D,2,0),"") ->  | BL23: =IFERROR(VLOOKUP(AH23,CadMP!$B:$D,2,0),"") ->  | BM23: =IFERROR(VLOOKUP(AI23,CadMP!$B:$D,2,0),"") ->  | BN23: =IFERROR(VLOOKUP(AJ23,CadMP!$B:$D,2,0),"") ->  | BO23: =IFERROR(VLOOKUP(AK23,CadMP!$B:$D,2,0),"") ->  | BP23: =IFERROR(VLOOKUP(W23,CadMP!$B:$D,3,0),"") ->  | BQ23: =IFERROR(VLOOKUP(X23,CadMP!$B:$D,3,0),"") ->  | BR23: =IFERROR(VLOOKUP(Y23,CadMP!$B:$D,3,0),"") ->  | BS23: =IFERROR(VLOOKUP(Z23,CadMP!$B:$D,3,0),"") ->  | BT23: =IFERROR(VLOOKUP(AA23,CadMP!$B:$D,3,0),"") ->  | BU23: =IFERROR(VLOOKUP(AB23,CadMP!$B:$D,3,0),"") ->  | BV23: =IFERROR(VLOOKUP(AC23,CadMP!$B:$D,3,0),"") ->  | BW23: =IFERROR(VLOOKUP(AD23,CadMP!$B:$D,3,0),"") ->  | BX23: =IFERROR(VLOOKUP(AE23,CadMP!$B:$D,3,0),"") ->  | BY23: =IFERROR(VLOOKUP(AF23,CadMP!$B:$D,3,0),"") ->  | BZ23: =IFERROR(VLOOKUP(AG23,CadMP!$B:$D,3,0),"") ->  | CA23: =IFERROR(VLOOKUP(AH23,CadMP!$B:$D,3,0),"") ->  | CB23: =IFERROR(VLOOKUP(AI23,CadMP!$B:$D,3,0),"") ->  | CC23: =IFERROR(VLOOKUP(AJ23,CadMP!$B:$D,3,0),"") ->  | CD23: =IFERROR(VLOOKUP(AK23,CadMP!$B:$D,3,0),"") ->  | CE23: 0 | CF23: 0 | CG23: 0 | CH23: 0 | CI23: 0 | CJ23: 0 | CK23: 0 | CL23: 0 | CM23: 0 | CN23: 0 | CO23: 0 | CP23: 0 | CQ23: 0 | CR23: 0 | CS23: 0
A24: 23 | D24: 0 | E24: 0 | L24: 0 | M24: 0 | U24: 1.00 | V24: 0 | BA24: =IFERROR(VLOOKUP(W24,CadMP!$B:$D,2,0),"") ->  | BB24: =IFERROR(VLOOKUP(X24,CadMP!$B:$D,2,0),"") ->  | BC24: =IFERROR(VLOOKUP(Y24,CadMP!$B:$D,2,0),"") ->  | BD24: =IFERROR(VLOOKUP(Z24,CadMP!$B:$D,2,0),"") ->  | BE24: =IFERROR(VLOOKUP(AA24,CadMP!$B:$D,2,0),"") ->  | BF24: =IFERROR(VLOOKUP(AB24,CadMP!$B:$D,2,0),"") ->  | BG24: =IFERROR(VLOOKUP(AC24,CadMP!$B:$D,2,0),"") ->  | BH24: =IFERROR(VLOOKUP(AD24,CadMP!$B:$D,2,0),"") ->  | BI24: =IFERROR(VLOOKUP(AE24,CadMP!$B:$D,2,0),"") ->  | BJ24: =IFERROR(VLOOKUP(AF24,CadMP!$B:$D,2,0),"") ->  | BK24: =IFERROR(VLOOKUP(AG24,CadMP!$B:$D,2,0),"") ->  | BL24: =IFERROR(VLOOKUP(AH24,CadMP!$B:$D,2,0),"") ->  | BM24: =IFERROR(VLOOKUP(AI24,CadMP!$B:$D,2,0),"") ->  | BN24: =IFERROR(VLOOKUP(AJ24,CadMP!$B:$D,2,0),"") ->  | BO24: =IFERROR(VLOOKUP(AK24,CadMP!$B:$D,2,0),"") ->  | BP24: =IFERROR(VLOOKUP(W24,CadMP!$B:$D,3,0),"") ->  | BQ24: =IFERROR(VLOOKUP(X24,CadMP!$B:$D,3,0),"") ->  | BR24: =IFERROR(VLOOKUP(Y24,CadMP!$B:$D,3,0),"") ->  | BS24: =IFERROR(VLOOKUP(Z24,CadMP!$B:$D,3,0),"") ->  | BT24: =IFERROR(VLOOKUP(AA24,CadMP!$B:$D,3,0),"") ->  | BU24: =IFERROR(VLOOKUP(AB24,CadMP!$B:$D,3,0),"") ->  | BV24: =IFERROR(VLOOKUP(AC24,CadMP!$B:$D,3,0),"") ->  | BW24: =IFERROR(VLOOKUP(AD24,CadMP!$B:$D,3,0),"") ->  | BX24: =IFERROR(VLOOKUP(AE24,CadMP!$B:$D,3,0),"") ->  | BY24: =IFERROR(VLOOKUP(AF24,CadMP!$B:$D,3,0),"") ->  | BZ24: =IFERROR(VLOOKUP(AG24,CadMP!$B:$D,3,0),"") ->  | CA24: =IFERROR(VLOOKUP(AH24,CadMP!$B:$D,3,0),"") ->  | CB24: =IFERROR(VLOOKUP(AI24,CadMP!$B:$D,3,0),"") ->  | CC24: =IFERROR(VLOOKUP(AJ24,CadMP!$B:$D,3,0),"") ->  | CD24: =IFERROR(VLOOKUP(AK24,CadMP!$B:$D,3,0),"") ->  | CE24: 0 | CF24: 0 | CG24: 0 | CH24: 0 | CI24: 0 | CJ24: 0 | CK24: 0 | CL24: 0 | CM24: 0 | CN24: 0 | CO24: 0 | CP24: 0 | CQ24: 0 | CR24: 0 | CS24: 0
A25: 24 | D25: 0 | E25: 0 | L25: 0 | M25: 0 | U25: 1.00 | V25: 0 | BA25: =IFERROR(VLOOKUP(W25,CadMP!$B:$D,2,0),"") ->  | BB25: =IFERROR(VLOOKUP(X25,CadMP!$B:$D,2,0),"") ->  | BC25: =IFERROR(VLOOKUP(Y25,CadMP!$B:$D,2,0),"") ->  | BD25: =IFERROR(VLOOKUP(Z25,CadMP!$B:$D,2,0),"") ->  | BE25: =IFERROR(VLOOKUP(AA25,CadMP!$B:$D,2,0),"") ->  | BF25: =IFERROR(VLOOKUP(AB25,CadMP!$B:$D,2,0),"") ->  | BG25: =IFERROR(VLOOKUP(AC25,CadMP!$B:$D,2,0),"") ->  | BH25: =IFERROR(VLOOKUP(AD25,CadMP!$B:$D,2,0),"") ->  | BI25: =IFERROR(VLOOKUP(AE25,CadMP!$B:$D,2,0),"") ->  | BJ25: =IFERROR(VLOOKUP(AF25,CadMP!$B:$D,2,0),"") ->  | BK25: =IFERROR(VLOOKUP(AG25,CadMP!$B:$D,2,0),"") ->  | BL25: =IFERROR(VLOOKUP(AH25,CadMP!$B:$D,2,0),"") ->  | BM25: =IFERROR(VLOOKUP(AI25,CadMP!$B:$D,2,0),"") ->  | BN25: =IFERROR(VLOOKUP(AJ25,CadMP!$B:$D,2,0),"") ->  | BO25: =IFERROR(VLOOKUP(AK25,CadMP!$B:$D,2,0),"") ->  | BP25: =IFERROR(VLOOKUP(W25,CadMP!$B:$D,3,0),"") ->  | BQ25: =IFERROR(VLOOKUP(X25,CadMP!$B:$D,3,0),"") ->  | BR25: =IFERROR(VLOOKUP(Y25,CadMP!$B:$D,3,0),"") ->  | BS25: =IFERROR(VLOOKUP(Z25,CadMP!$B:$D,3,0),"") ->  | BT25: =IFERROR(VLOOKUP(AA25,CadMP!$B:$D,3,0),"") ->  | BU25: =IFERROR(VLOOKUP(AB25,CadMP!$B:$D,3,0),"") ->  | BV25: =IFERROR(VLOOKUP(AC25,CadMP!$B:$D,3,0),"") ->  | BW25: =IFERROR(VLOOKUP(AD25,CadMP!$B:$D,3,0),"") ->  | BX25: =IFERROR(VLOOKUP(AE25,CadMP!$B:$D,3,0),"") ->  | BY25: =IFERROR(VLOOKUP(AF25,CadMP!$B:$D,3,0),"") ->  | BZ25: =IFERROR(VLOOKUP(AG25,CadMP!$B:$D,3,0),"") ->  | CA25: =IFERROR(VLOOKUP(AH25,CadMP!$B:$D,3,0),"") ->  | CB25: =IFERROR(VLOOKUP(AI25,CadMP!$B:$D,3,0),"") ->  | CC25: =IFERROR(VLOOKUP(AJ25,CadMP!$B:$D,3,0),"") ->  | CD25: =IFERROR(VLOOKUP(AK25,CadMP!$B:$D,3,0),"") ->  | CE25: 0 | CF25: 0 | CG25: 0 | CH25: 0 | CI25: 0 | CJ25: 0 | CK25: 0 | CL25: 0 | CM25: 0 | CN25: 0 | CO25: 0 | CP25: 0 | CQ25: 0 | CR25: 0 | CS25: 0
A26: 25 | D26: 0 | E26: 0 | L26: 0 | M26: 0 | U26: 1.00 | V26: 0 | BA26: =IFERROR(VLOOKUP(W26,CadMP!$B:$D,2,0),"") ->  | BB26: =IFERROR(VLOOKUP(X26,CadMP!$B:$D,2,0),"") ->  | BC26: =IFERROR(VLOOKUP(Y26,CadMP!$B:$D,2,0),"") ->  | BD26: =IFERROR(VLOOKUP(Z26,CadMP!$B:$D,2,0),"") ->  | BE26: =IFERROR(VLOOKUP(AA26,CadMP!$B:$D,2,0),"") ->  | BF26: =IFERROR(VLOOKUP(AB26,CadMP!$B:$D,2,0),"") ->  | BG26: =IFERROR(VLOOKUP(AC26,CadMP!$B:$D,2,0),"") ->  | BH26: =IFERROR(VLOOKUP(AD26,CadMP!$B:$D,2,0),"") ->  | BI26: =IFERROR(VLOOKUP(AE26,CadMP!$B:$D,2,0),"") ->  | BJ26: =IFERROR(VLOOKUP(AF26,CadMP!$B:$D,2,0),"") ->  | BK26: =IFERROR(VLOOKUP(AG26,CadMP!$B:$D,2,0),"") ->  | BL26: =IFERROR(VLOOKUP(AH26,CadMP!$B:$D,2,0),"") ->  | BM26: =IFERROR(VLOOKUP(AI26,CadMP!$B:$D,2,0),"") ->  | BN26: =IFERROR(VLOOKUP(AJ26,CadMP!$B:$D,2,0),"") ->  | BO26: =IFERROR(VLOOKUP(AK26,CadMP!$B:$D,2,0),"") ->  | BP26: =IFERROR(VLOOKUP(W26,CadMP!$B:$D,3,0),"") ->  | BQ26: =IFERROR(VLOOKUP(X26,CadMP!$B:$D,3,0),"") ->  | BR26: =IFERROR(VLOOKUP(Y26,CadMP!$B:$D,3,0),"") ->  | BS26: =IFERROR(VLOOKUP(Z26,CadMP!$B:$D,3,0),"") ->  | BT26: =IFERROR(VLOOKUP(AA26,CadMP!$B:$D,3,0),"") ->  | BU26: =IFERROR(VLOOKUP(AB26,CadMP!$B:$D,3,0),"") ->  | BV26: =IFERROR(VLOOKUP(AC26,CadMP!$B:$D,3,0),"") ->  | BW26: =IFERROR(VLOOKUP(AD26,CadMP!$B:$D,3,0),"") ->  | BX26: =IFERROR(VLOOKUP(AE26,CadMP!$B:$D,3,0),"") ->  | BY26: =IFERROR(VLOOKUP(AF26,CadMP!$B:$D,3,0),"") ->  | BZ26: =IFERROR(VLOOKUP(AG26,CadMP!$B:$D,3,0),"") ->  | CA26: =IFERROR(VLOOKUP(AH26,CadMP!$B:$D,3,0),"") ->  | CB26: =IFERROR(VLOOKUP(AI26,CadMP!$B:$D,3,0),"") ->  | CC26: =IFERROR(VLOOKUP(AJ26,CadMP!$B:$D,3,0),"") ->  | CD26: =IFERROR(VLOOKUP(AK26,CadMP!$B:$D,3,0),"") ->  | CE26: 0 | CF26: 0 | CG26: 0 | CH26: 0 | CI26: 0 | CJ26: 0 | CK26: 0 | CL26: 0 | CM26: 0 | CN26: 0 | CO26: 0 | CP26: 0 | CQ26: 0 | CR26: 0 | CS26: 0
A27: 26 | D27: 0 | E27: 0 | L27: 0 | M27: 0 | U27: 1.00 | V27: 0 | BA27: =IFERROR(VLOOKUP(W27,CadMP!$B:$D,2,0),"") ->  | BB27: =IFERROR(VLOOKUP(X27,CadMP!$B:$D,2,0),"") ->  | BC27: =IFERROR(VLOOKUP(Y27,CadMP!$B:$D,2,0),"") ->  | BD27: =IFERROR(VLOOKUP(Z27,CadMP!$B:$D,2,0),"") ->  | BE27: =IFERROR(VLOOKUP(AA27,CadMP!$B:$D,2,0),"") ->  | BF27: =IFERROR(VLOOKUP(AB27,CadMP!$B:$D,2,0),"") ->  | BG27: =IFERROR(VLOOKUP(AC27,CadMP!$B:$D,2,0),"") ->  | BH27: =IFERROR(VLOOKUP(AD27,CadMP!$B:$D,2,0),"") ->  | BI27: =IFERROR(VLOOKUP(AE27,CadMP!$B:$D,2,0),"") ->  | BJ27: =IFERROR(VLOOKUP(AF27,CadMP!$B:$D,2,0),"") ->  | BK27: =IFERROR(VLOOKUP(AG27,CadMP!$B:$D,2,0),"") ->  | BL27: =IFERROR(VLOOKUP(AH27,CadMP!$B:$D,2,0),"") ->  | BM27: =IFERROR(VLOOKUP(AI27,CadMP!$B:$D,2,0),"") ->  | BN27: =IFERROR(VLOOKUP(AJ27,CadMP!$B:$D,2,0),"") ->  | BO27: =IFERROR(VLOOKUP(AK27,CadMP!$B:$D,2,0),"") ->  | BP27: =IFERROR(VLOOKUP(W27,CadMP!$B:$D,3,0),"") ->  | BQ27: =IFERROR(VLOOKUP(X27,CadMP!$B:$D,3,0),"") ->  | BR27: =IFERROR(VLOOKUP(Y27,CadMP!$B:$D,3,0),"") ->  | BS27: =IFERROR(VLOOKUP(Z27,CadMP!$B:$D,3,0),"") ->  | BT27: =IFERROR(VLOOKUP(AA27,CadMP!$B:$D,3,0),"") ->  | BU27: =IFERROR(VLOOKUP(AB27,CadMP!$B:$D,3,0),"") ->  | BV27: =IFERROR(VLOOKUP(AC27,CadMP!$B:$D,3,0),"") ->  | BW27: =IFERROR(VLOOKUP(AD27,CadMP!$B:$D,3,0),"") ->  | BX27: =IFERROR(VLOOKUP(AE27,CadMP!$B:$D,3,0),"") ->  | BY27: =IFERROR(VLOOKUP(AF27,CadMP!$B:$D,3,0),"") ->  | BZ27: =IFERROR(VLOOKUP(AG27,CadMP!$B:$D,3,0),"") ->  | CA27: =IFERROR(VLOOKUP(AH27,CadMP!$B:$D,3,0),"") ->  | CB27: =IFERROR(VLOOKUP(AI27,CadMP!$B:$D,3,0),"") ->  | CC27: =IFERROR(VLOOKUP(AJ27,CadMP!$B:$D,3,0),"") ->  | CD27: =IFERROR(VLOOKUP(AK27,CadMP!$B:$D,3,0),"") ->  | CE27: 0 | CF27: 0 | CG27: 0 | CH27: 0 | CI27: 0 | CJ27: 0 | CK27: 0 | CL27: 0 | CM27: 0 | CN27: 0 | CO27: 0 | CP27: 0 | CQ27: 0 | CR27: 0 | CS27: 0
A28: 27 | D28: 0 | E28: 0 | L28: 0 | M28: 0 | U28: 1.00 | V28: 0 | BA28: =IFERROR(VLOOKUP(W28,CadMP!$B:$D,2,0),"") ->  | BB28: =IFERROR(VLOOKUP(X28,CadMP!$B:$D,2,0),"") ->  | BC28: =IFERROR(VLOOKUP(Y28,CadMP!$B:$D,2,0),"") ->  | BD28: =IFERROR(VLOOKUP(Z28,CadMP!$B:$D,2,0),"") ->  | BE28: =IFERROR(VLOOKUP(AA28,CadMP!$B:$D,2,0),"") ->  | BF28: =IFERROR(VLOOKUP(AB28,CadMP!$B:$D,2,0),"") ->  | BG28: =IFERROR(VLOOKUP(AC28,CadMP!$B:$D,2,0),"") ->  | BH28: =IFERROR(VLOOKUP(AD28,CadMP!$B:$D,2,0),"") ->  | BI28: =IFERROR(VLOOKUP(AE28,CadMP!$B:$D,2,0),"") ->  | BJ28: =IFERROR(VLOOKUP(AF28,CadMP!$B:$D,2,0),"") ->  | BK28: =IFERROR(VLOOKUP(AG28,CadMP!$B:$D,2,0),"") ->  | BL28: =IFERROR(VLOOKUP(AH28,CadMP!$B:$D,2,0),"") ->  | BM28: =IFERROR(VLOOKUP(AI28,CadMP!$B:$D,2,0),"") ->  | BN28: =IFERROR(VLOOKUP(AJ28,CadMP!$B:$D,2,0),"") ->  | BO28: =IFERROR(VLOOKUP(AK28,CadMP!$B:$D,2,0),"") ->  | BP28: =IFERROR(VLOOKUP(W28,CadMP!$B:$D,3,0),"") ->  | BQ28: =IFERROR(VLOOKUP(X28,CadMP!$B:$D,3,0),"") ->  | BR28: =IFERROR(VLOOKUP(Y28,CadMP!$B:$D,3,0),"") ->  | BS28: =IFERROR(VLOOKUP(Z28,CadMP!$B:$D,3,0),"") ->  | BT28: =IFERROR(VLOOKUP(AA28,CadMP!$B:$D,3,0),"") ->  | BU28: =IFERROR(VLOOKUP(AB28,CadMP!$B:$D,3,0),"") ->  | BV28: =IFERROR(VLOOKUP(AC28,CadMP!$B:$D,3,0),"") ->  | BW28: =IFERROR(VLOOKUP(AD28,CadMP!$B:$D,3,0),"") ->  | BX28: =IFERROR(VLOOKUP(AE28,CadMP!$B:$D,3,0),"") ->  | BY28: =IFERROR(VLOOKUP(AF28,CadMP!$B:$D,3,0),"") ->  | BZ28: =IFERROR(VLOOKUP(AG28,CadMP!$B:$D,3,0),"") ->  | CA28: =IFERROR(VLOOKUP(AH28,CadMP!$B:$D,3,0),"") ->  | CB28: =IFERROR(VLOOKUP(AI28,CadMP!$B:$D,3,0),"") ->  | CC28: =IFERROR(VLOOKUP(AJ28,CadMP!$B:$D,3,0),"") ->  | CD28: =IFERROR(VLOOKUP(AK28,CadMP!$B:$D,3,0),"") ->  | CE28: 0 | CF28: 0 | CG28: 0 | CH28: 0 | CI28: 0 | CJ28: 0 | CK28: 0 | CL28: 0 | CM28: 0 | CN28: 0 | CO28: 0 | CP28: 0 | CQ28: 0 | CR28: 0 | CS28: 0
A29: 28 | D29: 0 | E29: 0 | L29: 0 | M29: 0 | U29: 1.00 | V29: 0 | BA29: =IFERROR(VLOOKUP(W29,CadMP!$B:$D,2,0),"") ->  | BB29: =IFERROR(VLOOKUP(X29,CadMP!$B:$D,2,0),"") ->  | BC29: =IFERROR(VLOOKUP(Y29,CadMP!$B:$D,2,0),"") ->  | BD29: =IFERROR(VLOOKUP(Z29,CadMP!$B:$D,2,0),"") ->  | BE29: =IFERROR(VLOOKUP(AA29,CadMP!$B:$D,2,0),"") ->  | BF29: =IFERROR(VLOOKUP(AB29,CadMP!$B:$D,2,0),"") ->  | BG29: =IFERROR(VLOOKUP(AC29,CadMP!$B:$D,2,0),"") ->  | BH29: =IFERROR(VLOOKUP(AD29,CadMP!$B:$D,2,0),"") ->  | BI29: =IFERROR(VLOOKUP(AE29,CadMP!$B:$D,2,0),"") ->  | BJ29: =IFERROR(VLOOKUP(AF29,CadMP!$B:$D,2,0),"") ->  | BK29: =IFERROR(VLOOKUP(AG29,CadMP!$B:$D,2,0),"") ->  | BL29: =IFERROR(VLOOKUP(AH29,CadMP!$B:$D,2,0),"") ->  | BM29: =IFERROR(VLOOKUP(AI29,CadMP!$B:$D,2,0),"") ->  | BN29: =IFERROR(VLOOKUP(AJ29,CadMP!$B:$D,2,0),"") ->  | BO29: =IFERROR(VLOOKUP(AK29,CadMP!$B:$D,2,0),"") ->  | BP29: =IFERROR(VLOOKUP(W29,CadMP!$B:$D,3,0),"") ->  | BQ29: =IFERROR(VLOOKUP(X29,CadMP!$B:$D,3,0),"") ->  | BR29: =IFERROR(VLOOKUP(Y29,CadMP!$B:$D,3,0),"") ->  | BS29: =IFERROR(VLOOKUP(Z29,CadMP!$B:$D,3,0),"") ->  | BT29: =IFERROR(VLOOKUP(AA29,CadMP!$B:$D,3,0),"") ->  | BU29: =IFERROR(VLOOKUP(AB29,CadMP!$B:$D,3,0),"") ->  | BV29: =IFERROR(VLOOKUP(AC29,CadMP!$B:$D,3,0),"") ->  | BW29: =IFERROR(VLOOKUP(AD29,CadMP!$B:$D,3,0),"") ->  | BX29: =IFERROR(VLOOKUP(AE29,CadMP!$B:$D,3,0),"") ->  | BY29: =IFERROR(VLOOKUP(AF29,CadMP!$B:$D,3,0),"") ->  | BZ29: =IFERROR(VLOOKUP(AG29,CadMP!$B:$D,3,0),"") ->  | CA29: =IFERROR(VLOOKUP(AH29,CadMP!$B:$D,3,0),"") ->  | CB29: =IFERROR(VLOOKUP(AI29,CadMP!$B:$D,3,0),"") ->  | CC29: =IFERROR(VLOOKUP(AJ29,CadMP!$B:$D,3,0),"") ->  | CD29: =IFERROR(VLOOKUP(AK29,CadMP!$B:$D,3,0),"") ->  | CE29: 0 | CF29: 0 | CG29: 0 | CH29: 0 | CI29: 0 | CJ29: 0 | CK29: 0 | CL29: 0 | CM29: 0 | CN29: 0 | CO29: 0 | CP29: 0 | CQ29: 0 | CR29: 0 | CS29: 0
A30: 29 | D30: 0 | E30: 0 | L30: 0 | M30: 0 | U30: 1.00 | V30: 0 | BA30: =IFERROR(VLOOKUP(W30,CadMP!$B:$D,2,0),"") ->  | BB30: =IFERROR(VLOOKUP(X30,CadMP!$B:$D,2,0),"") ->  | BC30: =IFERROR(VLOOKUP(Y30,CadMP!$B:$D,2,0),"") ->  | BD30: =IFERROR(VLOOKUP(Z30,CadMP!$B:$D,2,0),"") ->  | BE30: =IFERROR(VLOOKUP(AA30,CadMP!$B:$D,2,0),"") ->  | BF30: =IFERROR(VLOOKUP(AB30,CadMP!$B:$D,2,0),"") ->  | BG30: =IFERROR(VLOOKUP(AC30,CadMP!$B:$D,2,0),"") ->  | BH30: =IFERROR(VLOOKUP(AD30,CadMP!$B:$D,2,0),"") ->  | BI30: =IFERROR(VLOOKUP(AE30,CadMP!$B:$D,2,0),"") ->  | BJ30: =IFERROR(VLOOKUP(AF30,CadMP!$B:$D,2,0),"") ->  | BK30: =IFERROR(VLOOKUP(AG30,CadMP!$B:$D,2,0),"") ->  | BL30: =IFERROR(VLOOKUP(AH30,CadMP!$B:$D,2,0),"") ->  | BM30: =IFERROR(VLOOKUP(AI30,CadMP!$B:$D,2,0),"") ->  | BN30: =IFERROR(VLOOKUP(AJ30,CadMP!$B:$D,2,0),"") ->  | BO30: =IFERROR(VLOOKUP(AK30,CadMP!$B:$D,2,0),"") ->  | BP30: =IFERROR(VLOOKUP(W30,CadMP!$B:$D,3,0),"") ->  | BQ30: =IFERROR(VLOOKUP(X30,CadMP!$B:$D,3,0),"") ->  | BR30: =IFERROR(VLOOKUP(Y30,CadMP!$B:$D,3,0),"") ->  | BS30: =IFERROR(VLOOKUP(Z30,CadMP!$B:$D,3,0),"") ->  | BT30: =IFERROR(VLOOKUP(AA30,CadMP!$B:$D,3,0),"") ->  | BU30: =IFERROR(VLOOKUP(AB30,CadMP!$B:$D,3,0),"") ->  | BV30: =IFERROR(VLOOKUP(AC30,CadMP!$B:$D,3,0),"") ->  | BW30: =IFERROR(VLOOKUP(AD30,CadMP!$B:$D,3,0),"") ->  | BX30: =IFERROR(VLOOKUP(AE30,CadMP!$B:$D,3,0),"") ->  | BY30: =IFERROR(VLOOKUP(AF30,CadMP!$B:$D,3,0),"") ->  | BZ30: =IFERROR(VLOOKUP(AG30,CadMP!$B:$D,3,0),"") ->  | CA30: =IFERROR(VLOOKUP(AH30,CadMP!$B:$D,3,0),"") ->  | CB30: =IFERROR(VLOOKUP(AI30,CadMP!$B:$D,3,0),"") ->  | CC30: =IFERROR(VLOOKUP(AJ30,CadMP!$B:$D,3,0),"") ->  | CD30: =IFERROR(VLOOKUP(AK30,CadMP!$B:$D,3,0),"") ->  | CE30: 0 | CF30: 0 | CG30: 0 | CH30: 0 | CI30: 0 | CJ30: 0 | CK30: 0 | CL30: 0 | CM30: 0 | CN30: 0 | CO30: 0 | CP30: 0 | CQ30: 0 | CR30: 0 | CS30: 0
A31: 30 | D31: 0 | E31: 0 | L31: 0 | M31: 0 | U31: 1.00 | V31: 0 | BA31: =IFERROR(VLOOKUP(W31,CadMP!$B:$D,2,0),"") ->  | BB31: =IFERROR(VLOOKUP(X31,CadMP!$B:$D,2,0),"") ->  | BC31: =IFERROR(VLOOKUP(Y31,CadMP!$B:$D,2,0),"") ->  | BD31: =IFERROR(VLOOKUP(Z31,CadMP!$B:$D,2,0),"") ->  | BE31: =IFERROR(VLOOKUP(AA31,CadMP!$B:$D,2,0),"") ->  | BF31: =IFERROR(VLOOKUP(AB31,CadMP!$B:$D,2,0),"") ->  | BG31: =IFERROR(VLOOKUP(AC31,CadMP!$B:$D,2,0),"") ->  | BH31: =IFERROR(VLOOKUP(AD31,CadMP!$B:$D,2,0),"") ->  | BI31: =IFERROR(VLOOKUP(AE31,CadMP!$B:$D,2,0),"") ->  | BJ31: =IFERROR(VLOOKUP(AF31,CadMP!$B:$D,2,0),"") ->  | BK31: =IFERROR(VLOOKUP(AG31,CadMP!$B:$D,2,0),"") ->  | BL31: =IFERROR(VLOOKUP(AH31,CadMP!$B:$D,2,0),"") ->  | BM31: =IFERROR(VLOOKUP(AI31,CadMP!$B:$D,2,0),"") ->  | BN31: =IFERROR(VLOOKUP(AJ31,CadMP!$B:$D,2,0),"") ->  | BO31: =IFERROR(VLOOKUP(AK31,CadMP!$B:$D,2,0),"") ->  | BP31: =IFERROR(VLOOKUP(W31,CadMP!$B:$D,3,0),"") ->  | BQ31: =IFERROR(VLOOKUP(X31,CadMP!$B:$D,3,0),"") ->  | BR31: =IFERROR(VLOOKUP(Y31,CadMP!$B:$D,3,0),"") ->  | BS31: =IFERROR(VLOOKUP(Z31,CadMP!$B:$D,3,0),"") ->  | BT31: =IFERROR(VLOOKUP(AA31,CadMP!$B:$D,3,0),"") ->  | BU31: =IFERROR(VLOOKUP(AB31,CadMP!$B:$D,3,0),"") ->  | BV31: =IFERROR(VLOOKUP(AC31,CadMP!$B:$D,3,0),"") ->  | BW31: =IFERROR(VLOOKUP(AD31,CadMP!$B:$D,3,0),"") ->  | BX31: =IFERROR(VLOOKUP(AE31,CadMP!$B:$D,3,0),"") ->  | BY31: =IFERROR(VLOOKUP(AF31,CadMP!$B:$D,3,0),"") ->  | BZ31: =IFERROR(VLOOKUP(AG31,CadMP!$B:$D,3,0),"") ->  | CA31: =IFERROR(VLOOKUP(AH31,CadMP!$B:$D,3,0),"") ->  | CB31: =IFERROR(VLOOKUP(AI31,CadMP!$B:$D,3,0),"") ->  | CC31: =IFERROR(VLOOKUP(AJ31,CadMP!$B:$D,3,0),"") ->  | CD31: =IFERROR(VLOOKUP(AK31,CadMP!$B:$D,3,0),"") ->  | CE31: 0 | CF31: 0 | CG31: 0 | CH31: 0 | CI31: 0 | CJ31: 0 | CK31: 0 | CL31: 0 | CM31: 0 | CN31: 0 | CO31: 0 | CP31: 0 | CQ31: 0 | CR31: 0 | CS31: 0
A32: 31 | D32: 0 | E32: 0 | L32: 0 | M32: 0 | U32: 1.00 | V32: 0 | BA32: =IFERROR(VLOOKUP(W32,CadMP!$B:$D,2,0),"") ->  | BB32: =IFERROR(VLOOKUP(X32,CadMP!$B:$D,2,0),"") ->  | BC32: =IFERROR(VLOOKUP(Y32,CadMP!$B:$D,2,0),"") ->  | BD32: =IFERROR(VLOOKUP(Z32,CadMP!$B:$D,2,0),"") ->  | BE32: =IFERROR(VLOOKUP(AA32,CadMP!$B:$D,2,0),"") ->  | BF32: =IFERROR(VLOOKUP(AB32,CadMP!$B:$D,2,0),"") ->  | BG32: =IFERROR(VLOOKUP(AC32,CadMP!$B:$D,2,0),"") ->  | BH32: =IFERROR(VLOOKUP(AD32,CadMP!$B:$D,2,0),"") ->  | BI32: =IFERROR(VLOOKUP(AE32,CadMP!$B:$D,2,0),"") ->  | BJ32: =IFERROR(VLOOKUP(AF32,CadMP!$B:$D,2,0),"") ->  | BK32: =IFERROR(VLOOKUP(AG32,CadMP!$B:$D,2,0),"") ->  | BL32: =IFERROR(VLOOKUP(AH32,CadMP!$B:$D,2,0),"") ->  | BM32: =IFERROR(VLOOKUP(AI32,CadMP!$B:$D,2,0),"") ->  | BN32: =IFERROR(VLOOKUP(AJ32,CadMP!$B:$D,2,0),"") ->  | BO32: =IFERROR(VLOOKUP(AK32,CadMP!$B:$D,2,0),"") ->  | BP32: =IFERROR(VLOOKUP(W32,CadMP!$B:$D,3,0),"") ->  | BQ32: =IFERROR(VLOOKUP(X32,CadMP!$B:$D,3,0),"") ->  | BR32: =IFERROR(VLOOKUP(Y32,CadMP!$B:$D,3,0),"") ->  | BS32: =IFERROR(VLOOKUP(Z32,CadMP!$B:$D,3,0),"") ->  | BT32: =IFERROR(VLOOKUP(AA32,CadMP!$B:$D,3,0),"") ->  | BU32: =IFERROR(VLOOKUP(AB32,CadMP!$B:$D,3,0),"") ->  | BV32: =IFERROR(VLOOKUP(AC32,CadMP!$B:$D,3,0),"") ->  | BW32: =IFERROR(VLOOKUP(AD32,CadMP!$B:$D,3,0),"") ->  | BX32: =IFERROR(VLOOKUP(AE32,CadMP!$B:$D,3,0),"") ->  | BY32: =IFERROR(VLOOKUP(AF32,CadMP!$B:$D,3,0),"") ->  | BZ32: =IFERROR(VLOOKUP(AG32,CadMP!$B:$D,3,0),"") ->  | CA32: =IFERROR(VLOOKUP(AH32,CadMP!$B:$D,3,0),"") ->  | CB32: =IFERROR(VLOOKUP(AI32,CadMP!$B:$D,3,0),"") ->  | CC32: =IFERROR(VLOOKUP(AJ32,CadMP!$B:$D,3,0),"") ->  | CD32: =IFERROR(VLOOKUP(AK32,CadMP!$B:$D,3,0),"") ->  | CE32: 0 | CF32: 0 | CG32: 0 | CH32: 0 | CI32: 0 | CJ32: 0 | CK32: 0 | CL32: 0 | CM32: 0 | CN32: 0 | CO32: 0 | CP32: 0 | CQ32: 0 | CR32: 0 | CS32: 0
A33: 32 | D33: 0 | E33: 0 | L33: 0 | M33: 0 | U33: 1.00 | V33: 0 | BA33: =IFERROR(VLOOKUP(W33,CadMP!$B:$D,2,0),"") ->  | BB33: =IFERROR(VLOOKUP(X33,CadMP!$B:$D,2,0),"") ->  | BC33: =IFERROR(VLOOKUP(Y33,CadMP!$B:$D,2,0),"") ->  | BD33: =IFERROR(VLOOKUP(Z33,CadMP!$B:$D,2,0),"") ->  | BE33: =IFERROR(VLOOKUP(AA33,CadMP!$B:$D,2,0),"") ->  | BF33: =IFERROR(VLOOKUP(AB33,CadMP!$B:$D,2,0),"") ->  | BG33: =IFERROR(VLOOKUP(AC33,CadMP!$B:$D,2,0),"") ->  | BH33: =IFERROR(VLOOKUP(AD33,CadMP!$B:$D,2,0),"") ->  | BI33: =IFERROR(VLOOKUP(AE33,CadMP!$B:$D,2,0),"") ->  | BJ33: =IFERROR(VLOOKUP(AF33,CadMP!$B:$D,2,0),"") ->  | BK33: =IFERROR(VLOOKUP(AG33,CadMP!$B:$D,2,0),"") ->  | BL33: =IFERROR(VLOOKUP(AH33,CadMP!$B:$D,2,0),"") ->  | BM33: =IFERROR(VLOOKUP(AI33,CadMP!$B:$D,2,0),"") ->  | BN33: =IFERROR(VLOOKUP(AJ33,CadMP!$B:$D,2,0),"") ->  | BO33: =IFERROR(VLOOKUP(AK33,CadMP!$B:$D,2,0),"") ->  | BP33: =IFERROR(VLOOKUP(W33,CadMP!$B:$D,3,0),"") ->  | BQ33: =IFERROR(VLOOKUP(X33,CadMP!$B:$D,3,0),"") ->  | BR33: =IFERROR(VLOOKUP(Y33,CadMP!$B:$D,3,0),"") ->  | BS33: =IFERROR(VLOOKUP(Z33,CadMP!$B:$D,3,0),"") ->  | BT33: =IFERROR(VLOOKUP(AA33,CadMP!$B:$D,3,0),"") ->  | BU33: =IFERROR(VLOOKUP(AB33,CadMP!$B:$D,3,0),"") ->  | BV33: =IFERROR(VLOOKUP(AC33,CadMP!$B:$D,3,0),"") ->  | BW33: =IFERROR(VLOOKUP(AD33,CadMP!$B:$D,3,0),"") ->  | BX33: =IFERROR(VLOOKUP(AE33,CadMP!$B:$D,3,0),"") ->  | BY33: =IFERROR(VLOOKUP(AF33,CadMP!$B:$D,3,0),"") ->  | BZ33: =IFERROR(VLOOKUP(AG33,CadMP!$B:$D,3,0),"") ->  | CA33: =IFERROR(VLOOKUP(AH33,CadMP!$B:$D,3,0),"") ->  | CB33: =IFERROR(VLOOKUP(AI33,CadMP!$B:$D,3,0),"") ->  | CC33: =IFERROR(VLOOKUP(AJ33,CadMP!$B:$D,3,0),"") ->  | CD33: =IFERROR(VLOOKUP(AK33,CadMP!$B:$D,3,0),"") ->  | CE33: 0 | CF33: 0 | CG33: 0 | CH33: 0 | CI33: 0 | CJ33: 0 | CK33: 0 | CL33: 0 | CM33: 0 | CN33: 0 | CO33: 0 | CP33: 0 | CQ33: 0 | CR33: 0 | CS33: 0
A34: 33 | D34: 0 | E34: 0 | L34: 0 | M34: 0 | U34: 1.00 | V34: 0 | BA34: =IFERROR(VLOOKUP(W34,CadMP!$B:$D,2,0),"") ->  | BB34: =IFERROR(VLOOKUP(X34,CadMP!$B:$D,2,0),"") ->  | BC34: =IFERROR(VLOOKUP(Y34,CadMP!$B:$D,2,0),"") ->  | BD34: =IFERROR(VLOOKUP(Z34,CadMP!$B:$D,2,0),"") ->  | BE34: =IFERROR(VLOOKUP(AA34,CadMP!$B:$D,2,0),"") ->  | BF34: =IFERROR(VLOOKUP(AB34,CadMP!$B:$D,2,0),"") ->  | BG34: =IFERROR(VLOOKUP(AC34,CadMP!$B:$D,2,0),"") ->  | BH34: =IFERROR(VLOOKUP(AD34,CadMP!$B:$D,2,0),"") ->  | BI34: =IFERROR(VLOOKUP(AE34,CadMP!$B:$D,2,0),"") ->  | BJ34: =IFERROR(VLOOKUP(AF34,CadMP!$B:$D,2,0),"") ->  | BK34: =IFERROR(VLOOKUP(AG34,CadMP!$B:$D,2,0),"") ->  | BL34: =IFERROR(VLOOKUP(AH34,CadMP!$B:$D,2,0),"") ->  | BM34: =IFERROR(VLOOKUP(AI34,CadMP!$B:$D,2,0),"") ->  | BN34: =IFERROR(VLOOKUP(AJ34,CadMP!$B:$D,2,0),"") ->  | BO34: =IFERROR(VLOOKUP(AK34,CadMP!$B:$D,2,0),"") ->  | BP34: =IFERROR(VLOOKUP(W34,CadMP!$B:$D,3,0),"") ->  | BQ34: =IFERROR(VLOOKUP(X34,CadMP!$B:$D,3,0),"") ->  | BR34: =IFERROR(VLOOKUP(Y34,CadMP!$B:$D,3,0),"") ->  | BS34: =IFERROR(VLOOKUP(Z34,CadMP!$B:$D,3,0),"") ->  | BT34: =IFERROR(VLOOKUP(AA34,CadMP!$B:$D,3,0),"") ->  | BU34: =IFERROR(VLOOKUP(AB34,CadMP!$B:$D,3,0),"") ->  | BV34: =IFERROR(VLOOKUP(AC34,CadMP!$B:$D,3,0),"") ->  | BW34: =IFERROR(VLOOKUP(AD34,CadMP!$B:$D,3,0),"") ->  | BX34: =IFERROR(VLOOKUP(AE34,CadMP!$B:$D,3,0),"") ->  | BY34: =IFERROR(VLOOKUP(AF34,CadMP!$B:$D,3,0),"") ->  | BZ34: =IFERROR(VLOOKUP(AG34,CadMP!$B:$D,3,0),"") ->  | CA34: =IFERROR(VLOOKUP(AH34,CadMP!$B:$D,3,0),"") ->  | CB34: =IFERROR(VLOOKUP(AI34,CadMP!$B:$D,3,0),"") ->  | CC34: =IFERROR(VLOOKUP(AJ34,CadMP!$B:$D,3,0),"") ->  | CD34: =IFERROR(VLOOKUP(AK34,CadMP!$B:$D,3,0),"") ->  | CE34: 0 | CF34: 0 | CG34: 0 | CH34: 0 | CI34: 0 | CJ34: 0 | CK34: 0 | CL34: 0 | CM34: 0 | CN34: 0 | CO34: 0 | CP34: 0 | CQ34: 0 | CR34: 0 | CS34: 0
A35: 34 | D35: 0 | E35: 0 | L35: 0 | M35: 0 | U35: 1.00 | V35: 0 | BA35: =IFERROR(VLOOKUP(W35,CadMP!$B:$D,2,0),"") ->  | BB35: =IFERROR(VLOOKUP(X35,CadMP!$B:$D,2,0),"") ->  | BC35: =IFERROR(VLOOKUP(Y35,CadMP!$B:$D,2,0),"") ->  | BD35: =IFERROR(VLOOKUP(Z35,CadMP!$B:$D,2,0),"") ->  | BE35: =IFERROR(VLOOKUP(AA35,CadMP!$B:$D,2,0),"") ->  | BF35: =IFERROR(VLOOKUP(AB35,CadMP!$B:$D,2,0),"") ->  | BG35: =IFERROR(VLOOKUP(AC35,CadMP!$B:$D,2,0),"") ->  | BH35: =IFERROR(VLOOKUP(AD35,CadMP!$B:$D,2,0),"") ->  | BI35: =IFERROR(VLOOKUP(AE35,CadMP!$B:$D,2,0),"") ->  | BJ35: =IFERROR(VLOOKUP(AF35,CadMP!$B:$D,2,0),"") ->  | BK35: =IFERROR(VLOOKUP(AG35,CadMP!$B:$D,2,0),"") ->  | BL35: =IFERROR(VLOOKUP(AH35,CadMP!$B:$D,2,0),"") ->  | BM35: =IFERROR(VLOOKUP(AI35,CadMP!$B:$D,2,0),"") ->  | BN35: =IFERROR(VLOOKUP(AJ35,CadMP!$B:$D,2,0),"") ->  | BO35: =IFERROR(VLOOKUP(AK35,CadMP!$B:$D,2,0),"") ->  | BP35: =IFERROR(VLOOKUP(W35,CadMP!$B:$D,3,0),"") ->  | BQ35: =IFERROR(VLOOKUP(X35,CadMP!$B:$D,3,0),"") ->  | BR35: =IFERROR(VLOOKUP(Y35,CadMP!$B:$D,3,0),"") ->  | BS35: =IFERROR(VLOOKUP(Z35,CadMP!$B:$D,3,0),"") ->  | BT35: =IFERROR(VLOOKUP(AA35,CadMP!$B:$D,3,0),"") ->  | BU35: =IFERROR(VLOOKUP(AB35,CadMP!$B:$D,3,0),"") ->  | BV35: =IFERROR(VLOOKUP(AC35,CadMP!$B:$D,3,0),"") ->  | BW35: =IFERROR(VLOOKUP(AD35,CadMP!$B:$D,3,0),"") ->  | BX35: =IFERROR(VLOOKUP(AE35,CadMP!$B:$D,3,0),"") ->  | BY35: =IFERROR(VLOOKUP(AF35,CadMP!$B:$D,3,0),"") ->  | BZ35: =IFERROR(VLOOKUP(AG35,CadMP!$B:$D,3,0),"") ->  | CA35: =IFERROR(VLOOKUP(AH35,CadMP!$B:$D,3,0),"") ->  | CB35: =IFERROR(VLOOKUP(AI35,CadMP!$B:$D,3,0),"") ->  | CC35: =IFERROR(VLOOKUP(AJ35,CadMP!$B:$D,3,0),"") ->  | CD35: =IFERROR(VLOOKUP(AK35,CadMP!$B:$D,3,0),"") ->  | CE35: 0 | CF35: 0 | CG35: 0 | CH35: 0 | CI35: 0 | CJ35: 0 | CK35: 0 | CL35: 0 | CM35: 0 | CN35: 0 | CO35: 0 | CP35: 0 | CQ35: 0 | CR35: 0 | CS35: 0
A36: 35 | D36: 0 | E36: 0 | L36: 0 | M36: 0 | U36: 1.00 | V36: 0 | BA36: =IFERROR(VLOOKUP(W36,CadMP!$B:$D,2,0),"") ->  | BB36: =IFERROR(VLOOKUP(X36,CadMP!$B:$D,2,0),"") ->  | BC36: =IFERROR(VLOOKUP(Y36,CadMP!$B:$D,2,0),"") ->  | BD36: =IFERROR(VLOOKUP(Z36,CadMP!$B:$D,2,0),"") ->  | BE36: =IFERROR(VLOOKUP(AA36,CadMP!$B:$D,2,0),"") ->  | BF36: =IFERROR(VLOOKUP(AB36,CadMP!$B:$D,2,0),"") ->  | BG36: =IFERROR(VLOOKUP(AC36,CadMP!$B:$D,2,0),"") ->  | BH36: =IFERROR(VLOOKUP(AD36,CadMP!$B:$D,2,0),"") ->  | BI36: =IFERROR(VLOOKUP(AE36,CadMP!$B:$D,2,0),"") ->  | BJ36: =IFERROR(VLOOKUP(AF36,CadMP!$B:$D,2,0),"") ->  | BK36: =IFERROR(VLOOKUP(AG36,CadMP!$B:$D,2,0),"") ->  | BL36: =IFERROR(VLOOKUP(AH36,CadMP!$B:$D,2,0),"") ->  | BM36: =IFERROR(VLOOKUP(AI36,CadMP!$B:$D,2,0),"") ->  | BN36: =IFERROR(VLOOKUP(AJ36,CadMP!$B:$D,2,0),"") ->  | BO36: =IFERROR(VLOOKUP(AK36,CadMP!$B:$D,2,0),"") ->  | BP36: =IFERROR(VLOOKUP(W36,CadMP!$B:$D,3,0),"") ->  | BQ36: =IFERROR(VLOOKUP(X36,CadMP!$B:$D,3,0),"") ->  | BR36: =IFERROR(VLOOKUP(Y36,CadMP!$B:$D,3,0),"") ->  | BS36: =IFERROR(VLOOKUP(Z36,CadMP!$B:$D,3,0),"") ->  | BT36: =IFERROR(VLOOKUP(AA36,CadMP!$B:$D,3,0),"") ->  | BU36: =IFERROR(VLOOKUP(AB36,CadMP!$B:$D,3,0),"") ->  | BV36: =IFERROR(VLOOKUP(AC36,CadMP!$B:$D,3,0),"") ->  | BW36: =IFERROR(VLOOKUP(AD36,CadMP!$B:$D,3,0),"") ->  | BX36: =IFERROR(VLOOKUP(AE36,CadMP!$B:$D,3,0),"") ->  | BY36: =IFERROR(VLOOKUP(AF36,CadMP!$B:$D,3,0),"") ->  | BZ36: =IFERROR(VLOOKUP(AG36,CadMP!$B:$D,3,0),"") ->  | CA36: =IFERROR(VLOOKUP(AH36,CadMP!$B:$D,3,0),"") ->  | CB36: =IFERROR(VLOOKUP(AI36,CadMP!$B:$D,3,0),"") ->  | CC36: =IFERROR(VLOOKUP(AJ36,CadMP!$B:$D,3,0),"") ->  | CD36: =IFERROR(VLOOKUP(AK36,CadMP!$B:$D,3,0),"") ->  | CE36: 0 | CF36: 0 | CG36: 0 | CH36: 0 | CI36: 0 | CJ36: 0 | CK36: 0 | CL36: 0 | CM36: 0 | CN36: 0 | CO36: 0 | CP36: 0 | CQ36: 0 | CR36: 0 | CS36: 0
A37: 36 | D37: 0 | E37: 0 | L37: 0 | M37: 0 | U37: 1.00 | V37: 0 | BA37: =IFERROR(VLOOKUP(W37,CadMP!$B:$D,2,0),"") ->  | BB37: =IFERROR(VLOOKUP(X37,CadMP!$B:$D,2,0),"") ->  | BC37: =IFERROR(VLOOKUP(Y37,CadMP!$B:$D,2,0),"") ->  | BD37: =IFERROR(VLOOKUP(Z37,CadMP!$B:$D,2,0),"") ->  | BE37: =IFERROR(VLOOKUP(AA37,CadMP!$B:$D,2,0),"") ->  | BF37: =IFERROR(VLOOKUP(AB37,CadMP!$B:$D,2,0),"") ->  | BG37: =IFERROR(VLOOKUP(AC37,CadMP!$B:$D,2,0),"") ->  | BH37: =IFERROR(VLOOKUP(AD37,CadMP!$B:$D,2,0),"") ->  | BI37: =IFERROR(VLOOKUP(AE37,CadMP!$B:$D,2,0),"") ->  | BJ37: =IFERROR(VLOOKUP(AF37,CadMP!$B:$D,2,0),"") ->  | BK37: =IFERROR(VLOOKUP(AG37,CadMP!$B:$D,2,0),"") ->  | BL37: =IFERROR(VLOOKUP(AH37,CadMP!$B:$D,2,0),"") ->  | BM37: =IFERROR(VLOOKUP(AI37,CadMP!$B:$D,2,0),"") ->  | BN37: =IFERROR(VLOOKUP(AJ37,CadMP!$B:$D,2,0),"") ->  | BO37: =IFERROR(VLOOKUP(AK37,CadMP!$B:$D,2,0),"") ->  | BP37: =IFERROR(VLOOKUP(W37,CadMP!$B:$D,3,0),"") ->  | BQ37: =IFERROR(VLOOKUP(X37,CadMP!$B:$D,3,0),"") ->  | BR37: =IFERROR(VLOOKUP(Y37,CadMP!$B:$D,3,0),"") ->  | BS37: =IFERROR(VLOOKUP(Z37,CadMP!$B:$D,3,0),"") ->  | BT37: =IFERROR(VLOOKUP(AA37,CadMP!$B:$D,3,0),"") ->  | BU37: =IFERROR(VLOOKUP(AB37,CadMP!$B:$D,3,0),"") ->  | BV37: =IFERROR(VLOOKUP(AC37,CadMP!$B:$D,3,0),"") ->  | BW37: =IFERROR(VLOOKUP(AD37,CadMP!$B:$D,3,0),"") ->  | BX37: =IFERROR(VLOOKUP(AE37,CadMP!$B:$D,3,0),"") ->  | BY37: =IFERROR(VLOOKUP(AF37,CadMP!$B:$D,3,0),"") ->  | BZ37: =IFERROR(VLOOKUP(AG37,CadMP!$B:$D,3,0),"") ->  | CA37: =IFERROR(VLOOKUP(AH37,CadMP!$B:$D,3,0),"") ->  | CB37: =IFERROR(VLOOKUP(AI37,CadMP!$B:$D,3,0),"") ->  | CC37: =IFERROR(VLOOKUP(AJ37,CadMP!$B:$D,3,0),"") ->  | CD37: =IFERROR(VLOOKUP(AK37,CadMP!$B:$D,3,0),"") ->  | CE37: 0 | CF37: 0 | CG37: 0 | CH37: 0 | CI37: 0 | CJ37: 0 | CK37: 0 | CL37: 0 | CM37: 0 | CN37: 0 | CO37: 0 | CP37: 0 | CQ37: 0 | CR37: 0 | CS37: 0
A38: 37 | D38: 0 | E38: 0 | L38: 0 | M38: 0 | U38: 1.00 | V38: 0 | BA38: =IFERROR(VLOOKUP(W38,CadMP!$B:$D,2,0),"") ->  | BB38: =IFERROR(VLOOKUP(X38,CadMP!$B:$D,2,0),"") ->  | BC38: =IFERROR(VLOOKUP(Y38,CadMP!$B:$D,2,0),"") ->  | BD38: =IFERROR(VLOOKUP(Z38,CadMP!$B:$D,2,0),"") ->  | BE38: =IFERROR(VLOOKUP(AA38,CadMP!$B:$D,2,0),"") ->  | BF38: =IFERROR(VLOOKUP(AB38,CadMP!$B:$D,2,0),"") ->  | BG38: =IFERROR(VLOOKUP(AC38,CadMP!$B:$D,2,0),"") ->  | BH38: =IFERROR(VLOOKUP(AD38,CadMP!$B:$D,2,0),"") ->  | BI38: =IFERROR(VLOOKUP(AE38,CadMP!$B:$D,2,0),"") ->  | BJ38: =IFERROR(VLOOKUP(AF38,CadMP!$B:$D,2,0),"") ->  | BK38: =IFERROR(VLOOKUP(AG38,CadMP!$B:$D,2,0),"") ->  | BL38: =IFERROR(VLOOKUP(AH38,CadMP!$B:$D,2,0),"") ->  | BM38: =IFERROR(VLOOKUP(AI38,CadMP!$B:$D,2,0),"") ->  | BN38: =IFERROR(VLOOKUP(AJ38,CadMP!$B:$D,2,0),"") ->  | BO38: =IFERROR(VLOOKUP(AK38,CadMP!$B:$D,2,0),"") ->  | BP38: =IFERROR(VLOOKUP(W38,CadMP!$B:$D,3,0),"") ->  | BQ38: =IFERROR(VLOOKUP(X38,CadMP!$B:$D,3,0),"") ->  | BR38: =IFERROR(VLOOKUP(Y38,CadMP!$B:$D,3,0),"") ->  | BS38: =IFERROR(VLOOKUP(Z38,CadMP!$B:$D,3,0),"") ->  | BT38: =IFERROR(VLOOKUP(AA38,CadMP!$B:$D,3,0),"") ->  | BU38: =IFERROR(VLOOKUP(AB38,CadMP!$B:$D,3,0),"") ->  | BV38: =IFERROR(VLOOKUP(AC38,CadMP!$B:$D,3,0),"") ->  | BW38: =IFERROR(VLOOKUP(AD38,CadMP!$B:$D,3,0),"") ->  | BX38: =IFERROR(VLOOKUP(AE38,CadMP!$B:$D,3,0),"") ->  | BY38: =IFERROR(VLOOKUP(AF38,CadMP!$B:$D,3,0),"") ->  | BZ38: =IFERROR(VLOOKUP(AG38,CadMP!$B:$D,3,0),"") ->  | CA38: =IFERROR(VLOOKUP(AH38,CadMP!$B:$D,3,0),"") ->  | CB38: =IFERROR(VLOOKUP(AI38,CadMP!$B:$D,3,0),"") ->  | CC38: =IFERROR(VLOOKUP(AJ38,CadMP!$B:$D,3,0),"") ->  | CD38: =IFERROR(VLOOKUP(AK38,CadMP!$B:$D,3,0),"") ->  | CE38: 0 | CF38: 0 | CG38: 0 | CH38: 0 | CI38: 0 | CJ38: 0 | CK38: 0 | CL38: 0 | CM38: 0 | CN38: 0 | CO38: 0 | CP38: 0 | CQ38: 0 | CR38: 0 | CS38: 0
A39: 38 | D39: 0 | E39: 0 | L39: 0 | M39: 0 | U39: 1.00 | V39: 0 | BA39: =IFERROR(VLOOKUP(W39,CadMP!$B:$D,2,0),"") ->  | BB39: =IFERROR(VLOOKUP(X39,CadMP!$B:$D,2,0),"") ->  | BC39: =IFERROR(VLOOKUP(Y39,CadMP!$B:$D,2,0),"") ->  | BD39: =IFERROR(VLOOKUP(Z39,CadMP!$B:$D,2,0),"") ->  | BE39: =IFERROR(VLOOKUP(AA39,CadMP!$B:$D,2,0),"") ->  | BF39: =IFERROR(VLOOKUP(AB39,CadMP!$B:$D,2,0),"") ->  | BG39: =IFERROR(VLOOKUP(AC39,CadMP!$B:$D,2,0),"") ->  | BH39: =IFERROR(VLOOKUP(AD39,CadMP!$B:$D,2,0),"") ->  | BI39: =IFERROR(VLOOKUP(AE39,CadMP!$B:$D,2,0),"") ->  | BJ39: =IFERROR(VLOOKUP(AF39,CadMP!$B:$D,2,0),"") ->  | BK39: =IFERROR(VLOOKUP(AG39,CadMP!$B:$D,2,0),"") ->  | BL39: =IFERROR(VLOOKUP(AH39,CadMP!$B:$D,2,0),"") ->  | BM39: =IFERROR(VLOOKUP(AI39,CadMP!$B:$D,2,0),"") ->  | BN39: =IFERROR(VLOOKUP(AJ39,CadMP!$B:$D,2,0),"") ->  | BO39: =IFERROR(VLOOKUP(AK39,CadMP!$B:$D,2,0),"") ->  | BP39: =IFERROR(VLOOKUP(W39,CadMP!$B:$D,3,0),"") ->  | BQ39: =IFERROR(VLOOKUP(X39,CadMP!$B:$D,3,0),"") ->  | BR39: =IFERROR(VLOOKUP(Y39,CadMP!$B:$D,3,0),"") ->  | BS39: =IFERROR(VLOOKUP(Z39,CadMP!$B:$D,3,0),"") ->  | BT39: =IFERROR(VLOOKUP(AA39,CadMP!$B:$D,3,0),"") ->  | BU39: =IFERROR(VLOOKUP(AB39,CadMP!$B:$D,3,0),"") ->  | BV39: =IFERROR(VLOOKUP(AC39,CadMP!$B:$D,3,0),"") ->  | BW39: =IFERROR(VLOOKUP(AD39,CadMP!$B:$D,3,0),"") ->  | BX39: =IFERROR(VLOOKUP(AE39,CadMP!$B:$D,3,0),"") ->  | BY39: =IFERROR(VLOOKUP(AF39,CadMP!$B:$D,3,0),"") ->  | BZ39: =IFERROR(VLOOKUP(AG39,CadMP!$B:$D,3,0),"") ->  | CA39: =IFERROR(VLOOKUP(AH39,CadMP!$B:$D,3,0),"") ->  | CB39: =IFERROR(VLOOKUP(AI39,CadMP!$B:$D,3,0),"") ->  | CC39: =IFERROR(VLOOKUP(AJ39,CadMP!$B:$D,3,0),"") ->  | CD39: =IFERROR(VLOOKUP(AK39,CadMP!$B:$D,3,0),"") ->  | CE39: 0 | CF39: 0 | CG39: 0 | CH39: 0 | CI39: 0 | CJ39: 0 | CK39: 0 | CL39: 0 | CM39: 0 | CN39: 0 | CO39: 0 | CP39: 0 | CQ39: 0 | CR39: 0 | CS39: 0
A40: 39 | D40: 0 | E40: 0 | L40: 0 | M40: 0 | U40: 1.00 | V40: 0 | BA40: =IFERROR(VLOOKUP(W40,CadMP!$B:$D,2,0),"") ->  | BB40: =IFERROR(VLOOKUP(X40,CadMP!$B:$D,2,0),"") ->  | BC40: =IFERROR(VLOOKUP(Y40,CadMP!$B:$D,2,0),"") ->  | BD40: =IFERROR(VLOOKUP(Z40,CadMP!$B:$D,2,0),"") ->  | BE40: =IFERROR(VLOOKUP(AA40,CadMP!$B:$D,2,0),"") ->  | BF40: =IFERROR(VLOOKUP(AB40,CadMP!$B:$D,2,0),"") ->  | BG40: =IFERROR(VLOOKUP(AC40,CadMP!$B:$D,2,0),"") ->  | BH40: =IFERROR(VLOOKUP(AD40,CadMP!$B:$D,2,0),"") ->  | BI40: =IFERROR(VLOOKUP(AE40,CadMP!$B:$D,2,0),"") ->  | BJ40: =IFERROR(VLOOKUP(AF40,CadMP!$B:$D,2,0),"") ->  | BK40: =IFERROR(VLOOKUP(AG40,CadMP!$B:$D,2,0),"") ->  | BL40: =IFERROR(VLOOKUP(AH40,CadMP!$B:$D,2,0),"") ->  | BM40: =IFERROR(VLOOKUP(AI40,CadMP!$B:$D,2,0),"") ->  | BN40: =IFERROR(VLOOKUP(AJ40,CadMP!$B:$D,2,0),"") ->  | BO40: =IFERROR(VLOOKUP(AK40,CadMP!$B:$D,2,0),"") ->  | BP40: =IFERROR(VLOOKUP(W40,CadMP!$B:$D,3,0),"") ->  | BQ40: =IFERROR(VLOOKUP(X40,CadMP!$B:$D,3,0),"") ->  | BR40: =IFERROR(VLOOKUP(Y40,CadMP!$B:$D,3,0),"") ->  | BS40: =IFERROR(VLOOKUP(Z40,CadMP!$B:$D,3,0),"") ->  | BT40: =IFERROR(VLOOKUP(AA40,CadMP!$B:$D,3,0),"") ->  | BU40: =IFERROR(VLOOKUP(AB40,CadMP!$B:$D,3,0),"") ->  | BV40: =IFERROR(VLOOKUP(AC40,CadMP!$B:$D,3,0),"") ->  | BW40: =IFERROR(VLOOKUP(AD40,CadMP!$B:$D,3,0),"") ->  | BX40: =IFERROR(VLOOKUP(AE40,CadMP!$B:$D,3,0),"") ->  | BY40: =IFERROR(VLOOKUP(AF40,CadMP!$B:$D,3,0),"") ->  | BZ40: =IFERROR(VLOOKUP(AG40,CadMP!$B:$D,3,0),"") ->  | CA40: =IFERROR(VLOOKUP(AH40,CadMP!$B:$D,3,0),"") ->  | CB40: =IFERROR(VLOOKUP(AI40,CadMP!$B:$D,3,0),"") ->  | CC40: =IFERROR(VLOOKUP(AJ40,CadMP!$B:$D,3,0),"") ->  | CD40: =IFERROR(VLOOKUP(AK40,CadMP!$B:$D,3,0),"") ->  | CE40: 0 | CF40: 0 | CG40: 0 | CH40: 0 | CI40: 0 | CJ40: 0 | CK40: 0 | CL40: 0 | CM40: 0 | CN40: 0 | CO40: 0 | CP40: 0 | CQ40: 0 | CR40: 0 | CS40: 0
A41: 40 | D41: 0 | E41: 0 | L41: 0 | M41: 0 | U41: 1.00 | V41: 0 | BA41: =IFERROR(VLOOKUP(W41,CadMP!$B:$D,2,0),"") ->  | BB41: =IFERROR(VLOOKUP(X41,CadMP!$B:$D,2,0),"") ->  | BC41: =IFERROR(VLOOKUP(Y41,CadMP!$B:$D,2,0),"") ->  | BD41: =IFERROR(VLOOKUP(Z41,CadMP!$B:$D,2,0),"") ->  | BE41: =IFERROR(VLOOKUP(AA41,CadMP!$B:$D,2,0),"") ->  | BF41: =IFERROR(VLOOKUP(AB41,CadMP!$B:$D,2,0),"") ->  | BG41: =IFERROR(VLOOKUP(AC41,CadMP!$B:$D,2,0),"") ->  | BH41: =IFERROR(VLOOKUP(AD41,CadMP!$B:$D,2,0),"") ->  | BI41: =IFERROR(VLOOKUP(AE41,CadMP!$B:$D,2,0),"") ->  | BJ41: =IFERROR(VLOOKUP(AF41,CadMP!$B:$D,2,0),"") ->  | BK41: =IFERROR(VLOOKUP(AG41,CadMP!$B:$D,2,0),"") ->  | BL41: =IFERROR(VLOOKUP(AH41,CadMP!$B:$D,2,0),"") ->  | BM41: =IFERROR(VLOOKUP(AI41,CadMP!$B:$D,2,0),"") ->  | BN41: =IFERROR(VLOOKUP(AJ41,CadMP!$B:$D,2,0),"") ->  | BO41: =IFERROR(VLOOKUP(AK41,CadMP!$B:$D,2,0),"") ->  | BP41: =IFERROR(VLOOKUP(W41,CadMP!$B:$D,3,0),"") ->  | BQ41: =IFERROR(VLOOKUP(X41,CadMP!$B:$D,3,0),"") ->  | BR41: =IFERROR(VLOOKUP(Y41,CadMP!$B:$D,3,0),"") ->  | BS41: =IFERROR(VLOOKUP(Z41,CadMP!$B:$D,3,0),"") ->  | BT41: =IFERROR(VLOOKUP(AA41,CadMP!$B:$D,3,0),"") ->  | BU41: =IFERROR(VLOOKUP(AB41,CadMP!$B:$D,3,0),"") ->  | BV41: =IFERROR(VLOOKUP(AC41,CadMP!$B:$D,3,0),"") ->  | BW41: =IFERROR(VLOOKUP(AD41,CadMP!$B:$D,3,0),"") ->  | BX41: =IFERROR(VLOOKUP(AE41,CadMP!$B:$D,3,0),"") ->  | BY41: =IFERROR(VLOOKUP(AF41,CadMP!$B:$D,3,0),"") ->  | BZ41: =IFERROR(VLOOKUP(AG41,CadMP!$B:$D,3,0),"") ->  | CA41: =IFERROR(VLOOKUP(AH41,CadMP!$B:$D,3,0),"") ->  | CB41: =IFERROR(VLOOKUP(AI41,CadMP!$B:$D,3,0),"") ->  | CC41: =IFERROR(VLOOKUP(AJ41,CadMP!$B:$D,3,0),"") ->  | CD41: =IFERROR(VLOOKUP(AK41,CadMP!$B:$D,3,0),"") ->  | CE41: 0 | CF41: 0 | CG41: 0 | CH41: 0 | CI41: 0 | CJ41: 0 | CK41: 0 | CL41: 0 | CM41: 0 | CN41: 0 | CO41: 0 | CP41: 0 | CQ41: 0 | CR41: 0 | CS41: 0
A42: 41 | D42: 0 | E42: 0 | L42: 0 | M42: 0 | U42: 1.00 | V42: 0 | BA42: =IFERROR(VLOOKUP(W42,CadMP!$B:$D,2,0),"") ->  | BB42: =IFERROR(VLOOKUP(X42,CadMP!$B:$D,2,0),"") ->  | BC42: =IFERROR(VLOOKUP(Y42,CadMP!$B:$D,2,0),"") ->  | BD42: =IFERROR(VLOOKUP(Z42,CadMP!$B:$D,2,0),"") ->  | BE42: =IFERROR(VLOOKUP(AA42,CadMP!$B:$D,2,0),"") ->  | BF42: =IFERROR(VLOOKUP(AB42,CadMP!$B:$D,2,0),"") ->  | BG42: =IFERROR(VLOOKUP(AC42,CadMP!$B:$D,2,0),"") ->  | BH42: =IFERROR(VLOOKUP(AD42,CadMP!$B:$D,2,0),"") ->  | BI42: =IFERROR(VLOOKUP(AE42,CadMP!$B:$D,2,0),"") ->  | BJ42: =IFERROR(VLOOKUP(AF42,CadMP!$B:$D,2,0),"") ->  | BK42: =IFERROR(VLOOKUP(AG42,CadMP!$B:$D,2,0),"") ->  | BL42: =IFERROR(VLOOKUP(AH42,CadMP!$B:$D,2,0),"") ->  | BM42: =IFERROR(VLOOKUP(AI42,CadMP!$B:$D,2,0),"") ->  | BN42: =IFERROR(VLOOKUP(AJ42,CadMP!$B:$D,2,0),"") ->  | BO42: =IFERROR(VLOOKUP(AK42,CadMP!$B:$D,2,0),"") ->  | BP42: =IFERROR(VLOOKUP(W42,CadMP!$B:$D,3,0),"") ->  | BQ42: =IFERROR(VLOOKUP(X42,CadMP!$B:$D,3,0),"") ->  | BR42: =IFERROR(VLOOKUP(Y42,CadMP!$B:$D,3,0),"") ->  | BS42: =IFERROR(VLOOKUP(Z42,CadMP!$B:$D,3,0),"") ->  | BT42: =IFERROR(VLOOKUP(AA42,CadMP!$B:$D,3,0),"") ->  | BU42: =IFERROR(VLOOKUP(AB42,CadMP!$B:$D,3,0),"") ->  | BV42: =IFERROR(VLOOKUP(AC42,CadMP!$B:$D,3,0),"") ->  | BW42: =IFERROR(VLOOKUP(AD42,CadMP!$B:$D,3,0),"") ->  | BX42: =IFERROR(VLOOKUP(AE42,CadMP!$B:$D,3,0),"") ->  | BY42: =IFERROR(VLOOKUP(AF42,CadMP!$B:$D,3,0),"") ->  | BZ42: =IFERROR(VLOOKUP(AG42,CadMP!$B:$D,3,0),"") ->  | CA42: =IFERROR(VLOOKUP(AH42,CadMP!$B:$D,3,0),"") ->  | CB42: =IFERROR(VLOOKUP(AI42,CadMP!$B:$D,3,0),"") ->  | CC42: =IFERROR(VLOOKUP(AJ42,CadMP!$B:$D,3,0),"") ->  | CD42: =IFERROR(VLOOKUP(AK42,CadMP!$B:$D,3,0),"") ->  | CE42: 0 | CF42: 0 | CG42: 0 | CH42: 0 | CI42: 0 | CJ42: 0 | CK42: 0 | CL42: 0 | CM42: 0 | CN42: 0 | CO42: 0 | CP42: 0 | CQ42: 0 | CR42: 0 | CS42: 0
A43: 42 | D43: 0 | E43: 0 | L43: 0 | M43: 0 | U43: 1.00 | V43: 0 | BA43: =IFERROR(VLOOKUP(W43,CadMP!$B:$D,2,0),"") ->  | BB43: =IFERROR(VLOOKUP(X43,CadMP!$B:$D,2,0),"") ->  | BC43: =IFERROR(VLOOKUP(Y43,CadMP!$B:$D,2,0),"") ->  | BD43: =IFERROR(VLOOKUP(Z43,CadMP!$B:$D,2,0),"") ->  | BE43: =IFERROR(VLOOKUP(AA43,CadMP!$B:$D,2,0),"") ->  | BF43: =IFERROR(VLOOKUP(AB43,CadMP!$B:$D,2,0),"") ->  | BG43: =IFERROR(VLOOKUP(AC43,CadMP!$B:$D,2,0),"") ->  | BH43: =IFERROR(VLOOKUP(AD43,CadMP!$B:$D,2,0),"") ->  | BI43: =IFERROR(VLOOKUP(AE43,CadMP!$B:$D,2,0),"") ->  | BJ43: =IFERROR(VLOOKUP(AF43,CadMP!$B:$D,2,0),"") ->  | BK43: =IFERROR(VLOOKUP(AG43,CadMP!$B:$D,2,0),"") ->  | BL43: =IFERROR(VLOOKUP(AH43,CadMP!$B:$D,2,0),"") ->  | BM43: =IFERROR(VLOOKUP(AI43,CadMP!$B:$D,2,0),"") ->  | BN43: =IFERROR(VLOOKUP(AJ43,CadMP!$B:$D,2,0),"") ->  | BO43: =IFERROR(VLOOKUP(AK43,CadMP!$B:$D,2,0),"") ->  | BP43: =IFERROR(VLOOKUP(W43,CadMP!$B:$D,3,0),"") ->  | BQ43: =IFERROR(VLOOKUP(X43,CadMP!$B:$D,3,0),"") ->  | BR43: =IFERROR(VLOOKUP(Y43,CadMP!$B:$D,3,0),"") ->  | BS43: =IFERROR(VLOOKUP(Z43,CadMP!$B:$D,3,0),"") ->  | BT43: =IFERROR(VLOOKUP(AA43,CadMP!$B:$D,3,0),"") ->  | BU43: =IFERROR(VLOOKUP(AB43,CadMP!$B:$D,3,0),"") ->  | BV43: =IFERROR(VLOOKUP(AC43,CadMP!$B:$D,3,0),"") ->  | BW43: =IFERROR(VLOOKUP(AD43,CadMP!$B:$D,3,0),"") ->  | BX43: =IFERROR(VLOOKUP(AE43,CadMP!$B:$D,3,0),"") ->  | BY43: =IFERROR(VLOOKUP(AF43,CadMP!$B:$D,3,0),"") ->  | BZ43: =IFERROR(VLOOKUP(AG43,CadMP!$B:$D,3,0),"") ->  | CA43: =IFERROR(VLOOKUP(AH43,CadMP!$B:$D,3,0),"") ->  | CB43: =IFERROR(VLOOKUP(AI43,CadMP!$B:$D,3,0),"") ->  | CC43: =IFERROR(VLOOKUP(AJ43,CadMP!$B:$D,3,0),"") ->  | CD43: =IFERROR(VLOOKUP(AK43,CadMP!$B:$D,3,0),"") ->  | CE43: 0 | CF43: 0 | CG43: 0 | CH43: 0 | CI43: 0 | CJ43: 0 | CK43: 0 | CL43: 0 | CM43: 0 | CN43: 0 | CO43: 0 | CP43: 0 | CQ43: 0 | CR43: 0 | CS43: 0
A44: 43 | D44: 0 | E44: 0 | L44: 0 | M44: 0 | U44: 1.00 | V44: 0 | BA44: =IFERROR(VLOOKUP(W44,CadMP!$B:$D,2,0),"") ->  | BB44: =IFERROR(VLOOKUP(X44,CadMP!$B:$D,2,0),"") ->  | BC44: =IFERROR(VLOOKUP(Y44,CadMP!$B:$D,2,0),"") ->  | BD44: =IFERROR(VLOOKUP(Z44,CadMP!$B:$D,2,0),"") ->  | BE44: =IFERROR(VLOOKUP(AA44,CadMP!$B:$D,2,0),"") ->  | BF44: =IFERROR(VLOOKUP(AB44,CadMP!$B:$D,2,0),"") ->  | BG44: =IFERROR(VLOOKUP(AC44,CadMP!$B:$D,2,0),"") ->  | BH44: =IFERROR(VLOOKUP(AD44,CadMP!$B:$D,2,0),"") ->  | BI44: =IFERROR(VLOOKUP(AE44,CadMP!$B:$D,2,0),"") ->  | BJ44: =IFERROR(VLOOKUP(AF44,CadMP!$B:$D,2,0),"") ->  | BK44: =IFERROR(VLOOKUP(AG44,CadMP!$B:$D,2,0),"") ->  | BL44: =IFERROR(VLOOKUP(AH44,CadMP!$B:$D,2,0),"") ->  | BM44: =IFERROR(VLOOKUP(AI44,CadMP!$B:$D,2,0),"") ->  | BN44: =IFERROR(VLOOKUP(AJ44,CadMP!$B:$D,2,0),"") ->  | BO44: =IFERROR(VLOOKUP(AK44,CadMP!$B:$D,2,0),"") ->  | BP44: =IFERROR(VLOOKUP(W44,CadMP!$B:$D,3,0),"") ->  | BQ44: =IFERROR(VLOOKUP(X44,CadMP!$B:$D,3,0),"") ->  | BR44: =IFERROR(VLOOKUP(Y44,CadMP!$B:$D,3,0),"") ->  | BS44: =IFERROR(VLOOKUP(Z44,CadMP!$B:$D,3,0),"") ->  | BT44: =IFERROR(VLOOKUP(AA44,CadMP!$B:$D,3,0),"") ->  | BU44: =IFERROR(VLOOKUP(AB44,CadMP!$B:$D,3,0),"") ->  | BV44: =IFERROR(VLOOKUP(AC44,CadMP!$B:$D,3,0),"") ->  | BW44: =IFERROR(VLOOKUP(AD44,CadMP!$B:$D,3,0),"") ->  | BX44: =IFERROR(VLOOKUP(AE44,CadMP!$B:$D,3,0),"") ->  | BY44: =IFERROR(VLOOKUP(AF44,CadMP!$B:$D,3,0),"") ->  | BZ44: =IFERROR(VLOOKUP(AG44,CadMP!$B:$D,3,0),"") ->  | CA44: =IFERROR(VLOOKUP(AH44,CadMP!$B:$D,3,0),"") ->  | CB44: =IFERROR(VLOOKUP(AI44,CadMP!$B:$D,3,0),"") ->  | CC44: =IFERROR(VLOOKUP(AJ44,CadMP!$B:$D,3,0),"") ->  | CD44: =IFERROR(VLOOKUP(AK44,CadMP!$B:$D,3,0),"") ->  | CE44: 0 | CF44: 0 | CG44: 0 | CH44: 0 | CI44: 0 | CJ44: 0 | CK44: 0 | CL44: 0 | CM44: 0 | CN44: 0 | CO44: 0 | CP44: 0 | CQ44: 0 | CR44: 0 | CS44: 0
A45: 44 | D45: 0 | E45: 0 | L45: 0 | M45: 0 | U45: 1.00 | V45: 0 | BA45: =IFERROR(VLOOKUP(W45,CadMP!$B:$D,2,0),"") ->  | BB45: =IFERROR(VLOOKUP(X45,CadMP!$B:$D,2,0),"") ->  | BC45: =IFERROR(VLOOKUP(Y45,CadMP!$B:$D,2,0),"") ->  | BD45: =IFERROR(VLOOKUP(Z45,CadMP!$B:$D,2,0),"") ->  | BE45: =IFERROR(VLOOKUP(AA45,CadMP!$B:$D,2,0),"") ->  | BF45: =IFERROR(VLOOKUP(AB45,CadMP!$B:$D,2,0),"") ->  | BG45: =IFERROR(VLOOKUP(AC45,CadMP!$B:$D,2,0),"") ->  | BH45: =IFERROR(VLOOKUP(AD45,CadMP!$B:$D,2,0),"") ->  | BI45: =IFERROR(VLOOKUP(AE45,CadMP!$B:$D,2,0),"") ->  | BJ45: =IFERROR(VLOOKUP(AF45,CadMP!$B:$D,2,0),"") ->  | BK45: =IFERROR(VLOOKUP(AG45,CadMP!$B:$D,2,0),"") ->  | BL45: =IFERROR(VLOOKUP(AH45,CadMP!$B:$D,2,0),"") ->  | BM45: =IFERROR(VLOOKUP(AI45,CadMP!$B:$D,2,0),"") ->  | BN45: =IFERROR(VLOOKUP(AJ45,CadMP!$B:$D,2,0),"") ->  | BO45: =IFERROR(VLOOKUP(AK45,CadMP!$B:$D,2,0),"") ->  | BP45: =IFERROR(VLOOKUP(W45,CadMP!$B:$D,3,0),"") ->  | BQ45: =IFERROR(VLOOKUP(X45,CadMP!$B:$D,3,0),"") ->  | BR45: =IFERROR(VLOOKUP(Y45,CadMP!$B:$D,3,0),"") ->  | BS45: =IFERROR(VLOOKUP(Z45,CadMP!$B:$D,3,0),"") ->  | BT45: =IFERROR(VLOOKUP(AA45,CadMP!$B:$D,3,0),"") ->  | BU45: =IFERROR(VLOOKUP(AB45,CadMP!$B:$D,3,0),"") ->  | BV45: =IFERROR(VLOOKUP(AC45,CadMP!$B:$D,3,0),"") ->  | BW45: =IFERROR(VLOOKUP(AD45,CadMP!$B:$D,3,0),"") ->  | BX45: =IFERROR(VLOOKUP(AE45,CadMP!$B:$D,3,0),"") ->  | BY45: =IFERROR(VLOOKUP(AF45,CadMP!$B:$D,3,0),"") ->  | BZ45: =IFERROR(VLOOKUP(AG45,CadMP!$B:$D,3,0),"") ->  | CA45: =IFERROR(VLOOKUP(AH45,CadMP!$B:$D,3,0),"") ->  | CB45: =IFERROR(VLOOKUP(AI45,CadMP!$B:$D,3,0),"") ->  | CC45: =IFERROR(VLOOKUP(AJ45,CadMP!$B:$D,3,0),"") ->  | CD45: =IFERROR(VLOOKUP(AK45,CadMP!$B:$D,3,0),"") ->  | CE45: 0 | CF45: 0 | CG45: 0 | CH45: 0 | CI45: 0 | CJ45: 0 | CK45: 0 | CL45: 0 | CM45: 0 | CN45: 0 | CO45: 0 | CP45: 0 | CQ45: 0 | CR45: 0 | CS45: 0
A46: 45 | D46: 0 | E46: 0 | L46: 0 | M46: 0 | U46: 1.00 | V46: 0 | BA46: =IFERROR(VLOOKUP(W46,CadMP!$B:$D,2,0),"") ->  | BB46: =IFERROR(VLOOKUP(X46,CadMP!$B:$D,2,0),"") ->  | BC46: =IFERROR(VLOOKUP(Y46,CadMP!$B:$D,2,0),"") ->  | BD46: =IFERROR(VLOOKUP(Z46,CadMP!$B:$D,2,0),"") ->  | BE46: =IFERROR(VLOOKUP(AA46,CadMP!$B:$D,2,0),"") ->  | BF46: =IFERROR(VLOOKUP(AB46,CadMP!$B:$D,2,0),"") ->  | BG46: =IFERROR(VLOOKUP(AC46,CadMP!$B:$D,2,0),"") ->  | BH46: =IFERROR(VLOOKUP(AD46,CadMP!$B:$D,2,0),"") ->  | BI46: =IFERROR(VLOOKUP(AE46,CadMP!$B:$D,2,0),"") ->  | BJ46: =IFERROR(VLOOKUP(AF46,CadMP!$B:$D,2,0),"") ->  | BK46: =IFERROR(VLOOKUP(AG46,CadMP!$B:$D,2,0),"") ->  | BL46: =IFERROR(VLOOKUP(AH46,CadMP!$B:$D,2,0),"") ->  | BM46: =IFERROR(VLOOKUP(AI46,CadMP!$B:$D,2,0),"") ->  | BN46: =IFERROR(VLOOKUP(AJ46,CadMP!$B:$D,2,0),"") ->  | BO46: =IFERROR(VLOOKUP(AK46,CadMP!$B:$D,2,0),"") ->  | BP46: =IFERROR(VLOOKUP(W46,CadMP!$B:$D,3,0),"") ->  | BQ46: =IFERROR(VLOOKUP(X46,CadMP!$B:$D,3,0),"") ->  | BR46: =IFERROR(VLOOKUP(Y46,CadMP!$B:$D,3,0),"") ->  | BS46: =IFERROR(VLOOKUP(Z46,CadMP!$B:$D,3,0),"") ->  | BT46: =IFERROR(VLOOKUP(AA46,CadMP!$B:$D,3,0),"") ->  | BU46: =IFERROR(VLOOKUP(AB46,CadMP!$B:$D,3,0),"") ->  | BV46: =IFERROR(VLOOKUP(AC46,CadMP!$B:$D,3,0),"") ->  | BW46: =IFERROR(VLOOKUP(AD46,CadMP!$B:$D,3,0),"") ->  | BX46: =IFERROR(VLOOKUP(AE46,CadMP!$B:$D,3,0),"") ->  | BY46: =IFERROR(VLOOKUP(AF46,CadMP!$B:$D,3,0),"") ->  | BZ46: =IFERROR(VLOOKUP(AG46,CadMP!$B:$D,3,0),"") ->  | CA46: =IFERROR(VLOOKUP(AH46,CadMP!$B:$D,3,0),"") ->  | CB46: =IFERROR(VLOOKUP(AI46,CadMP!$B:$D,3,0),"") ->  | CC46: =IFERROR(VLOOKUP(AJ46,CadMP!$B:$D,3,0),"") ->  | CD46: =IFERROR(VLOOKUP(AK46,CadMP!$B:$D,3,0),"") ->  | CE46: 0 | CF46: 0 | CG46: 0 | CH46: 0 | CI46: 0 | CJ46: 0 | CK46: 0 | CL46: 0 | CM46: 0 | CN46: 0 | CO46: 0 | CP46: 0 | CQ46: 0 | CR46: 0 | CS46: 0
A47: 46 | D47: 0 | E47: 0 | L47: 0 | M47: 0 | U47: 1.00 | V47: 0 | BA47: =IFERROR(VLOOKUP(W47,CadMP!$B:$D,2,0),"") ->  | BB47: =IFERROR(VLOOKUP(X47,CadMP!$B:$D,2,0),"") ->  | BC47: =IFERROR(VLOOKUP(Y47,CadMP!$B:$D,2,0),"") ->  | BD47: =IFERROR(VLOOKUP(Z47,CadMP!$B:$D,2,0),"") ->  | BE47: =IFERROR(VLOOKUP(AA47,CadMP!$B:$D,2,0),"") ->  | BF47: =IFERROR(VLOOKUP(AB47,CadMP!$B:$D,2,0),"") ->  | BG47: =IFERROR(VLOOKUP(AC47,CadMP!$B:$D,2,0),"") ->  | BH47: =IFERROR(VLOOKUP(AD47,CadMP!$B:$D,2,0),"") ->  | BI47: =IFERROR(VLOOKUP(AE47,CadMP!$B:$D,2,0),"") ->  | BJ47: =IFERROR(VLOOKUP(AF47,CadMP!$B:$D,2,0),"") ->  | BK47: =IFERROR(VLOOKUP(AG47,CadMP!$B:$D,2,0),"") ->  | BL47: =IFERROR(VLOOKUP(AH47,CadMP!$B:$D,2,0),"") ->  | BM47: =IFERROR(VLOOKUP(AI47,CadMP!$B:$D,2,0),"") ->  | BN47: =IFERROR(VLOOKUP(AJ47,CadMP!$B:$D,2,0),"") ->  | BO47: =IFERROR(VLOOKUP(AK47,CadMP!$B:$D,2,0),"") ->  | BP47: =IFERROR(VLOOKUP(W47,CadMP!$B:$D,3,0),"") ->  | BQ47: =IFERROR(VLOOKUP(X47,CadMP!$B:$D,3,0),"") ->  | BR47: =IFERROR(VLOOKUP(Y47,CadMP!$B:$D,3,0),"") ->  | BS47: =IFERROR(VLOOKUP(Z47,CadMP!$B:$D,3,0),"") ->  | BT47: =IFERROR(VLOOKUP(AA47,CadMP!$B:$D,3,0),"") ->  | BU47: =IFERROR(VLOOKUP(AB47,CadMP!$B:$D,3,0),"") ->  | BV47: =IFERROR(VLOOKUP(AC47,CadMP!$B:$D,3,0),"") ->  | BW47: =IFERROR(VLOOKUP(AD47,CadMP!$B:$D,3,0),"") ->  | BX47: =IFERROR(VLOOKUP(AE47,CadMP!$B:$D,3,0),"") ->  | BY47: =IFERROR(VLOOKUP(AF47,CadMP!$B:$D,3,0),"") ->  | BZ47: =IFERROR(VLOOKUP(AG47,CadMP!$B:$D,3,0),"") ->  | CA47: =IFERROR(VLOOKUP(AH47,CadMP!$B:$D,3,0),"") ->  | CB47: =IFERROR(VLOOKUP(AI47,CadMP!$B:$D,3,0),"") ->  | CC47: =IFERROR(VLOOKUP(AJ47,CadMP!$B:$D,3,0),"") ->  | CD47: =IFERROR(VLOOKUP(AK47,CadMP!$B:$D,3,0),"") ->  | CE47: 0 | CF47: 0 | CG47: 0 | CH47: 0 | CI47: 0 | CJ47: 0 | CK47: 0 | CL47: 0 | CM47: 0 | CN47: 0 | CO47: 0 | CP47: 0 | CQ47: 0 | CR47: 0 | CS47: 0
A48: 47 | D48: 0 | E48: 0 | L48: 0 | M48: 0 | U48: 1.00 | V48: 0 | BA48: =IFERROR(VLOOKUP(W48,CadMP!$B:$D,2,0),"") ->  | BB48: =IFERROR(VLOOKUP(X48,CadMP!$B:$D,2,0),"") ->  | BC48: =IFERROR(VLOOKUP(Y48,CadMP!$B:$D,2,0),"") ->  | BD48: =IFERROR(VLOOKUP(Z48,CadMP!$B:$D,2,0),"") ->  | BE48: =IFERROR(VLOOKUP(AA48,CadMP!$B:$D,2,0),"") ->  | BF48: =IFERROR(VLOOKUP(AB48,CadMP!$B:$D,2,0),"") ->  | BG48: =IFERROR(VLOOKUP(AC48,CadMP!$B:$D,2,0),"") ->  | BH48: =IFERROR(VLOOKUP(AD48,CadMP!$B:$D,2,0),"") ->  | BI48: =IFERROR(VLOOKUP(AE48,CadMP!$B:$D,2,0),"") ->  | BJ48: =IFERROR(VLOOKUP(AF48,CadMP!$B:$D,2,0),"") ->  | BK48: =IFERROR(VLOOKUP(AG48,CadMP!$B:$D,2,0),"") ->  | BL48: =IFERROR(VLOOKUP(AH48,CadMP!$B:$D,2,0),"") ->  | BM48: =IFERROR(VLOOKUP(AI48,CadMP!$B:$D,2,0),"") ->  | BN48: =IFERROR(VLOOKUP(AJ48,CadMP!$B:$D,2,0),"") ->  | BO48: =IFERROR(VLOOKUP(AK48,CadMP!$B:$D,2,0),"") ->  | BP48: =IFERROR(VLOOKUP(W48,CadMP!$B:$D,3,0),"") ->  | BQ48: =IFERROR(VLOOKUP(X48,CadMP!$B:$D,3,0),"") ->  | BR48: =IFERROR(VLOOKUP(Y48,CadMP!$B:$D,3,0),"") ->  | BS48: =IFERROR(VLOOKUP(Z48,CadMP!$B:$D,3,0),"") ->  | BT48: =IFERROR(VLOOKUP(AA48,CadMP!$B:$D,3,0),"") ->  | BU48: =IFERROR(VLOOKUP(AB48,CadMP!$B:$D,3,0),"") ->  | BV48: =IFERROR(VLOOKUP(AC48,CadMP!$B:$D,3,0),"") ->  | BW48: =IFERROR(VLOOKUP(AD48,CadMP!$B:$D,3,0),"") ->  | BX48: =IFERROR(VLOOKUP(AE48,CadMP!$B:$D,3,0),"") ->  | BY48: =IFERROR(VLOOKUP(AF48,CadMP!$B:$D,3,0),"") ->  | BZ48: =IFERROR(VLOOKUP(AG48,CadMP!$B:$D,3,0),"") ->  | CA48: =IFERROR(VLOOKUP(AH48,CadMP!$B:$D,3,0),"") ->  | CB48: =IFERROR(VLOOKUP(AI48,CadMP!$B:$D,3,0),"") ->  | CC48: =IFERROR(VLOOKUP(AJ48,CadMP!$B:$D,3,0),"") ->  | CD48: =IFERROR(VLOOKUP(AK48,CadMP!$B:$D,3,0),"") ->  | CE48: 0 | CF48: 0 | CG48: 0 | CH48: 0 | CI48: 0 | CJ48: 0 | CK48: 0 | CL48: 0 | CM48: 0 | CN48: 0 | CO48: 0 | CP48: 0 | CQ48: 0 | CR48: 0 | CS48: 0
A49: 48 | D49: 0 | E49: 0 | L49: 0 | M49: 0 | U49: 1.00 | V49: 0 | BA49: =IFERROR(VLOOKUP(W49,CadMP!$B:$D,2,0),"") ->  | BB49: =IFERROR(VLOOKUP(X49,CadMP!$B:$D,2,0),"") ->  | BC49: =IFERROR(VLOOKUP(Y49,CadMP!$B:$D,2,0),"") ->  | BD49: =IFERROR(VLOOKUP(Z49,CadMP!$B:$D,2,0),"") ->  | BE49: =IFERROR(VLOOKUP(AA49,CadMP!$B:$D,2,0),"") ->  | BF49: =IFERROR(VLOOKUP(AB49,CadMP!$B:$D,2,0),"") ->  | BG49: =IFERROR(VLOOKUP(AC49,CadMP!$B:$D,2,0),"") ->  | BH49: =IFERROR(VLOOKUP(AD49,CadMP!$B:$D,2,0),"") ->  | BI49: =IFERROR(VLOOKUP(AE49,CadMP!$B:$D,2,0),"") ->  | BJ49: =IFERROR(VLOOKUP(AF49,CadMP!$B:$D,2,0),"") ->  | BK49: =IFERROR(VLOOKUP(AG49,CadMP!$B:$D,2,0),"") ->  | BL49: =IFERROR(VLOOKUP(AH49,CadMP!$B:$D,2,0),"") ->  | BM49: =IFERROR(VLOOKUP(AI49,CadMP!$B:$D,2,0),"") ->  | BN49: =IFERROR(VLOOKUP(AJ49,CadMP!$B:$D,2,0),"") ->  | BO49: =IFERROR(VLOOKUP(AK49,CadMP!$B:$D,2,0),"") ->  | BP49: =IFERROR(VLOOKUP(W49,CadMP!$B:$D,3,0),"") ->  | BQ49: =IFERROR(VLOOKUP(X49,CadMP!$B:$D,3,0),"") ->  | BR49: =IFERROR(VLOOKUP(Y49,CadMP!$B:$D,3,0),"") ->  | BS49: =IFERROR(VLOOKUP(Z49,CadMP!$B:$D,3,0),"") ->  | BT49: =IFERROR(VLOOKUP(AA49,CadMP!$B:$D,3,0),"") ->  | BU49: =IFERROR(VLOOKUP(AB49,CadMP!$B:$D,3,0),"") ->  | BV49: =IFERROR(VLOOKUP(AC49,CadMP!$B:$D,3,0),"") ->  | BW49: =IFERROR(VLOOKUP(AD49,CadMP!$B:$D,3,0),"") ->  | BX49: =IFERROR(VLOOKUP(AE49,CadMP!$B:$D,3,0),"") ->  | BY49: =IFERROR(VLOOKUP(AF49,CadMP!$B:$D,3,0),"") ->  | BZ49: =IFERROR(VLOOKUP(AG49,CadMP!$B:$D,3,0),"") ->  | CA49: =IFERROR(VLOOKUP(AH49,CadMP!$B:$D,3,0),"") ->  | CB49: =IFERROR(VLOOKUP(AI49,CadMP!$B:$D,3,0),"") ->  | CC49: =IFERROR(VLOOKUP(AJ49,CadMP!$B:$D,3,0),"") ->  | CD49: =IFERROR(VLOOKUP(AK49,CadMP!$B:$D,3,0),"") ->  | CE49: 0 | CF49: 0 | CG49: 0 | CH49: 0 | CI49: 0 | CJ49: 0 | CK49: 0 | CL49: 0 | CM49: 0 | CN49: 0 | CO49: 0 | CP49: 0 | CQ49: 0 | CR49: 0 | CS49: 0
A50: 49 | D50: 0 | E50: 0 | L50: 0 | M50: 0 | U50: 1.00 | V50: 0 | BA50: =IFERROR(VLOOKUP(W50,CadMP!$B:$D,2,0),"") ->  | BB50: =IFERROR(VLOOKUP(X50,CadMP!$B:$D,2,0),"") ->  | BC50: =IFERROR(VLOOKUP(Y50,CadMP!$B:$D,2,0),"") ->  | BD50: =IFERROR(VLOOKUP(Z50,CadMP!$B:$D,2,0),"") ->  | BE50: =IFERROR(VLOOKUP(AA50,CadMP!$B:$D,2,0),"") ->  | BF50: =IFERROR(VLOOKUP(AB50,CadMP!$B:$D,2,0),"") ->  | BG50: =IFERROR(VLOOKUP(AC50,CadMP!$B:$D,2,0),"") ->  | BH50: =IFERROR(VLOOKUP(AD50,CadMP!$B:$D,2,0),"") ->  | BI50: =IFERROR(VLOOKUP(AE50,CadMP!$B:$D,2,0),"") ->  | BJ50: =IFERROR(VLOOKUP(AF50,CadMP!$B:$D,2,0),"") ->  | BK50: =IFERROR(VLOOKUP(AG50,CadMP!$B:$D,2,0),"") ->  | BL50: =IFERROR(VLOOKUP(AH50,CadMP!$B:$D,2,0),"") ->  | BM50: =IFERROR(VLOOKUP(AI50,CadMP!$B:$D,2,0),"") ->  | BN50: =IFERROR(VLOOKUP(AJ50,CadMP!$B:$D,2,0),"") ->  | BO50: =IFERROR(VLOOKUP(AK50,CadMP!$B:$D,2,0),"") ->  | BP50: =IFERROR(VLOOKUP(W50,CadMP!$B:$D,3,0),"") ->  | BQ50: =IFERROR(VLOOKUP(X50,CadMP!$B:$D,3,0),"") ->  | BR50: =IFERROR(VLOOKUP(Y50,CadMP!$B:$D,3,0),"") ->  | BS50: =IFERROR(VLOOKUP(Z50,CadMP!$B:$D,3,0),"") ->  | BT50: =IFERROR(VLOOKUP(AA50,CadMP!$B:$D,3,0),"") ->  | BU50: =IFERROR(VLOOKUP(AB50,CadMP!$B:$D,3,0),"") ->  | BV50: =IFERROR(VLOOKUP(AC50,CadMP!$B:$D,3,0),"") ->  | BW50: =IFERROR(VLOOKUP(AD50,CadMP!$B:$D,3,0),"") ->  | BX50: =IFERROR(VLOOKUP(AE50,CadMP!$B:$D,3,0),"") ->  | BY50: =IFERROR(VLOOKUP(AF50,CadMP!$B:$D,3,0),"") ->  | BZ50: =IFERROR(VLOOKUP(AG50,CadMP!$B:$D,3,0),"") ->  | CA50: =IFERROR(VLOOKUP(AH50,CadMP!$B:$D,3,0),"") ->  | CB50: =IFERROR(VLOOKUP(AI50,CadMP!$B:$D,3,0),"") ->  | CC50: =IFERROR(VLOOKUP(AJ50,CadMP!$B:$D,3,0),"") ->  | CD50: =IFERROR(VLOOKUP(AK50,CadMP!$B:$D,3,0),"") ->  | CE50: 0 | CF50: 0 | CG50: 0 | CH50: 0 | CI50: 0 | CJ50: 0 | CK50: 0 | CL50: 0 | CM50: 0 | CN50: 0 | CO50: 0 | CP50: 0 | CQ50: 0 | CR50: 0 | CS50: 0
A51: 50 | D51: 0 | E51: 0 | L51: 0 | M51: 0 | U51: 1.00 | V51: 0 | BA51: =IFERROR(VLOOKUP(W51,CadMP!$B:$D,2,0),"") ->  | BB51: =IFERROR(VLOOKUP(X51,CadMP!$B:$D,2,0),"") ->  | BC51: =IFERROR(VLOOKUP(Y51,CadMP!$B:$D,2,0),"") ->  | BD51: =IFERROR(VLOOKUP(Z51,CadMP!$B:$D,2,0),"") ->  | BE51: =IFERROR(VLOOKUP(AA51,CadMP!$B:$D,2,0),"") ->  | BF51: =IFERROR(VLOOKUP(AB51,CadMP!$B:$D,2,0),"") ->  | BG51: =IFERROR(VLOOKUP(AC51,CadMP!$B:$D,2,0),"") ->  | BH51: =IFERROR(VLOOKUP(AD51,CadMP!$B:$D,2,0),"") ->  | BI51: =IFERROR(VLOOKUP(AE51,CadMP!$B:$D,2,0),"") ->  | BJ51: =IFERROR(VLOOKUP(AF51,CadMP!$B:$D,2,0),"") ->  | BK51: =IFERROR(VLOOKUP(AG51,CadMP!$B:$D,2,0),"") ->  | BL51: =IFERROR(VLOOKUP(AH51,CadMP!$B:$D,2,0),"") ->  | BM51: =IFERROR(VLOOKUP(AI51,CadMP!$B:$D,2,0),"") ->  | BN51: =IFERROR(VLOOKUP(AJ51,CadMP!$B:$D,2,0),"") ->  | BO51: =IFERROR(VLOOKUP(AK51,CadMP!$B:$D,2,0),"") ->  | BP51: =IFERROR(VLOOKUP(W51,CadMP!$B:$D,3,0),"") ->  | BQ51: =IFERROR(VLOOKUP(X51,CadMP!$B:$D,3,0),"") ->  | BR51: =IFERROR(VLOOKUP(Y51,CadMP!$B:$D,3,0),"") ->  | BS51: =IFERROR(VLOOKUP(Z51,CadMP!$B:$D,3,0),"") ->  | BT51: =IFERROR(VLOOKUP(AA51,CadMP!$B:$D,3,0),"") ->  | BU51: =IFERROR(VLOOKUP(AB51,CadMP!$B:$D,3,0),"") ->  | BV51: =IFERROR(VLOOKUP(AC51,CadMP!$B:$D,3,0),"") ->  | BW51: =IFERROR(VLOOKUP(AD51,CadMP!$B:$D,3,0),"") ->  | BX51: =IFERROR(VLOOKUP(AE51,CadMP!$B:$D,3,0),"") ->  | BY51: =IFERROR(VLOOKUP(AF51,CadMP!$B:$D,3,0),"") ->  | BZ51: =IFERROR(VLOOKUP(AG51,CadMP!$B:$D,3,0),"") ->  | CA51: =IFERROR(VLOOKUP(AH51,CadMP!$B:$D,3,0),"") ->  | CB51: =IFERROR(VLOOKUP(AI51,CadMP!$B:$D,3,0),"") ->  | CC51: =IFERROR(VLOOKUP(AJ51,CadMP!$B:$D,3,0),"") ->  | CD51: =IFERROR(VLOOKUP(AK51,CadMP!$B:$D,3,0),"") ->  | CE51: 0 | CF51: 0 | CG51: 0 | CH51: 0 | CI51: 0 | CJ51: 0 | CK51: 0 | CL51: 0 | CM51: 0 | CN51: 0 | CO51: 0 | CP51: 0 | CQ51: 0 | CR51: 0 | CS51: 0
A52: 51 | D52: 0 | E52: 0 | L52: 0 | M52: 0 | U52: 1.00 | V52: 0 | BA52: =IFERROR(VLOOKUP(W52,CadMP!$B:$D,2,0),"") ->  | BB52: =IFERROR(VLOOKUP(X52,CadMP!$B:$D,2,0),"") ->  | BC52: =IFERROR(VLOOKUP(Y52,CadMP!$B:$D,2,0),"") ->  | BD52: =IFERROR(VLOOKUP(Z52,CadMP!$B:$D,2,0),"") ->  | BE52: =IFERROR(VLOOKUP(AA52,CadMP!$B:$D,2,0),"") ->  | BF52: =IFERROR(VLOOKUP(AB52,CadMP!$B:$D,2,0),"") ->  | BG52: =IFERROR(VLOOKUP(AC52,CadMP!$B:$D,2,0),"") ->  | BH52: =IFERROR(VLOOKUP(AD52,CadMP!$B:$D,2,0),"") ->  | BI52: =IFERROR(VLOOKUP(AE52,CadMP!$B:$D,2,0),"") ->  | BJ52: =IFERROR(VLOOKUP(AF52,CadMP!$B:$D,2,0),"") ->  | BK52: =IFERROR(VLOOKUP(AG52,CadMP!$B:$D,2,0),"") ->  | BL52: =IFERROR(VLOOKUP(AH52,CadMP!$B:$D,2,0),"") ->  | BM52: =IFERROR(VLOOKUP(AI52,CadMP!$B:$D,2,0),"") ->  | BN52: =IFERROR(VLOOKUP(AJ52,CadMP!$B:$D,2,0),"") ->  | BO52: =IFERROR(VLOOKUP(AK52,CadMP!$B:$D,2,0),"") ->  | BP52: =IFERROR(VLOOKUP(W52,CadMP!$B:$D,3,0),"") ->  | BQ52: =IFERROR(VLOOKUP(X52,CadMP!$B:$D,3,0),"") ->  | BR52: =IFERROR(VLOOKUP(Y52,CadMP!$B:$D,3,0),"") ->  | BS52: =IFERROR(VLOOKUP(Z52,CadMP!$B:$D,3,0),"") ->  | BT52: =IFERROR(VLOOKUP(AA52,CadMP!$B:$D,3,0),"") ->  | BU52: =IFERROR(VLOOKUP(AB52,CadMP!$B:$D,3,0),"") ->  | BV52: =IFERROR(VLOOKUP(AC52,CadMP!$B:$D,3,0),"") ->  | BW52: =IFERROR(VLOOKUP(AD52,CadMP!$B:$D,3,0),"") ->  | BX52: =IFERROR(VLOOKUP(AE52,CadMP!$B:$D,3,0),"") ->  | BY52: =IFERROR(VLOOKUP(AF52,CadMP!$B:$D,3,0),"") ->  | BZ52: =IFERROR(VLOOKUP(AG52,CadMP!$B:$D,3,0),"") ->  | CA52: =IFERROR(VLOOKUP(AH52,CadMP!$B:$D,3,0),"") ->  | CB52: =IFERROR(VLOOKUP(AI52,CadMP!$B:$D,3,0),"") ->  | CC52: =IFERROR(VLOOKUP(AJ52,CadMP!$B:$D,3,0),"") ->  | CD52: =IFERROR(VLOOKUP(AK52,CadMP!$B:$D,3,0),"") ->  | CE52: 0 | CF52: 0 | CG52: 0 | CH52: 0 | CI52: 0 | CJ52: 0 | CK52: 0 | CL52: 0 | CM52: 0 | CN52: 0 | CO52: 0 | CP52: 0 | CQ52: 0 | CR52: 0 | CS52: 0
A53: 52 | D53: 0 | E53: 0 | L53: 0 | M53: 0 | U53: 1.00 | V53: 0 | BA53: =IFERROR(VLOOKUP(W53,CadMP!$B:$D,2,0),"") ->  | BB53: =IFERROR(VLOOKUP(X53,CadMP!$B:$D,2,0),"") ->  | BC53: =IFERROR(VLOOKUP(Y53,CadMP!$B:$D,2,0),"") ->  | BD53: =IFERROR(VLOOKUP(Z53,CadMP!$B:$D,2,0),"") ->  | BE53: =IFERROR(VLOOKUP(AA53,CadMP!$B:$D,2,0),"") ->  | BF53: =IFERROR(VLOOKUP(AB53,CadMP!$B:$D,2,0),"") ->  | BG53: =IFERROR(VLOOKUP(AC53,CadMP!$B:$D,2,0),"") ->  | BH53: =IFERROR(VLOOKUP(AD53,CadMP!$B:$D,2,0),"") ->  | BI53: =IFERROR(VLOOKUP(AE53,CadMP!$B:$D,2,0),"") ->  | BJ53: =IFERROR(VLOOKUP(AF53,CadMP!$B:$D,2,0),"") ->  | BK53: =IFERROR(VLOOKUP(AG53,CadMP!$B:$D,2,0),"") ->  | BL53: =IFERROR(VLOOKUP(AH53,CadMP!$B:$D,2,0),"") ->  | BM53: =IFERROR(VLOOKUP(AI53,CadMP!$B:$D,2,0),"") ->  | BN53: =IFERROR(VLOOKUP(AJ53,CadMP!$B:$D,2,0),"") ->  | BO53: =IFERROR(VLOOKUP(AK53,CadMP!$B:$D,2,0),"") ->  | BP53: =IFERROR(VLOOKUP(W53,CadMP!$B:$D,3,0),"") ->  | BQ53: =IFERROR(VLOOKUP(X53,CadMP!$B:$D,3,0),"") ->  | BR53: =IFERROR(VLOOKUP(Y53,CadMP!$B:$D,3,0),"") ->  | BS53: =IFERROR(VLOOKUP(Z53,CadMP!$B:$D,3,0),"") ->  | BT53: =IFERROR(VLOOKUP(AA53,CadMP!$B:$D,3,0),"") ->  | BU53: =IFERROR(VLOOKUP(AB53,CadMP!$B:$D,3,0),"") ->  | BV53: =IFERROR(VLOOKUP(AC53,CadMP!$B:$D,3,0),"") ->  | BW53: =IFERROR(VLOOKUP(AD53,CadMP!$B:$D,3,0),"") ->  | BX53: =IFERROR(VLOOKUP(AE53,CadMP!$B:$D,3,0),"") ->  | BY53: =IFERROR(VLOOKUP(AF53,CadMP!$B:$D,3,0),"") ->  | BZ53: =IFERROR(VLOOKUP(AG53,CadMP!$B:$D,3,0),"") ->  | CA53: =IFERROR(VLOOKUP(AH53,CadMP!$B:$D,3,0),"") ->  | CB53: =IFERROR(VLOOKUP(AI53,CadMP!$B:$D,3,0),"") ->  | CC53: =IFERROR(VLOOKUP(AJ53,CadMP!$B:$D,3,0),"") ->  | CD53: =IFERROR(VLOOKUP(AK53,CadMP!$B:$D,3,0),"") ->  | CE53: 0 | CF53: 0 | CG53: 0 | CH53: 0 | CI53: 0 | CJ53: 0 | CK53: 0 | CL53: 0 | CM53: 0 | CN53: 0 | CO53: 0 | CP53: 0 | CQ53: 0 | CR53: 0 | CS53: 0
A54: 53 | D54: 0 | E54: 0 | L54: 0 | M54: 0 | U54: 1.00 | V54: 0 | BA54: =IFERROR(VLOOKUP(W54,CadMP!$B:$D,2,0),"") ->  | BB54: =IFERROR(VLOOKUP(X54,CadMP!$B:$D,2,0),"") ->  | BC54: =IFERROR(VLOOKUP(Y54,CadMP!$B:$D,2,0),"") ->  | BD54: =IFERROR(VLOOKUP(Z54,CadMP!$B:$D,2,0),"") ->  | BE54: =IFERROR(VLOOKUP(AA54,CadMP!$B:$D,2,0),"") ->  | BF54: =IFERROR(VLOOKUP(AB54,CadMP!$B:$D,2,0),"") ->  | BG54: =IFERROR(VLOOKUP(AC54,CadMP!$B:$D,2,0),"") ->  | BH54: =IFERROR(VLOOKUP(AD54,CadMP!$B:$D,2,0),"") ->  | BI54: =IFERROR(VLOOKUP(AE54,CadMP!$B:$D,2,0),"") ->  | BJ54: =IFERROR(VLOOKUP(AF54,CadMP!$B:$D,2,0),"") ->  | BK54: =IFERROR(VLOOKUP(AG54,CadMP!$B:$D,2,0),"") ->  | BL54: =IFERROR(VLOOKUP(AH54,CadMP!$B:$D,2,0),"") ->  | BM54: =IFERROR(VLOOKUP(AI54,CadMP!$B:$D,2,0),"") ->  | BN54: =IFERROR(VLOOKUP(AJ54,CadMP!$B:$D,2,0),"") ->  | BO54: =IFERROR(VLOOKUP(AK54,CadMP!$B:$D,2,0),"") ->  | BP54: =IFERROR(VLOOKUP(W54,CadMP!$B:$D,3,0),"") ->  | BQ54: =IFERROR(VLOOKUP(X54,CadMP!$B:$D,3,0),"") ->  | BR54: =IFERROR(VLOOKUP(Y54,CadMP!$B:$D,3,0),"") ->  | BS54: =IFERROR(VLOOKUP(Z54,CadMP!$B:$D,3,0),"") ->  | BT54: =IFERROR(VLOOKUP(AA54,CadMP!$B:$D,3,0),"") ->  | BU54: =IFERROR(VLOOKUP(AB54,CadMP!$B:$D,3,0),"") ->  | BV54: =IFERROR(VLOOKUP(AC54,CadMP!$B:$D,3,0),"") ->  | BW54: =IFERROR(VLOOKUP(AD54,CadMP!$B:$D,3,0),"") ->  | BX54: =IFERROR(VLOOKUP(AE54,CadMP!$B:$D,3,0),"") ->  | BY54: =IFERROR(VLOOKUP(AF54,CadMP!$B:$D,3,0),"") ->  | BZ54: =IFERROR(VLOOKUP(AG54,CadMP!$B:$D,3,0),"") ->  | CA54: =IFERROR(VLOOKUP(AH54,CadMP!$B:$D,3,0),"") ->  | CB54: =IFERROR(VLOOKUP(AI54,CadMP!$B:$D,3,0),"") ->  | CC54: =IFERROR(VLOOKUP(AJ54,CadMP!$B:$D,3,0),"") ->  | CD54: =IFERROR(VLOOKUP(AK54,CadMP!$B:$D,3,0),"") ->  | CE54: 0 | CF54: 0 | CG54: 0 | CH54: 0 | CI54: 0 | CJ54: 0 | CK54: 0 | CL54: 0 | CM54: 0 | CN54: 0 | CO54: 0 | CP54: 0 | CQ54: 0 | CR54: 0 | CS54: 0
A55: 54 | D55: 0 | E55: 0 | L55: 0 | M55: 0 | U55: 1.00 | V55: 0 | BA55: =IFERROR(VLOOKUP(W55,CadMP!$B:$D,2,0),"") ->  | BB55: =IFERROR(VLOOKUP(X55,CadMP!$B:$D,2,0),"") ->  | BC55: =IFERROR(VLOOKUP(Y55,CadMP!$B:$D,2,0),"") ->  | BD55: =IFERROR(VLOOKUP(Z55,CadMP!$B:$D,2,0),"") ->  | BE55: =IFERROR(VLOOKUP(AA55,CadMP!$B:$D,2,0),"") ->  | BF55: =IFERROR(VLOOKUP(AB55,CadMP!$B:$D,2,0),"") ->  | BG55: =IFERROR(VLOOKUP(AC55,CadMP!$B:$D,2,0),"") ->  | BH55: =IFERROR(VLOOKUP(AD55,CadMP!$B:$D,2,0),"") ->  | BI55: =IFERROR(VLOOKUP(AE55,CadMP!$B:$D,2,0),"") ->  | BJ55: =IFERROR(VLOOKUP(AF55,CadMP!$B:$D,2,0),"") ->  | BK55: =IFERROR(VLOOKUP(AG55,CadMP!$B:$D,2,0),"") ->  | BL55: =IFERROR(VLOOKUP(AH55,CadMP!$B:$D,2,0),"") ->  | BM55: =IFERROR(VLOOKUP(AI55,CadMP!$B:$D,2,0),"") ->  | BN55: =IFERROR(VLOOKUP(AJ55,CadMP!$B:$D,2,0),"") ->  | BO55: =IFERROR(VLOOKUP(AK55,CadMP!$B:$D,2,0),"") ->  | BP55: =IFERROR(VLOOKUP(W55,CadMP!$B:$D,3,0),"") ->  | BQ55: =IFERROR(VLOOKUP(X55,CadMP!$B:$D,3,0),"") ->  | BR55: =IFERROR(VLOOKUP(Y55,CadMP!$B:$D,3,0),"") ->  | BS55: =IFERROR(VLOOKUP(Z55,CadMP!$B:$D,3,0),"") ->  | BT55: =IFERROR(VLOOKUP(AA55,CadMP!$B:$D,3,0),"") ->  | BU55: =IFERROR(VLOOKUP(AB55,CadMP!$B:$D,3,0),"") ->  | BV55: =IFERROR(VLOOKUP(AC55,CadMP!$B:$D,3,0),"") ->  | BW55: =IFERROR(VLOOKUP(AD55,CadMP!$B:$D,3,0),"") ->  | BX55: =IFERROR(VLOOKUP(AE55,CadMP!$B:$D,3,0),"") ->  | BY55: =IFERROR(VLOOKUP(AF55,CadMP!$B:$D,3,0),"") ->  | BZ55: =IFERROR(VLOOKUP(AG55,CadMP!$B:$D,3,0),"") ->  | CA55: =IFERROR(VLOOKUP(AH55,CadMP!$B:$D,3,0),"") ->  | CB55: =IFERROR(VLOOKUP(AI55,CadMP!$B:$D,3,0),"") ->  | CC55: =IFERROR(VLOOKUP(AJ55,CadMP!$B:$D,3,0),"") ->  | CD55: =IFERROR(VLOOKUP(AK55,CadMP!$B:$D,3,0),"") ->  | CE55: 0 | CF55: 0 | CG55: 0 | CH55: 0 | CI55: 0 | CJ55: 0 | CK55: 0 | CL55: 0 | CM55: 0 | CN55: 0 | CO55: 0 | CP55: 0 | CQ55: 0 | CR55: 0 | CS55: 0
A56: 55 | D56: 0 | E56: 0 | L56: 0 | M56: 0 | U56: 1.00 | V56: 0 | BA56: =IFERROR(VLOOKUP(W56,CadMP!$B:$D,2,0),"") ->  | BB56: =IFERROR(VLOOKUP(X56,CadMP!$B:$D,2,0),"") ->  | BC56: =IFERROR(VLOOKUP(Y56,CadMP!$B:$D,2,0),"") ->  | BD56: =IFERROR(VLOOKUP(Z56,CadMP!$B:$D,2,0),"") ->  | BE56: =IFERROR(VLOOKUP(AA56,CadMP!$B:$D,2,0),"") ->  | BF56: =IFERROR(VLOOKUP(AB56,CadMP!$B:$D,2,0),"") ->  | BG56: =IFERROR(VLOOKUP(AC56,CadMP!$B:$D,2,0),"") ->  | BH56: =IFERROR(VLOOKUP(AD56,CadMP!$B:$D,2,0),"") ->  | BI56: =IFERROR(VLOOKUP(AE56,CadMP!$B:$D,2,0),"") ->  | BJ56: =IFERROR(VLOOKUP(AF56,CadMP!$B:$D,2,0),"") ->  | BK56: =IFERROR(VLOOKUP(AG56,CadMP!$B:$D,2,0),"") ->  | BL56: =IFERROR(VLOOKUP(AH56,CadMP!$B:$D,2,0),"") ->  | BM56: =IFERROR(VLOOKUP(AI56,CadMP!$B:$D,2,0),"") ->  | BN56: =IFERROR(VLOOKUP(AJ56,CadMP!$B:$D,2,0),"") ->  | BO56: =IFERROR(VLOOKUP(AK56,CadMP!$B:$D,2,0),"") ->  | BP56: =IFERROR(VLOOKUP(W56,CadMP!$B:$D,3,0),"") ->  | BQ56: =IFERROR(VLOOKUP(X56,CadMP!$B:$D,3,0),"") ->  | BR56: =IFERROR(VLOOKUP(Y56,CadMP!$B:$D,3,0),"") ->  | BS56: =IFERROR(VLOOKUP(Z56,CadMP!$B:$D,3,0),"") ->  | BT56: =IFERROR(VLOOKUP(AA56,CadMP!$B:$D,3,0),"") ->  | BU56: =IFERROR(VLOOKUP(AB56,CadMP!$B:$D,3,0),"") ->  | BV56: =IFERROR(VLOOKUP(AC56,CadMP!$B:$D,3,0),"") ->  | BW56: =IFERROR(VLOOKUP(AD56,CadMP!$B:$D,3,0),"") ->  | BX56: =IFERROR(VLOOKUP(AE56,CadMP!$B:$D,3,0),"") ->  | BY56: =IFERROR(VLOOKUP(AF56,CadMP!$B:$D,3,0),"") ->  | BZ56: =IFERROR(VLOOKUP(AG56,CadMP!$B:$D,3,0),"") ->  | CA56: =IFERROR(VLOOKUP(AH56,CadMP!$B:$D,3,0),"") ->  | CB56: =IFERROR(VLOOKUP(AI56,CadMP!$B:$D,3,0),"") ->  | CC56: =IFERROR(VLOOKUP(AJ56,CadMP!$B:$D,3,0),"") ->  | CD56: =IFERROR(VLOOKUP(AK56,CadMP!$B:$D,3,0),"") ->  | CE56: 0 | CF56: 0 | CG56: 0 | CH56: 0 | CI56: 0 | CJ56: 0 | CK56: 0 | CL56: 0 | CM56: 0 | CN56: 0 | CO56: 0 | CP56: 0 | CQ56: 0 | CR56: 0 | CS56: 0
A57: 56 | D57: 0 | E57: 0 | L57: 0 | M57: 0 | U57: 1.00 | V57: 0 | BA57: =IFERROR(VLOOKUP(W57,CadMP!$B:$D,2,0),"") ->  | BB57: =IFERROR(VLOOKUP(X57,CadMP!$B:$D,2,0),"") ->  | BC57: =IFERROR(VLOOKUP(Y57,CadMP!$B:$D,2,0),"") ->  | BD57: =IFERROR(VLOOKUP(Z57,CadMP!$B:$D,2,0),"") ->  | BE57: =IFERROR(VLOOKUP(AA57,CadMP!$B:$D,2,0),"") ->  | BF57: =IFERROR(VLOOKUP(AB57,CadMP!$B:$D,2,0),"") ->  | BG57: =IFERROR(VLOOKUP(AC57,CadMP!$B:$D,2,0),"") ->  | BH57: =IFERROR(VLOOKUP(AD57,CadMP!$B:$D,2,0),"") ->  | BI57: =IFERROR(VLOOKUP(AE57,CadMP!$B:$D,2,0),"") ->  | BJ57: =IFERROR(VLOOKUP(AF57,CadMP!$B:$D,2,0),"") ->  | BK57: =IFERROR(VLOOKUP(AG57,CadMP!$B:$D,2,0),"") ->  | BL57: =IFERROR(VLOOKUP(AH57,CadMP!$B:$D,2,0),"") ->  | BM57: =IFERROR(VLOOKUP(AI57,CadMP!$B:$D,2,0),"") ->  | BN57: =IFERROR(VLOOKUP(AJ57,CadMP!$B:$D,2,0),"") ->  | BO57: =IFERROR(VLOOKUP(AK57,CadMP!$B:$D,2,0),"") ->  | BP57: =IFERROR(VLOOKUP(W57,CadMP!$B:$D,3,0),"") ->  | BQ57: =IFERROR(VLOOKUP(X57,CadMP!$B:$D,3,0),"") ->  | BR57: =IFERROR(VLOOKUP(Y57,CadMP!$B:$D,3,0),"") ->  | BS57: =IFERROR(VLOOKUP(Z57,CadMP!$B:$D,3,0),"") ->  | BT57: =IFERROR(VLOOKUP(AA57,CadMP!$B:$D,3,0),"") ->  | BU57: =IFERROR(VLOOKUP(AB57,CadMP!$B:$D,3,0),"") ->  | BV57: =IFERROR(VLOOKUP(AC57,CadMP!$B:$D,3,0),"") ->  | BW57: =IFERROR(VLOOKUP(AD57,CadMP!$B:$D,3,0),"") ->  | BX57: =IFERROR(VLOOKUP(AE57,CadMP!$B:$D,3,0),"") ->  | BY57: =IFERROR(VLOOKUP(AF57,CadMP!$B:$D,3,0),"") ->  | BZ57: =IFERROR(VLOOKUP(AG57,CadMP!$B:$D,3,0),"") ->  | CA57: =IFERROR(VLOOKUP(AH57,CadMP!$B:$D,3,0),"") ->  | CB57: =IFERROR(VLOOKUP(AI57,CadMP!$B:$D,3,0),"") ->  | CC57: =IFERROR(VLOOKUP(AJ57,CadMP!$B:$D,3,0),"") ->  | CD57: =IFERROR(VLOOKUP(AK57,CadMP!$B:$D,3,0),"") ->  | CE57: 0 | CF57: 0 | CG57: 0 | CH57: 0 | CI57: 0 | CJ57: 0 | CK57: 0 | CL57: 0 | CM57: 0 | CN57: 0 | CO57: 0 | CP57: 0 | CQ57: 0 | CR57: 0 | CS57: 0
A58: 57 | D58: 0 | E58: 0 | L58: 0 | M58: 0 | U58: 1.00 | V58: 0 | BA58: =IFERROR(VLOOKUP(W58,CadMP!$B:$D,2,0),"") ->  | BB58: =IFERROR(VLOOKUP(X58,CadMP!$B:$D,2,0),"") ->  | BC58: =IFERROR(VLOOKUP(Y58,CadMP!$B:$D,2,0),"") ->  | BD58: =IFERROR(VLOOKUP(Z58,CadMP!$B:$D,2,0),"") ->  | BE58: =IFERROR(VLOOKUP(AA58,CadMP!$B:$D,2,0),"") ->  | BF58: =IFERROR(VLOOKUP(AB58,CadMP!$B:$D,2,0),"") ->  | BG58: =IFERROR(VLOOKUP(AC58,CadMP!$B:$D,2,0),"") ->  | BH58: =IFERROR(VLOOKUP(AD58,CadMP!$B:$D,2,0),"") ->  | BI58: =IFERROR(VLOOKUP(AE58,CadMP!$B:$D,2,0),"") ->  | BJ58: =IFERROR(VLOOKUP(AF58,CadMP!$B:$D,2,0),"") ->  | BK58: =IFERROR(VLOOKUP(AG58,CadMP!$B:$D,2,0),"") ->  | BL58: =IFERROR(VLOOKUP(AH58,CadMP!$B:$D,2,0),"") ->  | BM58: =IFERROR(VLOOKUP(AI58,CadMP!$B:$D,2,0),"") ->  | BN58: =IFERROR(VLOOKUP(AJ58,CadMP!$B:$D,2,0),"") ->  | BO58: =IFERROR(VLOOKUP(AK58,CadMP!$B:$D,2,0),"") ->  | BP58: =IFERROR(VLOOKUP(W58,CadMP!$B:$D,3,0),"") ->  | BQ58: =IFERROR(VLOOKUP(X58,CadMP!$B:$D,3,0),"") ->  | BR58: =IFERROR(VLOOKUP(Y58,CadMP!$B:$D,3,0),"") ->  | BS58: =IFERROR(VLOOKUP(Z58,CadMP!$B:$D,3,0),"") ->  | BT58: =IFERROR(VLOOKUP(AA58,CadMP!$B:$D,3,0),"") ->  | BU58: =IFERROR(VLOOKUP(AB58,CadMP!$B:$D,3,0),"") ->  | BV58: =IFERROR(VLOOKUP(AC58,CadMP!$B:$D,3,0),"") ->  | BW58: =IFERROR(VLOOKUP(AD58,CadMP!$B:$D,3,0),"") ->  | BX58: =IFERROR(VLOOKUP(AE58,CadMP!$B:$D,3,0),"") ->  | BY58: =IFERROR(VLOOKUP(AF58,CadMP!$B:$D,3,0),"") ->  | BZ58: =IFERROR(VLOOKUP(AG58,CadMP!$B:$D,3,0),"") ->  | CA58: =IFERROR(VLOOKUP(AH58,CadMP!$B:$D,3,0),"") ->  | CB58: =IFERROR(VLOOKUP(AI58,CadMP!$B:$D,3,0),"") ->  | CC58: =IFERROR(VLOOKUP(AJ58,CadMP!$B:$D,3,0),"") ->  | CD58: =IFERROR(VLOOKUP(AK58,CadMP!$B:$D,3,0),"") ->  | CE58: 0 | CF58: 0 | CG58: 0 | CH58: 0 | CI58: 0 | CJ58: 0 | CK58: 0 | CL58: 0 | CM58: 0 | CN58: 0 | CO58: 0 | CP58: 0 | CQ58: 0 | CR58: 0 | CS58: 0
A59: 58 | D59: 0 | E59: 0 | L59: 0 | M59: 0 | U59: 1.00 | V59: 0 | BA59: =IFERROR(VLOOKUP(W59,CadMP!$B:$D,2,0),"") ->  | BB59: =IFERROR(VLOOKUP(X59,CadMP!$B:$D,2,0),"") ->  | BC59: =IFERROR(VLOOKUP(Y59,CadMP!$B:$D,2,0),"") ->  | BD59: =IFERROR(VLOOKUP(Z59,CadMP!$B:$D,2,0),"") ->  | BE59: =IFERROR(VLOOKUP(AA59,CadMP!$B:$D,2,0),"") ->  | BF59: =IFERROR(VLOOKUP(AB59,CadMP!$B:$D,2,0),"") ->  | BG59: =IFERROR(VLOOKUP(AC59,CadMP!$B:$D,2,0),"") ->  | BH59: =IFERROR(VLOOKUP(AD59,CadMP!$B:$D,2,0),"") ->  | BI59: =IFERROR(VLOOKUP(AE59,CadMP!$B:$D,2,0),"") ->  | BJ59: =IFERROR(VLOOKUP(AF59,CadMP!$B:$D,2,0),"") ->  | BK59: =IFERROR(VLOOKUP(AG59,CadMP!$B:$D,2,0),"") ->  | BL59: =IFERROR(VLOOKUP(AH59,CadMP!$B:$D,2,0),"") ->  | BM59: =IFERROR(VLOOKUP(AI59,CadMP!$B:$D,2,0),"") ->  | BN59: =IFERROR(VLOOKUP(AJ59,CadMP!$B:$D,2,0),"") ->  | BO59: =IFERROR(VLOOKUP(AK59,CadMP!$B:$D,2,0),"") ->  | BP59: =IFERROR(VLOOKUP(W59,CadMP!$B:$D,3,0),"") ->  | BQ59: =IFERROR(VLOOKUP(X59,CadMP!$B:$D,3,0),"") ->  | BR59: =IFERROR(VLOOKUP(Y59,CadMP!$B:$D,3,0),"") ->  | BS59: =IFERROR(VLOOKUP(Z59,CadMP!$B:$D,3,0),"") ->  | BT59: =IFERROR(VLOOKUP(AA59,CadMP!$B:$D,3,0),"") ->  | BU59: =IFERROR(VLOOKUP(AB59,CadMP!$B:$D,3,0),"") ->  | BV59: =IFERROR(VLOOKUP(AC59,CadMP!$B:$D,3,0),"") ->  | BW59: =IFERROR(VLOOKUP(AD59,CadMP!$B:$D,3,0),"") ->  | BX59: =IFERROR(VLOOKUP(AE59,CadMP!$B:$D,3,0),"") ->  | BY59: =IFERROR(VLOOKUP(AF59,CadMP!$B:$D,3,0),"") ->  | BZ59: =IFERROR(VLOOKUP(AG59,CadMP!$B:$D,3,0),"") ->  | CA59: =IFERROR(VLOOKUP(AH59,CadMP!$B:$D,3,0),"") ->  | CB59: =IFERROR(VLOOKUP(AI59,CadMP!$B:$D,3,0),"") ->  | CC59: =IFERROR(VLOOKUP(AJ59,CadMP!$B:$D,3,0),"") ->  | CD59: =IFERROR(VLOOKUP(AK59,CadMP!$B:$D,3,0),"") ->  | CE59: 0 | CF59: 0 | CG59: 0 | CH59: 0 | CI59: 0 | CJ59: 0 | CK59: 0 | CL59: 0 | CM59: 0 | CN59: 0 | CO59: 0 | CP59: 0 | CQ59: 0 | CR59: 0 | CS59: 0
A60: 59 | D60: 0 | E60: 0 | L60: 0 | M60: 0 | U60: 1.00 | V60: 0 | BA60: =IFERROR(VLOOKUP(W60,CadMP!$B:$D,2,0),"") ->  | BB60: =IFERROR(VLOOKUP(X60,CadMP!$B:$D,2,0),"") ->  | BC60: =IFERROR(VLOOKUP(Y60,CadMP!$B:$D,2,0),"") ->  | BD60: =IFERROR(VLOOKUP(Z60,CadMP!$B:$D,2,0),"") ->  | BE60: =IFERROR(VLOOKUP(AA60,CadMP!$B:$D,2,0),"") ->  | BF60: =IFERROR(VLOOKUP(AB60,CadMP!$B:$D,2,0),"") ->  | BG60: =IFERROR(VLOOKUP(AC60,CadMP!$B:$D,2,0),"") ->  | BH60: =IFERROR(VLOOKUP(AD60,CadMP!$B:$D,2,0),"") ->  | BI60: =IFERROR(VLOOKUP(AE60,CadMP!$B:$D,2,0),"") ->  | BJ60: =IFERROR(VLOOKUP(AF60,CadMP!$B:$D,2,0),"") ->  | BK60: =IFERROR(VLOOKUP(AG60,CadMP!$B:$D,2,0),"") ->  | BL60: =IFERROR(VLOOKUP(AH60,CadMP!$B:$D,2,0),"") ->  | BM60: =IFERROR(VLOOKUP(AI60,CadMP!$B:$D,2,0),"") ->  | BN60: =IFERROR(VLOOKUP(AJ60,CadMP!$B:$D,2,0),"") ->  | BO60: =IFERROR(VLOOKUP(AK60,CadMP!$B:$D,2,0),"") ->  | BP60: =IFERROR(VLOOKUP(W60,CadMP!$B:$D,3,0),"") ->  | BQ60: =IFERROR(VLOOKUP(X60,CadMP!$B:$D,3,0),"") ->  | BR60: =IFERROR(VLOOKUP(Y60,CadMP!$B:$D,3,0),"") ->  | BS60: =IFERROR(VLOOKUP(Z60,CadMP!$B:$D,3,0),"") ->  | BT60: =IFERROR(VLOOKUP(AA60,CadMP!$B:$D,3,0),"") ->  | BU60: =IFERROR(VLOOKUP(AB60,CadMP!$B:$D,3,0),"") ->  | BV60: =IFERROR(VLOOKUP(AC60,CadMP!$B:$D,3,0),"") ->  | BW60: =IFERROR(VLOOKUP(AD60,CadMP!$B:$D,3,0),"") ->  | BX60: =IFERROR(VLOOKUP(AE60,CadMP!$B:$D,3,0),"") ->  | BY60: =IFERROR(VLOOKUP(AF60,CadMP!$B:$D,3,0),"") ->  | BZ60: =IFERROR(VLOOKUP(AG60,CadMP!$B:$D,3,0),"") ->  | CA60: =IFERROR(VLOOKUP(AH60,CadMP!$B:$D,3,0),"") ->  | CB60: =IFERROR(VLOOKUP(AI60,CadMP!$B:$D,3,0),"") ->  | CC60: =IFERROR(VLOOKUP(AJ60,CadMP!$B:$D,3,0),"") ->  | CD60: =IFERROR(VLOOKUP(AK60,CadMP!$B:$D,3,0),"") ->  | CE60: 0 | CF60: 0 | CG60: 0 | CH60: 0 | CI60: 0 | CJ60: 0 | CK60: 0 | CL60: 0 | CM60: 0 | CN60: 0 | CO60: 0 | CP60: 0 | CQ60: 0 | CR60: 0 | CS60: 0
A61: 60 | D61: 0 | E61: 0 | L61: 0 | M61: 0 | U61: 1.00 | V61: 0 | BA61: =IFERROR(VLOOKUP(W61,CadMP!$B:$D,2,0),"") ->  | BB61: =IFERROR(VLOOKUP(X61,CadMP!$B:$D,2,0),"") ->  | BC61: =IFERROR(VLOOKUP(Y61,CadMP!$B:$D,2,0),"") ->  | BD61: =IFERROR(VLOOKUP(Z61,CadMP!$B:$D,2,0),"") ->  | BE61: =IFERROR(VLOOKUP(AA61,CadMP!$B:$D,2,0),"") ->  | BF61: =IFERROR(VLOOKUP(AB61,CadMP!$B:$D,2,0),"") ->  | BG61: =IFERROR(VLOOKUP(AC61,CadMP!$B:$D,2,0),"") ->  | BH61: =IFERROR(VLOOKUP(AD61,CadMP!$B:$D,2,0),"") ->  | BI61: =IFERROR(VLOOKUP(AE61,CadMP!$B:$D,2,0),"") ->  | BJ61: =IFERROR(VLOOKUP(AF61,CadMP!$B:$D,2,0),"") ->  | BK61: =IFERROR(VLOOKUP(AG61,CadMP!$B:$D,2,0),"") ->  | BL61: =IFERROR(VLOOKUP(AH61,CadMP!$B:$D,2,0),"") ->  | BM61: =IFERROR(VLOOKUP(AI61,CadMP!$B:$D,2,0),"") ->  | BN61: =IFERROR(VLOOKUP(AJ61,CadMP!$B:$D,2,0),"") ->  | BO61: =IFERROR(VLOOKUP(AK61,CadMP!$B:$D,2,0),"") ->  | BP61: =IFERROR(VLOOKUP(W61,CadMP!$B:$D,3,0),"") ->  | BQ61: =IFERROR(VLOOKUP(X61,CadMP!$B:$D,3,0),"") ->  | BR61: =IFERROR(VLOOKUP(Y61,CadMP!$B:$D,3,0),"") ->  | BS61: =IFERROR(VLOOKUP(Z61,CadMP!$B:$D,3,0),"") ->  | BT61: =IFERROR(VLOOKUP(AA61,CadMP!$B:$D,3,0),"") ->  | BU61: =IFERROR(VLOOKUP(AB61,CadMP!$B:$D,3,0),"") ->  | BV61: =IFERROR(VLOOKUP(AC61,CadMP!$B:$D,3,0),"") ->  | BW61: =IFERROR(VLOOKUP(AD61,CadMP!$B:$D,3,0),"") ->  | BX61: =IFERROR(VLOOKUP(AE61,CadMP!$B:$D,3,0),"") ->  | BY61: =IFERROR(VLOOKUP(AF61,CadMP!$B:$D,3,0),"") ->  | BZ61: =IFERROR(VLOOKUP(AG61,CadMP!$B:$D,3,0),"") ->  | CA61: =IFERROR(VLOOKUP(AH61,CadMP!$B:$D,3,0),"") ->  | CB61: =IFERROR(VLOOKUP(AI61,CadMP!$B:$D,3,0),"") ->  | CC61: =IFERROR(VLOOKUP(AJ61,CadMP!$B:$D,3,0),"") ->  | CD61: =IFERROR(VLOOKUP(AK61,CadMP!$B:$D,3,0),"") ->  | CE61: 0 | CF61: 0 | CG61: 0 | CH61: 0 | CI61: 0 | CJ61: 0 | CK61: 0 | CL61: 0 | CM61: 0 | CN61: 0 | CO61: 0 | CP61: 0 | CQ61: 0 | CR61: 0 | CS61: 0
A62: 61 | D62: 0 | E62: 0 | L62: 0 | M62: 0 | U62: 1.00 | V62: 0 | BA62: =IFERROR(VLOOKUP(W62,CadMP!$B:$D,2,0),"") ->  | BB62: =IFERROR(VLOOKUP(X62,CadMP!$B:$D,2,0),"") ->  | BC62: =IFERROR(VLOOKUP(Y62,CadMP!$B:$D,2,0),"") ->  | BD62: =IFERROR(VLOOKUP(Z62,CadMP!$B:$D,2,0),"") ->  | BE62: =IFERROR(VLOOKUP(AA62,CadMP!$B:$D,2,0),"") ->  | BF62: =IFERROR(VLOOKUP(AB62,CadMP!$B:$D,2,0),"") ->  | BG62: =IFERROR(VLOOKUP(AC62,CadMP!$B:$D,2,0),"") ->  | BH62: =IFERROR(VLOOKUP(AD62,CadMP!$B:$D,2,0),"") ->  | BI62: =IFERROR(VLOOKUP(AE62,CadMP!$B:$D,2,0),"") ->  | BJ62: =IFERROR(VLOOKUP(AF62,CadMP!$B:$D,2,0),"") ->  | BK62: =IFERROR(VLOOKUP(AG62,CadMP!$B:$D,2,0),"") ->  | BL62: =IFERROR(VLOOKUP(AH62,CadMP!$B:$D,2,0),"") ->  | BM62: =IFERROR(VLOOKUP(AI62,CadMP!$B:$D,2,0),"") ->  | BN62: =IFERROR(VLOOKUP(AJ62,CadMP!$B:$D,2,0),"") ->  | BO62: =IFERROR(VLOOKUP(AK62,CadMP!$B:$D,2,0),"") ->  | BP62: =IFERROR(VLOOKUP(W62,CadMP!$B:$D,3,0),"") ->  | BQ62: =IFERROR(VLOOKUP(X62,CadMP!$B:$D,3,0),"") ->  | BR62: =IFERROR(VLOOKUP(Y62,CadMP!$B:$D,3,0),"") ->  | BS62: =IFERROR(VLOOKUP(Z62,CadMP!$B:$D,3,0),"") ->  | BT62: =IFERROR(VLOOKUP(AA62,CadMP!$B:$D,3,0),"") ->  | BU62: =IFERROR(VLOOKUP(AB62,CadMP!$B:$D,3,0),"") ->  | BV62: =IFERROR(VLOOKUP(AC62,CadMP!$B:$D,3,0),"") ->  | BW62: =IFERROR(VLOOKUP(AD62,CadMP!$B:$D,3,0),"") ->  | BX62: =IFERROR(VLOOKUP(AE62,CadMP!$B:$D,3,0),"") ->  | BY62: =IFERROR(VLOOKUP(AF62,CadMP!$B:$D,3,0),"") ->  | BZ62: =IFERROR(VLOOKUP(AG62,CadMP!$B:$D,3,0),"") ->  | CA62: =IFERROR(VLOOKUP(AH62,CadMP!$B:$D,3,0),"") ->  | CB62: =IFERROR(VLOOKUP(AI62,CadMP!$B:$D,3,0),"") ->  | CC62: =IFERROR(VLOOKUP(AJ62,CadMP!$B:$D,3,0),"") ->  | CD62: =IFERROR(VLOOKUP(AK62,CadMP!$B:$D,3,0),"") ->  | CE62: 0 | CF62: 0 | CG62: 0 | CH62: 0 | CI62: 0 | CJ62: 0 | CK62: 0 | CL62: 0 | CM62: 0 | CN62: 0 | CO62: 0 | CP62: 0 | CQ62: 0 | CR62: 0 | CS62: 0
A63: 62 | D63: 0 | E63: 0 | L63: 0 | M63: 0 | U63: 1.00 | V63: 0 | BA63: =IFERROR(VLOOKUP(W63,CadMP!$B:$D,2,0),"") ->  | BB63: =IFERROR(VLOOKUP(X63,CadMP!$B:$D,2,0),"") ->  | BC63: =IFERROR(VLOOKUP(Y63,CadMP!$B:$D,2,0),"") ->  | BD63: =IFERROR(VLOOKUP(Z63,CadMP!$B:$D,2,0),"") ->  | BE63: =IFERROR(VLOOKUP(AA63,CadMP!$B:$D,2,0),"") ->  | BF63: =IFERROR(VLOOKUP(AB63,CadMP!$B:$D,2,0),"") ->  | BG63: =IFERROR(VLOOKUP(AC63,CadMP!$B:$D,2,0),"") ->  | BH63: =IFERROR(VLOOKUP(AD63,CadMP!$B:$D,2,0),"") ->  | BI63: =IFERROR(VLOOKUP(AE63,CadMP!$B:$D,2,0),"") ->  | BJ63: =IFERROR(VLOOKUP(AF63,CadMP!$B:$D,2,0),"") ->  | BK63: =IFERROR(VLOOKUP(AG63,CadMP!$B:$D,2,0),"") ->  | BL63: =IFERROR(VLOOKUP(AH63,CadMP!$B:$D,2,0),"") ->  | BM63: =IFERROR(VLOOKUP(AI63,CadMP!$B:$D,2,0),"") ->  | BN63: =IFERROR(VLOOKUP(AJ63,CadMP!$B:$D,2,0),"") ->  | BO63: =IFERROR(VLOOKUP(AK63,CadMP!$B:$D,2,0),"") ->  | BP63: =IFERROR(VLOOKUP(W63,CadMP!$B:$D,3,0),"") ->  | BQ63: =IFERROR(VLOOKUP(X63,CadMP!$B:$D,3,0),"") ->  | BR63: =IFERROR(VLOOKUP(Y63,CadMP!$B:$D,3,0),"") ->  | BS63: =IFERROR(VLOOKUP(Z63,CadMP!$B:$D,3,0),"") ->  | BT63: =IFERROR(VLOOKUP(AA63,CadMP!$B:$D,3,0),"") ->  | BU63: =IFERROR(VLOOKUP(AB63,CadMP!$B:$D,3,0),"") ->  | BV63: =IFERROR(VLOOKUP(AC63,CadMP!$B:$D,3,0),"") ->  | BW63: =IFERROR(VLOOKUP(AD63,CadMP!$B:$D,3,0),"") ->  | BX63: =IFERROR(VLOOKUP(AE63,CadMP!$B:$D,3,0),"") ->  | BY63: =IFERROR(VLOOKUP(AF63,CadMP!$B:$D,3,0),"") ->  | BZ63: =IFERROR(VLOOKUP(AG63,CadMP!$B:$D,3,0),"") ->  | CA63: =IFERROR(VLOOKUP(AH63,CadMP!$B:$D,3,0),"") ->  | CB63: =IFERROR(VLOOKUP(AI63,CadMP!$B:$D,3,0),"") ->  | CC63: =IFERROR(VLOOKUP(AJ63,CadMP!$B:$D,3,0),"") ->  | CD63: =IFERROR(VLOOKUP(AK63,CadMP!$B:$D,3,0),"") ->  | CE63: 0 | CF63: 0 | CG63: 0 | CH63: 0 | CI63: 0 | CJ63: 0 | CK63: 0 | CL63: 0 | CM63: 0 | CN63: 0 | CO63: 0 | CP63: 0 | CQ63: 0 | CR63: 0 | CS63: 0
A64: 63 | D64: 0 | E64: 0 | L64: 0 | M64: 0 | U64: 1.00 | V64: 0 | BA64: =IFERROR(VLOOKUP(W64,CadMP!$B:$D,2,0),"") ->  | BB64: =IFERROR(VLOOKUP(X64,CadMP!$B:$D,2,0),"") ->  | BC64: =IFERROR(VLOOKUP(Y64,CadMP!$B:$D,2,0),"") ->  | BD64: =IFERROR(VLOOKUP(Z64,CadMP!$B:$D,2,0),"") ->  | BE64: =IFERROR(VLOOKUP(AA64,CadMP!$B:$D,2,0),"") ->  | BF64: =IFERROR(VLOOKUP(AB64,CadMP!$B:$D,2,0),"") ->  | BG64: =IFERROR(VLOOKUP(AC64,CadMP!$B:$D,2,0),"") ->  | BH64: =IFERROR(VLOOKUP(AD64,CadMP!$B:$D,2,0),"") ->  | BI64: =IFERROR(VLOOKUP(AE64,CadMP!$B:$D,2,0),"") ->  | BJ64: =IFERROR(VLOOKUP(AF64,CadMP!$B:$D,2,0),"") ->  | BK64: =IFERROR(VLOOKUP(AG64,CadMP!$B:$D,2,0),"") ->  | BL64: =IFERROR(VLOOKUP(AH64,CadMP!$B:$D,2,0),"") ->  | BM64: =IFERROR(VLOOKUP(AI64,CadMP!$B:$D,2,0),"") ->  | BN64: =IFERROR(VLOOKUP(AJ64,CadMP!$B:$D,2,0),"") ->  | BO64: =IFERROR(VLOOKUP(AK64,CadMP!$B:$D,2,0),"") ->  | BP64: =IFERROR(VLOOKUP(W64,CadMP!$B:$D,3,0),"") ->  | BQ64: =IFERROR(VLOOKUP(X64,CadMP!$B:$D,3,0),"") ->  | BR64: =IFERROR(VLOOKUP(Y64,CadMP!$B:$D,3,0),"") ->  | BS64: =IFERROR(VLOOKUP(Z64,CadMP!$B:$D,3,0),"") ->  | BT64: =IFERROR(VLOOKUP(AA64,CadMP!$B:$D,3,0),"") ->  | BU64: =IFERROR(VLOOKUP(AB64,CadMP!$B:$D,3,0),"") ->  | BV64: =IFERROR(VLOOKUP(AC64,CadMP!$B:$D,3,0),"") ->  | BW64: =IFERROR(VLOOKUP(AD64,CadMP!$B:$D,3,0),"") ->  | BX64: =IFERROR(VLOOKUP(AE64,CadMP!$B:$D,3,0),"") ->  | BY64: =IFERROR(VLOOKUP(AF64,CadMP!$B:$D,3,0),"") ->  | BZ64: =IFERROR(VLOOKUP(AG64,CadMP!$B:$D,3,0),"") ->  | CA64: =IFERROR(VLOOKUP(AH64,CadMP!$B:$D,3,0),"") ->  | CB64: =IFERROR(VLOOKUP(AI64,CadMP!$B:$D,3,0),"") ->  | CC64: =IFERROR(VLOOKUP(AJ64,CadMP!$B:$D,3,0),"") ->  | CD64: =IFERROR(VLOOKUP(AK64,CadMP!$B:$D,3,0),"") ->  | CE64: 0 | CF64: 0 | CG64: 0 | CH64: 0 | CI64: 0 | CJ64: 0 | CK64: 0 | CL64: 0 | CM64: 0 | CN64: 0 | CO64: 0 | CP64: 0 | CQ64: 0 | CR64: 0 | CS64: 0
A65: 64 | D65: 0 | E65: 0 | L65: 0 | M65: 0 | U65: 1.00 | V65: 0 | BA65: =IFERROR(VLOOKUP(W65,CadMP!$B:$D,2,0),"") ->  | BB65: =IFERROR(VLOOKUP(X65,CadMP!$B:$D,2,0),"") ->  | BC65: =IFERROR(VLOOKUP(Y65,CadMP!$B:$D,2,0),"") ->  | BD65: =IFERROR(VLOOKUP(Z65,CadMP!$B:$D,2,0),"") ->  | BE65: =IFERROR(VLOOKUP(AA65,CadMP!$B:$D,2,0),"") ->  | BF65: =IFERROR(VLOOKUP(AB65,CadMP!$B:$D,2,0),"") ->  | BG65: =IFERROR(VLOOKUP(AC65,CadMP!$B:$D,2,0),"") ->  | BH65: =IFERROR(VLOOKUP(AD65,CadMP!$B:$D,2,0),"") ->  | BI65: =IFERROR(VLOOKUP(AE65,CadMP!$B:$D,2,0),"") ->  | BJ65: =IFERROR(VLOOKUP(AF65,CadMP!$B:$D,2,0),"") ->  | BK65: =IFERROR(VLOOKUP(AG65,CadMP!$B:$D,2,0),"") ->  | BL65: =IFERROR(VLOOKUP(AH65,CadMP!$B:$D,2,0),"") ->  | BM65: =IFERROR(VLOOKUP(AI65,CadMP!$B:$D,2,0),"") ->  | BN65: =IFERROR(VLOOKUP(AJ65,CadMP!$B:$D,2,0),"") ->  | BO65: =IFERROR(VLOOKUP(AK65,CadMP!$B:$D,2,0),"") ->  | BP65: =IFERROR(VLOOKUP(W65,CadMP!$B:$D,3,0),"") ->  | BQ65: =IFERROR(VLOOKUP(X65,CadMP!$B:$D,3,0),"") ->  | BR65: =IFERROR(VLOOKUP(Y65,CadMP!$B:$D,3,0),"") ->  | BS65: =IFERROR(VLOOKUP(Z65,CadMP!$B:$D,3,0),"") ->  | BT65: =IFERROR(VLOOKUP(AA65,CadMP!$B:$D,3,0),"") ->  | BU65: =IFERROR(VLOOKUP(AB65,CadMP!$B:$D,3,0),"") ->  | BV65: =IFERROR(VLOOKUP(AC65,CadMP!$B:$D,3,0),"") ->  | BW65: =IFERROR(VLOOKUP(AD65,CadMP!$B:$D,3,0),"") ->  | BX65: =IFERROR(VLOOKUP(AE65,CadMP!$B:$D,3,0),"") ->  | BY65: =IFERROR(VLOOKUP(AF65,CadMP!$B:$D,3,0),"") ->  | BZ65: =IFERROR(VLOOKUP(AG65,CadMP!$B:$D,3,0),"") ->  | CA65: =IFERROR(VLOOKUP(AH65,CadMP!$B:$D,3,0),"") ->  | CB65: =IFERROR(VLOOKUP(AI65,CadMP!$B:$D,3,0),"") ->  | CC65: =IFERROR(VLOOKUP(AJ65,CadMP!$B:$D,3,0),"") ->  | CD65: =IFERROR(VLOOKUP(AK65,CadMP!$B:$D,3,0),"") ->  | CE65: 0 | CF65: 0 | CG65: 0 | CH65: 0 | CI65: 0 | CJ65: 0 | CK65: 0 | CL65: 0 | CM65: 0 | CN65: 0 | CO65: 0 | CP65: 0 | CQ65: 0 | CR65: 0 | CS65: 0
A66: 65 | D66: 0 | E66: 0 | L66: 0 | M66: 0 | U66: 1.00 | V66: 0 | BA66: =IFERROR(VLOOKUP(W66,CadMP!$B:$D,2,0),"") ->  | BB66: =IFERROR(VLOOKUP(X66,CadMP!$B:$D,2,0),"") ->  | BC66: =IFERROR(VLOOKUP(Y66,CadMP!$B:$D,2,0),"") ->  | BD66: =IFERROR(VLOOKUP(Z66,CadMP!$B:$D,2,0),"") ->  | BE66: =IFERROR(VLOOKUP(AA66,CadMP!$B:$D,2,0),"") ->  | BF66: =IFERROR(VLOOKUP(AB66,CadMP!$B:$D,2,0),"") ->  | BG66: =IFERROR(VLOOKUP(AC66,CadMP!$B:$D,2,0),"") ->  | BH66: =IFERROR(VLOOKUP(AD66,CadMP!$B:$D,2,0),"") ->  | BI66: =IFERROR(VLOOKUP(AE66,CadMP!$B:$D,2,0),"") ->  | BJ66: =IFERROR(VLOOKUP(AF66,CadMP!$B:$D,2,0),"") ->  | BK66: =IFERROR(VLOOKUP(AG66,CadMP!$B:$D,2,0),"") ->  | BL66: =IFERROR(VLOOKUP(AH66,CadMP!$B:$D,2,0),"") ->  | BM66: =IFERROR(VLOOKUP(AI66,CadMP!$B:$D,2,0),"") ->  | BN66: =IFERROR(VLOOKUP(AJ66,CadMP!$B:$D,2,0),"") ->  | BO66: =IFERROR(VLOOKUP(AK66,CadMP!$B:$D,2,0),"") ->  | BP66: =IFERROR(VLOOKUP(W66,CadMP!$B:$D,3,0),"") ->  | BQ66: =IFERROR(VLOOKUP(X66,CadMP!$B:$D,3,0),"") ->  | BR66: =IFERROR(VLOOKUP(Y66,CadMP!$B:$D,3,0),"") ->  | BS66: =IFERROR(VLOOKUP(Z66,CadMP!$B:$D,3,0),"") ->  | BT66: =IFERROR(VLOOKUP(AA66,CadMP!$B:$D,3,0),"") ->  | BU66: =IFERROR(VLOOKUP(AB66,CadMP!$B:$D,3,0),"") ->  | BV66: =IFERROR(VLOOKUP(AC66,CadMP!$B:$D,3,0),"") ->  | BW66: =IFERROR(VLOOKUP(AD66,CadMP!$B:$D,3,0),"") ->  | BX66: =IFERROR(VLOOKUP(AE66,CadMP!$B:$D,3,0),"") ->  | BY66: =IFERROR(VLOOKUP(AF66,CadMP!$B:$D,3,0),"") ->  | BZ66: =IFERROR(VLOOKUP(AG66,CadMP!$B:$D,3,0),"") ->  | CA66: =IFERROR(VLOOKUP(AH66,CadMP!$B:$D,3,0),"") ->  | CB66: =IFERROR(VLOOKUP(AI66,CadMP!$B:$D,3,0),"") ->  | CC66: =IFERROR(VLOOKUP(AJ66,CadMP!$B:$D,3,0),"") ->  | CD66: =IFERROR(VLOOKUP(AK66,CadMP!$B:$D,3,0),"") ->  | CE66: 0 | CF66: 0 | CG66: 0 | CH66: 0 | CI66: 0 | CJ66: 0 | CK66: 0 | CL66: 0 | CM66: 0 | CN66: 0 | CO66: 0 | CP66: 0 | CQ66: 0 | CR66: 0 | CS66: 0
A67: 66 | D67: =SUM(CE67:CS67) -> 0 | E67: =SUM(F67:K67) -> 0 | L67: =SUM(D67:E67) -> 0 | M67: =SUM(N67:T67) -> 0 | U67: =(100)/(100-M67) -> 1.00 | V67: =L67*U67 -> 0 | BA67: =IFERROR(VLOOKUP(W67,CadMP!$B:$D,2,0),"") ->  | BB67: =IFERROR(VLOOKUP(X67,CadMP!$B:$D,2,0),"") ->  | BC67: =IFERROR(VLOOKUP(Y67,CadMP!$B:$D,2,0),"") ->  | BD67: =IFERROR(VLOOKUP(Z67,CadMP!$B:$D,2,0),"") ->  | BE67: =IFERROR(VLOOKUP(AA67,CadMP!$B:$D,2,0),"") ->  | BF67: =IFERROR(VLOOKUP(AB67,CadMP!$B:$D,2,0),"") ->  | BG67: =IFERROR(VLOOKUP(AC67,CadMP!$B:$D,2,0),"") ->  | BH67: =IFERROR(VLOOKUP(AD67,CadMP!$B:$D,2,0),"") ->  | BI67: =IFERROR(VLOOKUP(AE67,CadMP!$B:$D,2,0),"") ->  | BJ67: =IFERROR(VLOOKUP(AF67,CadMP!$B:$D,2,0),"") ->  | BK67: =IFERROR(VLOOKUP(AG67,CadMP!$B:$D,2,0),"") ->  | BL67: =IFERROR(VLOOKUP(AH67,CadMP!$B:$D,2,0),"") ->  | BM67: =IFERROR(VLOOKUP(AI67,CadMP!$B:$D,2,0),"") ->  | BN67: =IFERROR(VLOOKUP(AJ67,CadMP!$B:$D,2,0),"") ->  | BO67: =IFERROR(VLOOKUP(AK67,CadMP!$B:$D,2,0),"") ->  | BP67: =IFERROR(VLOOKUP(W67,CadMP!$B:$D,3,0),"") ->  | BQ67: =IFERROR(VLOOKUP(X67,CadMP!$B:$D,3,0),"") ->  | BR67: =IFERROR(VLOOKUP(Y67,CadMP!$B:$D,3,0),"") ->  | BS67: =IFERROR(VLOOKUP(Z67,CadMP!$B:$D,3,0),"") ->  | BT67: =IFERROR(VLOOKUP(AA67,CadMP!$B:$D,3,0),"") ->  | BU67: =IFERROR(VLOOKUP(AB67,CadMP!$B:$D,3,0),"") ->  | BV67: =IFERROR(VLOOKUP(AC67,CadMP!$B:$D,3,0),"") ->  | BW67: =IFERROR(VLOOKUP(AD67,CadMP!$B:$D,3,0),"") ->  | BX67: =IFERROR(VLOOKUP(AE67,CadMP!$B:$D,3,0),"") ->  | BY67: =IFERROR(VLOOKUP(AF67,CadMP!$B:$D,3,0),"") ->  | BZ67: =IFERROR(VLOOKUP(AG67,CadMP!$B:$D,3,0),"") ->  | CA67: =IFERROR(VLOOKUP(AH67,CadMP!$B:$D,3,0),"") ->  | CB67: =IFERROR(VLOOKUP(AI67,CadMP!$B:$D,3,0),"") ->  | CC67: =IFERROR(VLOOKUP(AJ67,CadMP!$B:$D,3,0),"") ->  | CD67: =IFERROR(VLOOKUP(AK67,CadMP!$B:$D,3,0),"") ->  | CE67: =IFERROR(AL67*BP67,0) -> 0 | CF67: =IFERROR(AM67*BQ67,0) -> 0 | CG67: =IFERROR(AN67*BR67,0) -> 0 | CH67: =IFERROR(AO67*BS67,0) -> 0 | CI67: =IFERROR(AP67*BT67,0) -> 0 | CJ67: =IFERROR(AQ67*BU67,0) -> 0 | CK67: =IFERROR(AR67*BV67,0) -> 0 | CL67: =IFERROR(AS67*BW67,0) -> 0 | CM67: =IFERROR(AT67*BX67,0) -> 0 | CN67: =IFERROR(AU67*BY67,0) -> 0 | CO67: =IFERROR(AV67*BZ67,0) -> 0 | CP67: =IFERROR(AW67*CA67,0) -> 0 | CQ67: =IFERROR(AX67*CB67,0) -> 0 | CR67: =IFERROR(AY67*CC67,0) -> 0 | CS67: =IFERROR(AZ67*CD67,0) -> 0
A68: 67 | D68: 0 | E68: 0 | L68: 0 | M68: 0 | U68: 1.00 | V68: 0 | BA68: =IFERROR(VLOOKUP(W68,CadMP!$B:$D,2,0),"") ->  | BB68: =IFERROR(VLOOKUP(X68,CadMP!$B:$D,2,0),"") ->  | BC68: =IFERROR(VLOOKUP(Y68,CadMP!$B:$D,2,0),"") ->  | BD68: =IFERROR(VLOOKUP(Z68,CadMP!$B:$D,2,0),"") ->  | BE68: =IFERROR(VLOOKUP(AA68,CadMP!$B:$D,2,0),"") ->  | BF68: =IFERROR(VLOOKUP(AB68,CadMP!$B:$D,2,0),"") ->  | BG68: =IFERROR(VLOOKUP(AC68,CadMP!$B:$D,2,0),"") ->  | BH68: =IFERROR(VLOOKUP(AD68,CadMP!$B:$D,2,0),"") ->  | BI68: =IFERROR(VLOOKUP(AE68,CadMP!$B:$D,2,0),"") ->  | BJ68: =IFERROR(VLOOKUP(AF68,CadMP!$B:$D,2,0),"") ->  | BK68: =IFERROR(VLOOKUP(AG68,CadMP!$B:$D,2,0),"") ->  | BL68: =IFERROR(VLOOKUP(AH68,CadMP!$B:$D,2,0),"") ->  | BM68: =IFERROR(VLOOKUP(AI68,CadMP!$B:$D,2,0),"") ->  | BN68: =IFERROR(VLOOKUP(AJ68,CadMP!$B:$D,2,0),"") ->  | BO68: =IFERROR(VLOOKUP(AK68,CadMP!$B:$D,2,0),"") ->  | BP68: =IFERROR(VLOOKUP(W68,CadMP!$B:$D,3,0),"") ->  | BQ68: =IFERROR(VLOOKUP(X68,CadMP!$B:$D,3,0),"") ->  | BR68: =IFERROR(VLOOKUP(Y68,CadMP!$B:$D,3,0),"") ->  | BS68: =IFERROR(VLOOKUP(Z68,CadMP!$B:$D,3,0),"") ->  | BT68: =IFERROR(VLOOKUP(AA68,CadMP!$B:$D,3,0),"") ->  | BU68: =IFERROR(VLOOKUP(AB68,CadMP!$B:$D,3,0),"") ->  | BV68: =IFERROR(VLOOKUP(AC68,CadMP!$B:$D,3,0),"") ->  | BW68: =IFERROR(VLOOKUP(AD68,CadMP!$B:$D,3,0),"") ->  | BX68: =IFERROR(VLOOKUP(AE68,CadMP!$B:$D,3,0),"") ->  | BY68: =IFERROR(VLOOKUP(AF68,CadMP!$B:$D,3,0),"") ->  | BZ68: =IFERROR(VLOOKUP(AG68,CadMP!$B:$D,3,0),"") ->  | CA68: =IFERROR(VLOOKUP(AH68,CadMP!$B:$D,3,0),"") ->  | CB68: =IFERROR(VLOOKUP(AI68,CadMP!$B:$D,3,0),"") ->  | CC68: =IFERROR(VLOOKUP(AJ68,CadMP!$B:$D,3,0),"") ->  | CD68: =IFERROR(VLOOKUP(AK68,CadMP!$B:$D,3,0),"") ->  | CE68: 0 | CF68: 0 | CG68: 0 | CH68: 0 | CI68: 0 | CJ68: 0 | CK68: 0 | CL68: 0 | CM68: 0 | CN68: 0 | CO68: 0 | CP68: 0 | CQ68: 0 | CR68: 0 | CS68: 0
A69: 68 | D69: 0 | E69: 0 | L69: 0 | M69: 0 | U69: 1.00 | V69: 0 | BA69: =IFERROR(VLOOKUP(W69,CadMP!$B:$D,2,0),"") ->  | BB69: =IFERROR(VLOOKUP(X69,CadMP!$B:$D,2,0),"") ->  | BC69: =IFERROR(VLOOKUP(Y69,CadMP!$B:$D,2,0),"") ->  | BD69: =IFERROR(VLOOKUP(Z69,CadMP!$B:$D,2,0),"") ->  | BE69: =IFERROR(VLOOKUP(AA69,CadMP!$B:$D,2,0),"") ->  | BF69: =IFERROR(VLOOKUP(AB69,CadMP!$B:$D,2,0),"") ->  | BG69: =IFERROR(VLOOKUP(AC69,CadMP!$B:$D,2,0),"") ->  | BH69: =IFERROR(VLOOKUP(AD69,CadMP!$B:$D,2,0),"") ->  | BI69: =IFERROR(VLOOKUP(AE69,CadMP!$B:$D,2,0),"") ->  | BJ69: =IFERROR(VLOOKUP(AF69,CadMP!$B:$D,2,0),"") ->  | BK69: =IFERROR(VLOOKUP(AG69,CadMP!$B:$D,2,0),"") ->  | BL69: =IFERROR(VLOOKUP(AH69,CadMP!$B:$D,2,0),"") ->  | BM69: =IFERROR(VLOOKUP(AI69,CadMP!$B:$D,2,0),"") ->  | BN69: =IFERROR(VLOOKUP(AJ69,CadMP!$B:$D,2,0),"") ->  | BO69: =IFERROR(VLOOKUP(AK69,CadMP!$B:$D,2,0),"") ->  | BP69: =IFERROR(VLOOKUP(W69,CadMP!$B:$D,3,0),"") ->  | BQ69: =IFERROR(VLOOKUP(X69,CadMP!$B:$D,3,0),"") ->  | BR69: =IFERROR(VLOOKUP(Y69,CadMP!$B:$D,3,0),"") ->  | BS69: =IFERROR(VLOOKUP(Z69,CadMP!$B:$D,3,0),"") ->  | BT69: =IFERROR(VLOOKUP(AA69,CadMP!$B:$D,3,0),"") ->  | BU69: =IFERROR(VLOOKUP(AB69,CadMP!$B:$D,3,0),"") ->  | BV69: =IFERROR(VLOOKUP(AC69,CadMP!$B:$D,3,0),"") ->  | BW69: =IFERROR(VLOOKUP(AD69,CadMP!$B:$D,3,0),"") ->  | BX69: =IFERROR(VLOOKUP(AE69,CadMP!$B:$D,3,0),"") ->  | BY69: =IFERROR(VLOOKUP(AF69,CadMP!$B:$D,3,0),"") ->  | BZ69: =IFERROR(VLOOKUP(AG69,CadMP!$B:$D,3,0),"") ->  | CA69: =IFERROR(VLOOKUP(AH69,CadMP!$B:$D,3,0),"") ->  | CB69: =IFERROR(VLOOKUP(AI69,CadMP!$B:$D,3,0),"") ->  | CC69: =IFERROR(VLOOKUP(AJ69,CadMP!$B:$D,3,0),"") ->  | CD69: =IFERROR(VLOOKUP(AK69,CadMP!$B:$D,3,0),"") ->  | CE69: 0 | CF69: 0 | CG69: 0 | CH69: 0 | CI69: 0 | CJ69: 0 | CK69: 0 | CL69: 0 | CM69: 0 | CN69: 0 | CO69: 0 | CP69: 0 | CQ69: 0 | CR69: 0 | CS69: 0
A70: 69 | D70: 0 | E70: 0 | L70: 0 | M70: 0 | U70: 1.00 | V70: 0 | BA70: =IFERROR(VLOOKUP(W70,CadMP!$B:$D,2,0),"") ->  | BB70: =IFERROR(VLOOKUP(X70,CadMP!$B:$D,2,0),"") ->  | BC70: =IFERROR(VLOOKUP(Y70,CadMP!$B:$D,2,0),"") ->  | BD70: =IFERROR(VLOOKUP(Z70,CadMP!$B:$D,2,0),"") ->  | BE70: =IFERROR(VLOOKUP(AA70,CadMP!$B:$D,2,0),"") ->  | BF70: =IFERROR(VLOOKUP(AB70,CadMP!$B:$D,2,0),"") ->  | BG70: =IFERROR(VLOOKUP(AC70,CadMP!$B:$D,2,0),"") ->  | BH70: =IFERROR(VLOOKUP(AD70,CadMP!$B:$D,2,0),"") ->  | BI70: =IFERROR(VLOOKUP(AE70,CadMP!$B:$D,2,0),"") ->  | BJ70: =IFERROR(VLOOKUP(AF70,CadMP!$B:$D,2,0),"") ->  | BK70: =IFERROR(VLOOKUP(AG70,CadMP!$B:$D,2,0),"") ->  | BL70: =IFERROR(VLOOKUP(AH70,CadMP!$B:$D,2,0),"") ->  | BM70: =IFERROR(VLOOKUP(AI70,CadMP!$B:$D,2,0),"") ->  | BN70: =IFERROR(VLOOKUP(AJ70,CadMP!$B:$D,2,0),"") ->  | BO70: =IFERROR(VLOOKUP(AK70,CadMP!$B:$D,2,0),"") ->  | BP70: =IFERROR(VLOOKUP(W70,CadMP!$B:$D,3,0),"") ->  | BQ70: =IFERROR(VLOOKUP(X70,CadMP!$B:$D,3,0),"") ->  | BR70: =IFERROR(VLOOKUP(Y70,CadMP!$B:$D,3,0),"") ->  | BS70: =IFERROR(VLOOKUP(Z70,CadMP!$B:$D,3,0),"") ->  | BT70: =IFERROR(VLOOKUP(AA70,CadMP!$B:$D,3,0),"") ->  | BU70: =IFERROR(VLOOKUP(AB70,CadMP!$B:$D,3,0),"") ->  | BV70: =IFERROR(VLOOKUP(AC70,CadMP!$B:$D,3,0),"") ->  | BW70: =IFERROR(VLOOKUP(AD70,CadMP!$B:$D,3,0),"") ->  | BX70: =IFERROR(VLOOKUP(AE70,CadMP!$B:$D,3,0),"") ->  | BY70: =IFERROR(VLOOKUP(AF70,CadMP!$B:$D,3,0),"") ->  | BZ70: =IFERROR(VLOOKUP(AG70,CadMP!$B:$D,3,0),"") ->  | CA70: =IFERROR(VLOOKUP(AH70,CadMP!$B:$D,3,0),"") ->  | CB70: =IFERROR(VLOOKUP(AI70,CadMP!$B:$D,3,0),"") ->  | CC70: =IFERROR(VLOOKUP(AJ70,CadMP!$B:$D,3,0),"") ->  | CD70: =IFERROR(VLOOKUP(AK70,CadMP!$B:$D,3,0),"") ->  | CE70: 0 | CF70: 0 | CG70: 0 | CH70: 0 | CI70: 0 | CJ70: 0 | CK70: 0 | CL70: 0 | CM70: 0 | CN70: 0 | CO70: 0 | CP70: 0 | CQ70: 0 | CR70: 0 | CS70: 0
A71: 70 | D71: 0 | E71: 0 | L71: 0 | M71: 0 | U71: 1.00 | V71: 0 | BA71: =IFERROR(VLOOKUP(W71,CadMP!$B:$D,2,0),"") ->  | BB71: =IFERROR(VLOOKUP(X71,CadMP!$B:$D,2,0),"") ->  | BC71: =IFERROR(VLOOKUP(Y71,CadMP!$B:$D,2,0),"") ->  | BD71: =IFERROR(VLOOKUP(Z71,CadMP!$B:$D,2,0),"") ->  | BE71: =IFERROR(VLOOKUP(AA71,CadMP!$B:$D,2,0),"") ->  | BF71: =IFERROR(VLOOKUP(AB71,CadMP!$B:$D,2,0),"") ->  | BG71: =IFERROR(VLOOKUP(AC71,CadMP!$B:$D,2,0),"") ->  | BH71: =IFERROR(VLOOKUP(AD71,CadMP!$B:$D,2,0),"") ->  | BI71: =IFERROR(VLOOKUP(AE71,CadMP!$B:$D,2,0),"") ->  | BJ71: =IFERROR(VLOOKUP(AF71,CadMP!$B:$D,2,0),"") ->  | BK71: =IFERROR(VLOOKUP(AG71,CadMP!$B:$D,2,0),"") ->  | BL71: =IFERROR(VLOOKUP(AH71,CadMP!$B:$D,2,0),"") ->  | BM71: =IFERROR(VLOOKUP(AI71,CadMP!$B:$D,2,0),"") ->  | BN71: =IFERROR(VLOOKUP(AJ71,CadMP!$B:$D,2,0),"") ->  | BO71: =IFERROR(VLOOKUP(AK71,CadMP!$B:$D,2,0),"") ->  | BP71: =IFERROR(VLOOKUP(W71,CadMP!$B:$D,3,0),"") ->  | BQ71: =IFERROR(VLOOKUP(X71,CadMP!$B:$D,3,0),"") ->  | BR71: =IFERROR(VLOOKUP(Y71,CadMP!$B:$D,3,0),"") ->  | BS71: =IFERROR(VLOOKUP(Z71,CadMP!$B:$D,3,0),"") ->  | BT71: =IFERROR(VLOOKUP(AA71,CadMP!$B:$D,3,0),"") ->  | BU71: =IFERROR(VLOOKUP(AB71,CadMP!$B:$D,3,0),"") ->  | BV71: =IFERROR(VLOOKUP(AC71,CadMP!$B:$D,3,0),"") ->  | BW71: =IFERROR(VLOOKUP(AD71,CadMP!$B:$D,3,0),"") ->  | BX71: =IFERROR(VLOOKUP(AE71,CadMP!$B:$D,3,0),"") ->  | BY71: =IFERROR(VLOOKUP(AF71,CadMP!$B:$D,3,0),"") ->  | BZ71: =IFERROR(VLOOKUP(AG71,CadMP!$B:$D,3,0),"") ->  | CA71: =IFERROR(VLOOKUP(AH71,CadMP!$B:$D,3,0),"") ->  | CB71: =IFERROR(VLOOKUP(AI71,CadMP!$B:$D,3,0),"") ->  | CC71: =IFERROR(VLOOKUP(AJ71,CadMP!$B:$D,3,0),"") ->  | CD71: =IFERROR(VLOOKUP(AK71,CadMP!$B:$D,3,0),"") ->  | CE71: 0 | CF71: 0 | CG71: 0 | CH71: 0 | CI71: 0 | CJ71: 0 | CK71: 0 | CL71: 0 | CM71: 0 | CN71: 0 | CO71: 0 | CP71: 0 | CQ71: 0 | CR71: 0 | CS71: 0
A72: 71 | D72: 0 | E72: 0 | L72: 0 | M72: 0 | U72: 1.00 | V72: 0 | BA72: =IFERROR(VLOOKUP(W72,CadMP!$B:$D,2,0),"") ->  | BB72: =IFERROR(VLOOKUP(X72,CadMP!$B:$D,2,0),"") ->  | BC72: =IFERROR(VLOOKUP(Y72,CadMP!$B:$D,2,0),"") ->  | BD72: =IFERROR(VLOOKUP(Z72,CadMP!$B:$D,2,0),"") ->  | BE72: =IFERROR(VLOOKUP(AA72,CadMP!$B:$D,2,0),"") ->  | BF72: =IFERROR(VLOOKUP(AB72,CadMP!$B:$D,2,0),"") ->  | BG72: =IFERROR(VLOOKUP(AC72,CadMP!$B:$D,2,0),"") ->  | BH72: =IFERROR(VLOOKUP(AD72,CadMP!$B:$D,2,0),"") ->  | BI72: =IFERROR(VLOOKUP(AE72,CadMP!$B:$D,2,0),"") ->  | BJ72: =IFERROR(VLOOKUP(AF72,CadMP!$B:$D,2,0),"") ->  | BK72: =IFERROR(VLOOKUP(AG72,CadMP!$B:$D,2,0),"") ->  | BL72: =IFERROR(VLOOKUP(AH72,CadMP!$B:$D,2,0),"") ->  | BM72: =IFERROR(VLOOKUP(AI72,CadMP!$B:$D,2,0),"") ->  | BN72: =IFERROR(VLOOKUP(AJ72,CadMP!$B:$D,2,0),"") ->  | BO72: =IFERROR(VLOOKUP(AK72,CadMP!$B:$D,2,0),"") ->  | BP72: =IFERROR(VLOOKUP(W72,CadMP!$B:$D,3,0),"") ->  | BQ72: =IFERROR(VLOOKUP(X72,CadMP!$B:$D,3,0),"") ->  | BR72: =IFERROR(VLOOKUP(Y72,CadMP!$B:$D,3,0),"") ->  | BS72: =IFERROR(VLOOKUP(Z72,CadMP!$B:$D,3,0),"") ->  | BT72: =IFERROR(VLOOKUP(AA72,CadMP!$B:$D,3,0),"") ->  | BU72: =IFERROR(VLOOKUP(AB72,CadMP!$B:$D,3,0),"") ->  | BV72: =IFERROR(VLOOKUP(AC72,CadMP!$B:$D,3,0),"") ->  | BW72: =IFERROR(VLOOKUP(AD72,CadMP!$B:$D,3,0),"") ->  | BX72: =IFERROR(VLOOKUP(AE72,CadMP!$B:$D,3,0),"") ->  | BY72: =IFERROR(VLOOKUP(AF72,CadMP!$B:$D,3,0),"") ->  | BZ72: =IFERROR(VLOOKUP(AG72,CadMP!$B:$D,3,0),"") ->  | CA72: =IFERROR(VLOOKUP(AH72,CadMP!$B:$D,3,0),"") ->  | CB72: =IFERROR(VLOOKUP(AI72,CadMP!$B:$D,3,0),"") ->  | CC72: =IFERROR(VLOOKUP(AJ72,CadMP!$B:$D,3,0),"") ->  | CD72: =IFERROR(VLOOKUP(AK72,CadMP!$B:$D,3,0),"") ->  | CE72: 0 | CF72: 0 | CG72: 0 | CH72: 0 | CI72: 0 | CJ72: 0 | CK72: 0 | CL72: 0 | CM72: 0 | CN72: 0 | CO72: 0 | CP72: 0 | CQ72: 0 | CR72: 0 | CS72: 0
A73: 72 | D73: 0 | E73: 0 | L73: 0 | M73: 0 | U73: 1.00 | V73: 0 | BA73: =IFERROR(VLOOKUP(W73,CadMP!$B:$D,2,0),"") ->  | BB73: =IFERROR(VLOOKUP(X73,CadMP!$B:$D,2,0),"") ->  | BC73: =IFERROR(VLOOKUP(Y73,CadMP!$B:$D,2,0),"") ->  | BD73: =IFERROR(VLOOKUP(Z73,CadMP!$B:$D,2,0),"") ->  | BE73: =IFERROR(VLOOKUP(AA73,CadMP!$B:$D,2,0),"") ->  | BF73: =IFERROR(VLOOKUP(AB73,CadMP!$B:$D,2,0),"") ->  | BG73: =IFERROR(VLOOKUP(AC73,CadMP!$B:$D,2,0),"") ->  | BH73: =IFERROR(VLOOKUP(AD73,CadMP!$B:$D,2,0),"") ->  | BI73: =IFERROR(VLOOKUP(AE73,CadMP!$B:$D,2,0),"") ->  | BJ73: =IFERROR(VLOOKUP(AF73,CadMP!$B:$D,2,0),"") ->  | BK73: =IFERROR(VLOOKUP(AG73,CadMP!$B:$D,2,0),"") ->  | BL73: =IFERROR(VLOOKUP(AH73,CadMP!$B:$D,2,0),"") ->  | BM73: =IFERROR(VLOOKUP(AI73,CadMP!$B:$D,2,0),"") ->  | BN73: =IFERROR(VLOOKUP(AJ73,CadMP!$B:$D,2,0),"") ->  | BO73: =IFERROR(VLOOKUP(AK73,CadMP!$B:$D,2,0),"") ->  | BP73: =IFERROR(VLOOKUP(W73,CadMP!$B:$D,3,0),"") ->  | BQ73: =IFERROR(VLOOKUP(X73,CadMP!$B:$D,3,0),"") ->  | BR73: =IFERROR(VLOOKUP(Y73,CadMP!$B:$D,3,0),"") ->  | BS73: =IFERROR(VLOOKUP(Z73,CadMP!$B:$D,3,0),"") ->  | BT73: =IFERROR(VLOOKUP(AA73,CadMP!$B:$D,3,0),"") ->  | BU73: =IFERROR(VLOOKUP(AB73,CadMP!$B:$D,3,0),"") ->  | BV73: =IFERROR(VLOOKUP(AC73,CadMP!$B:$D,3,0),"") ->  | BW73: =IFERROR(VLOOKUP(AD73,CadMP!$B:$D,3,0),"") ->  | BX73: =IFERROR(VLOOKUP(AE73,CadMP!$B:$D,3,0),"") ->  | BY73: =IFERROR(VLOOKUP(AF73,CadMP!$B:$D,3,0),"") ->  | BZ73: =IFERROR(VLOOKUP(AG73,CadMP!$B:$D,3,0),"") ->  | CA73: =IFERROR(VLOOKUP(AH73,CadMP!$B:$D,3,0),"") ->  | CB73: =IFERROR(VLOOKUP(AI73,CadMP!$B:$D,3,0),"") ->  | CC73: =IFERROR(VLOOKUP(AJ73,CadMP!$B:$D,3,0),"") ->  | CD73: =IFERROR(VLOOKUP(AK73,CadMP!$B:$D,3,0),"") ->  | CE73: 0 | CF73: 0 | CG73: 0 | CH73: 0 | CI73: 0 | CJ73: 0 | CK73: 0 | CL73: 0 | CM73: 0 | CN73: 0 | CO73: 0 | CP73: 0 | CQ73: 0 | CR73: 0 | CS73: 0
A74: 73 | D74: 0 | E74: 0 | L74: 0 | M74: 0 | U74: 1.00 | V74: 0 | BA74: =IFERROR(VLOOKUP(W74,CadMP!$B:$D,2,0),"") ->  | BB74: =IFERROR(VLOOKUP(X74,CadMP!$B:$D,2,0),"") ->  | BC74: =IFERROR(VLOOKUP(Y74,CadMP!$B:$D,2,0),"") ->  | BD74: =IFERROR(VLOOKUP(Z74,CadMP!$B:$D,2,0),"") ->  | BE74: =IFERROR(VLOOKUP(AA74,CadMP!$B:$D,2,0),"") ->  | BF74: =IFERROR(VLOOKUP(AB74,CadMP!$B:$D,2,0),"") ->  | BG74: =IFERROR(VLOOKUP(AC74,CadMP!$B:$D,2,0),"") ->  | BH74: =IFERROR(VLOOKUP(AD74,CadMP!$B:$D,2,0),"") ->  | BI74: =IFERROR(VLOOKUP(AE74,CadMP!$B:$D,2,0),"") ->  | BJ74: =IFERROR(VLOOKUP(AF74,CadMP!$B:$D,2,0),"") ->  | BK74: =IFERROR(VLOOKUP(AG74,CadMP!$B:$D,2,0),"") ->  | BL74: =IFERROR(VLOOKUP(AH74,CadMP!$B:$D,2,0),"") ->  | BM74: =IFERROR(VLOOKUP(AI74,CadMP!$B:$D,2,0),"") ->  | BN74: =IFERROR(VLOOKUP(AJ74,CadMP!$B:$D,2,0),"") ->  | BO74: =IFERROR(VLOOKUP(AK74,CadMP!$B:$D,2,0),"") ->  | BP74: =IFERROR(VLOOKUP(W74,CadMP!$B:$D,3,0),"") ->  | BQ74: =IFERROR(VLOOKUP(X74,CadMP!$B:$D,3,0),"") ->  | BR74: =IFERROR(VLOOKUP(Y74,CadMP!$B:$D,3,0),"") ->  | BS74: =IFERROR(VLOOKUP(Z74,CadMP!$B:$D,3,0),"") ->  | BT74: =IFERROR(VLOOKUP(AA74,CadMP!$B:$D,3,0),"") ->  | BU74: =IFERROR(VLOOKUP(AB74,CadMP!$B:$D,3,0),"") ->  | BV74: =IFERROR(VLOOKUP(AC74,CadMP!$B:$D,3,0),"") ->  | BW74: =IFERROR(VLOOKUP(AD74,CadMP!$B:$D,3,0),"") ->  | BX74: =IFERROR(VLOOKUP(AE74,CadMP!$B:$D,3,0),"") ->  | BY74: =IFERROR(VLOOKUP(AF74,CadMP!$B:$D,3,0),"") ->  | BZ74: =IFERROR(VLOOKUP(AG74,CadMP!$B:$D,3,0),"") ->  | CA74: =IFERROR(VLOOKUP(AH74,CadMP!$B:$D,3,0),"") ->  | CB74: =IFERROR(VLOOKUP(AI74,CadMP!$B:$D,3,0),"") ->  | CC74: =IFERROR(VLOOKUP(AJ74,CadMP!$B:$D,3,0),"") ->  | CD74: =IFERROR(VLOOKUP(AK74,CadMP!$B:$D,3,0),"") ->  | CE74: 0 | CF74: 0 | CG74: 0 | CH74: 0 | CI74: 0 | CJ74: 0 | CK74: 0 | CL74: 0 | CM74: 0 | CN74: 0 | CO74: 0 | CP74: 0 | CQ74: 0 | CR74: 0 | CS74: 0
A75: 74 | D75: 0 | E75: 0 | L75: 0 | M75: 0 | U75: 1.00 | V75: 0 | BA75: =IFERROR(VLOOKUP(W75,CadMP!$B:$D,2,0),"") ->  | BB75: =IFERROR(VLOOKUP(X75,CadMP!$B:$D,2,0),"") ->  | BC75: =IFERROR(VLOOKUP(Y75,CadMP!$B:$D,2,0),"") ->  | BD75: =IFERROR(VLOOKUP(Z75,CadMP!$B:$D,2,0),"") ->  | BE75: =IFERROR(VLOOKUP(AA75,CadMP!$B:$D,2,0),"") ->  | BF75: =IFERROR(VLOOKUP(AB75,CadMP!$B:$D,2,0),"") ->  | BG75: =IFERROR(VLOOKUP(AC75,CadMP!$B:$D,2,0),"") ->  | BH75: =IFERROR(VLOOKUP(AD75,CadMP!$B:$D,2,0),"") ->  | BI75: =IFERROR(VLOOKUP(AE75,CadMP!$B:$D,2,0),"") ->  | BJ75: =IFERROR(VLOOKUP(AF75,CadMP!$B:$D,2,0),"") ->  | BK75: =IFERROR(VLOOKUP(AG75,CadMP!$B:$D,2,0),"") ->  | BL75: =IFERROR(VLOOKUP(AH75,CadMP!$B:$D,2,0),"") ->  | BM75: =IFERROR(VLOOKUP(AI75,CadMP!$B:$D,2,0),"") ->  | BN75: =IFERROR(VLOOKUP(AJ75,CadMP!$B:$D,2,0),"") ->  | BO75: =IFERROR(VLOOKUP(AK75,CadMP!$B:$D,2,0),"") ->  | BP75: =IFERROR(VLOOKUP(W75,CadMP!$B:$D,3,0),"") ->  | BQ75: =IFERROR(VLOOKUP(X75,CadMP!$B:$D,3,0),"") ->  | BR75: =IFERROR(VLOOKUP(Y75,CadMP!$B:$D,3,0),"") ->  | BS75: =IFERROR(VLOOKUP(Z75,CadMP!$B:$D,3,0),"") ->  | BT75: =IFERROR(VLOOKUP(AA75,CadMP!$B:$D,3,0),"") ->  | BU75: =IFERROR(VLOOKUP(AB75,CadMP!$B:$D,3,0),"") ->  | BV75: =IFERROR(VLOOKUP(AC75,CadMP!$B:$D,3,0),"") ->  | BW75: =IFERROR(VLOOKUP(AD75,CadMP!$B:$D,3,0),"") ->  | BX75: =IFERROR(VLOOKUP(AE75,CadMP!$B:$D,3,0),"") ->  | BY75: =IFERROR(VLOOKUP(AF75,CadMP!$B:$D,3,0),"") ->  | BZ75: =IFERROR(VLOOKUP(AG75,CadMP!$B:$D,3,0),"") ->  | CA75: =IFERROR(VLOOKUP(AH75,CadMP!$B:$D,3,0),"") ->  | CB75: =IFERROR(VLOOKUP(AI75,CadMP!$B:$D,3,0),"") ->  | CC75: =IFERROR(VLOOKUP(AJ75,CadMP!$B:$D,3,0),"") ->  | CD75: =IFERROR(VLOOKUP(AK75,CadMP!$B:$D,3,0),"") ->  | CE75: 0 | CF75: 0 | CG75: 0 | CH75: 0 | CI75: 0 | CJ75: 0 | CK75: 0 | CL75: 0 | CM75: 0 | CN75: 0 | CO75: 0 | CP75: 0 | CQ75: 0 | CR75: 0 | CS75: 0
A76: 75 | D76: 0 | E76: 0 | L76: 0 | M76: 0 | U76: 1.00 | V76: 0 | BA76: =IFERROR(VLOOKUP(W76,CadMP!$B:$D,2,0),"") ->  | BB76: =IFERROR(VLOOKUP(X76,CadMP!$B:$D,2,0),"") ->  | BC76: =IFERROR(VLOOKUP(Y76,CadMP!$B:$D,2,0),"") ->  | BD76: =IFERROR(VLOOKUP(Z76,CadMP!$B:$D,2,0),"") ->  | BE76: =IFERROR(VLOOKUP(AA76,CadMP!$B:$D,2,0),"") ->  | BF76: =IFERROR(VLOOKUP(AB76,CadMP!$B:$D,2,0),"") ->  | BG76: =IFERROR(VLOOKUP(AC76,CadMP!$B:$D,2,0),"") ->  | BH76: =IFERROR(VLOOKUP(AD76,CadMP!$B:$D,2,0),"") ->  | BI76: =IFERROR(VLOOKUP(AE76,CadMP!$B:$D,2,0),"") ->  | BJ76: =IFERROR(VLOOKUP(AF76,CadMP!$B:$D,2,0),"") ->  | BK76: =IFERROR(VLOOKUP(AG76,CadMP!$B:$D,2,0),"") ->  | BL76: =IFERROR(VLOOKUP(AH76,CadMP!$B:$D,2,0),"") ->  | BM76: =IFERROR(VLOOKUP(AI76,CadMP!$B:$D,2,0),"") ->  | BN76: =IFERROR(VLOOKUP(AJ76,CadMP!$B:$D,2,0),"") ->  | BO76: =IFERROR(VLOOKUP(AK76,CadMP!$B:$D,2,0),"") ->  | BP76: =IFERROR(VLOOKUP(W76,CadMP!$B:$D,3,0),"") ->  | BQ76: =IFERROR(VLOOKUP(X76,CadMP!$B:$D,3,0),"") ->  | BR76: =IFERROR(VLOOKUP(Y76,CadMP!$B:$D,3,0),"") ->  | BS76: =IFERROR(VLOOKUP(Z76,CadMP!$B:$D,3,0),"") ->  | BT76: =IFERROR(VLOOKUP(AA76,CadMP!$B:$D,3,0),"") ->  | BU76: =IFERROR(VLOOKUP(AB76,CadMP!$B:$D,3,0),"") ->  | BV76: =IFERROR(VLOOKUP(AC76,CadMP!$B:$D,3,0),"") ->  | BW76: =IFERROR(VLOOKUP(AD76,CadMP!$B:$D,3,0),"") ->  | BX76: =IFERROR(VLOOKUP(AE76,CadMP!$B:$D,3,0),"") ->  | BY76: =IFERROR(VLOOKUP(AF76,CadMP!$B:$D,3,0),"") ->  | BZ76: =IFERROR(VLOOKUP(AG76,CadMP!$B:$D,3,0),"") ->  | CA76: =IFERROR(VLOOKUP(AH76,CadMP!$B:$D,3,0),"") ->  | CB76: =IFERROR(VLOOKUP(AI76,CadMP!$B:$D,3,0),"") ->  | CC76: =IFERROR(VLOOKUP(AJ76,CadMP!$B:$D,3,0),"") ->  | CD76: =IFERROR(VLOOKUP(AK76,CadMP!$B:$D,3,0),"") ->  | CE76: 0 | CF76: 0 | CG76: 0 | CH76: 0 | CI76: 0 | CJ76: 0 | CK76: 0 | CL76: 0 | CM76: 0 | CN76: 0 | CO76: 0 | CP76: 0 | CQ76: 0 | CR76: 0 | CS76: 0
A77: 76 | D77: 0 | E77: 0 | L77: 0 | M77: 0 | U77: 1.00 | V77: 0 | BA77: =IFERROR(VLOOKUP(W77,CadMP!$B:$D,2,0),"") ->  | BB77: =IFERROR(VLOOKUP(X77,CadMP!$B:$D,2,0),"") ->  | BC77: =IFERROR(VLOOKUP(Y77,CadMP!$B:$D,2,0),"") ->  | BD77: =IFERROR(VLOOKUP(Z77,CadMP!$B:$D,2,0),"") ->  | BE77: =IFERROR(VLOOKUP(AA77,CadMP!$B:$D,2,0),"") ->  | BF77: =IFERROR(VLOOKUP(AB77,CadMP!$B:$D,2,0),"") ->  | BG77: =IFERROR(VLOOKUP(AC77,CadMP!$B:$D,2,0),"") ->  | BH77: =IFERROR(VLOOKUP(AD77,CadMP!$B:$D,2,0),"") ->  | BI77: =IFERROR(VLOOKUP(AE77,CadMP!$B:$D,2,0),"") ->  | BJ77: =IFERROR(VLOOKUP(AF77,CadMP!$B:$D,2,0),"") ->  | BK77: =IFERROR(VLOOKUP(AG77,CadMP!$B:$D,2,0),"") ->  | BL77: =IFERROR(VLOOKUP(AH77,CadMP!$B:$D,2,0),"") ->  | BM77: =IFERROR(VLOOKUP(AI77,CadMP!$B:$D,2,0),"") ->  | BN77: =IFERROR(VLOOKUP(AJ77,CadMP!$B:$D,2,0),"") ->  | BO77: =IFERROR(VLOOKUP(AK77,CadMP!$B:$D,2,0),"") ->  | BP77: =IFERROR(VLOOKUP(W77,CadMP!$B:$D,3,0),"") ->  | BQ77: =IFERROR(VLOOKUP(X77,CadMP!$B:$D,3,0),"") ->  | BR77: =IFERROR(VLOOKUP(Y77,CadMP!$B:$D,3,0),"") ->  | BS77: =IFERROR(VLOOKUP(Z77,CadMP!$B:$D,3,0),"") ->  | BT77: =IFERROR(VLOOKUP(AA77,CadMP!$B:$D,3,0),"") ->  | BU77: =IFERROR(VLOOKUP(AB77,CadMP!$B:$D,3,0),"") ->  | BV77: =IFERROR(VLOOKUP(AC77,CadMP!$B:$D,3,0),"") ->  | BW77: =IFERROR(VLOOKUP(AD77,CadMP!$B:$D,3,0),"") ->  | BX77: =IFERROR(VLOOKUP(AE77,CadMP!$B:$D,3,0),"") ->  | BY77: =IFERROR(VLOOKUP(AF77,CadMP!$B:$D,3,0),"") ->  | BZ77: =IFERROR(VLOOKUP(AG77,CadMP!$B:$D,3,0),"") ->  | CA77: =IFERROR(VLOOKUP(AH77,CadMP!$B:$D,3,0),"") ->  | CB77: =IFERROR(VLOOKUP(AI77,CadMP!$B:$D,3,0),"") ->  | CC77: =IFERROR(VLOOKUP(AJ77,CadMP!$B:$D,3,0),"") ->  | CD77: =IFERROR(VLOOKUP(AK77,CadMP!$B:$D,3,0),"") ->  | CE77: 0 | CF77: 0 | CG77: 0 | CH77: 0 | CI77: 0 | CJ77: 0 | CK77: 0 | CL77: 0 | CM77: 0 | CN77: 0 | CO77: 0 | CP77: 0 | CQ77: 0 | CR77: 0 | CS77: 0
A78: 77 | D78: 0 | E78: 0 | L78: 0 | M78: 0 | U78: 1.00 | V78: 0 | BA78: =IFERROR(VLOOKUP(W78,CadMP!$B:$D,2,0),"") ->  | BB78: =IFERROR(VLOOKUP(X78,CadMP!$B:$D,2,0),"") ->  | BC78: =IFERROR(VLOOKUP(Y78,CadMP!$B:$D,2,0),"") ->  | BD78: =IFERROR(VLOOKUP(Z78,CadMP!$B:$D,2,0),"") ->  | BE78: =IFERROR(VLOOKUP(AA78,CadMP!$B:$D,2,0),"") ->  | BF78: =IFERROR(VLOOKUP(AB78,CadMP!$B:$D,2,0),"") ->  | BG78: =IFERROR(VLOOKUP(AC78,CadMP!$B:$D,2,0),"") ->  | BH78: =IFERROR(VLOOKUP(AD78,CadMP!$B:$D,2,0),"") ->  | BI78: =IFERROR(VLOOKUP(AE78,CadMP!$B:$D,2,0),"") ->  | BJ78: =IFERROR(VLOOKUP(AF78,CadMP!$B:$D,2,0),"") ->  | BK78: =IFERROR(VLOOKUP(AG78,CadMP!$B:$D,2,0),"") ->  | BL78: =IFERROR(VLOOKUP(AH78,CadMP!$B:$D,2,0),"") ->  | BM78: =IFERROR(VLOOKUP(AI78,CadMP!$B:$D,2,0),"") ->  | BN78: =IFERROR(VLOOKUP(AJ78,CadMP!$B:$D,2,0),"") ->  | BO78: =IFERROR(VLOOKUP(AK78,CadMP!$B:$D,2,0),"") ->  | BP78: =IFERROR(VLOOKUP(W78,CadMP!$B:$D,3,0),"") ->  | BQ78: =IFERROR(VLOOKUP(X78,CadMP!$B:$D,3,0),"") ->  | BR78: =IFERROR(VLOOKUP(Y78,CadMP!$B:$D,3,0),"") ->  | BS78: =IFERROR(VLOOKUP(Z78,CadMP!$B:$D,3,0),"") ->  | BT78: =IFERROR(VLOOKUP(AA78,CadMP!$B:$D,3,0),"") ->  | BU78: =IFERROR(VLOOKUP(AB78,CadMP!$B:$D,3,0),"") ->  | BV78: =IFERROR(VLOOKUP(AC78,CadMP!$B:$D,3,0),"") ->  | BW78: =IFERROR(VLOOKUP(AD78,CadMP!$B:$D,3,0),"") ->  | BX78: =IFERROR(VLOOKUP(AE78,CadMP!$B:$D,3,0),"") ->  | BY78: =IFERROR(VLOOKUP(AF78,CadMP!$B:$D,3,0),"") ->  | BZ78: =IFERROR(VLOOKUP(AG78,CadMP!$B:$D,3,0),"") ->  | CA78: =IFERROR(VLOOKUP(AH78,CadMP!$B:$D,3,0),"") ->  | CB78: =IFERROR(VLOOKUP(AI78,CadMP!$B:$D,3,0),"") ->  | CC78: =IFERROR(VLOOKUP(AJ78,CadMP!$B:$D,3,0),"") ->  | CD78: =IFERROR(VLOOKUP(AK78,CadMP!$B:$D,3,0),"") ->  | CE78: 0 | CF78: 0 | CG78: 0 | CH78: 0 | CI78: 0 | CJ78: 0 | CK78: 0 | CL78: 0 | CM78: 0 | CN78: 0 | CO78: 0 | CP78: 0 | CQ78: 0 | CR78: 0 | CS78: 0
A79: 78 | D79: 0 | E79: 0 | L79: 0 | M79: 0 | U79: 1.00 | V79: 0 | BA79: =IFERROR(VLOOKUP(W79,CadMP!$B:$D,2,0),"") ->  | BB79: =IFERROR(VLOOKUP(X79,CadMP!$B:$D,2,0),"") ->  | BC79: =IFERROR(VLOOKUP(Y79,CadMP!$B:$D,2,0),"") ->  | BD79: =IFERROR(VLOOKUP(Z79,CadMP!$B:$D,2,0),"") ->  | BE79: =IFERROR(VLOOKUP(AA79,CadMP!$B:$D,2,0),"") ->  | BF79: =IFERROR(VLOOKUP(AB79,CadMP!$B:$D,2,0),"") ->  | BG79: =IFERROR(VLOOKUP(AC79,CadMP!$B:$D,2,0),"") ->  | BH79: =IFERROR(VLOOKUP(AD79,CadMP!$B:$D,2,0),"") ->  | BI79: =IFERROR(VLOOKUP(AE79,CadMP!$B:$D,2,0),"") ->  | BJ79: =IFERROR(VLOOKUP(AF79,CadMP!$B:$D,2,0),"") ->  | BK79: =IFERROR(VLOOKUP(AG79,CadMP!$B:$D,2,0),"") ->  | BL79: =IFERROR(VLOOKUP(AH79,CadMP!$B:$D,2,0),"") ->  | BM79: =IFERROR(VLOOKUP(AI79,CadMP!$B:$D,2,0),"") ->  | BN79: =IFERROR(VLOOKUP(AJ79,CadMP!$B:$D,2,0),"") ->  | BO79: =IFERROR(VLOOKUP(AK79,CadMP!$B:$D,2,0),"") ->  | BP79: =IFERROR(VLOOKUP(W79,CadMP!$B:$D,3,0),"") ->  | BQ79: =IFERROR(VLOOKUP(X79,CadMP!$B:$D,3,0),"") ->  | BR79: =IFERROR(VLOOKUP(Y79,CadMP!$B:$D,3,0),"") ->  | BS79: =IFERROR(VLOOKUP(Z79,CadMP!$B:$D,3,0),"") ->  | BT79: =IFERROR(VLOOKUP(AA79,CadMP!$B:$D,3,0),"") ->  | BU79: =IFERROR(VLOOKUP(AB79,CadMP!$B:$D,3,0),"") ->  | BV79: =IFERROR(VLOOKUP(AC79,CadMP!$B:$D,3,0),"") ->  | BW79: =IFERROR(VLOOKUP(AD79,CadMP!$B:$D,3,0),"") ->  | BX79: =IFERROR(VLOOKUP(AE79,CadMP!$B:$D,3,0),"") ->  | BY79: =IFERROR(VLOOKUP(AF79,CadMP!$B:$D,3,0),"") ->  | BZ79: =IFERROR(VLOOKUP(AG79,CadMP!$B:$D,3,0),"") ->  | CA79: =IFERROR(VLOOKUP(AH79,CadMP!$B:$D,3,0),"") ->  | CB79: =IFERROR(VLOOKUP(AI79,CadMP!$B:$D,3,0),"") ->  | CC79: =IFERROR(VLOOKUP(AJ79,CadMP!$B:$D,3,0),"") ->  | CD79: =IFERROR(VLOOKUP(AK79,CadMP!$B:$D,3,0),"") ->  | CE79: 0 | CF79: 0 | CG79: 0 | CH79: 0 | CI79: 0 | CJ79: 0 | CK79: 0 | CL79: 0 | CM79: 0 | CN79: 0 | CO79: 0 | CP79: 0 | CQ79: 0 | CR79: 0 | CS79: 0
A80: 79 | D80: 0 | E80: 0 | L80: 0 | M80: 0 | U80: 1.00 | V80: 0 | BA80: =IFERROR(VLOOKUP(W80,CadMP!$B:$D,2,0),"") ->  | BB80: =IFERROR(VLOOKUP(X80,CadMP!$B:$D,2,0),"") ->  | BC80: =IFERROR(VLOOKUP(Y80,CadMP!$B:$D,2,0),"") ->  | BD80: =IFERROR(VLOOKUP(Z80,CadMP!$B:$D,2,0),"") ->  | BE80: =IFERROR(VLOOKUP(AA80,CadMP!$B:$D,2,0),"") ->  | BF80: =IFERROR(VLOOKUP(AB80,CadMP!$B:$D,2,0),"") ->  | BG80: =IFERROR(VLOOKUP(AC80,CadMP!$B:$D,2,0),"") ->  | BH80: =IFERROR(VLOOKUP(AD80,CadMP!$B:$D,2,0),"") ->  | BI80: =IFERROR(VLOOKUP(AE80,CadMP!$B:$D,2,0),"") ->  | BJ80: =IFERROR(VLOOKUP(AF80,CadMP!$B:$D,2,0),"") ->  | BK80: =IFERROR(VLOOKUP(AG80,CadMP!$B:$D,2,0),"") ->  | BL80: =IFERROR(VLOOKUP(AH80,CadMP!$B:$D,2,0),"") ->  | BM80: =IFERROR(VLOOKUP(AI80,CadMP!$B:$D,2,0),"") ->  | BN80: =IFERROR(VLOOKUP(AJ80,CadMP!$B:$D,2,0),"") ->  | BO80: =IFERROR(VLOOKUP(AK80,CadMP!$B:$D,2,0),"") ->  | BP80: =IFERROR(VLOOKUP(W80,CadMP!$B:$D,3,0),"") ->  | BQ80: =IFERROR(VLOOKUP(X80,CadMP!$B:$D,3,0),"") ->  | BR80: =IFERROR(VLOOKUP(Y80,CadMP!$B:$D,3,0),"") ->  | BS80: =IFERROR(VLOOKUP(Z80,CadMP!$B:$D,3,0),"") ->  | BT80: =IFERROR(VLOOKUP(AA80,CadMP!$B:$D,3,0),"") ->  | BU80: =IFERROR(VLOOKUP(AB80,CadMP!$B:$D,3,0),"") ->  | BV80: =IFERROR(VLOOKUP(AC80,CadMP!$B:$D,3,0),"") ->  | BW80: =IFERROR(VLOOKUP(AD80,CadMP!$B:$D,3,0),"") ->  | BX80: =IFERROR(VLOOKUP(AE80,CadMP!$B:$D,3,0),"") ->  | BY80: =IFERROR(VLOOKUP(AF80,CadMP!$B:$D,3,0),"") ->  | BZ80: =IFERROR(VLOOKUP(AG80,CadMP!$B:$D,3,0),"") ->  | CA80: =IFERROR(VLOOKUP(AH80,CadMP!$B:$D,3,0),"") ->  | CB80: =IFERROR(VLOOKUP(AI80,CadMP!$B:$D,3,0),"") ->  | CC80: =IFERROR(VLOOKUP(AJ80,CadMP!$B:$D,3,0),"") ->  | CD80: =IFERROR(VLOOKUP(AK80,CadMP!$B:$D,3,0),"") ->  | CE80: 0 | CF80: 0 | CG80: 0 | CH80: 0 | CI80: 0 | CJ80: 0 | CK80: 0 | CL80: 0 | CM80: 0 | CN80: 0 | CO80: 0 | CP80: 0 | CQ80: 0 | CR80: 0 | CS80: 0
A81: 80 | D81: 0 | E81: 0 | L81: 0 | M81: 0 | U81: 1.00 | V81: 0 | BA81: =IFERROR(VLOOKUP(W81,CadMP!$B:$D,2,0),"") ->  | BB81: =IFERROR(VLOOKUP(X81,CadMP!$B:$D,2,0),"") ->  | BC81: =IFERROR(VLOOKUP(Y81,CadMP!$B:$D,2,0),"") ->  | BD81: =IFERROR(VLOOKUP(Z81,CadMP!$B:$D,2,0),"") ->  | BE81: =IFERROR(VLOOKUP(AA81,CadMP!$B:$D,2,0),"") ->  | BF81: =IFERROR(VLOOKUP(AB81,CadMP!$B:$D,2,0),"") ->  | BG81: =IFERROR(VLOOKUP(AC81,CadMP!$B:$D,2,0),"") ->  | BH81: =IFERROR(VLOOKUP(AD81,CadMP!$B:$D,2,0),"") ->  | BI81: =IFERROR(VLOOKUP(AE81,CadMP!$B:$D,2,0),"") ->  | BJ81: =IFERROR(VLOOKUP(AF81,CadMP!$B:$D,2,0),"") ->  | BK81: =IFERROR(VLOOKUP(AG81,CadMP!$B:$D,2,0),"") ->  | BL81: =IFERROR(VLOOKUP(AH81,CadMP!$B:$D,2,0),"") ->  | BM81: =IFERROR(VLOOKUP(AI81,CadMP!$B:$D,2,0),"") ->  | BN81: =IFERROR(VLOOKUP(AJ81,CadMP!$B:$D,2,0),"") ->  | BO81: =IFERROR(VLOOKUP(AK81,CadMP!$B:$D,2,0),"") ->  | BP81: =IFERROR(VLOOKUP(W81,CadMP!$B:$D,3,0),"") ->  | BQ81: =IFERROR(VLOOKUP(X81,CadMP!$B:$D,3,0),"") ->  | BR81: =IFERROR(VLOOKUP(Y81,CadMP!$B:$D,3,0),"") ->  | BS81: =IFERROR(VLOOKUP(Z81,CadMP!$B:$D,3,0),"") ->  | BT81: =IFERROR(VLOOKUP(AA81,CadMP!$B:$D,3,0),"") ->  | BU81: =IFERROR(VLOOKUP(AB81,CadMP!$B:$D,3,0),"") ->  | BV81: =IFERROR(VLOOKUP(AC81,CadMP!$B:$D,3,0),"") ->  | BW81: =IFERROR(VLOOKUP(AD81,CadMP!$B:$D,3,0),"") ->  | BX81: =IFERROR(VLOOKUP(AE81,CadMP!$B:$D,3,0),"") ->  | BY81: =IFERROR(VLOOKUP(AF81,CadMP!$B:$D,3,0),"") ->  | BZ81: =IFERROR(VLOOKUP(AG81,CadMP!$B:$D,3,0),"") ->  | CA81: =IFERROR(VLOOKUP(AH81,CadMP!$B:$D,3,0),"") ->  | CB81: =IFERROR(VLOOKUP(AI81,CadMP!$B:$D,3,0),"") ->  | CC81: =IFERROR(VLOOKUP(AJ81,CadMP!$B:$D,3,0),"") ->  | CD81: =IFERROR(VLOOKUP(AK81,CadMP!$B:$D,3,0),"") ->  | CE81: 0 | CF81: 0 | CG81: 0 | CH81: 0 | CI81: 0 | CJ81: 0 | CK81: 0 | CL81: 0 | CM81: 0 | CN81: 0 | CO81: 0 | CP81: 0 | CQ81: 0 | CR81: 0 | CS81: 0
